Workbook

Sheet Start
E2: Energy Savings and Impacts Scenario Tool
E3: (ESIST): Pilot Gas Version
E4: Version 1.2, Updated December 2024
B6: The ESIST: Pilot Gas Version is focused on natural gas savings from energy efficiency or other gas-saving measures in the residential and commercial sectors. The methodology and functionality of this model is largely identical to the electricity-focused ESIST, with some additional limitations. This verison of ESIST is intended as a pilot version to support users in their analyses and to learn more about how this tool could be improved. ESIST: Pilot Gas Version is a customizable and transparent Excel-based planning tool for analyzing energy savings and costs from customer-funded energy efficiency programs and their impacts on emissions and equity. ESIST: Pilot Gas Version enables users to develop, explore, and share energy efficiency scenarios between 2010 and 2045. Users first select a study area based on states, utility types, specific utilities, or customer sectors within a specific utility. Users can adjust inputs, including natural gas sales growth forecasts, energy efficiency savings goals, program budgets, savings expiration schedules, discount rates, and first-year costs. ESIST: Pilot Gas Version allows users to compare levels of energy efficiency savings, annual costs, and levelized costs of saved energy. Users can then estimate multiple benefits that could result from the energy efficiency scenario, including avoided emissions and energy burden impacts. We strongly recommend that new users: • Review the User Manual prior to using ESIST: Pilot Gas Version. • Use the red "Next" and "Back" arrows to progress through the tool. Users who wish to analyze different scenarios (e.g., analyze different levels of savings in several states, or the same level of savings in different utility service territories) should save multiple copies of this file, each containing a different scenario. These users may find it helpful to click the "Restore default Excel functionality" button (lower-right) to easily copy data from each workbook and paste it in a third comparative workbook. If you have questions or need assistance using ESIST: Pilot Gas Version please contact us at esist@epa.gov.
D31: NOTE: Cells formatted in blue are intended to be editable
B36: esist-pilot-gas-version-2024-update-beta.xlsm

Sheet S1_StudyArea
B2: =scenarioLabel -> ESIST: Pilot Gas Version—US Total, Residential and Commercial Sectors, All Utilities
C4: Step 1. Set Study Area
C5: For this step, select the region to be analyzed. Users can select the United States as a whole, a state, a utility type, or a utility. Data is only shown for the residential and commercial sectors in aggregate.
C7: Select state/U.S. Total: | D7: US Total | E7: Choose total (the United States as a whole), any of the 50 states, or Washington, D.C.
C8: Select sector: | D8: Residential and Commercial | E8: Users may only model the residential and commercial sectors in aggregate.
C9: Select utility: | D9: Total | E9: Choose total (all of the utilities under the above selection), or choose a specific utility. Note: Utilities may be shown with a different name than what you are familiar with. | P9: =SalesSavings!GI14 -> SalesSavings!GI15:GI15
C10: =IF(SUM(D19:D26)>=1,"Note: You have selected 'User Input' as a setting on at least one page. If you change your selected area, these user-input values will be preserved unless you go to that page and modify your selection.","") -> 
C16: ="ESIST: Pilot Gas Version—"&D7&", "&D8&" Sectors, "&IF(D9="Total","All Utilities",D9) -> ESIST: Pilot Gas Version—US Total, Residential and Commercial Sectors, All Utilities
C20: User input check
C21: S2_Sales | D21: =IF(LEFT(S2_Sales!D8,10)="User Input",1,0) -> 0
C22: S4or5_Costs | D22: =IF(S4or5_Costs!D7="User Input",1,0) -> 0
C23: S4_AnnSavings | D23: =IF(LEFT(S4_AnnSavings!D7,10)="User Input",1,0) -> 0
C24: S4_CumulSavings | D24: =IF(LEFT(S4_CumulSavings!D8,10)="User Input",1,0) -> 0
C25: S5_Budget | D25: =IF(LEFT(S5_Budget!D7,10)="User Input",1,0) -> 0
C26: A_MeasureExpiration | D26: =IF(LEFT(A_MeasureExpiration!D7,10)="User Input",1,0) -> 0

Sheet S2_Sales
B2: =scenarioLabel -> ESIST: Pilot Gas Version—US Total, Residential and Commercial Sectors, All Utilities
C4: Step 2. Set Baseline Natural Gas Consumption
C5: Use this step to set up trajectories for natural gas consumption. "Reported consumption" includes the effects of energy efficiency. "Baseline consumption" has these effects removed—this shows what consumption would have been if not for energy efficiency.
C6: This step determines the expected demand for energy in future years in the absence of any energy efficiency. You can select a pre-populated growth rate specific to your selected region, enter your own growth rate, or enter sales (in therms) manually.
C7: =IF(SUM(E11:N15)=0,"You have selected a state and utility combination that is not possible. Return to Step 1 and modify your selected area.","") -> 
C8: Select annual growth rate: | D8: CAGR | F8: =IF(D8="CAGR","Sales will increase by a compound annual growth rate (CAGR) for the region your selected state is in. This is best for capturing long-term trends in electricity sales.", IF(D8="AAGR","Sales will increase by year-specific annual average growth rates (AAGR) for the region your selected state is in. This is best for highlighting year-to-year differences in electricity sales.", IF(D8="Historical CAGR","Sales will increase by the compound annual growth rate (CAGR) observed for this region from 2011 to 2022. This is best for situations where future sales growth is likely to resemble growth in the recent past.", "Please enter values in the blue cells below. This is best when users already possess their own information on future changes to electricity sales."))) -> Sales will increase by a compound annual growth rate (CAGR) for the region your selected state is in. This is best for capturing long-term trends in electricity sales.
D10: =HYPERLINK("#R"&ROW(),"Click here to jump to future years") -> Click here to jump to future years | E10: 2010 | F10: 2011 | G10: 2012 | H10: 2013 | I10: 2014 | J10: 2015 | K10: 2016 | L10: 2017 | M10: 2018 | N10: 2019 | O10: 2020 | P10: 2021 | Q10: 2022 | R10: 2023 | S10: 2024 | T10: 2025 | U10: 2026 | V10: 2027 | W10: 2028 | X10: 2029 | Y10: 2030 | Z10: 2031 | AA10: 2032 | AB10: 2033 | AC10: 2034 | AD10: 2035 | AE10: 2036 | AF10: 2037 | AG10: 2038 | AH10: 2039 | AI10: 2040 | AJ10: 2041 | AK10: 2042 | AL10: 2043 | AM10: 2044 | AN10: 2045
C11: Annual consumption growth rate | D11: % | F11: =IFERROR(F15/E15-1,0) -> -0.002017568226 | G11: -0.1026391937 | H11: 0.1659928209 | I11: 0.04768758219 | J11: -0.08220567373 | K11: -0.04107805872 | L11: 0.02086344994 | M11: 0.1251824929 | N11: 0.006674354486 | O11: -0.07510690136 | P11: 0.02523847063 | Q11: 0.06045891637 | R11: =INDEX(Library!$AS$31:$AS$82,MATCH($D$26,Library!$B$31:$B$82,0)) -> 0.002460258778 | S11: =INDEX(Library!$AS$31:$AS$82,MATCH($D$26,Library!$B$31:$B$82,0)) -> 0.002460258778 | T11: =INDEX(Library!$AS$31:$AS$82,MATCH($D$26,Library!$B$31:$B$82,0)) -> 0.002460258778 | U11: =INDEX(Library!$AS$31:$AS$82,MATCH($D$26,Library!$B$31:$B$82,0)) -> 0.002460258778 | V11: =INDEX(Library!$AS$31:$AS$82,MATCH($D$26,Library!$B$31:$B$82,0)) -> 0.002460258778 | W11: =INDEX(Library!$AS$31:$AS$82,MATCH($D$26,Library!$B$31:$B$82,0)) -> 0.002460258778 | X11: =INDEX(Library!$AS$31:$AS$82,MATCH($D$26,Library!$B$31:$B$82,0)) -> 0.002460258778 | Y11: =INDEX(Library!$AS$31:$AS$82,MATCH($D$26,Library!$B$31:$B$82,0)) -> 0.002460258778 | Z11: =INDEX(Library!$AS$31:$AS$82,MATCH($D$26,Library!$B$31:$B$82,0)) -> 0.002460258778 | AA11: =INDEX(Library!$AS$31:$AS$82,MATCH($D$26,Library!$B$31:$B$82,0)) -> 0.002460258778 | AB11: =INDEX(Library!$AS$31:$AS$82,MATCH($D$26,Library!$B$31:$B$82,0)) -> 0.002460258778 | AC11: =INDEX(Library!$AS$31:$AS$82,MATCH($D$26,Library!$B$31:$B$82,0)) -> 0.002460258778 | AD11: =INDEX(Library!$AS$31:$AS$82,MATCH($D$26,Library!$B$31:$B$82,0)) -> 0.002460258778 | AE11: =INDEX(Library!$AS$31:$AS$82,MATCH($D$26,Library!$B$31:$B$82,0)) -> 0.002460258778 | AF11: =INDEX(Library!$AS$31:$AS$82,MATCH($D$26,Library!$B$31:$B$82,0)) -> 0.002460258778 | AG11: =INDEX(Library!$AS$31:$AS$82,MATCH($D$26,Library!$B$31:$B$82,0)) -> 0.002460258778 | AH11: =INDEX(Library!$AS$31:$AS$82,MATCH($D$26,Library!$B$31:$B$82,0)) -> 0.002460258778 | AI11: =INDEX(Library!$AS$31:$AS$82,MATCH($D$26,Library!$B$31:$B$82,0)) -> 0.002460258778 | AJ11: =INDEX(Library!$AS$31:$AS$82,MATCH($D$26,Library!$B$31:$B$82,0)) -> 0.002460258778 | AK11: =INDEX(Library!$AS$31:$AS$82,MATCH($D$26,Library!$B$31:$B$82,0)) -> 0.002460258778 | AL11: =INDEX(Library!$AS$31:$AS$82,MATCH($D$26,Library!$B$31:$B$82,0)) -> 0.002460258778 | AM11: =INDEX(Library!$AS$31:$AS$82,MATCH($D$26,Library!$B$31:$B$82,0)) -> 0.002460258778 | AN11: =INDEX(Library!$AS$31:$AS$82,MATCH($D$26,Library!$B$31:$B$82,0)) -> 0.002460258778
C12: Reported consumption (total) | D12: therms | E12: =IF($D$26="US Total",SUM(SalesSavings!CH:CH), IF($D$27="Total",SUMIFS(SalesSavings!CH:CH,SalesSavings!$B:$B,$D$26), SUMIFS(SalesSavings!CH:CH,SalesSavings!$B:$B,$D$26,SalesSavings!$G:$G,$D$27)))*Library!$D$338*Library!$D$339 -> 8.176751999e+10 | F12: =IF($D$26="US Total",SUM(SalesSavings!CI:CI), IF($D$27="Total",SUMIFS(SalesSavings!CI:CI,SalesSavings!$B:$B,$D$26), SUMIFS(SalesSavings!CI:CI,SalesSavings!$B:$B,$D$26,SalesSavings!$G:$G,$D$27)))*Library!$D$338*Library!$D$339 -> 8.160254643e+10 | G12: =IF($D$26="US Total",SUM(SalesSavings!CJ:CJ), IF($D$27="Total",SUMIFS(SalesSavings!CJ:CJ,SalesSavings!$B:$B,$D$26), SUMIFS(SalesSavings!CJ:CJ,SalesSavings!$B:$B,$D$26,SalesSavings!$G:$G,$D$27)))*Library!$D$338*Library!$D$339 -> 7.305090976e+10 | H12: =IF($D$26="US Total",SUM(SalesSavings!CK:CK), IF($D$27="Total",SUMIFS(SalesSavings!CK:CK,SalesSavings!$B:$B,$D$26), SUMIFS(SalesSavings!CK:CK,SalesSavings!$B:$B,$D$26,SalesSavings!$G:$G,$D$27)))*Library!$D$338*Library!$D$339 -> 84958035602 | I12: =IF($D$26="US Total",SUM(SalesSavings!CL:CL), IF($D$27="Total",SUMIFS(SalesSavings!CL:CL,SalesSavings!$B:$B,$D$26), SUMIFS(SalesSavings!CL:CL,SalesSavings!$B:$B,$D$26,SalesSavings!$G:$G,$D$27)))*Library!$D$338*Library!$D$339 -> 8.870270849e+10 | J12: =IF($D$26="US Total",SUM(SalesSavings!CM:CM), IF($D$27="Total",SUMIFS(SalesSavings!CM:CM,SalesSavings!$B:$B,$D$26), SUMIFS(SalesSavings!CM:CM,SalesSavings!$B:$B,$D$26,SalesSavings!$G:$G,$D$27)))*Library!$D$338*Library!$D$339 -> 8.103765476e+10 | K12: =IF($D$26="US Total",SUM(SalesSavings!CN:CN), IF($D$27="Total",SUMIFS(SalesSavings!CN:CN,SalesSavings!$B:$B,$D$26), SUMIFS(SalesSavings!CN:CN,SalesSavings!$B:$B,$D$26,SalesSavings!$G:$G,$D$27)))*Library!$D$338*Library!$D$339 -> 7.732052923e+10 | L12: =IF($D$26="US Total",SUM(SalesSavings!CO:CO), IF($D$27="Total",SUMIFS(SalesSavings!CO:CO,SalesSavings!$B:$B,$D$26), SUMIFS(SalesSavings!CO:CO,SalesSavings!$B:$B,$D$26,SalesSavings!$G:$G,$D$27)))*Library!$D$338*Library!$D$339 -> 7.858323974e+10 | M12: =IF($D$26="US Total",SUM(SalesSavings!CP:CP), IF($D$27="Total",SUMIFS(SalesSavings!CP:CP,SalesSavings!$B:$B,$D$26), SUMIFS(SalesSavings!CP:CP,SalesSavings!$B:$B,$D$26,SalesSavings!$G:$G,$D$27)))*Library!$D$338*Library!$D$339 -> 8.826435607e+10 | N12: =IF($D$26="US Total",SUM(SalesSavings!CQ:CQ), IF($D$27="Total",SUMIFS(SalesSavings!CQ:CQ,SalesSavings!$B:$B,$D$26), SUMIFS(SalesSavings!CQ:CQ,SalesSavings!$B:$B,$D$26,SalesSavings!$G:$G,$D$27)))*Library!$D$338*Library!$D$339 -> 8.848810595e+10 | O12: =IF($D$26="US Total",SUM(SalesSavings!CR:CR), IF($D$27="Total",SUMIFS(SalesSavings!CR:CR,SalesSavings!$B:$B,$D$26), SUMIFS(SalesSavings!CR:CR,SalesSavings!$B:$B,$D$26,SalesSavings!$G:$G,$D$27)))*Library!$D$338*Library!$D$339 -> 8.127095599e+10 | P12: =IF($D$26="US Total",SUM(SalesSavings!CS:CS), IF($D$27="Total",SUMIFS(SalesSavings!CS:CS,SalesSavings!$B:$B,$D$26), SUMIFS(SalesSavings!CS:CS,SalesSavings!$B:$B,$D$26,SalesSavings!$G:$G,$D$27)))*Library!$D$338*Library!$D$339 -> 8.301948021e+10 | Q12: =IF($D$26="US Total",SUM(SalesSavings!CT:CT), IF($D$27="Total",SUMIFS(SalesSavings!CT:CT,SalesSavings!$B:$B,$D$26), SUMIFS(SalesSavings!CT:CT,SalesSavings!$B:$B,$D$26,SalesSavings!$G:$G,$D$27)))*Library!$D$338*Library!$D$339 -> 8.786751878e+10
C13: Reported consumption (res.) | D13: therms | E13: =IF($D$26="US Total",SUM(SalesSavings!H:H), IF($D$27="Total",SUMIFS(SalesSavings!H:H,SalesSavings!$B:$B,$D$26), SUMIFS(SalesSavings!H:H,SalesSavings!$B:$B,$D$26,SalesSavings!$G:$G,$D$27)))*Library!$D$338*Library!$D$339 -> 4.959362887e+10 | F13: =IF($D$26="US Total",SUM(SalesSavings!I:I), IF($D$27="Total",SUMIFS(SalesSavings!I:I,SalesSavings!$B:$B,$D$26), SUMIFS(SalesSavings!I:I,SalesSavings!$B:$B,$D$26,SalesSavings!$G:$G,$D$27)))*Library!$D$338*Library!$D$339 -> 4.888189128e+10 | G13: =IF($D$26="US Total",SUM(SalesSavings!J:J), IF($D$27="Total",SUMIFS(SalesSavings!J:J,SalesSavings!$B:$B,$D$26), SUMIFS(SalesSavings!J:J,SalesSavings!$B:$B,$D$26,SalesSavings!$G:$G,$D$27)))*Library!$D$338*Library!$D$339 -> 4.303053148e+10 | H13: =IF($D$26="US Total",SUM(SalesSavings!K:K), IF($D$27="Total",SUMIFS(SalesSavings!K:K,SalesSavings!$B:$B,$D$26), SUMIFS(SalesSavings!K:K,SalesSavings!$B:$B,$D$26,SalesSavings!$G:$G,$D$27)))*Library!$D$338*Library!$D$339 -> 5.078576673e+10 | I13: =IF($D$26="US Total",SUM(SalesSavings!L:L), IF($D$27="Total",SUMIFS(SalesSavings!L:L,SalesSavings!$B:$B,$D$26), SUMIFS(SalesSavings!L:L,SalesSavings!$B:$B,$D$26,SalesSavings!$G:$G,$D$27)))*Library!$D$338*Library!$D$339 -> 5.27570917e+10 | J13: =IF($D$26="US Total",SUM(SalesSavings!M:M), IF($D$27="Total",SUMIFS(SalesSavings!M:M,SalesSavings!$B:$B,$D$26), SUMIFS(SalesSavings!M:M,SalesSavings!$B:$B,$D$26,SalesSavings!$G:$G,$D$27)))*Library!$D$338*Library!$D$339 -> 4.783567335e+10 | K13: =IF($D$26="US Total",SUM(SalesSavings!N:N), IF($D$27="Total",SUMIFS(SalesSavings!N:N,SalesSavings!$B:$B,$D$26), SUMIFS(SalesSavings!N:N,SalesSavings!$B:$B,$D$26,SalesSavings!$G:$G,$D$27)))*Library!$D$338*Library!$D$339 -> 4.507414174e+10 | L13: =IF($D$26="US Total",SUM(SalesSavings!O:O), IF($D$27="Total",SUMIFS(SalesSavings!O:O,SalesSavings!$B:$B,$D$26), SUMIFS(SalesSavings!O:O,SalesSavings!$B:$B,$D$26,SalesSavings!$G:$G,$D$27)))*Library!$D$338*Library!$D$339 -> 4.576618593e+10 | M13: =IF($D$26="US Total",SUM(SalesSavings!P:P), IF($D$27="Total",SUMIFS(SalesSavings!P:P,SalesSavings!$B:$B,$D$26), SUMIFS(SalesSavings!P:P,SalesSavings!$B:$B,$D$26,SalesSavings!$G:$G,$D$27)))*Library!$D$338*Library!$D$339 -> 5.182465744e+10 | N13: =IF($D$26="US Total",SUM(SalesSavings!Q:Q), IF($D$27="Total",SUMIFS(SalesSavings!Q:Q,SalesSavings!$B:$B,$D$26), SUMIFS(SalesSavings!Q:Q,SalesSavings!$B:$B,$D$26,SalesSavings!$G:$G,$D$27)))*Library!$D$338*Library!$D$339 -> 5.2042058e+10 | O13: =IF($D$26="US Total",SUM(SalesSavings!R:R), IF($D$27="Total",SUMIFS(SalesSavings!R:R,SalesSavings!$B:$B,$D$26), SUMIFS(SalesSavings!R:R,SalesSavings!$B:$B,$D$26,SalesSavings!$G:$G,$D$27)))*Library!$D$338*Library!$D$339 -> 4.847413142e+10 | P13: =IF($D$26="US Total",SUM(SalesSavings!S:S), IF($D$27="Total",SUMIFS(SalesSavings!S:S,SalesSavings!$B:$B,$D$26), SUMIFS(SalesSavings!S:S,SalesSavings!$B:$B,$D$26,SalesSavings!$G:$G,$D$27)))*Library!$D$338*Library!$D$339 -> 4.891176601e+10 | Q13: =IF($D$26="US Total",SUM(SalesSavings!T:T), IF($D$27="Total",SUMIFS(SalesSavings!T:T,SalesSavings!$B:$B,$D$26), SUMIFS(SalesSavings!T:T,SalesSavings!$B:$B,$D$26,SalesSavings!$G:$G,$D$27)))*Library!$D$338*Library!$D$339 -> 5.147840918e+10
C14: Reported consumption (com.) | D14: therms | E14: =IF($D$26="US Total",SUM(SalesSavings!AU:AU), IF($D$27="Total",SUMIFS(SalesSavings!AU:AU,SalesSavings!$B:$B,$D$26), SUMIFS(SalesSavings!AU:AU,SalesSavings!$B:$B,$D$26,SalesSavings!$G:$G,$D$27)))*Library!$D$338*Library!$D$339 -> 3.217391196e+10 | F14: =IF($D$26="US Total",SUM(SalesSavings!AV:AV), IF($D$27="Total",SUMIFS(SalesSavings!AV:AV,SalesSavings!$B:$B,$D$26), SUMIFS(SalesSavings!AV:AV,SalesSavings!$B:$B,$D$26,SalesSavings!$G:$G,$D$27)))*Library!$D$338*Library!$D$339 -> 3.2720676e+10 | G14: =IF($D$26="US Total",SUM(SalesSavings!AW:AW), IF($D$27="Total",SUMIFS(SalesSavings!AW:AW,SalesSavings!$B:$B,$D$26), SUMIFS(SalesSavings!AW:AW,SalesSavings!$B:$B,$D$26,SalesSavings!$G:$G,$D$27)))*Library!$D$338*Library!$D$339 -> 3.002039914e+10 | H14: =IF($D$26="US Total",SUM(SalesSavings!AX:AX), IF($D$27="Total",SUMIFS(SalesSavings!AX:AX,SalesSavings!$B:$B,$D$26), SUMIFS(SalesSavings!AX:AX,SalesSavings!$B:$B,$D$26,SalesSavings!$G:$G,$D$27)))*Library!$D$338*Library!$D$339 -> 3.417228975e+10 | I14: =IF($D$26="US Total",SUM(SalesSavings!AY:AY), IF($D$27="Total",SUMIFS(SalesSavings!AY:AY,SalesSavings!$B:$B,$D$26), SUMIFS(SalesSavings!AY:AY,SalesSavings!$B:$B,$D$26,SalesSavings!$G:$G,$D$27)))*Library!$D$338*Library!$D$339 -> 3.594563768e+10 | J14: =IF($D$26="US Total",SUM(SalesSavings!AZ:AZ), IF($D$27="Total",SUMIFS(SalesSavings!AZ:AZ,SalesSavings!$B:$B,$D$26), SUMIFS(SalesSavings!AZ:AZ,SalesSavings!$B:$B,$D$26,SalesSavings!$G:$G,$D$27)))*Library!$D$338*Library!$D$339 -> 3.32020023e+10 | K14: =IF($D$26="US Total",SUM(SalesSavings!BA:BA), IF($D$27="Total",SUMIFS(SalesSavings!BA:BA,SalesSavings!$B:$B,$D$26), SUMIFS(SalesSavings!BA:BA,SalesSavings!$B:$B,$D$26,SalesSavings!$G:$G,$D$27)))*Library!$D$338*Library!$D$339 -> 3.22464084e+10 | L14: =IF($D$26="US Total",SUM(SalesSavings!BB:BB), IF($D$27="Total",SUMIFS(SalesSavings!BB:BB,SalesSavings!$B:$B,$D$26), SUMIFS(SalesSavings!BB:BB,SalesSavings!$B:$B,$D$26,SalesSavings!$G:$G,$D$27)))*Library!$D$338*Library!$D$339 -> 3.281707472e+10 | M14: =IF($D$26="US Total",SUM(SalesSavings!BC:BC), IF($D$27="Total",SUMIFS(SalesSavings!BC:BC,SalesSavings!$B:$B,$D$26), SUMIFS(SalesSavings!BC:BC,SalesSavings!$B:$B,$D$26,SalesSavings!$G:$G,$D$27)))*Library!$D$338*Library!$D$339 -> 3.643971955e+10 | N14: =IF($D$26="US Total",SUM(SalesSavings!BD:BD), IF($D$27="Total",SUMIFS(SalesSavings!BD:BD,SalesSavings!$B:$B,$D$26), SUMIFS(SalesSavings!BD:BD,SalesSavings!$B:$B,$D$26,SalesSavings!$G:$G,$D$27)))*Library!$D$338*Library!$D$339 -> 3.644606888e+10 | O14: =IF($D$26="US Total",SUM(SalesSavings!BE:BE), IF($D$27="Total",SUMIFS(SalesSavings!BE:BE,SalesSavings!$B:$B,$D$26), SUMIFS(SalesSavings!BE:BE,SalesSavings!$B:$B,$D$26,SalesSavings!$G:$G,$D$27)))*Library!$D$338*Library!$D$339 -> 3.279684552e+10 | P14: =IF($D$26="US Total",SUM(SalesSavings!BF:BF), IF($D$27="Total",SUMIFS(SalesSavings!BF:BF,SalesSavings!$B:$B,$D$26), SUMIFS(SalesSavings!BF:BF,SalesSavings!$B:$B,$D$26,SalesSavings!$G:$G,$D$27)))*Library!$D$338*Library!$D$339 -> 3.410773516e+10 | Q14: =IF($D$26="US Total",SUM(SalesSavings!BG:BG), IF($D$27="Total",SUMIFS(SalesSavings!BG:BG,SalesSavings!$B:$B,$D$26), SUMIFS(SalesSavings!BG:BG,SalesSavings!$B:$B,$D$26,SalesSavings!$G:$G,$D$27)))*Library!$D$338*Library!$D$339 -> 3.638913057e+10
C15: Baseline consumption | D15: therms | E15: =E12+S7_Outputs!E12 -> 8.176751999e+10 | F15: =F12+S7_Outputs!F12 -> 8.160254844e+10 | G15: =G12+S7_Outputs!G12 -> 7.322692866e+10 | H15: =H12+S7_Outputs!H12 -> 85382073112 | I15: =I12+S7_Outputs!I12 -> 8.945373774e+10 | J15: =J12+S7_Outputs!J12 -> 8.210013296e+10 | K15: =K12+S7_Outputs!K12 -> 7.872761888e+10 | L15: =L12+S7_Outputs!L12 -> 8.037014861e+10 | M15: =M12+S7_Outputs!M12 -> 9.043108417e+10 | N15: =N12+S7_Outputs!N12 -> 9.103465328e+10 | O15: =O12+S7_Outputs!O12 -> 8.419732256e+10 | P15: =P12+S7_Outputs!P12 -> 8.632233421e+10 | Q15: =Q12+S7_Outputs!Q12 -> 9.1541289e+10 | R15: =Q15*(1+P11) -> 9.385165113e+10 | S15: =R15*(1+Q11) -> 9.952582026e+10 | T15: 9.977067953e+10 | U15: 1.000161412e+11 | V15: 1.002622068e+11 | W15: 1.005088778e+11 | X15: 1.007561556e+11 | Y15: 1.010040419e+11 | Z15: 1.012525379e+11 | AA15: 1.015016454e+11 | AB15: 1.017513657e+11 | AC15: 1.020017004e+11 | AD15: 1.02252651e+11 | AE15: 1.025042189e+11 | AF15: 1.027564058e+11 | AG15: 1.030092132e+11 | AH15: 1.032626425e+11 | AI15: 1.035166953e+11 | AJ15: 1.037713732e+11 | AK15: 1.040266776e+11 | AL15: 1.042826102e+11 | AM15: 1.045391724e+11 | AN15: 1.047963658e+11
C21: Data sources:
C22: Energy Information Administration (EIA). "Annual Energy Outlook (AEO) 2023." (2023). Available at https://www.eia.gov/outlooks/aeo/
C23: U.S. Energy Information Administration (EIA). "Natural Gas Annual Respondent Query System (EIA Form 176)." (2022). Available at https://www.eia.gov/naturalgas/ngqs/
C26: State | D26: =S1_StudyArea!D7 -> US Total
C27: Utility | D27: =S1_StudyArea!D9 -> Total

Sheet S3_Approach
B2: =scenarioLabel -> ESIST: Pilot Gas Version—US Total, Residential and Commercial Sectors, All Utilities
C4: Step 3. Set Target Type
C5: Choose a type of savings target, and then click on the button labeled "Apply Target Type." Target types include:
D6: Annual budget: Set up an energy efficiency trajectory based on potential program budget.
D7: Annual incremental savings: Set up an energy efficiency trajectory based on the annual incremental savings to be implemented in each year (in therms), or as a percent of previous-years' sales (in %).
D8: Cumulative savings: Set up an energy efficiency trajectory based on a future-year target for cumulative energy efficiency (in therms or %).
C10: Select target type: | F10: Annual Incremental Savings | H10: =IF(F10="Annual Incremental Savings","With Annual Incremental Savings, you can enter an amount of new energy efficiency to add in each year. Savings may be based on total therms or a percent of sales.", IF(F10="Cumulative Savings","With Cumulative Savings, you set a target level of savings you'd like to reach by a certain year. Savings may be based on total therms or a percent of sales.", IF(F10="Annual Budget","With Annual Budget, you enter the amount of budget you have available in each year. Costs of saved energy determine annual savings, independent of any therms or percent-of-sales goals."))) -> With Annual Incremental Savings, you can enter an amount of new energy efficiency to add in each year. Savings may be based on total therms or a percent of sales.
D15: This figure defines two terms commonly used in this tool. "Annual incremental savings" are the new first year savings that are installed in any one year. "Cumulative savings" are the sum total of new and persisting savings in a given year, net of expired savings. We note that some energy efficiency planners may call cumulative savings "Annual Total Savings" and that what ESIST calls cumulative savings may refer to a different quantity.

Sheet S4or5_Costs
B2: =scenarioLabel -> ESIST: Pilot Gas Version—US Total, Residential and Commercial Sectors, All Utilities
C4: =IF(S3_Approach!$F$10="Annual Budget","Step 4. Set Program Cost Assumptions","Step 5. Set Program Cost Assumptions") -> Step 5. Set Program Cost Assumptions
C5: This step determines the cost of implementing energy efficiency. Costs are input in terms of first-year costs, and are then converted into levelized cost terms. For some utilities, historical costs are reported as zero if data are not available.
C7: Select first-year cost trend: | D7: Constant | E7: =IF(D7="Constant","First-year costs of saved energy remain constant at $"&ROUND(D9,2)&"/therms.",IF(D7="Historical","First-year costs are equal to those observed in the most recent historical year.",IF(D7="Savings-Dependent","First-year costs vary according to the savings levels specified in the blue cells below.",IF(D7="User Input","Enter first-year costs in the blue cells below.")))) -> First-year costs of saved energy remain constant at $12.55/therms.
C8: Basis for cost: | D8: National | E8: Choose whether costs are based on national- or regional-level values.
C9: First-year cost per therm: | D9: =Library!H321/D16 -> 12.54877297 | E9: First-year cost of saved energy assumed for each future year. Includes both utility and participant spending.
D11: Savings achieved | E11: Cost Adjustment Factor
C12: First-Year Costs Trends: | D12: 0.005 | E12: 0 | G12: ="If savings levels are below "&TEXT(D12,"0.00%")&" per year, a cost adjustment factor of "&TEXT(E12,"0%")&" is applied. In these years, first-year costs are $"&ROUND((1+E12)*D9,2)&"/therms." -> If savings levels are below 0.50% per year, a cost adjustment factor of 0% is applied. In these years, first-year costs are $12.55/therms.
D13: 0.01 | E13: -0.1 | G13: ="If savings levels are equal to or greater than "&TEXT(D12,"0.00%")&" but below "&TEXT(D13,"0.00%")&" per year, a cost adjustment factor of "&TEXT(E13,"0%")&" is applied. In these years, first-year costs are $"&ROUND((1+E13)*D9,2)&"/therms." -> If savings levels are equal to or greater than 0.50% but below 1.00% per year, a cost adjustment factor of -10% is applied. In these years, first-year costs are $11.29/therms.
D14: 1 | E14: -0.2 | G14: ="If savings levels are equal to or greater than "&TEXT(D13,"0.00%")&" but below "&TEXT(D14,"0.00%")&" per year, a cost adjustment factor of "&TEXT(E14,"0%")&" is applied. In these years, first-year costs are $"&ROUND((1+E14)*D9,2)&"/therms." -> If savings levels are equal to or greater than 1.00% but below 100.00% per year, a cost adjustment factor of -20% is applied. In these years, first-year costs are $10.04/therms.
C16: Utility share of costs: | D16: =IF($D$8="National",Library!$G$315,Library!$G$321) -> 0.4 | E16: ="The utilities or program administrators are assumed to pay "&TEXT(D16,"0%")&" of first-year total energy efficiency expenditures (not just measure costs) in each year. The remainder is paid by program participants." -> The utilities or program administrators are assumed to pay 40% of first-year total energy efficiency expenditures (not just measure costs) in each year. The remainder is paid by program participants.
C17: Select discount rate: | D17: 0.03 | E17: Typical EPA discount rates are 3% and 7%. The ESIST default is 3%. Discount rates are used to convert first-year costs into levelized costs.
D19: =HYPERLINK("#R"&ROW(),"Click here to jump to future years") -> Click here to jump to future years | E19: 2010 | F19: 2011 | G19: 2012 | H19: 2013 | I19: 2014 | J19: 2015 | K19: 2016 | L19: 2017 | M19: 2018 | N19: 2019 | O19: 2020 | P19: 2021 | Q19: 2022 | R19: 2023 | S19: 2024 | T19: 2025 | U19: 2026 | V19: 2027 | W19: 2028 | X19: 2029 | Y19: 2030 | Z19: 2031 | AA19: 2032 | AB19: 2033 | AC19: 2034 | AD19: 2035 | AE19: 2036 | AF19: 2037 | AG19: 2038 | AH19: 2039 | AI19: 2040 | AJ19: 2041 | AK19: 2042 | AL19: 2043 | AM19: 2044 | AN19: 2045
C20: Annual incremental savings | D20: % | F20: =IF(S3_Approach!$F$10="Annual Incremental Savings",S4_AnnSavings!F14,IF(S3_Approach!$F$10="Cumulative Savings",S4_CumulSavings!F18,"-")) -> 2.459411757e-08 | G20: =IF(S3_Approach!$F$10="Annual Incremental Savings",S4_AnnSavings!G14,IF(S3_Approach!$F$10="Cumulative Savings",S4_CumulSavings!G18,"-")) -> 0.002157002353 | H20: =IF(S3_Approach!$F$10="Annual Incremental Savings",S4_AnnSavings!H14,IF(S3_Approach!$F$10="Cumulative Savings",S4_CumulSavings!H18,"-")) -> 0.00338698638 | I20: =IF(S3_Approach!$F$10="Annual Incremental Savings",S4_AnnSavings!I14,IF(S3_Approach!$F$10="Cumulative Savings",S4_CumulSavings!I18,"-")) -> 0.003829746996 | J20: =IF(S3_Approach!$F$10="Annual Incremental Savings",S4_AnnSavings!J14,IF(S3_Approach!$F$10="Cumulative Savings",S4_CumulSavings!J18,"-")) -> 0.003481676267 | K20: =IF(S3_Approach!$F$10="Annual Incremental Savings",S4_AnnSavings!K14,IF(S3_Approach!$F$10="Cumulative Savings",S4_CumulSavings!K18,"-")) -> 0.004197452917 | L20: =IF(S3_Approach!$F$10="Annual Incremental Savings",S4_AnnSavings!L14,IF(S3_Approach!$F$10="Cumulative Savings",S4_CumulSavings!L18,"-")) -> 0.00482447246 | M20: =IF(S3_Approach!$F$10="Annual Incremental Savings",S4_AnnSavings!M14,IF(S3_Approach!$F$10="Cumulative Savings",S4_CumulSavings!M18,"-")) -> 0.004725874428 | N20: =IF(S3_Approach!$F$10="Annual Incremental Savings",S4_AnnSavings!N14,IF(S3_Approach!$F$10="Cumulative Savings",S4_CumulSavings!N18,"-")) -> 0.004200095958 | O20: =IF(S3_Approach!$F$10="Annual Incremental Savings",S4_AnnSavings!O14,IF(S3_Approach!$F$10="Cumulative Savings",S4_CumulSavings!O18,"-")) -> 0.004172248901 | P20: =IF(S3_Approach!$F$10="Annual Incremental Savings",S4_AnnSavings!P14,IF(S3_Approach!$F$10="Cumulative Savings",S4_CumulSavings!P18,"-")) -> 0.004471489314 | Q20: =IF(S3_Approach!$F$10="Annual Incremental Savings",S4_AnnSavings!Q14,IF(S3_Approach!$F$10="Cumulative Savings",S4_CumulSavings!Q18,"-")) -> 0.004296874273 | R20: =IF(S3_Approach!$F$10="Annual Incremental Savings",S4_AnnSavings!R14,IF(S3_Approach!$F$10="Cumulative Savings",S4_CumulSavings!R18,"-")) -> 0.006296874273 | S20: =IF(S3_Approach!$F$10="Annual Incremental Savings",S4_AnnSavings!S14,IF(S3_Approach!$F$10="Cumulative Savings",S4_CumulSavings!S18,"-")) -> 0.008296874273 | T20: =IF(S3_Approach!$F$10="Annual Incremental Savings",S4_AnnSavings!T14,IF(S3_Approach!$F$10="Cumulative Savings",S4_CumulSavings!T18,"-")) -> 0.01 | U20: =IF(S3_Approach!$F$10="Annual Incremental Savings",S4_AnnSavings!U14,IF(S3_Approach!$F$10="Cumulative Savings",S4_CumulSavings!U18,"-")) -> 0.01 | V20: =IF(S3_Approach!$F$10="Annual Incremental Savings",S4_AnnSavings!V14,IF(S3_Approach!$F$10="Cumulative Savings",S4_CumulSavings!V18,"-")) -> 0.01 | W20: =IF(S3_Approach!$F$10="Annual Incremental Savings",S4_AnnSavings!W14,IF(S3_Approach!$F$10="Cumulative Savings",S4_CumulSavings!W18,"-")) -> 0.01 | X20: =IF(S3_Approach!$F$10="Annual Incremental Savings",S4_AnnSavings!X14,IF(S3_Approach!$F$10="Cumulative Savings",S4_CumulSavings!X18,"-")) -> 0.01 | Y20: =IF(S3_Approach!$F$10="Annual Incremental Savings",S4_AnnSavings!Y14,IF(S3_Approach!$F$10="Cumulative Savings",S4_CumulSavings!Y18,"-")) -> 0.01 | Z20: =IF(S3_Approach!$F$10="Annual Incremental Savings",S4_AnnSavings!Z14,IF(S3_Approach!$F$10="Cumulative Savings",S4_CumulSavings!Z18,"-")) -> 0.01 | AA20: =IF(S3_Approach!$F$10="Annual Incremental Savings",S4_AnnSavings!AA14,IF(S3_Approach!$F$10="Cumulative Savings",S4_CumulSavings!AA18,"-")) -> 0.01 | AB20: =IF(S3_Approach!$F$10="Annual Incremental Savings",S4_AnnSavings!AB14,IF(S3_Approach!$F$10="Cumulative Savings",S4_CumulSavings!AB18,"-")) -> 0.01 | AC20: =IF(S3_Approach!$F$10="Annual Incremental Savings",S4_AnnSavings!AC14,IF(S3_Approach!$F$10="Cumulative Savings",S4_CumulSavings!AC18,"-")) -> 0.01 | AD20: =IF(S3_Approach!$F$10="Annual Incremental Savings",S4_AnnSavings!AD14,IF(S3_Approach!$F$10="Cumulative Savings",S4_CumulSavings!AD18,"-")) -> 0.01 | AE20: =IF(S3_Approach!$F$10="Annual Incremental Savings",S4_AnnSavings!AE14,IF(S3_Approach!$F$10="Cumulative Savings",S4_CumulSavings!AE18,"-")) -> 0.01 | AF20: =IF(S3_Approach!$F$10="Annual Incremental Savings",S4_AnnSavings!AF14,IF(S3_Approach!$F$10="Cumulative Savings",S4_CumulSavings!AF18,"-")) -> 0.01 | AG20: =IF(S3_Approach!$F$10="Annual Incremental Savings",S4_AnnSavings!AG14,IF(S3_Approach!$F$10="Cumulative Savings",S4_CumulSavings!AG18,"-")) -> 0.01 | AH20: =IF(S3_Approach!$F$10="Annual Incremental Savings",S4_AnnSavings!AH14,IF(S3_Approach!$F$10="Cumulative Savings",S4_CumulSavings!AH18,"-")) -> 0.01 | AI20: =IF(S3_Approach!$F$10="Annual Incremental Savings",S4_AnnSavings!AI14,IF(S3_Approach!$F$10="Cumulative Savings",S4_CumulSavings!AI18,"-")) -> 0.01 | AJ20: =IF(S3_Approach!$F$10="Annual Incremental Savings",S4_AnnSavings!AJ14,IF(S3_Approach!$F$10="Cumulative Savings",S4_CumulSavings!AJ18,"-")) -> 0.01 | AK20: =IF(S3_Approach!$F$10="Annual Incremental Savings",S4_AnnSavings!AK14,IF(S3_Approach!$F$10="Cumulative Savings",S4_CumulSavings!AK18,"-")) -> 0.01 | AL20: =IF(S3_Approach!$F$10="Annual Incremental Savings",S4_AnnSavings!AL14,IF(S3_Approach!$F$10="Cumulative Savings",S4_CumulSavings!AL18,"-")) -> 0.01 | AM20: =IF(S3_Approach!$F$10="Annual Incremental Savings",S4_AnnSavings!AM14,IF(S3_Approach!$F$10="Cumulative Savings",S4_CumulSavings!AM18,"-")) -> 0.01 | AN20: =IF(S3_Approach!$F$10="Annual Incremental Savings",S4_AnnSavings!AN14,IF(S3_Approach!$F$10="Cumulative Savings",S4_CumulSavings!AN18,"-")) -> 0.01
C21: First-year costs of saved energy | D21: 2022 $ / therm | F21: =IFERROR(S5_Budget!F15*10^6/S7_Outputs!F9,0) -> 0 | G21: =IFERROR(S5_Budget!G15*10^6/S7_Outputs!G9,0) -> 11.44825184 | H21: =IFERROR(S5_Budget!H15*10^6/S7_Outputs!H9,0) -> 10.94050757 | I21: =IFERROR(S5_Budget!I15*10^6/S7_Outputs!I9,0) -> 9.838918023 | J21: =IFERROR(S5_Budget!J15*10^6/S7_Outputs!J9,0) -> 10.0315548 | K21: =IFERROR(S5_Budget!K15*10^6/S7_Outputs!K9,0) -> 9.293074401 | L21: =IFERROR(S5_Budget!L15*10^6/S7_Outputs!L9,0) -> 8.91168854 | M21: =IFERROR(S5_Budget!M15*10^6/S7_Outputs!M9,0) -> 8.911688524 | N21: =IFERROR(S5_Budget!N15*10^6/S7_Outputs!N9,0) -> 8.911688508 | O21: =IFERROR(S5_Budget!O15*10^6/S7_Outputs!O9,0) -> 8.911688492 | P21: =IFERROR(S5_Budget!P15*10^6/S7_Outputs!P9,0) -> 8.703362961 | Q21: =IFERROR(S5_Budget!Q15*10^6/S7_Outputs!Q9,0) -> 8.628677344 | R21: =IF(OR($D$7="Constant",$D$7="User Input"),$D$9,IF($D$7="Historical",$P21,IF($D$7="Savings-Dependent",IF(R20<$D$12,$D$9*(1+$E$12),IF(AND(R20>=$D$12,R20<$D$13),$D$9*(1+$E$13),$D$9*(1+$E$14)))))) -> 12.54877297 | S21: =IF(OR($D$7="Constant",$D$7="User Input"),$D$9,IF($D$7="Historical",$P21,IF($D$7="Savings-Dependent",IF(S20<$D$12,$D$9*(1+$E$12),IF(AND(S20>=$D$12,S20<$D$13),$D$9*(1+$E$13),$D$9*(1+$E$14)))))) -> 12.54877297 | T21: 12.54877297 | U21: 12.54877297 | V21: 12.54877297 | W21: 12.54877297 | X21: 12.54877297 | Y21: 12.54877297 | Z21: 12.54877297 | AA21: 12.54877297 | AB21: 12.54877297 | AC21: 12.54877297 | AD21: 12.54877297 | AE21: 12.54877297 | AF21: 12.54877297 | AG21: 12.54877297 | AH21: 12.54877297 | AI21: 12.54877297 | AJ21: =IF(OR($D$7="Constant",$D$7="User Input"),$D$9,IF($D$7="Historical",$P21,IF($D$7="Savings-Dependent",IF(AJ20<$D$12,$D$9*(1+$E$12),IF(AND(AJ20>=$D$12,AJ20<$D$13),$D$9*(1+$E$13),$D$9*(1+$E$14)))))) -> 12.54877297 | AK21: 12.54877297 | AL21: 12.54877297 | AM21: 12.54877297 | AN21: 12.54877297
C22: Utility first-year cost of saved energy | D22: 2022 $ / therm | F22: =F21*$D$16 -> 0 | G22: =G21*$D$16 -> 4.579300737 | H22: =H21*$D$16 -> 4.376203027 | I22: =I21*$D$16 -> 3.935567209 | J22: 4.012621919 | K22: 3.71722976 | L22: 3.564675416 | M22: 3.56467541 | N22: 3.564675403 | O22: =O21*$D$16 -> 3.564675397 | P22: =P21*$D$16 -> 3.481345184 | Q22: =Q21*$D$16 -> 3.451470938 | R22: 5.019509187 | S22: 5.019509187 | T22: 5.019509187 | U22: 5.019509187 | V22: 5.019509187 | W22: 5.019509187 | X22: 5.019509187 | Y22: 5.019509187 | Z22: 5.019509187 | AA22: 5.019509187 | AB22: 5.019509187 | AC22: 5.019509187 | AD22: 5.019509187 | AE22: 5.019509187 | AF22: 5.019509187 | AG22: 5.019509187 | AH22: 5.019509187 | AI22: 5.019509187 | AJ22: =AJ21*$D$16 -> 5.019509187 | AK22: 5.019509187 | AL22: 5.019509187 | AM22: 5.019509187 | AN22: 5.019509187
C23: Utility levelized cost of saved energy | D23: 2022 $ / therm | F23: =S7_Outputs!F53 -> 0 | G23: =S7_Outputs!G53 -> 0.4305895599 | H23: =S7_Outputs!H53 -> 0.4114923749 | I23: =S7_Outputs!I53 -> 0.3700595899 | J23: =S7_Outputs!J53 -> 0.3773050091 | K23: =S7_Outputs!K53 -> 0.3495294191 | L23: =S7_Outputs!L53 -> 0.3351848037 | M23: =S7_Outputs!M53 -> 0.3351848031 | N23: =S7_Outputs!N53 -> 0.3351848025 | O23: =S7_Outputs!O53 -> 0.3351848019 | P23: =S7_Outputs!P53 -> 0.3273493 | Q23: =S7_Outputs!Q53 -> 0.3245402382 | R23: =S7_Outputs!R53 -> 0.4719821597 | S23: =S7_Outputs!S53 -> 0.4719821597 | T23: =S7_Outputs!T53 -> 0.4719821597 | U23: =S7_Outputs!U53 -> 0.4719821597 | V23: =S7_Outputs!V53 -> 0.4719821597 | W23: =S7_Outputs!W53 -> 0.4719821597 | X23: =S7_Outputs!X53 -> 0.4719821597 | Y23: =S7_Outputs!Y53 -> 0.4719821597 | Z23: =S7_Outputs!Z53 -> 0.4719821597 | AA23: =S7_Outputs!AA53 -> 0.4719821597 | AB23: =S7_Outputs!AB53 -> 0.4719821597 | AC23: =S7_Outputs!AC53 -> 0.4719821597 | AD23: =S7_Outputs!AD53 -> 0.4719821597 | AE23: =S7_Outputs!AE53 -> 0.4719821597 | AF23: =S7_Outputs!AF53 -> 0.4719821597 | AG23: =S7_Outputs!AG53 -> 0.4719821597 | AH23: =S7_Outputs!AH53 -> 0.4719821597 | AI23: =S7_Outputs!AI53 -> 0.4719821597 | AJ23: =S7_Outputs!AJ53 -> 0.4719821597 | AK23: =S7_Outputs!AK53 -> 0.4719821597 | AL23: =S7_Outputs!AL53 -> 0.4719821597 | AM23: =S7_Outputs!AM53 -> 0.4719821597 | AN23: =S7_Outputs!AN53 -> 0.4719821597
C29: Data sources:
C30: Lawrence Berkeley National Laboratory (LBNL). "Cost of Saving Natural Gas Through Efficiency Programs Funded by Utility Customers: 2012–2017." (2020). Available at https://eta-publications.lbl.gov/sites/default/files/cose_natural_gas_final_report_20200513.pdf
C34: State | D34: =S1_StudyArea!D7 -> US Total | F34: =IF(S3_Approach!$F$10="Annual Budget","F35:F37","F35:F38") -> F35:F38
C35: Utility | D35: =S1_StudyArea!D9 -> Total | F35: Constant
F36: Historical
F37: =IF(S3_Approach!$F$10="Annual Budget","User Input","Savings-Dependent") -> Savings-Dependent
F38: =IF(S3_Approach!$F$10<>"Annual Budget","User Input","-") -> User Input

Sheet S4_AnnSavings
B2: =scenarioLabel -> ESIST: Pilot Gas Version—US Total, Residential and Commercial Sectors, All Utilities
C4: Step 4. Set Savings Trajectory
C5: This step determines how much energy efficiency is achieved in each year. Select a reasonable level to ramp up savings, and a final target for savings as a percent of sales in a future year. Historical savings data combine both residential and commercial programs.
C7: Select savings trend: | D7: Increase to Goal | E7: =IF(D7="Increase to Goal","Savings will remain at 2021 levels until "&D10&", at which point savings will increase "&TEXT(D11,"0.00%")&" per year until a level of "&TEXT(D9,"0.00%")&" is achieved. Please enter values below to modify this trend.","Please enter annual first-year savings goals into the blue cells below.") -> Savings will remain at 2021 levels until 2023, at which point savings will increase 0.20% per year until a level of 1.00% is achieved. Please enter values below to modify this trend.
C9: Annual incremental savings: | D9: 0.01 | E9: ="Energy efficiency programs will achieve a final annual incremental savings as a percent of sales level of "&TEXT(D9,"0.00%")&"." -> Energy efficiency programs will achieve a final annual incremental savings as a percent of sales level of 1.00%.
C10: Year to start ramp: | D10: 2023 | E10: ="Energy efficiency programs will begin increasing from 2021 levels in the year "&D10&"." -> Energy efficiency programs will begin increasing from 2021 levels in the year 2023.
C11: Percent achieved/year: | D11: 0.002 | E11: ="Energy efficiency programs are limited to a ramp rate of "&TEXT(D11,"0.00%")&" per year." -> Energy efficiency programs are limited to a ramp rate of 0.20% per year.
D13: =HYPERLINK("#R"&ROW(),"Click here to jump to future years") -> Click here to jump to future years | E13: 2010 | F13: 2011 | G13: 2012 | H13: 2013 | I13: 2014 | J13: 2015 | K13: 2016 | L13: 2017 | M13: 2018 | N13: 2019 | O13: 2020 | P13: 2021 | Q13: 2022 | R13: 2023 | S13: 2024 | T13: 2025 | U13: 2026 | V13: 2027 | W13: 2028 | X13: 2029 | Y13: 2030 | Z13: 2031 | AA13: 2032 | AB13: 2033 | AC13: 2034 | AD13: 2035 | AE13: 2036 | AF13: 2037 | AG13: 2038 | AH13: 2039 | AI13: 2040 | AJ13: 2041 | AK13: 2042 | AL13: 2043 | AM13: 2044 | AN13: 2045
C14: First-year savings | D14: % | F14: =IFERROR(F15/S2_Sales!E15,0) -> 2.459411757e-08 | G14: =IFERROR(G15/S2_Sales!F15,0) -> 0.002157002353 | H14: =IFERROR(H15/S2_Sales!G15,0) -> 0.00338698638 | I14: =IFERROR(I15/S2_Sales!H15,0) -> 0.003829746996 | J14: =IFERROR(J15/S2_Sales!I15,0) -> 0.003481676267 | K14: =IFERROR(K15/S2_Sales!J15,0) -> 0.004197452917 | L14: =IFERROR(L15/S2_Sales!K15,0) -> 0.00482447246 | M14: =IFERROR(M15/S2_Sales!L15,0) -> 0.004725874428 | N14: =IFERROR(N15/S2_Sales!M15,0) -> 0.004200095958 | O14: =IFERROR(O15/S2_Sales!N15,0) -> 0.004172248901 | P14: =IFERROR(P15/S2_Sales!O15,0) -> 0.004471489314 | Q14: =IFERROR(Q15/S2_Sales!P15,0) -> 0.004296874273 | R14: =IF(R13<$D$10,$P$14,IF(R13>=$D$10,IF(P14>=$D$9,Q14,MIN(Q14+$D$11,IF($D$9="",0,$D$9))),P14)) -> 0.006296874273 | S14: =IF(S13<$D$10,$P$14,IF(S13>=$D$10,IF(Q14>=$D$9,R14,MIN(R14+$D$11,IF($D$9="",0,$D$9))),Q14)) -> 0.008296874273 | T14: 0.01 | U14: 0.01 | V14: 0.01 | W14: 0.01 | X14: 0.01 | Y14: 0.01 | Z14: 0.01 | AA14: 0.01 | AB14: 0.01 | AC14: 0.01 | AD14: 0.01 | AE14: 0.01 | AF14: 0.01 | AG14: 0.01 | AH14: 0.01 | AI14: 0.01 | AJ14: =IF(AJ13<$D$10,$P$14,IF(AJ13>=$D$10,IF(AH14>=$D$9,AI14,MIN(AI14+$D$11,IF($D$9="",0,$D$9))),AH14)) -> 0.01 | AK14: =IF(AK13<$D$10,$P$14,IF(AK13>=$D$10,IF(AI14>=$D$9,AJ14,MIN(AJ14+$D$11,IF($D$9="",0,$D$9))),AI14)) -> 0.01 | AL14: =IF(AL13<$D$10,$P$14,IF(AL13>=$D$10,IF(AJ14>=$D$9,AK14,MIN(AK14+$D$11,IF($D$9="",0,$D$9))),AJ14)) -> 0.01 | AM14: =IF(AM13<$D$10,$P$14,IF(AM13>=$D$10,IF(AK14>=$D$9,AL14,MIN(AL14+$D$11,IF($D$9="",0,$D$9))),AK14)) -> 0.01 | AN14: =IF(AN13<$D$10,$P$14,IF(AN13>=$D$10,IF(AL14>=$D$9,AM14,MIN(AM14+$D$11,IF($D$9="",0,$D$9))),AL14)) -> 0.01
C15: Annual incremental savings | D15: Therms | F15: =IF($D$24="US Total",SUM(SalesSavings!FI:FI), IF($D$25="Total",SUMIFS(SalesSavings!FI:FI,SalesSavings!$B:$B,$D$24), SUMIFS(SalesSavings!FI:FI,SalesSavings!$B:$B,$D$24,SalesSavings!$G:$G,$D$25))) -> 2011 | G15: =IF($D$24="US Total",SUM(SalesSavings!FJ:FJ), IF($D$25="Total",SUMIFS(SalesSavings!FJ:FJ,SalesSavings!$B:$B,$D$24), SUMIFS(SalesSavings!FJ:FJ,SalesSavings!$B:$B,$D$24,SalesSavings!$G:$G,$D$25))) -> 176016889 | H15: =IF($D$24="US Total",SUM(SalesSavings!FK:FK), IF($D$25="Total",SUMIFS(SalesSavings!FK:FK,SalesSavings!$B:$B,$D$24), SUMIFS(SalesSavings!FK:FK,SalesSavings!$B:$B,$D$24,SalesSavings!$G:$G,$D$25))) -> 248018610 | I15: =IF($D$24="US Total",SUM(SalesSavings!FL:FL), IF($D$25="Total",SUMIFS(SalesSavings!FL:FL,SalesSavings!$B:$B,$D$24), SUMIFS(SalesSavings!FL:FL,SalesSavings!$B:$B,$D$24,SalesSavings!$G:$G,$D$25))) -> 326991738 | J15: =IF($D$24="US Total",SUM(SalesSavings!FM:FM), IF($D$25="Total",SUMIFS(SalesSavings!FM:FM,SalesSavings!$B:$B,$D$24), SUMIFS(SalesSavings!FM:FM,SalesSavings!$B:$B,$D$24,SalesSavings!$G:$G,$D$25))) -> 311448955.7 | K15: =IF($D$24="US Total",SUM(SalesSavings!FN:FN), IF($D$25="Total",SUMIFS(SalesSavings!FN:FN,SalesSavings!$B:$B,$D$24), SUMIFS(SalesSavings!FN:FN,SalesSavings!$B:$B,$D$24,SalesSavings!$G:$G,$D$25))) -> 344611442.6 | L15: =IF($D$24="US Total",SUM(SalesSavings!FO:FO), IF($D$25="Total",SUMIFS(SalesSavings!FO:FO,SalesSavings!$B:$B,$D$24), SUMIFS(SalesSavings!FO:FO,SalesSavings!$B:$B,$D$24,SalesSavings!$G:$G,$D$25))) -> 379819229.1 | M15: =IF($D$24="US Total",SUM(SalesSavings!FP:FP), IF($D$25="Total",SUMIFS(SalesSavings!FP:FP,SalesSavings!$B:$B,$D$24), SUMIFS(SalesSavings!FP:FP,SalesSavings!$B:$B,$D$24,SalesSavings!$G:$G,$D$25))) -> 379819230.1 | N15: =IF($D$24="US Total",SUM(SalesSavings!FQ:FQ), IF($D$25="Total",SUMIFS(SalesSavings!FQ:FQ,SalesSavings!$B:$B,$D$24), SUMIFS(SalesSavings!FQ:FQ,SalesSavings!$B:$B,$D$24,SalesSavings!$G:$G,$D$25))) -> 379819231.1 | O15: =IF($D$24="US Total",SUM(SalesSavings!FR:FR), IF($D$25="Total",SUMIFS(SalesSavings!FR:FR,SalesSavings!$B:$B,$D$24), SUMIFS(SalesSavings!FR:FR,SalesSavings!$B:$B,$D$24,SalesSavings!$G:$G,$D$25))) -> 379819232.1 | P15: =IF($D$24="US Total",SUM(SalesSavings!FS:FS), IF($D$25="Total",SUMIFS(SalesSavings!FS:FS,SalesSavings!$B:$B,$D$24), SUMIFS(SalesSavings!FS:FS,SalesSavings!$B:$B,$D$24,SalesSavings!$G:$G,$D$25))) -> 376487428.1 | Q15: =IF($D$24="US Total",SUM(SalesSavings!FT:FT), IF($D$25="Total",SUMIFS(SalesSavings!FT:FT,SalesSavings!$B:$B,$D$24), SUMIFS(SalesSavings!FT:FT,SalesSavings!$B:$B,$D$24,SalesSavings!$G:$G,$D$25))) -> 370916217.1 | R15: =R14*S7_Outputs!Q14 -> 553290718.5 | S15: =S14*S7_Outputs!R14 -> 743603956.7 | T15: =T14*S7_Outputs!S14 -> 945551573.8 | U15: =U14*S7_Outputs!T14 -> 940304819.7 | V15: =V14*S7_Outputs!U14 -> 935836574.5 | W15: =W14*S7_Outputs!V14 -> 932208782 | X15: =X14*S7_Outputs!W14 -> 928467893.5 | Y15: =Y14*S7_Outputs!X14 -> 925102107.5 | Z15: =Z14*S7_Outputs!Y14 -> 922128140.9 | AA15: =AA14*S7_Outputs!Z14 -> 919190012.6 | AB15: =AB14*S7_Outputs!AA14 -> 916287379.2 | AC15: =AC14*S7_Outputs!AB14 -> 913419900.9 | AD15: =AD14*S7_Outputs!AC14 -> 910553923 | AE15: =AE14*S7_Outputs!AD14 -> 907667051.8 | AF15: =AF14*S7_Outputs!AE14 -> 906638968.3 | AG15: =AG14*S7_Outputs!AF14 -> 907530487.2 | AH15: =AH14*S7_Outputs!AG14 -> 910438771.5 | AI15: =AI14*S7_Outputs!AH14 -> 913271725.2 | AJ15: =AJ14*S7_Outputs!AI14 -> 916037902 | AK15: =AK14*S7_Outputs!AJ14 -> 918746389.3 | AL15: =AL14*S7_Outputs!AK14 -> 921396648.7 | AM15: =AM14*S7_Outputs!AL14 -> 923993028.8 | AN15: =AN14*S7_Outputs!AM14 -> 926540002
C21: Data sources:
C22: U.S. Energy Information Administration (EIA). "Natural Gas Annual Respondent Query System (EIA Form 176)." (2022). Available at https://www.eia.gov/naturalgas/ngqs/
C24: State | D24: =S1_StudyArea!D7 -> US Total
C25: Utility | D25: =S1_StudyArea!D9 -> Total

Sheet S4_CumulSavings
B2: =scenarioLabel -> ESIST: Pilot Gas Version—US Total, Residential and Commercial Sectors, All Utilities
C4: Step 4. Set Savings Trajectory
C5: This step determines how much energy efficiency is achieved in each year. Savings are maintained at this level in all years after the year specified. Historical savings data combine both residential and commercial programs.
C7: Select savings trend: | D7: Increase to Goal | E7: =IF(D7="Increase to Goal","Savings will remain at 2021 levels until "&D12&", at which point savings will increase linearly until a level of "&TEXT(D9,"0.00%")&" is achieved in "&D10&".","Please enter annual cumulative savings goals into the blue cells below.") -> Savings will remain at 2021 levels until 2023, at which point savings will increase linearly until a level of 10.00% is achieved in 2030.
C9: Cumulative savings goal: | D9: 0.1 | E9: =IF(D7<>"Increase to Goal","-","Energy efficiency programs will achieve a cumulative level of savings as a percent of sales of "&TEXT(D9,"0.0%")&" by the year "&D10&".") -> Energy efficiency programs will achieve a cumulative level of savings as a percent of sales of 10.0% by the year 2030.
C10: Target year: | D10: 2030 | E10: ="This is the year in which "&TEXT(D9,"0.0%")&" cumulative savings is achieved." -> This is the year in which 10.0% cumulative savings is achieved.
C12: Year to start ramp: | D12: 2023 | E12: =IF(D7<>"Increase to Goal","-","Energy efficiency programs will begin increasing savings from 2021 levels in the year "&D12&".") -> Energy efficiency programs will begin increasing savings from 2021 levels in the year 2023.
E13: =IF(COUNTIF(S7_Outputs!$F$10:$AI$10,">3%")>0,"Note: The savings trajectory you have chosen causes annual incremental savings to exceed 3% in at least one year. This value approaches the maximum level regarded as achievable for most jurisdictions.","") -> 
D14: =HYPERLINK("#R"&ROW(),"Click here to jump to future years") -> Click here to jump to future years | E14: 2010 | F14: 2011 | G14: 2012 | H14: 2013 | I14: 2014 | J14: 2015 | K14: 2016 | L14: 2017 | M14: 2018 | N14: 2019 | O14: 2020 | P14: 2021 | Q14: 2022 | R14: 2023 | S14: 2024 | T14: 2025 | U14: 2026 | V14: 2027 | W14: 2028 | X14: 2029 | Y14: 2030 | Z14: 2031 | AA14: 2032 | AB14: 2033 | AC14: 2034 | AD14: 2035 | AE14: 2036 | AF14: 2037 | AG14: 2038 | AH14: 2039 | AI14: 2040 | AJ14: 2041 | AK14: 2042 | AL14: 2043 | AM14: 2044 | AN14: 2045
C15: Cumulative savings (% of sales) | D15: % | F15: =S7_Outputs!F13 -> 2.46438382e-08 | G15: =S7_Outputs!G13 -> 0.002403745497 | H15: =S7_Outputs!H13 -> 0.004966352942 | I15: =S7_Outputs!I13 -> 0.00839572797 | J15: =S7_Outputs!J13 -> 0.01294124827 | K15: =S7_Outputs!K13 -> 0.01787288459 | L15: =S7_Outputs!L13 -> 0.02223348975 | M15: =S7_Outputs!M13 -> 0.02395999258 | N15: =S7_Outputs!N13 -> 0.02797338425 | O15: =S7_Outputs!O13 -> 0.03475605256 | P15: =S7_Outputs!P13 -> 0.03826187078 | Q15: =IF(Q14>=$D$10,$D$9,IF(Q14<$D$12,P15,($D$9-$P$15)/($D$10-$D$12+1)+P15)) -> 0.03826187078 | R15: =IF(R14>=$D$10,$D$9,IF(R14<$D$12,Q15,($D$9-$Q$15)/($D$10-$D$12+1)+Q15)) -> 0.04597913693 | S15: =IF(S14>=$D$10,$D$9,IF(S14<$D$12,R15,($D$9-$Q$15)/($D$10-$D$12+1)+R15)) -> 0.05369640308 | T15: 0.06141366924 | U15: 0.06913093539 | V15: 0.07684820154 | W15: 0.08456546769 | X15: 0.09228273385 | Y15: 0.1 | Z15: 0.1 | AA15: 0.1 | AB15: 0.1 | AC15: 0.1 | AD15: 0.1 | AE15: 0.1 | AF15: 0.1 | AG15: 0.1 | AH15: 0.1 | AI15: 0.1 | AJ15: 0.1 | AK15: 0.1 | AL15: 0.1 | AM15: 0.1 | AN15: 0.1
C16: Cumulative savings | D16: therms | F16: =F15*S7_Outputs!F8 -> 2011 | G16: =G15*S7_Outputs!G8 -> 176018900 | H16: =H15*S7_Outputs!H8 -> 424037510 | I16: =I15*S7_Outputs!I8 -> 751029248 | J16: =J15*S7_Outputs!J8 -> 1062478204 | K16: =K15*S7_Outputs!K8 -> 1407089646 | L16: =L15*S7_Outputs!L8 -> 1786908875 | M16: =M15*S7_Outputs!M8 -> 2166728105 | N16: =N15*S7_Outputs!N8 -> 2546547337 | O16: =O15*S7_Outputs!O8 -> 2926366569 | P16: =P15*S7_Outputs!P8 -> 3302853997 | Q16: =Q15*S7_Outputs!Q8 -> 3502540970 | R16: =R15*S7_Outputs!R8 -> 4315217918 | S16: =S15*S7_Outputs!S8 -> 5344178562 | T16: =T15*S7_Outputs!T8 -> 6127283512 | U16: =U15*S7_Outputs!U8 -> 6914209397 | V16: =V15*S7_Outputs!V8 -> 7704970276 | W16: =W15*S7_Outputs!W8 -> 8499580257 | X16: =X15*S7_Outputs!X8 -> 9298053494 | Y16: =Y15*S7_Outputs!Y8 -> 1.010040419e+10 | Z16: =Z15*S7_Outputs!Z8 -> 1.012525379e+10 | AA16: =AA15*S7_Outputs!AA8 -> 1.015016454e+10 | AB16: =AB15*S7_Outputs!AB8 -> 1.017513657e+10 | AC16: =AC15*S7_Outputs!AC8 -> 1.020017004e+10 | AD16: =AD15*S7_Outputs!AD8 -> 1.02252651e+10 | AE16: =AE15*S7_Outputs!AE8 -> 1.025042189e+10 | AF16: =AF15*S7_Outputs!AF8 -> 1.027564058e+10 | AG16: =AG15*S7_Outputs!AG8 -> 1.030092132e+10 | AH16: =AH15*S7_Outputs!AH8 -> 1.032626425e+10 | AI16: =AI15*S7_Outputs!AI8 -> 1.035166953e+10 | AJ16: =AJ15*S7_Outputs!AJ8 -> 1.037713732e+10 | AK16: =AK15*S7_Outputs!AK8 -> 1.040266776e+10 | AL16: =AL15*S7_Outputs!AL8 -> 1.042826102e+10 | AM16: =AM15*S7_Outputs!AM8 -> 1.045391724e+10 | AN16: =AN15*S7_Outputs!AN8 -> 1.047963658e+10
C17: Annual incremental savings | D17: therms | F17: =F16*(1-A_MeasureExpiration!E16) -> 2011 | G17: =G16-$F$17*(1-A_MeasureExpiration!F16) -> 176016889 | H17: =H16-$F$17*(1-A_MeasureExpiration!G16)-$G$17*(1-A_MeasureExpiration!F16) -> 248018610 | I17: =I16-$F$17*(1-A_MeasureExpiration!H16)-$G$17*(1-A_MeasureExpiration!G16)-$H$17*(1-A_MeasureExpiration!F16) -> 326991738 | J17: =J16-$F$17*(1-A_MeasureExpiration!I16)-$G$17*(1-A_MeasureExpiration!H16)-$H$17*(1-A_MeasureExpiration!G16)-$I$17*(1-A_MeasureExpiration!F16) -> 311448955.7 | K17: =K16-$F$17*(1-A_MeasureExpiration!J16)-$G$17*(1-A_MeasureExpiration!I16)-$H$17*(1-A_MeasureExpiration!H16)-$I$17*(1-A_MeasureExpiration!G16)-$J$17*(1-A_MeasureExpiration!F16) -> 344611442.6 | L17: =L16-$F$17*(1-A_MeasureExpiration!K16)-$G$17*(1-A_MeasureExpiration!J16)-$H$17*(1-A_MeasureExpiration!I16)-$I$17*(1-A_MeasureExpiration!H16)-$J$17*(1-A_MeasureExpiration!G16)-$K$17*(1-A_MeasureExpiration!F16) -> 379819229.1 | M17: =M16-$F$17*(1-A_MeasureExpiration!L16)-$G$17*(1-A_MeasureExpiration!K16)-$H$17*(1-A_MeasureExpiration!J16)-$I$17*(1-A_MeasureExpiration!I16)-$J$17*(1-A_MeasureExpiration!H16)-$K$17*(1-A_MeasureExpiration!G16)-$L$17*(1-A_MeasureExpiration!F16) -> 379819230.1 | N17: =N16-$F$17*(1-A_MeasureExpiration!M16)-$G$17*(1-A_MeasureExpiration!L16)-$H$17*(1-A_MeasureExpiration!K16)-$I$17*(1-A_MeasureExpiration!J16)-$J$17*(1-A_MeasureExpiration!I16)-$K$17*(1-A_MeasureExpiration!H16)-$L$17*(1-A_MeasureExpiration!G16)-$M$17*(1-A_MeasureExpiration!F16) -> 379819231.1 | O17: =O16-$F$17*(1-A_MeasureExpiration!N16)-$G$17*(1-A_MeasureExpiration!M16)-$H$17*(1-A_MeasureExpiration!L16)-$I$17*(1-A_MeasureExpiration!K16)-$J$17*(1-A_MeasureExpiration!J16)-$K$17*(1-A_MeasureExpiration!I16)-$L$17*(1-A_MeasureExpiration!H16)-$M$17*(1-A_MeasureExpiration!G16)-$N$17*(1-A_MeasureExpiration!F16) -> 379819232.1 | P17: =P16-$F$17*(1-A_MeasureExpiration!O16)-$G$17*(1-A_MeasureExpiration!N16)-$H$17*(1-A_MeasureExpiration!M16)-$I$17*(1-A_MeasureExpiration!L16)-$J$17*(1-A_MeasureExpiration!K16)-$K$17*(1-A_MeasureExpiration!J16)-$L$17*(1-A_MeasureExpiration!I16)-$M$17*(1-A_MeasureExpiration!H16)-$N$17*(1-A_MeasureExpiration!G16)-$O$17*(1-A_MeasureExpiration!F16) -> 376487428.1 | Q17: =Q16-$F$17*(1-A_MeasureExpiration!P16)-$G$17*(1-A_MeasureExpiration!O16)-$H$17*(1-A_MeasureExpiration!N16)-$I$17*(1-A_MeasureExpiration!M16)-$J$17*(1-A_MeasureExpiration!L16)-$K$17*(1-A_MeasureExpiration!K16)-$L$17*(1-A_MeasureExpiration!J16)-$M$17*(1-A_MeasureExpiration!I16)-$N$17*(1-A_MeasureExpiration!H16)-$O$17*(1-A_MeasureExpiration!G16)-$P$17*(1-A_MeasureExpiration!F16) -> 199686973.6 | R17: =R16-$F$17*(1-A_MeasureExpiration!Q16)-$G$17*(1-A_MeasureExpiration!P16)-$H$17*(1-A_MeasureExpiration!O16)-$I$17*(1-A_MeasureExpiration!N16)-$J$17*(1-A_MeasureExpiration!M16)-$K$17*(1-A_MeasureExpiration!L16)-$L$17*(1-A_MeasureExpiration!K16)-$M$17*(1-A_MeasureExpiration!J16)-$N$17*(1-A_MeasureExpiration!I16)-$O$17*(1-A_MeasureExpiration!H16)-$P$17*(1-A_MeasureExpiration!G16)-$Q$17*(1-A_MeasureExpiration!F16) -> 812676948.1 | S17: =S16-$F$17*(1-A_MeasureExpiration!R16)-$G$17*(1-A_MeasureExpiration!Q16)-$H$17*(1-A_MeasureExpiration!P16)-$I$17*(1-A_MeasureExpiration!O16)-$J$17*(1-A_MeasureExpiration!N16)-$K$17*(1-A_MeasureExpiration!M16)-$L$17*(1-A_MeasureExpiration!L16)-$M$17*(1-A_MeasureExpiration!K16)-$N$17*(1-A_MeasureExpiration!J16)-$O$17*(1-A_MeasureExpiration!I16)-$P$17*(1-A_MeasureExpiration!H16)-$Q$17*(1-A_MeasureExpiration!G16)-$R$17*(1-A_MeasureExpiration!F16) -> 1028962654 | T17: =T16-$F$17*(1-A_MeasureExpiration!S16)-$G$17*(1-A_MeasureExpiration!R16)-$H$17*(1-A_MeasureExpiration!Q16)-$I$17*(1-A_MeasureExpiration!P16)-$J$17*(1-A_MeasureExpiration!O16)-$K$17*(1-A_MeasureExpiration!N16)-$L$17*(1-A_MeasureExpiration!M16)-$M$17*(1-A_MeasureExpiration!L16)-$N$17*(1-A_MeasureExpiration!K16)-$O$17*(1-A_MeasureExpiration!J16)-$P$17*(1-A_MeasureExpiration!I16)-$Q$17*(1-A_MeasureExpiration!H16)-$R$17*(1-A_MeasureExpiration!G16)-$S$17*(1-A_MeasureExpiration!F16) -> 959121839.4 | U17: =U16-$F$17*(1-A_MeasureExpiration!T16)-$G$17*(1-A_MeasureExpiration!S16)-$H$17*(1-A_MeasureExpiration!R16)-$I$17*(1-A_MeasureExpiration!Q16)-$J$17*(1-A_MeasureExpiration!P16)-$K$17*(1-A_MeasureExpiration!O16)-$L$17*(1-A_MeasureExpiration!N16)-$M$17*(1-A_MeasureExpiration!M16)-$N$17*(1-A_MeasureExpiration!L16)-$O$17*(1-A_MeasureExpiration!K16)-$P$17*(1-A_MeasureExpiration!J16)-$Q$17*(1-A_MeasureExpiration!I16)-$R$17*(1-A_MeasureExpiration!H16)-$S$17*(1-A_MeasureExpiration!G16)-$T$17*(1-A_MeasureExpiration!F16) -> 1034944494 | V17: =V16-$F$17*(1-A_MeasureExpiration!U16)-$G$17*(1-A_MeasureExpiration!T16)-$H$17*(1-A_MeasureExpiration!S16)-$I$17*(1-A_MeasureExpiration!R16)-$J$17*(1-A_MeasureExpiration!Q16)-$K$17*(1-A_MeasureExpiration!P16)-$L$17*(1-A_MeasureExpiration!O16)-$M$17*(1-A_MeasureExpiration!N16)-$N$17*(1-A_MeasureExpiration!M16)-$O$17*(1-A_MeasureExpiration!L16)-$P$17*(1-A_MeasureExpiration!K16)-$Q$17*(1-A_MeasureExpiration!J16)-$R$17*(1-A_MeasureExpiration!I16)-$S$17*(1-A_MeasureExpiration!H16)-$T$17*(1-A_MeasureExpiration!G16)-$U$17*(1-A_MeasureExpiration!F16) -> 1117752617 | W17: =W16-$F$17*(1-A_MeasureExpiration!V16)-$G$17*(1-A_MeasureExpiration!U16)-$H$17*(1-A_MeasureExpiration!T16)-$I$17*(1-A_MeasureExpiration!S16)-$J$17*(1-A_MeasureExpiration!R16)-$K$17*(1-A_MeasureExpiration!Q16)-$L$17*(1-A_MeasureExpiration!P16)-$M$17*(1-A_MeasureExpiration!O16)-$N$17*(1-A_MeasureExpiration!N16)-$O$17*(1-A_MeasureExpiration!M16)-$P$17*(1-A_MeasureExpiration!L16)-$Q$17*(1-A_MeasureExpiration!K16)-$R$17*(1-A_MeasureExpiration!J16)-$S$17*(1-A_MeasureExpiration!I16)-$T$17*(1-A_MeasureExpiration!H16)-$U$17*(1-A_MeasureExpiration!G16)-$V$17*(1-A_MeasureExpiration!F16) -> 1106058937 | X17: =X16-$F$17*(1-A_MeasureExpiration!W16)-$G$17*(1-A_MeasureExpiration!V16)-$H$17*(1-A_MeasureExpiration!U16)-$I$17*(1-A_MeasureExpiration!T16)-$J$17*(1-A_MeasureExpiration!S16)-$K$17*(1-A_MeasureExpiration!R16)-$L$17*(1-A_MeasureExpiration!Q16)-$M$17*(1-A_MeasureExpiration!P16)-$N$17*(1-A_MeasureExpiration!O16)-$O$17*(1-A_MeasureExpiration!N16)-$P$17*(1-A_MeasureExpiration!M16)-$Q$17*(1-A_MeasureExpiration!L16)-$R$17*(1-A_MeasureExpiration!K16)-$S$17*(1-A_MeasureExpiration!J16)-$T$17*(1-A_MeasureExpiration!I16)-$U$17*(1-A_MeasureExpiration!H16)-$V$17*(1-A_MeasureExpiration!G16)-$W$17*(1-A_MeasureExpiration!F16) -> 1143084679 | Y17: =Y16-$F$17*(1-A_MeasureExpiration!X16)-$G$17*(1-A_MeasureExpiration!W16)-$H$17*(1-A_MeasureExpiration!V16)-$I$17*(1-A_MeasureExpiration!U16)-$J$17*(1-A_MeasureExpiration!T16)-$K$17*(1-A_MeasureExpiration!S16)-$L$17*(1-A_MeasureExpiration!R16)-$M$17*(1-A_MeasureExpiration!Q16)-$N$17*(1-A_MeasureExpiration!P16)-$O$17*(1-A_MeasureExpiration!O16)-$P$17*(1-A_MeasureExpiration!N16)-$Q$17*(1-A_MeasureExpiration!M16)-$R$17*(1-A_MeasureExpiration!L16)-$S$17*(1-A_MeasureExpiration!K16)-$T$17*(1-A_MeasureExpiration!J16)-$U$17*(1-A_MeasureExpiration!I16)-$V$17*(1-A_MeasureExpiration!H16)-$W$17*(1-A_MeasureExpiration!G16)-$X$17*(1-A_MeasureExpiration!F16) -> 1182169920 | Z17: =Z16-$F$17*(1-A_MeasureExpiration!Y16)-$G$17*(1-A_MeasureExpiration!X16)-$H$17*(1-A_MeasureExpiration!W16)-$I$17*(1-A_MeasureExpiration!V16)-$J$17*(1-A_MeasureExpiration!U16)-$K$17*(1-A_MeasureExpiration!T16)-$L$17*(1-A_MeasureExpiration!S16)-$M$17*(1-A_MeasureExpiration!R16)-$N$17*(1-A_MeasureExpiration!Q16)-$O$17*(1-A_MeasureExpiration!P16)-$P$17*(1-A_MeasureExpiration!O16)-$Q$17*(1-A_MeasureExpiration!N16)-$R$17*(1-A_MeasureExpiration!M16)-$S$17*(1-A_MeasureExpiration!L16)-$T$17*(1-A_MeasureExpiration!K16)-$U$17*(1-A_MeasureExpiration!J16)-$V$17*(1-A_MeasureExpiration!I16)-$W$17*(1-A_MeasureExpiration!H16)-$X$17*(1-A_MeasureExpiration!G16)-$Y$17*(1-A_MeasureExpiration!F16) -> 404668838.2 | AA17: =AA16-$F$17*(1-A_MeasureExpiration!Z16)-$G$17*(1-A_MeasureExpiration!Y16)-$H$17*(1-A_MeasureExpiration!X16)-$I$17*(1-A_MeasureExpiration!W16)-$J$17*(1-A_MeasureExpiration!V16)-$K$17*(1-A_MeasureExpiration!U16)-$L$17*(1-A_MeasureExpiration!T16)-$M$17*(1-A_MeasureExpiration!S16)-$N$17*(1-A_MeasureExpiration!R16)-$O$17*(1-A_MeasureExpiration!Q16)-$P$17*(1-A_MeasureExpiration!P16)-$Q$17*(1-A_MeasureExpiration!O16)-$R$17*(1-A_MeasureExpiration!N16)-$S$17*(1-A_MeasureExpiration!M16)-$T$17*(1-A_MeasureExpiration!L16)-$U$17*(1-A_MeasureExpiration!K16)-$V$17*(1-A_MeasureExpiration!J16)-$W$17*(1-A_MeasureExpiration!I16)-$X$17*(1-A_MeasureExpiration!H16)-$Y$17*(1-A_MeasureExpiration!G16)-$Z$17*(1-A_MeasureExpiration!F16) -> 404729975.6 | AB17: =AB16-$F$17*(1-A_MeasureExpiration!AA16)-$G$17*(1-A_MeasureExpiration!Z16)-$H$17*(1-A_MeasureExpiration!Y16)-$I$17*(1-A_MeasureExpiration!X16)-$J$17*(1-A_MeasureExpiration!W16)-$K$17*(1-A_MeasureExpiration!V16)-$L$17*(1-A_MeasureExpiration!U16)-$M$17*(1-A_MeasureExpiration!T16)-$N$17*(1-A_MeasureExpiration!S16)-$O$17*(1-A_MeasureExpiration!R16)-$P$17*(1-A_MeasureExpiration!Q16)-$Q$17*(1-A_MeasureExpiration!P16)-$R$17*(1-A_MeasureExpiration!O16)-$S$17*(1-A_MeasureExpiration!N16)-$T$17*(1-A_MeasureExpiration!M16)-$U$17*(1-A_MeasureExpiration!L16)-$V$17*(1-A_MeasureExpiration!K16)-$W$17*(1-A_MeasureExpiration!J16)-$X$17*(1-A_MeasureExpiration!I16)-$Y$17*(1-A_MeasureExpiration!H16)-$Z$17*(1-A_MeasureExpiration!G16)-$AA$17*(1-A_MeasureExpiration!F16) -> 404791263.5 | AC17: =AC16-$F$17*(1-A_MeasureExpiration!AB16)-$G$17*(1-A_MeasureExpiration!AA16)-$H$17*(1-A_MeasureExpiration!Z16)-$I$17*(1-A_MeasureExpiration!Y16)-$J$17*(1-A_MeasureExpiration!X16)-$K$17*(1-A_MeasureExpiration!W16)-$L$17*(1-A_MeasureExpiration!V16)-$M$17*(1-A_MeasureExpiration!U16)-$N$17*(1-A_MeasureExpiration!T16)-$O$17*(1-A_MeasureExpiration!S16)-$P$17*(1-A_MeasureExpiration!R16)-$Q$17*(1-A_MeasureExpiration!Q16)-$R$17*(1-A_MeasureExpiration!P16)-$S$17*(1-A_MeasureExpiration!O16)-$T$17*(1-A_MeasureExpiration!N16)-$U$17*(1-A_MeasureExpiration!M16)-$V$17*(1-A_MeasureExpiration!L16)-$W$17*(1-A_MeasureExpiration!K16)-$X$17*(1-A_MeasureExpiration!J16)-$Y$17*(1-A_MeasureExpiration!I16)-$Z$17*(1-A_MeasureExpiration!H16)-$AA$17*(1-A_MeasureExpiration!G16)-$AB$17*(1-A_MeasureExpiration!F16) -> 401520897.2 | AD17: =AD16-$F$17*(1-A_MeasureExpiration!AC16)-$G$17*(1-A_MeasureExpiration!AB16)-$H$17*(1-A_MeasureExpiration!AA16)-$I$17*(1-A_MeasureExpiration!Z16)-$J$17*(1-A_MeasureExpiration!Y16)-$K$17*(1-A_MeasureExpiration!X16)-$L$17*(1-A_MeasureExpiration!W16)-$M$17*(1-A_MeasureExpiration!V16)-$N$17*(1-A_MeasureExpiration!U16)-$O$17*(1-A_MeasureExpiration!T16)-$P$17*(1-A_MeasureExpiration!S16)-$Q$17*(1-A_MeasureExpiration!R16)-$R$17*(1-A_MeasureExpiration!Q16)-$S$17*(1-A_MeasureExpiration!P16)-$T$17*(1-A_MeasureExpiration!O16)-$U$17*(1-A_MeasureExpiration!N16)-$V$17*(1-A_MeasureExpiration!M16)-$W$17*(1-A_MeasureExpiration!L16)-$X$17*(1-A_MeasureExpiration!K16)-$Y$17*(1-A_MeasureExpiration!J16)-$Z$17*(1-A_MeasureExpiration!I16)-$AA$17*(1-A_MeasureExpiration!H16)-$AB$17*(1-A_MeasureExpiration!G16)-$AC$17*(1-A_MeasureExpiration!F16) -> 224782031.5 | AE17: =AE16-$F$17*(1-A_MeasureExpiration!AD16)-$G$17*(1-A_MeasureExpiration!AC16)-$H$17*(1-A_MeasureExpiration!AB16)-$I$17*(1-A_MeasureExpiration!AA16)-$J$17*(1-A_MeasureExpiration!Z16)-$K$17*(1-A_MeasureExpiration!Y16)-$L$17*(1-A_MeasureExpiration!X16)-$M$17*(1-A_MeasureExpiration!W16)-$N$17*(1-A_MeasureExpiration!V16)-$O$17*(1-A_MeasureExpiration!U16)-$P$17*(1-A_MeasureExpiration!T16)-$Q$17*(1-A_MeasureExpiration!S16)-$R$17*(1-A_MeasureExpiration!R16)-$S$17*(1-A_MeasureExpiration!Q16)-$T$17*(1-A_MeasureExpiration!P16)-$U$17*(1-A_MeasureExpiration!O16)-$V$17*(1-A_MeasureExpiration!N16)-$W$17*(1-A_MeasureExpiration!M16)-$X$17*(1-A_MeasureExpiration!L16)-$Y$17*(1-A_MeasureExpiration!K16)-$Z$17*(1-A_MeasureExpiration!J16)-$AA$17*(1-A_MeasureExpiration!I16)-$AB$17*(1-A_MeasureExpiration!H16)-$AC$17*(1-A_MeasureExpiration!G16)-$AD$17*(1-A_MeasureExpiration!F16) -> 837833746.3 | AF17: =AF16-$F$17*(1-A_MeasureExpiration!AE16)-$G$17*(1-A_MeasureExpiration!AD16)-$H$17*(1-A_MeasureExpiration!AC16)-$I$17*(1-A_MeasureExpiration!AB16)-$J$17*(1-A_MeasureExpiration!AA16)-$K$17*(1-A_MeasureExpiration!Z16)-$L$17*(1-A_MeasureExpiration!Y16)-$M$17*(1-A_MeasureExpiration!X16)-$N$17*(1-A_MeasureExpiration!W16)-$O$17*(1-A_MeasureExpiration!V16)-$P$17*(1-A_MeasureExpiration!U16)-$Q$17*(1-A_MeasureExpiration!T16)-$R$17*(1-A_MeasureExpiration!S16)-$S$17*(1-A_MeasureExpiration!R16)-$T$17*(1-A_MeasureExpiration!Q16)-$U$17*(1-A_MeasureExpiration!P16)-$V$17*(1-A_MeasureExpiration!O16)-$W$17*(1-A_MeasureExpiration!N16)-$X$17*(1-A_MeasureExpiration!M16)-$Y$17*(1-A_MeasureExpiration!L16)-$Z$17*(1-A_MeasureExpiration!K16)-$AA$17*(1-A_MeasureExpiration!J16)-$AB$17*(1-A_MeasureExpiration!I16)-$AC$17*(1-A_MeasureExpiration!H16)-$AD$17*(1-A_MeasureExpiration!G16)-$AE$17*(1-A_MeasureExpiration!F16) -> 1054181345 | AG17: =AG16-$F$17*(1-A_MeasureExpiration!AF16)-$G$17*(1-A_MeasureExpiration!AE16)-$H$17*(1-A_MeasureExpiration!AD16)-$I$17*(1-A_MeasureExpiration!AC16)-$J$17*(1-A_MeasureExpiration!AB16)-$K$17*(1-A_MeasureExpiration!AA16)-$L$17*(1-A_MeasureExpiration!Z16)-$M$17*(1-A_MeasureExpiration!Y16)-$N$17*(1-A_MeasureExpiration!X16)-$O$17*(1-A_MeasureExpiration!W16)-$P$17*(1-A_MeasureExpiration!V16)-$Q$17*(1-A_MeasureExpiration!U16)-$R$17*(1-A_MeasureExpiration!T16)-$S$17*(1-A_MeasureExpiration!S16)-$T$17*(1-A_MeasureExpiration!R16)-$U$17*(1-A_MeasureExpiration!Q16)-$V$17*(1-A_MeasureExpiration!P16)-$W$17*(1-A_MeasureExpiration!O16)-$X$17*(1-A_MeasureExpiration!N16)-$Y$17*(1-A_MeasureExpiration!M16)-$Z$17*(1-A_MeasureExpiration!L16)-$AA$17*(1-A_MeasureExpiration!K16)-$AB$17*(1-A_MeasureExpiration!J16)-$AC$17*(1-A_MeasureExpiration!I16)-$AD$17*(1-A_MeasureExpiration!H16)-$AE$17*(1-A_MeasureExpiration!G16)-$AF$17*(1-A_MeasureExpiration!F16) -> 984402574.4 | AH17: =AH16-$F$17*(1-A_MeasureExpiration!AG16)-$G$17*(1-A_MeasureExpiration!AF16)-$H$17*(1-A_MeasureExpiration!AE16)-$I$17*(1-A_MeasureExpiration!AD16)-$J$17*(1-A_MeasureExpiration!AC16)-$K$17*(1-A_MeasureExpiration!AB16)-$L$17*(1-A_MeasureExpiration!AA16)-$M$17*(1-A_MeasureExpiration!Z16)-$N$17*(1-A_MeasureExpiration!Y16)-$O$17*(1-A_MeasureExpiration!X16)-$P$17*(1-A_MeasureExpiration!W16)-$Q$17*(1-A_MeasureExpiration!V16)-$R$17*(1-A_MeasureExpiration!U16)-$S$17*(1-A_MeasureExpiration!T16)-$T$17*(1-A_MeasureExpiration!S16)-$U$17*(1-A_MeasureExpiration!R16)-$V$17*(1-A_MeasureExpiration!Q16)-$W$17*(1-A_MeasureExpiration!P16)-$X$17*(1-A_MeasureExpiration!O16)-$Y$17*(1-A_MeasureExpiration!N16)-$Z$17*(1-A_MeasureExpiration!M16)-$AA$17*(1-A_MeasureExpiration!L16)-$AB$17*(1-A_MeasureExpiration!K16)-$AC$17*(1-A_MeasureExpiration!J16)-$AD$17*(1-A_MeasureExpiration!I16)-$AE$17*(1-A_MeasureExpiration!H16)-$AF$17*(1-A_MeasureExpiration!G16)-$AG$17*(1-A_MeasureExpiration!F16) -> 1060287427 | AI17: =AI16-$F$17*(1-A_MeasureExpiration!AH16)-$G$17*(1-A_MeasureExpiration!AG16)-$H$17*(1-A_MeasureExpiration!AF16)-$I$17*(1-A_MeasureExpiration!AE16)-$J$17*(1-A_MeasureExpiration!AD16)-$K$17*(1-A_MeasureExpiration!AC16)-$L$17*(1-A_MeasureExpiration!AB16)-$M$17*(1-A_MeasureExpiration!AA16)-$N$17*(1-A_MeasureExpiration!Z16)-$O$17*(1-A_MeasureExpiration!Y16)-$P$17*(1-A_MeasureExpiration!X16)-$Q$17*(1-A_MeasureExpiration!W16)-$R$17*(1-A_MeasureExpiration!V16)-$S$17*(1-A_MeasureExpiration!U16)-$T$17*(1-A_MeasureExpiration!T16)-$U$17*(1-A_MeasureExpiration!S16)-$V$17*(1-A_MeasureExpiration!R16)-$W$17*(1-A_MeasureExpiration!Q16)-$X$17*(1-A_MeasureExpiration!P16)-$Y$17*(1-A_MeasureExpiration!O16)-$Z$17*(1-A_MeasureExpiration!N16)-$AA$17*(1-A_MeasureExpiration!M16)-$AB$17*(1-A_MeasureExpiration!L16)-$AC$17*(1-A_MeasureExpiration!K16)-$AD$17*(1-A_MeasureExpiration!J16)-$AE$17*(1-A_MeasureExpiration!I16)-$AF$17*(1-A_MeasureExpiration!H16)-$AG$17*(1-A_MeasureExpiration!G16)-$AH$17*(1-A_MeasureExpiration!F16) -> 1143157900 | AJ17: =AJ16-$F$17*(1-A_MeasureExpiration!AI16)-$G$17*(1-A_MeasureExpiration!AH16)-$H$17*(1-A_MeasureExpiration!AG16)-$I$17*(1-A_MeasureExpiration!AF16)-$J$17*(1-A_MeasureExpiration!AE16)-$K$17*(1-A_MeasureExpiration!AD16)-$L$17*(1-A_MeasureExpiration!AC16)-$M$17*(1-A_MeasureExpiration!AB16)-$N$17*(1-A_MeasureExpiration!AA16)-$O$17*(1-A_MeasureExpiration!Z16)-$P$17*(1-A_MeasureExpiration!Y16)-$Q$17*(1-A_MeasureExpiration!X16)-$R$17*(1-A_MeasureExpiration!W16)-$S$17*(1-A_MeasureExpiration!V16)-$T$17*(1-A_MeasureExpiration!U16)-$U$17*(1-A_MeasureExpiration!T16)-$V$17*(1-A_MeasureExpiration!S16)-$W$17*(1-A_MeasureExpiration!R16)-$X$17*(1-A_MeasureExpiration!Q16)-$Y$17*(1-A_MeasureExpiration!P16)-$Z$17*(1-A_MeasureExpiration!O16)-$AA$17*(1-A_MeasureExpiration!N16)-$AB$17*(1-A_MeasureExpiration!M16)-$AC$17*(1-A_MeasureExpiration!L16)-$AD$17*(1-A_MeasureExpiration!K16)-$AE$17*(1-A_MeasureExpiration!J16)-$AF$17*(1-A_MeasureExpiration!I16)-$AG$17*(1-A_MeasureExpiration!H16)-$AH$17*(1-A_MeasureExpiration!G16)-$AI$17*(1-A_MeasureExpiration!F16) -> 1131526723 | AK17: =AK16-$F$17*(1-A_MeasureExpiration!AJ16)-$G$17*(1-A_MeasureExpiration!AI16)-$H$17*(1-A_MeasureExpiration!AH16)-$I$17*(1-A_MeasureExpiration!AG16)-$J$17*(1-A_MeasureExpiration!AF16)-$K$17*(1-A_MeasureExpiration!AE16)-$L$17*(1-A_MeasureExpiration!AD16)-$M$17*(1-A_MeasureExpiration!AC16)-$N$17*(1-A_MeasureExpiration!AB16)-$O$17*(1-A_MeasureExpiration!AA16)-$P$17*(1-A_MeasureExpiration!Z16)-$Q$17*(1-A_MeasureExpiration!Y16)-$R$17*(1-A_MeasureExpiration!X16)-$S$17*(1-A_MeasureExpiration!W16)-$T$17*(1-A_MeasureExpiration!V16)-$U$17*(1-A_MeasureExpiration!U16)-$V$17*(1-A_MeasureExpiration!T16)-$W$17*(1-A_MeasureExpiration!S16)-$X$17*(1-A_MeasureExpiration!R16)-$Y$17*(1-A_MeasureExpiration!Q16)-$Z$17*(1-A_MeasureExpiration!P16)-$AA$17*(1-A_MeasureExpiration!O16)-$AB$17*(1-A_MeasureExpiration!N16)-$AC$17*(1-A_MeasureExpiration!M16)-$AD$17*(1-A_MeasureExpiration!L16)-$AE$17*(1-A_MeasureExpiration!K16)-$AF$17*(1-A_MeasureExpiration!J16)-$AG$17*(1-A_MeasureExpiration!I16)-$AH$17*(1-A_MeasureExpiration!H16)-$AI$17*(1-A_MeasureExpiration!G16)-$AJ$17*(1-A_MeasureExpiration!F16) -> 1168615122 | AL17: =AL16-$F$17*(1-A_MeasureExpiration!AK16)-$G$17*(1-A_MeasureExpiration!AJ16)-$H$17*(1-A_MeasureExpiration!AI16)-$I$17*(1-A_MeasureExpiration!AH16)-$J$17*(1-A_MeasureExpiration!AG16)-$K$17*(1-A_MeasureExpiration!AF16)-$L$17*(1-A_MeasureExpiration!AE16)-$M$17*(1-A_MeasureExpiration!AD16)-$N$17*(1-A_MeasureExpiration!AC16)-$O$17*(1-A_MeasureExpiration!AB16)-$P$17*(1-A_MeasureExpiration!AA16)-$Q$17*(1-A_MeasureExpiration!Z16)-$R$17*(1-A_MeasureExpiration!Y16)-$S$17*(1-A_MeasureExpiration!X16)-$T$17*(1-A_MeasureExpiration!W16)-$U$17*(1-A_MeasureExpiration!V16)-$V$17*(1-A_MeasureExpiration!U16)-$W$17*(1-A_MeasureExpiration!T16)-$X$17*(1-A_MeasureExpiration!S16)-$Y$17*(1-A_MeasureExpiration!R16)-$Z$17*(1-A_MeasureExpiration!Q16)-$AA$17*(1-A_MeasureExpiration!P16)-$AB$17*(1-A_MeasureExpiration!O16)-$AC$17*(1-A_MeasureExpiration!N16)-$AD$17*(1-A_MeasureExpiration!M16)-$AE$17*(1-A_MeasureExpiration!L16)-$AF$17*(1-A_MeasureExpiration!K16)-$AG$17*(1-A_MeasureExpiration!J16)-$AH$17*(1-A_MeasureExpiration!I16)-$AI$17*(1-A_MeasureExpiration!H16)-$AJ$17*(1-A_MeasureExpiration!G16)-$AK$17*(1-A_MeasureExpiration!F16) -> 1207763175 | AM17: =AM16-$F$17*(1-A_MeasureExpiration!AL16)-$G$17*(1-A_MeasureExpiration!AK16)-$H$17*(1-A_MeasureExpiration!AJ16)-$I$17*(1-A_MeasureExpiration!AI16)-$J$17*(1-A_MeasureExpiration!AH16)-$K$17*(1-A_MeasureExpiration!AG16)-$L$17*(1-A_MeasureExpiration!AF16)-$M$17*(1-A_MeasureExpiration!AE16)-$N$17*(1-A_MeasureExpiration!AD16)-$O$17*(1-A_MeasureExpiration!AC16)-$P$17*(1-A_MeasureExpiration!AB16)-$Q$17*(1-A_MeasureExpiration!AA16)-$R$17*(1-A_MeasureExpiration!Z16)-$S$17*(1-A_MeasureExpiration!Y16)-$T$17*(1-A_MeasureExpiration!X16)-$U$17*(1-A_MeasureExpiration!W16)-$V$17*(1-A_MeasureExpiration!V16)-$W$17*(1-A_MeasureExpiration!U16)-$X$17*(1-A_MeasureExpiration!T16)-$Y$17*(1-A_MeasureExpiration!S16)-$Z$17*(1-A_MeasureExpiration!R16)-$AA$17*(1-A_MeasureExpiration!Q16)-$AB$17*(1-A_MeasureExpiration!P16)-$AC$17*(1-A_MeasureExpiration!O16)-$AD$17*(1-A_MeasureExpiration!N16)-$AE$17*(1-A_MeasureExpiration!M16)-$AF$17*(1-A_MeasureExpiration!L16)-$AG$17*(1-A_MeasureExpiration!K16)-$AH$17*(1-A_MeasureExpiration!J16)-$AI$17*(1-A_MeasureExpiration!I16)-$AJ$17*(1-A_MeasureExpiration!H16)-$AK$17*(1-A_MeasureExpiration!G16)-$AL$17*(1-A_MeasureExpiration!F16) -> 430325058.9 | AN17: =AN16-$F$17*(1-A_MeasureExpiration!AM16)-$G$17*(1-A_MeasureExpiration!AL16)-$H$17*(1-A_MeasureExpiration!AK16)-$I$17*(1-A_MeasureExpiration!AJ16)-$J$17*(1-A_MeasureExpiration!AI16)-$K$17*(1-A_MeasureExpiration!AH16)-$L$17*(1-A_MeasureExpiration!AG16)-$M$17*(1-A_MeasureExpiration!AF16)-$N$17*(1-A_MeasureExpiration!AE16)-$O$17*(1-A_MeasureExpiration!AD16)-$P$17*(1-A_MeasureExpiration!AC16)-$Q$17*(1-A_MeasureExpiration!AB16)-$R$17*(1-A_MeasureExpiration!AA16)-$S$17*(1-A_MeasureExpiration!Z16)-$T$17*(1-A_MeasureExpiration!Y16)-$U$17*(1-A_MeasureExpiration!X16)-$V$17*(1-A_MeasureExpiration!W16)-$W$17*(1-A_MeasureExpiration!V16)-$X$17*(1-A_MeasureExpiration!U16)-$Y$17*(1-A_MeasureExpiration!T16)-$Z$17*(1-A_MeasureExpiration!S16)-$AA$17*(1-A_MeasureExpiration!R16)-$AB$17*(1-A_MeasureExpiration!Q16)-$AC$17*(1-A_MeasureExpiration!P16)-$AD$17*(1-A_MeasureExpiration!O16)-$AE$17*(1-A_MeasureExpiration!N16)-$AF$17*(1-A_MeasureExpiration!M16)-$AG$17*(1-A_MeasureExpiration!L16)-$AH$17*(1-A_MeasureExpiration!K16)-$AI$17*(1-A_MeasureExpiration!J16)-$AJ$17*(1-A_MeasureExpiration!I16)-$AK$17*(1-A_MeasureExpiration!H16)-$AL$17*(1-A_MeasureExpiration!G16)-$AM$17*(1-A_MeasureExpiration!F16) -> 430449317.3
C18: Annual incremental savings | D18: % | F18: =F17/S7_Outputs!E14 -> 2.459411757e-08 | G18: =G17/S7_Outputs!F14 -> 0.002157002406 | H18: =H17/S7_Outputs!G14 -> 0.00339514745 | I18: =I17/S7_Outputs!H14 -> 0.003848861802 | J18: =J17/S7_Outputs!I14 -> 0.003511154969 | K18: =K17/S7_Outputs!J14 -> 0.004252485386 | L18: =L17/S7_Outputs!K14 -> 0.004912268874 | M18: =M17/S7_Outputs!L14 -> 0.004833336362 | N18: =N17/S7_Outputs!M14 -> 0.004303200613 | O18: =O17/S7_Outputs!N14 -> 0.004292319606 | P18: =P17/S7_Outputs!O14 -> 0.00463249661 | Q18: =Q17/S7_Outputs!P14 -> 0.002405302624 | R18: =R17/S7_Outputs!Q14 -> 0.009248889229 | S18: =S17/S7_Outputs!R14 -> 0.01148080735 | T18: =T17/S7_Outputs!S14 -> 0.01014351693 | U18: =U17/S7_Outputs!T14 -> 0.01100647867 | V18: =V17/S7_Outputs!U14 -> 0.01194388687 | W18: =W17/S7_Outputs!V14 -> 0.01186492724 | X18: =X17/S7_Outputs!W14 -> 0.01231151542 | Y18: =Y17/S7_Outputs!X14 -> 0.01277880475 | Z18: =Z17/S7_Outputs!Y14 -> 0.004388423043 | AA18: =AA17/S7_Outputs!Z14 -> 0.004403115461 | AB18: =AB17/S7_Outputs!AA14 -> 0.00441773261 | AC18: =AC17/S7_Outputs!AB14 -> 0.00439579756 | AD18: =AD17/S7_Outputs!AC14 -> 0.002468629543 | AE18: =AE17/S7_Outputs!AD14 -> 0.009230628617 | AF18: =AF17/S7_Outputs!AE14 -> 0.01162735534 | AG18: =AG17/S7_Outputs!AF14 -> 0.01084704688 | AH18: =AH17/S7_Outputs!AG14 -> 0.01164589492 | AI18: =AI17/S7_Outputs!AH14 -> 0.0125171717 | AJ18: =AJ17/S7_Outputs!AI14 -> 0.01235240071 | AK18: =AK17/S7_Outputs!AJ14 -> 0.01271967037 | AL18: =AL17/S7_Outputs!AK14 -> 0.01310796145 | AM18: =AM17/S7_Outputs!AL14 -> 0.004657232744 | AN18: =AN17/S7_Outputs!AM14 -> 0.004645771541
C24: Data sources:
C25: U.S. Energy Information Administration (EIA). "Natural Gas Annual Respondent Query System (EIA Form 176)." (2022). Available at https://www.eia.gov/naturalgas/ngqs/
C27: State | D27: =S1_StudyArea!D7 -> US Total
C28: Utility | D28: =S1_StudyArea!D9 -> Total

Sheet S5_Budget
B2: =scenarioLabel -> ESIST: Pilot Gas Version—US Total, Residential and Commercial Sectors, All Utilities
C4: Step 5. Set Budget Assumptions
C5: This step determines how much energy efficiency is achieved in each year based on the annual budget available. Utilities typically undergo gradual shifts to budgets over time. Historical budget data combine both residential and commercial programs.
C7: Select projection method: | D7: Constant Budget | E7: =IF(D7="Constant budget","Annual utility budget will remain at constant levels throughout the study period.",IF(D7="User Input","Please enter annual utility budget into the blue cells below.","Percent change in utility spending per year.")) -> Annual utility budget will remain at constant levels throughout the study period.
C9: Annual budget (2022 $ million): | D9: =Q13 -> 1280.206544 | E9: This is the budget that is spent on new programmatic energy efficiency savings in every year.
C10: Annual change in budget: | D10: 0 | E10: This is the year-on-year change in spending in real-dollar terms.
D12: =HYPERLINK("#R"&ROW(),"Click here to jump to future years") -> Click here to jump to future years | E12: 2010 | F12: 2011 | G12: 2012 | H12: 2013 | I12: 2014 | J12: 2015 | K12: 2016 | L12: 2017 | M12: 2018 | N12: 2019 | O12: 2020 | P12: 2021 | Q12: 2022 | R12: 2023 | S12: 2024 | T12: 2025 | U12: 2026 | V12: 2027 | W12: 2028 | X12: 2029 | Y12: 2030 | Z12: 2031 | AA12: 2032 | AB12: 2033 | AC12: 2034 | AD12: 2035 | AE12: 2036 | AF12: 2037 | AG12: 2038 | AH12: 2039 | AI12: 2040 | AJ12: 2041 | AK12: 2042 | AL12: 2043 | AM12: 2044 | AN12: 2045
C13: Annual utility budget | D13: 2022 $ M | F13: =IF(S1_StudyArea!$D$7="US Total",SUM(SalesSavings!FV:FV), IF(S1_StudyArea!$D$9="Total",SUMIFS(SalesSavings!FV:FV,SalesSavings!$B:$B,S1_StudyArea!$D$7), SUMIFS(SalesSavings!FV:FV,SalesSavings!$B:$B,S1_StudyArea!$D$7,SalesSavings!$G:$G,S1_StudyArea!$D$9)))*10^-6/Library!$E$288 ->  | G13: =IF(S1_StudyArea!$D$7="US Total",SUM(SalesSavings!FW:FW), IF(S1_StudyArea!$D$9="Total",SUMIFS(SalesSavings!FW:FW,SalesSavings!$B:$B,S1_StudyArea!$D$7), SUMIFS(SalesSavings!FW:FW,SalesSavings!$B:$B,S1_StudyArea!$D$7,SalesSavings!$G:$G,S1_StudyArea!$D$9)))*10^-6/Library!$E$288 -> 806.0342695 | H13: =IF(S1_StudyArea!$D$7="US Total",SUM(SalesSavings!FX:FX), IF(S1_StudyArea!$D$9="Total",SUMIFS(SalesSavings!FX:FX,SalesSavings!$B:$B,S1_StudyArea!$D$7), SUMIFS(SalesSavings!FX:FX,SalesSavings!$B:$B,S1_StudyArea!$D$7,SalesSavings!$G:$G,S1_StudyArea!$D$9)))*10^-6/Library!$E$288 -> 1085.379792 | I13: =IF(S1_StudyArea!$D$7="US Total",SUM(SalesSavings!FY:FY), IF(S1_StudyArea!$D$9="Total",SUMIFS(SalesSavings!FY:FY,SalesSavings!$B:$B,S1_StudyArea!$D$7), SUMIFS(SalesSavings!FY:FY,SalesSavings!$B:$B,S1_StudyArea!$D$7,SalesSavings!$G:$G,S1_StudyArea!$D$9)))*10^-6/Library!$E$288 -> 1286.897962 | J13: =IF(S1_StudyArea!$D$7="US Total",SUM(SalesSavings!FZ:FZ), IF(S1_StudyArea!$D$9="Total",SUMIFS(SalesSavings!FZ:FZ,SalesSavings!$B:$B,S1_StudyArea!$D$7), SUMIFS(SalesSavings!FZ:FZ,SalesSavings!$B:$B,S1_StudyArea!$D$7,SalesSavings!$G:$G,S1_StudyArea!$D$9)))*10^-6/Library!$E$288 -> 1249.726906 | K13: =IF(S1_StudyArea!$D$7="US Total",SUM(SalesSavings!GA:GA), IF(S1_StudyArea!$D$9="Total",SUMIFS(SalesSavings!GA:GA,SalesSavings!$B:$B,S1_StudyArea!$D$7), SUMIFS(SalesSavings!GA:GA,SalesSavings!$B:$B,S1_StudyArea!$D$7,SalesSavings!$G:$G,S1_StudyArea!$D$9)))*10^-6/Library!$E$288 -> 1280.99991 | L13: =IF(S1_StudyArea!$D$7="US Total",SUM(SalesSavings!GB:GB), IF(S1_StudyArea!$D$9="Total",SUMIFS(SalesSavings!GB:GB,SalesSavings!$B:$B,S1_StudyArea!$D$7), SUMIFS(SalesSavings!GB:GB,SalesSavings!$B:$B,S1_StudyArea!$D$7,SalesSavings!$G:$G,S1_StudyArea!$D$9)))*10^-6/Library!$E$288 -> 1353.932269 | M13: =IF(S1_StudyArea!$D$7="US Total",SUM(SalesSavings!GC:GC), IF(S1_StudyArea!$D$9="Total",SUMIFS(SalesSavings!GC:GC,SalesSavings!$B:$B,S1_StudyArea!$D$7), SUMIFS(SalesSavings!GC:GC,SalesSavings!$B:$B,S1_StudyArea!$D$7,SalesSavings!$G:$G,S1_StudyArea!$D$9)))*10^-6/Library!$E$288 -> 1353.93227 | N13: =IF(S1_StudyArea!$D$7="US Total",SUM(SalesSavings!GD:GD), IF(S1_StudyArea!$D$9="Total",SUMIFS(SalesSavings!GD:GD,SalesSavings!$B:$B,S1_StudyArea!$D$7), SUMIFS(SalesSavings!GD:GD,SalesSavings!$B:$B,S1_StudyArea!$D$7,SalesSavings!$G:$G,S1_StudyArea!$D$9)))*10^-6/Library!$E$288 -> 1353.932271 | O13: =IF(S1_StudyArea!$D$7="US Total",SUM(SalesSavings!GE:GE), IF(S1_StudyArea!$D$9="Total",SUMIFS(SalesSavings!GE:GE,SalesSavings!$B:$B,S1_StudyArea!$D$7), SUMIFS(SalesSavings!GE:GE,SalesSavings!$B:$B,S1_StudyArea!$D$7,SalesSavings!$G:$G,S1_StudyArea!$D$9)))*10^-6/Library!$E$288 -> 1353.932272 | P13: =IF(S1_StudyArea!$D$7="US Total",SUM(SalesSavings!GF:GF), IF(S1_StudyArea!$D$9="Total",SUMIFS(SalesSavings!GF:GF,SalesSavings!$B:$B,S1_StudyArea!$D$7), SUMIFS(SalesSavings!GF:GF,SalesSavings!$B:$B,S1_StudyArea!$D$7,SalesSavings!$G:$G,S1_StudyArea!$D$9)))*10^-6/Library!$E$288 -> 1310.682695 | Q13: =IF(S1_StudyArea!$D$7="US Total",SUM(SalesSavings!GG:GG), IF(S1_StudyArea!$D$9="Total",SUMIFS(SalesSavings!GG:GG,SalesSavings!$B:$B,S1_StudyArea!$D$7), SUMIFS(SalesSavings!GG:GG,SalesSavings!$B:$B,S1_StudyArea!$D$7,SalesSavings!$G:$G,S1_StudyArea!$D$9)))*10^-6/Library!$E$288 -> 1280.206544 | R13: =$D$9 -> 1280.206544 | S13: =$D$9 -> 1280.206544 | T13: 1280.206544 | U13: 1280.206544 | V13: 1280.206544 | W13: 1280.206544 | X13: 1280.206544 | Y13: 1280.206544 | Z13: 1280.206544 | AA13: 1280.206544 | AB13: 1280.206544 | AC13: 1280.206544 | AD13: 1280.206544 | AE13: 1280.206544 | AF13: 1280.206544 | AG13: 1280.206544 | AH13: 1280.206544 | AI13: 1280.206544 | AJ13: 1280.206544 | AK13: 1280.206544 | AL13: 1280.206544 | AM13: 1280.206544 | AN13: 1280.206544
C14: Annual change in spending | D14: % | G14: =IFERROR(G13/F13-1,0) -> 0 | H14: =IFERROR(H13/G13-1,0) -> 0.3465677985 | I14: 0.1856660419 | J14: -0.02888422916 | K14: 0.02502387032 | L14: 0.05693392934 | M14: 8.267995177e-10 | N14: 8.267995177e-10 | O14: 8.267995177e-10 | P14: -0.03194367842 | Q14: -0.02325211988 | R14: =R13/Q13-1 -> 0 | S14: =S13/R13-1 -> 0 | T14: 0 | U14: 0 | V14: 0 | W14: 0 | X14: 0 | Y14: 0 | Z14: 0 | AA14: 0 | AB14: 0 | AC14: 0 | AD14: 0 | AE14: 0 | AF14: 0 | AG14: 0 | AH14: 0 | AI14: 0 | AJ14: =AJ13/AI13-1 -> 0 | AK14: =AK13/AJ13-1 -> 0 | AL14: =AL13/AK13-1 -> 0 | AM14: =AM13/AL13-1 -> 0 | AN14: =AN13/AM13-1 -> 0
C15: Total energy efficiency expenditures | D15: 2022 $ M | F15: =F13/S4or5_Costs!$D$16 ->  | G15: =G13/S4or5_Costs!$D$16 -> 2015.085674 | H15: =H13/S4or5_Costs!$D$16 -> 2713.449479 | I15: =I13/S4or5_Costs!$D$16 -> 3217.244904 | J15: =J13/S4or5_Costs!$D$16 -> 3124.317265 | K15: =K13/S4or5_Costs!$D$16 -> 3202.499775 | L15: =L13/S4or5_Costs!$D$16 -> 3384.830671 | M15: =M13/S4or5_Costs!$D$16 -> 3384.830674 | N15: =N13/S4or5_Costs!$D$16 -> 3384.830677 | O15: =O13/S4or5_Costs!$D$16 -> 3384.83068 | P15: =P13/S4or5_Costs!$D$16 -> 3276.706737 | Q15: =Q13/S4or5_Costs!$D$16 -> 3200.516359 | R15: =R13/S4or5_Costs!$D$16 -> 3200.516359 | S15: =S13/S4or5_Costs!$D$16 -> 3200.516359 | T15: =T13/S4or5_Costs!$D$16 -> 3200.516359 | U15: =U13/S4or5_Costs!$D$16 -> 3200.516359 | V15: =V13/S4or5_Costs!$D$16 -> 3200.516359 | W15: =W13/S4or5_Costs!$D$16 -> 3200.516359 | X15: =X13/S4or5_Costs!$D$16 -> 3200.516359 | Y15: =Y13/S4or5_Costs!$D$16 -> 3200.516359 | Z15: =Z13/S4or5_Costs!$D$16 -> 3200.516359 | AA15: =AA13/S4or5_Costs!$D$16 -> 3200.516359 | AB15: =AB13/S4or5_Costs!$D$16 -> 3200.516359 | AC15: =AC13/S4or5_Costs!$D$16 -> 3200.516359 | AD15: =AD13/S4or5_Costs!$D$16 -> 3200.516359 | AE15: =AE13/S4or5_Costs!$D$16 -> 3200.516359 | AF15: =AF13/S4or5_Costs!$D$16 -> 3200.516359 | AG15: =AG13/S4or5_Costs!$D$16 -> 3200.516359 | AH15: =AH13/S4or5_Costs!$D$16 -> 3200.516359 | AI15: =AI13/S4or5_Costs!$D$16 -> 3200.516359 | AJ15: =AJ13/S4or5_Costs!$D$16 -> 3200.516359 | AK15: =AK13/S4or5_Costs!$D$16 -> 3200.516359 | AL15: =AL13/S4or5_Costs!$D$16 -> 3200.516359 | AM15: =AM13/S4or5_Costs!$D$16 -> 3200.516359 | AN15: =AN13/S4or5_Costs!$D$16 -> 3200.516359
C16: Annual savings | D16: therms | F16: =S7_Outputs!F9 -> 2011 | G16: =S7_Outputs!G9 -> 176016889 | H16: =S7_Outputs!H9 -> 248018610 | I16: =S7_Outputs!I9 -> 326991738 | J16: =S7_Outputs!J9 -> 311448955.7 | K16: =S7_Outputs!K9 -> 344611442.6 | L16: =S7_Outputs!L9 -> 379819229.1 | M16: =S7_Outputs!M9 -> 379819230.1 | N16: =S7_Outputs!N9 -> 379819231.1 | O16: =S7_Outputs!O9 -> 379819232.1 | P16: =S7_Outputs!P9 -> 376487428.1 | Q16: =S7_Outputs!Q9 -> 370916217.1 | R16: =R15*10^6/(S4or5_Costs!R21*10) -> 25504616.01 | S16: =S15*10^6/(S4or5_Costs!S21*10) -> 25504616.01 | T16: =T15*10^6/(S4or5_Costs!T21*10) -> 25504616.01 | U16: =U15*10^6/(S4or5_Costs!U21*10) -> 25504616.01 | V16: =V15*10^6/(S4or5_Costs!V21*10) -> 25504616.01 | W16: =W15*10^6/(S4or5_Costs!W21*10) -> 25504616.01 | X16: =X15*10^6/(S4or5_Costs!X21*10) -> 25504616.01 | Y16: =Y15*10^6/(S4or5_Costs!Y21*10) -> 25504616.01 | Z16: =Z15*10^6/(S4or5_Costs!Z21*10) -> 25504616.01 | AA16: =AA15*10^6/(S4or5_Costs!AA21*10) -> 25504616.01 | AB16: =AB15*10^6/(S4or5_Costs!AB21*10) -> 25504616.01 | AC16: =AC15*10^6/(S4or5_Costs!AC21*10) -> 25504616.01 | AD16: =AD15*10^6/(S4or5_Costs!AD21*10) -> 25504616.01 | AE16: =AE15*10^6/(S4or5_Costs!AE21*10) -> 25504616.01 | AF16: =AF15*10^6/(S4or5_Costs!AF21*10) -> 25504616.01 | AG16: =AG15*10^6/(S4or5_Costs!AG21*10) -> 25504616.01 | AH16: =AH15*10^6/(S4or5_Costs!AH21*10) -> 25504616.01 | AI16: =AI15*10^6/(S4or5_Costs!AI21*10) -> 25504616.01 | AJ16: =AJ15*10^6/(S4or5_Costs!AJ21*10) -> 25504616.01 | AK16: =AK15*10^6/(S4or5_Costs!AK21*10) -> 25504616.01 | AL16: =AL15*10^6/(S4or5_Costs!AL21*10) -> 25504616.01 | AM16: =AM15*10^6/(S4or5_Costs!AM21*10) -> 25504616.01 | AN16: =AN15*10^6/(S4or5_Costs!AN21*10) -> 25504616.01
C17: Annual savings | D17: % | F17: =F16/S7_Outputs!E14 -> 2.459411757e-08 | G17: =G16/S7_Outputs!F14 -> 0.002157002406 | H17: =H16/S7_Outputs!G14 -> 0.00339514745 | I17: =I16/S7_Outputs!H14 -> 0.003848861802 | J17: =J16/S7_Outputs!I14 -> 0.003511154969 | K17: =K16/S7_Outputs!J14 -> 0.004252485386 | L17: =L16/S7_Outputs!K14 -> 0.004912268874 | M17: =M16/S7_Outputs!L14 -> 0.004833336362 | N17: =N16/S7_Outputs!M14 -> 0.004303200613 | O17: =O16/S7_Outputs!N14 -> 0.004292319606 | P17: =P16/S7_Outputs!O14 -> 0.00463249661 | Q17: =Q16/S7_Outputs!P14 -> 0.004467821482 | R17: =R16/S7_Outputs!Q14 -> 0.0002902621624 | S17: =S16/S7_Outputs!R14 -> 0.0002845716332 | T17: =T16/S7_Outputs!S14 -> 0.00026973268 | U17: =U16/S7_Outputs!T14 -> 0.0002712377463 | V17: =V16/S7_Outputs!U14 -> 0.000272532798 | W17: =W16/S7_Outputs!V14 -> 0.0002735933892 | X17: =X16/S7_Outputs!W14 -> 0.0002746957239 | Y17: =Y16/S7_Outputs!X14 -> 0.0002756951455 | Z17: =Z16/S7_Outputs!Y14 -> 0.0002765842932 | AA17: =AA16/S7_Outputs!Z14 -> 0.0002774683761 | AB17: =AB16/S7_Outputs!AA14 -> 0.0002783473459 | AC17: =AC16/S7_Outputs!AB14 -> 0.0002792211554 | AD17: =AD16/S7_Outputs!AC14 -> 0.0002801000069 | AE17: =AE16/S7_Outputs!AD14 -> 0.0002809908761 | AF17: =AF16/S7_Outputs!AE14 -> 0.0002813095058 | AG17: =AG16/S7_Outputs!AF14 -> 0.0002810331594 | AH17: =AH16/S7_Outputs!AG14 -> 0.0002801354337 | AI17: =AI16/S7_Outputs!AH14 -> 0.0002792664582 | AJ17: =AJ16/S7_Outputs!AI14 -> 0.0002784231521 | AK17: =AK16/S7_Outputs!AJ14 -> 0.0002776023536 | AL17: =AL16/S7_Outputs!AK14 -> 0.0002768038721 | AM17: =AM16/S7_Outputs!AL14 -> 0.0002760260653 | AN17: =AN16/S7_Outputs!AM14 -> 0.000275267295
C23: Data sources:
C24: U.S. Energy Information Administration (EIA). "Natural Gas Annual Respondent Query System (EIA Form 176)." (2022). Available at https://www.eia.gov/naturalgas/ngqs/

Sheet S6_Other
B2: =scenarioLabel -> ESIST: Pilot Gas Version—US Total, Residential and Commercial Sectors, All Utilities
C4: Step 6. Set Multiple Benefits and Other Settings
C5: Set other inputs for the modules described below. If these modules are not edited, default values will be used.
C6: Note that some modules may contain detailed results, rather than inputs that are meant to be edited by the user.
D8: Estimate impacts on greenhouse gas and criteria pollutant emissions.
D10: Analyze energy burden and investment in energy efficiency, bill assistance, and other programs for low-income customers.
D12: Examine historical information on number of customers, average rates, and average per-customer consumption. This sheet is informational only; there are no inputs to edit.
D14: Determine the schedule on which savings from energy efficiency measures expire.

Sheet S7_Outputs
B2: =scenarioLabel -> ESIST: Pilot Gas Version—US Total, Residential and Commercial Sectors, All Utilities
C4: Step 7. Review Outputs | D4: =HYPERLINK("#R"&ROW(),"Click here to jump to future years") -> Click here to jump to future years
C5: Review outputs from all steps, including information on annual incremental savings from energy efficiency (EE), cumulative savings, costs, emission impacts, and energy burden impacts.
C7: Sales and Savings | D7: View charts | E7: 2010 | F7: 2011 | G7: 2012 | H7: 2013 | I7: 2014 | J7: 2015 | K7: 2016 | L7: 2017 | M7: 2018 | N7: 2019 | O7: 2020 | P7: 2021 | Q7: 2022 | R7: 2023 | S7: 2024 | T7: 2025 | U7: 2026 | V7: 2027 | W7: 2028 | X7: 2029 | Y7: 2030 | Z7: 2031 | AA7: 2032 | AB7: 2033 | AC7: 2034 | AD7: 2035 | AE7: 2036 | AF7: 2037 | AG7: 2038 | AH7: 2039 | AI7: 2040 | AJ7: 2041 | AK7: 2042 | AL7: 2043 | AM7: 2044 | AN7: 2045
C8: Baseline consumption | D8: therms | E8: =S2_Sales!E15 -> 8.176751999e+10 | F8: =S2_Sales!F15 -> 8.160254844e+10 | G8: =S2_Sales!G15 -> 7.322692866e+10 | H8: =S2_Sales!H15 -> 85382073112 | I8: =S2_Sales!I15 -> 8.945373774e+10 | J8: =S2_Sales!J15 -> 8.210013296e+10 | K8: =S2_Sales!K15 -> 7.872761888e+10 | L8: =S2_Sales!L15 -> 8.037014861e+10 | M8: =S2_Sales!M15 -> 9.043108417e+10 | N8: =S2_Sales!N15 -> 9.103465328e+10 | O8: =S2_Sales!O15 -> 8.419732256e+10 | P8: =S2_Sales!P15 -> 8.632233421e+10 | Q8: =S2_Sales!Q15 -> 9.1541289e+10 | R8: =S2_Sales!R15 -> 9.385165113e+10 | S8: =S2_Sales!S15 -> 9.952582026e+10 | T8: =S2_Sales!T15 -> 9.977067953e+10 | U8: =S2_Sales!U15 -> 1.000161412e+11 | V8: =S2_Sales!V15 -> 1.002622068e+11 | W8: =S2_Sales!W15 -> 1.005088778e+11 | X8: =S2_Sales!X15 -> 1.007561556e+11 | Y8: =S2_Sales!Y15 -> 1.010040419e+11 | Z8: =S2_Sales!Z15 -> 1.012525379e+11 | AA8: =S2_Sales!AA15 -> 1.015016454e+11 | AB8: =S2_Sales!AB15 -> 1.017513657e+11 | AC8: =S2_Sales!AC15 -> 1.020017004e+11 | AD8: =S2_Sales!AD15 -> 1.02252651e+11 | AE8: =S2_Sales!AE15 -> 1.025042189e+11 | AF8: =S2_Sales!AF15 -> 1.027564058e+11 | AG8: =S2_Sales!AG15 -> 1.030092132e+11 | AH8: =S2_Sales!AH15 -> 1.032626425e+11 | AI8: =S2_Sales!AI15 -> 1.035166953e+11 | AJ8: =S2_Sales!AJ15 -> 1.037713732e+11 | AK8: =S2_Sales!AK15 -> 1.040266776e+11 | AL8: =S2_Sales!AL15 -> 1.042826102e+11 | AM8: =S2_Sales!AM15 -> 1.045391724e+11 | AN8: =S2_Sales!AN15 -> 1.047963658e+11
C9: Annual incremental savings | D9: therms | F9: =S4_AnnSavings!F15 -> 2011 | G9: =S4_AnnSavings!G15 -> 176016889 | H9: =S4_AnnSavings!H15 -> 248018610 | I9: =S4_AnnSavings!I15 -> 326991738 | J9: =S4_AnnSavings!J15 -> 311448955.7 | K9: =S4_AnnSavings!K15 -> 344611442.6 | L9: =S4_AnnSavings!L15 -> 379819229.1 | M9: =S4_AnnSavings!M15 -> 379819230.1 | N9: =S4_AnnSavings!N15 -> 379819231.1 | O9: =S4_AnnSavings!O15 -> 379819232.1 | P9: =S4_AnnSavings!P15 -> 376487428.1 | Q9: =S4_AnnSavings!Q15 -> 370916217.1 | R9: =IF(S3_Approach!$F$10="Annual Incremental Savings",S4_AnnSavings!R15, IF(S3_Approach!$F$10="Cumulative Savings",S4_CumulSavings!R17, S5_Budget!R16)) -> 553290718.5 | S9: =IF(S3_Approach!$F$10="Annual Incremental Savings",S4_AnnSavings!S15, IF(S3_Approach!$F$10="Cumulative Savings",S4_CumulSavings!S17, S5_Budget!S16)) -> 743603956.7 | T9: =IF(S3_Approach!$F$10="Annual Incremental Savings",S4_AnnSavings!T15, IF(S3_Approach!$F$10="Cumulative Savings",S4_CumulSavings!T17, S5_Budget!T16)) -> 945551573.8 | U9: =IF(S3_Approach!$F$10="Annual Incremental Savings",S4_AnnSavings!U15, IF(S3_Approach!$F$10="Cumulative Savings",S4_CumulSavings!U17, S5_Budget!U16)) -> 940304819.7 | V9: =IF(S3_Approach!$F$10="Annual Incremental Savings",S4_AnnSavings!V15, IF(S3_Approach!$F$10="Cumulative Savings",S4_CumulSavings!V17, S5_Budget!V16)) -> 935836574.5 | W9: =IF(S3_Approach!$F$10="Annual Incremental Savings",S4_AnnSavings!W15, IF(S3_Approach!$F$10="Cumulative Savings",S4_CumulSavings!W17, S5_Budget!W16)) -> 932208782 | X9: =IF(S3_Approach!$F$10="Annual Incremental Savings",S4_AnnSavings!X15, IF(S3_Approach!$F$10="Cumulative Savings",S4_CumulSavings!X17, S5_Budget!X16)) -> 928467893.5 | Y9: =IF(S3_Approach!$F$10="Annual Incremental Savings",S4_AnnSavings!Y15, IF(S3_Approach!$F$10="Cumulative Savings",S4_CumulSavings!Y17, S5_Budget!Y16)) -> 925102107.5 | Z9: =IF(S3_Approach!$F$10="Annual Incremental Savings",S4_AnnSavings!Z15, IF(S3_Approach!$F$10="Cumulative Savings",S4_CumulSavings!Z17, S5_Budget!Z16)) -> 922128140.9 | AA9: =IF(S3_Approach!$F$10="Annual Incremental Savings",S4_AnnSavings!AA15, IF(S3_Approach!$F$10="Cumulative Savings",S4_CumulSavings!AA17, S5_Budget!AA16)) -> 919190012.6 | AB9: =IF(S3_Approach!$F$10="Annual Incremental Savings",S4_AnnSavings!AB15, IF(S3_Approach!$F$10="Cumulative Savings",S4_CumulSavings!AB17, S5_Budget!AB16)) -> 916287379.2 | AC9: =IF(S3_Approach!$F$10="Annual Incremental Savings",S4_AnnSavings!AC15, IF(S3_Approach!$F$10="Cumulative Savings",S4_CumulSavings!AC17, S5_Budget!AC16)) -> 913419900.9 | AD9: =IF(S3_Approach!$F$10="Annual Incremental Savings",S4_AnnSavings!AD15, IF(S3_Approach!$F$10="Cumulative Savings",S4_CumulSavings!AD17, S5_Budget!AD16)) -> 910553923 | AE9: =IF(S3_Approach!$F$10="Annual Incremental Savings",S4_AnnSavings!AE15, IF(S3_Approach!$F$10="Cumulative Savings",S4_CumulSavings!AE17, S5_Budget!AE16)) -> 907667051.8 | AF9: =IF(S3_Approach!$F$10="Annual Incremental Savings",S4_AnnSavings!AF15, IF(S3_Approach!$F$10="Cumulative Savings",S4_CumulSavings!AF17, S5_Budget!AF16)) -> 906638968.3 | AG9: =IF(S3_Approach!$F$10="Annual Incremental Savings",S4_AnnSavings!AG15, IF(S3_Approach!$F$10="Cumulative Savings",S4_CumulSavings!AG17, S5_Budget!AG16)) -> 907530487.2 | AH9: =IF(S3_Approach!$F$10="Annual Incremental Savings",S4_AnnSavings!AH15, IF(S3_Approach!$F$10="Cumulative Savings",S4_CumulSavings!AH17, S5_Budget!AH16)) -> 910438771.5 | AI9: =IF(S3_Approach!$F$10="Annual Incremental Savings",S4_AnnSavings!AI15, IF(S3_Approach!$F$10="Cumulative Savings",S4_CumulSavings!AI17, S5_Budget!AI16)) -> 913271725.2 | AJ9: =IF(S3_Approach!$F$10="Annual Incremental Savings",S4_AnnSavings!AJ15, IF(S3_Approach!$F$10="Cumulative Savings",S4_CumulSavings!AJ17, S5_Budget!AJ16)) -> 916037902 | AK9: =IF(S3_Approach!$F$10="Annual Incremental Savings",S4_AnnSavings!AK15, IF(S3_Approach!$F$10="Cumulative Savings",S4_CumulSavings!AK17, S5_Budget!AK16)) -> 918746389.3 | AL9: =IF(S3_Approach!$F$10="Annual Incremental Savings",S4_AnnSavings!AL15, IF(S3_Approach!$F$10="Cumulative Savings",S4_CumulSavings!AL17, S5_Budget!AL16)) -> 921396648.7 | AM9: =IF(S3_Approach!$F$10="Annual Incremental Savings",S4_AnnSavings!AM15, IF(S3_Approach!$F$10="Cumulative Savings",S4_CumulSavings!AM17, S5_Budget!AM16)) -> 923993028.8 | AN9: =IF(S3_Approach!$F$10="Annual Incremental Savings",S4_AnnSavings!AN15, IF(S3_Approach!$F$10="Cumulative Savings",S4_CumulSavings!AN17, S5_Budget!AN16)) -> 926540002
C10: Annual incremental savings | D10: % | F10: =S4_AnnSavings!F14 -> 2.459411757e-08 | G10: =S4_AnnSavings!G14 -> 0.002157002353 | H10: =S4_AnnSavings!H14 -> 0.00338698638 | I10: =S4_AnnSavings!I14 -> 0.003829746996 | J10: =S4_AnnSavings!J14 -> 0.003481676267 | K10: =S4_AnnSavings!K14 -> 0.004197452917 | L10: =S4_AnnSavings!L14 -> 0.00482447246 | M10: =S4_AnnSavings!M14 -> 0.004725874428 | N10: =S4_AnnSavings!N14 -> 0.004200095958 | O10: =S4_AnnSavings!O14 -> 0.004172248901 | P10: =S4_AnnSavings!P14 -> 0.004471489314 | Q10: =S4_AnnSavings!Q14 -> 0.004296874273 | R10: =IF(S3_Approach!$F$10="Annual Incremental Savings",S4_AnnSavings!R14, IF(S3_Approach!$F$10="Cumulative Savings",S4_CumulSavings!R18, S5_Budget!R17)) -> 0.006296874273 | S10: =IF(S3_Approach!$F$10="Annual Incremental Savings",S4_AnnSavings!S14, IF(S3_Approach!$F$10="Cumulative Savings",S4_CumulSavings!S18, S5_Budget!S17)) -> 0.008296874273 | T10: =IF(S3_Approach!$F$10="Annual Incremental Savings",S4_AnnSavings!T14, IF(S3_Approach!$F$10="Cumulative Savings",S4_CumulSavings!T18, S5_Budget!T17)) -> 0.01 | U10: =IF(S3_Approach!$F$10="Annual Incremental Savings",S4_AnnSavings!U14, IF(S3_Approach!$F$10="Cumulative Savings",S4_CumulSavings!U18, S5_Budget!U17)) -> 0.01 | V10: =IF(S3_Approach!$F$10="Annual Incremental Savings",S4_AnnSavings!V14, IF(S3_Approach!$F$10="Cumulative Savings",S4_CumulSavings!V18, S5_Budget!V17)) -> 0.01 | W10: =IF(S3_Approach!$F$10="Annual Incremental Savings",S4_AnnSavings!W14, IF(S3_Approach!$F$10="Cumulative Savings",S4_CumulSavings!W18, S5_Budget!W17)) -> 0.01 | X10: =IF(S3_Approach!$F$10="Annual Incremental Savings",S4_AnnSavings!X14, IF(S3_Approach!$F$10="Cumulative Savings",S4_CumulSavings!X18, S5_Budget!X17)) -> 0.01 | Y10: =IF(S3_Approach!$F$10="Annual Incremental Savings",S4_AnnSavings!Y14, IF(S3_Approach!$F$10="Cumulative Savings",S4_CumulSavings!Y18, S5_Budget!Y17)) -> 0.01 | Z10: =IF(S3_Approach!$F$10="Annual Incremental Savings",S4_AnnSavings!Z14, IF(S3_Approach!$F$10="Cumulative Savings",S4_CumulSavings!Z18, S5_Budget!Z17)) -> 0.01 | AA10: =IF(S3_Approach!$F$10="Annual Incremental Savings",S4_AnnSavings!AA14, IF(S3_Approach!$F$10="Cumulative Savings",S4_CumulSavings!AA18, S5_Budget!AA17)) -> 0.01 | AB10: =IF(S3_Approach!$F$10="Annual Incremental Savings",S4_AnnSavings!AB14, IF(S3_Approach!$F$10="Cumulative Savings",S4_CumulSavings!AB18, S5_Budget!AB17)) -> 0.01 | AC10: =IF(S3_Approach!$F$10="Annual Incremental Savings",S4_AnnSavings!AC14, IF(S3_Approach!$F$10="Cumulative Savings",S4_CumulSavings!AC18, S5_Budget!AC17)) -> 0.01 | AD10: =IF(S3_Approach!$F$10="Annual Incremental Savings",S4_AnnSavings!AD14, IF(S3_Approach!$F$10="Cumulative Savings",S4_CumulSavings!AD18, S5_Budget!AD17)) -> 0.01 | AE10: =IF(S3_Approach!$F$10="Annual Incremental Savings",S4_AnnSavings!AE14, IF(S3_Approach!$F$10="Cumulative Savings",S4_CumulSavings!AE18, S5_Budget!AE17)) -> 0.01 | AF10: =IF(S3_Approach!$F$10="Annual Incremental Savings",S4_AnnSavings!AF14, IF(S3_Approach!$F$10="Cumulative Savings",S4_CumulSavings!AF18, S5_Budget!AF17)) -> 0.01 | AG10: =IF(S3_Approach!$F$10="Annual Incremental Savings",S4_AnnSavings!AG14, IF(S3_Approach!$F$10="Cumulative Savings",S4_CumulSavings!AG18, S5_Budget!AG17)) -> 0.01 | AH10: =IF(S3_Approach!$F$10="Annual Incremental Savings",S4_AnnSavings!AH14, IF(S3_Approach!$F$10="Cumulative Savings",S4_CumulSavings!AH18, S5_Budget!AH17)) -> 0.01 | AI10: =IF(S3_Approach!$F$10="Annual Incremental Savings",S4_AnnSavings!AI14, IF(S3_Approach!$F$10="Cumulative Savings",S4_CumulSavings!AI18, S5_Budget!AI17)) -> 0.01 | AJ10: =IF(S3_Approach!$F$10="Annual Incremental Savings",S4_AnnSavings!AJ14, IF(S3_Approach!$F$10="Cumulative Savings",S4_CumulSavings!AJ18, S5_Budget!AJ17)) -> 0.01 | AK10: =IF(S3_Approach!$F$10="Annual Incremental Savings",S4_AnnSavings!AK14, IF(S3_Approach!$F$10="Cumulative Savings",S4_CumulSavings!AK18, S5_Budget!AK17)) -> 0.01 | AL10: =IF(S3_Approach!$F$10="Annual Incremental Savings",S4_AnnSavings!AL14, IF(S3_Approach!$F$10="Cumulative Savings",S4_CumulSavings!AL18, S5_Budget!AL17)) -> 0.01 | AM10: =IF(S3_Approach!$F$10="Annual Incremental Savings",S4_AnnSavings!AM14, IF(S3_Approach!$F$10="Cumulative Savings",S4_CumulSavings!AM18, S5_Budget!AM17)) -> 0.01 | AN10: =IF(S3_Approach!$F$10="Annual Incremental Savings",S4_AnnSavings!AN14, IF(S3_Approach!$F$10="Cumulative Savings",S4_CumulSavings!AN18, S5_Budget!AN17)) -> 0.01
C11: Expiring savings | D11: therms | F11: =F9*A_MeasureExpiration!$E$14 -> 0 | G11: =G9*A_MeasureExpiration!$E$14+F9*A_MeasureExpiration!$F$14 -> 0 | H11: =H9*A_MeasureExpiration!$E$14+G9*A_MeasureExpiration!$F$14+F9*A_MeasureExpiration!$G$14 -> 0 | I11: =I9*A_MeasureExpiration!$E$14+H9*A_MeasureExpiration!$F$14+G9*A_MeasureExpiration!$G$14+F9*A_MeasureExpiration!$H$14 -> 0 | J11: =J9*A_MeasureExpiration!$E$14+I9*A_MeasureExpiration!$F$14+H9*A_MeasureExpiration!$G$14+G9*A_MeasureExpiration!$H$14+F9*A_MeasureExpiration!$I$14 -> 0 | K11: =K9*A_MeasureExpiration!$E$14+J9*A_MeasureExpiration!$F$14+I9*A_MeasureExpiration!$G$14+H9*A_MeasureExpiration!$H$14+G9*A_MeasureExpiration!$I$14+F9*A_MeasureExpiration!$J$14 -> 0 | L11: =L9*A_MeasureExpiration!$E$14+K9*A_MeasureExpiration!$F$14+J9*A_MeasureExpiration!$G$14+I9*A_MeasureExpiration!$H$14+H9*A_MeasureExpiration!$I$14+G9*A_MeasureExpiration!$J$14+F9*A_MeasureExpiration!$K$14 -> 0 | M11: =M9*A_MeasureExpiration!$E$14+L9*A_MeasureExpiration!$F$14+K9*A_MeasureExpiration!$G$14+J9*A_MeasureExpiration!$H$14+I9*A_MeasureExpiration!$I$14+H9*A_MeasureExpiration!$J$14+G9*A_MeasureExpiration!$K$14+F9*A_MeasureExpiration!$L$14 -> 0 | N11: =N9*A_MeasureExpiration!$E$14+M9*A_MeasureExpiration!$F$14+L9*A_MeasureExpiration!$G$14+K9*A_MeasureExpiration!$H$14+J9*A_MeasureExpiration!$I$14+I9*A_MeasureExpiration!$J$14+H9*A_MeasureExpiration!$K$14+G9*A_MeasureExpiration!$L$14+F9*A_MeasureExpiration!$M$14 -> 0 | O11: =O9*A_MeasureExpiration!$E$14+N9*A_MeasureExpiration!$F$14+M9*A_MeasureExpiration!$G$14+L9*A_MeasureExpiration!$H$14+K9*A_MeasureExpiration!$I$14+J9*A_MeasureExpiration!$J$14+I9*A_MeasureExpiration!$K$14+H9*A_MeasureExpiration!$L$14+G9*A_MeasureExpiration!$M$14 -> 0 | P11: =P9*A_MeasureExpiration!$E$14+O9*A_MeasureExpiration!$F$14+N9*A_MeasureExpiration!$G$14+M9*A_MeasureExpiration!$H$14+L9*A_MeasureExpiration!$I$14+K9*A_MeasureExpiration!$J$14+J9*A_MeasureExpiration!$K$14+I9*A_MeasureExpiration!$L$14+H9*A_MeasureExpiration!$M$14+G9*A_MeasureExpiration!$N$14+F9*A_MeasureExpiration!$O$14 -> 0 | Q11: =Q9*A_MeasureExpiration!$E$14+P9*A_MeasureExpiration!$F$14+O9*A_MeasureExpiration!$G$14+N9*A_MeasureExpiration!$H$14+M9*A_MeasureExpiration!$I$14+L9*A_MeasureExpiration!$J$14+K9*A_MeasureExpiration!$K$14+J9*A_MeasureExpiration!$L$14+I9*A_MeasureExpiration!$M$14+H9*A_MeasureExpiration!$N$14+G9*A_MeasureExpiration!$O$14 -> 0 | R11: =R9*A_MeasureExpiration!$E$14+Q9*A_MeasureExpiration!$F$14+P9*A_MeasureExpiration!$G$14+O9*A_MeasureExpiration!$H$14+N9*A_MeasureExpiration!$I$14+M9*A_MeasureExpiration!$J$14+L9*A_MeasureExpiration!$K$14+K9*A_MeasureExpiration!$L$14+J9*A_MeasureExpiration!$M$14+I9*A_MeasureExpiration!$N$14+H9*A_MeasureExpiration!$O$14+G9*A_MeasureExpiration!$P$14+F9*A_MeasureExpiration!$Q$14 -> 0 | S11: =S9*A_MeasureExpiration!$E$14+R9*A_MeasureExpiration!$F$14+Q9*A_MeasureExpiration!$G$14+P9*A_MeasureExpiration!$H$14+O9*A_MeasureExpiration!$I$14+N9*A_MeasureExpiration!$J$14+M9*A_MeasureExpiration!$K$14+L9*A_MeasureExpiration!$L$14+K9*A_MeasureExpiration!$M$14+J9*A_MeasureExpiration!$N$14+I9*A_MeasureExpiration!$O$14+H9*A_MeasureExpiration!$P$14+G9*A_MeasureExpiration!$Q$14+F9*A_MeasureExpiration!$R$14 -> 2011 | T11: =T9*A_MeasureExpiration!$E$14+S9*A_MeasureExpiration!$F$14+R9*A_MeasureExpiration!$G$14+Q9*A_MeasureExpiration!$H$14+P9*A_MeasureExpiration!$I$14+O9*A_MeasureExpiration!$J$14+N9*A_MeasureExpiration!$K$14+M9*A_MeasureExpiration!$L$14+L9*A_MeasureExpiration!$M$14+K9*A_MeasureExpiration!$N$14+J9*A_MeasureExpiration!$O$14+I9*A_MeasureExpiration!$P$14+H9*A_MeasureExpiration!$Q$14+G9*A_MeasureExpiration!$R$14+F9*A_MeasureExpiration!$S$14 -> 176016889 | U11: =U9*A_MeasureExpiration!$E$14+T9*A_MeasureExpiration!$F$14+S9*A_MeasureExpiration!$G$14+R9*A_MeasureExpiration!$H$14+Q9*A_MeasureExpiration!$I$14+P9*A_MeasureExpiration!$J$14+O9*A_MeasureExpiration!$K$14+N9*A_MeasureExpiration!$L$14+M9*A_MeasureExpiration!$M$14+L9*A_MeasureExpiration!$N$14+K9*A_MeasureExpiration!$O$14+J9*A_MeasureExpiration!$P$14+I9*A_MeasureExpiration!$Q$14+H9*A_MeasureExpiration!$R$14+G9*A_MeasureExpiration!$S$14+F9*A_MeasureExpiration!$T$14 -> 248018610 | V11: =V9*A_MeasureExpiration!$E$14+U9*A_MeasureExpiration!$F$14+T9*A_MeasureExpiration!$G$14+S9*A_MeasureExpiration!$H$14+R9*A_MeasureExpiration!$I$14+Q9*A_MeasureExpiration!$J$14+P9*A_MeasureExpiration!$K$14+O9*A_MeasureExpiration!$L$14+N9*A_MeasureExpiration!$M$14+M9*A_MeasureExpiration!$N$14+L9*A_MeasureExpiration!$O$14+K9*A_MeasureExpiration!$P$14+J9*A_MeasureExpiration!$Q$14+I9*A_MeasureExpiration!$R$14+H9*A_MeasureExpiration!$S$14+G9*A_MeasureExpiration!$T$14+F9*A_MeasureExpiration!$U$14 -> 326991738 | W11: =W9*A_MeasureExpiration!$E$14+V9*A_MeasureExpiration!$F$14+U9*A_MeasureExpiration!$G$14+T9*A_MeasureExpiration!$H$14+S9*A_MeasureExpiration!$I$14+R9*A_MeasureExpiration!$J$14+Q9*A_MeasureExpiration!$K$14+P9*A_MeasureExpiration!$L$14+O9*A_MeasureExpiration!$M$14+N9*A_MeasureExpiration!$N$14+M9*A_MeasureExpiration!$O$14+L9*A_MeasureExpiration!$P$14+K9*A_MeasureExpiration!$Q$14+J9*A_MeasureExpiration!$R$14+I9*A_MeasureExpiration!$S$14+H9*A_MeasureExpiration!$T$14+G9*A_MeasureExpiration!$U$14+F9*A_MeasureExpiration!$V$14 -> 311448955.7 | X11: =X9*A_MeasureExpiration!$E$14+W9*A_MeasureExpiration!$F$14+V9*A_MeasureExpiration!$G$14+U9*A_MeasureExpiration!$H$14+T9*A_MeasureExpiration!$I$14+S9*A_MeasureExpiration!$J$14+R9*A_MeasureExpiration!$K$14+Q9*A_MeasureExpiration!$L$14+P9*A_MeasureExpiration!$M$14+O9*A_MeasureExpiration!$N$14+N9*A_MeasureExpiration!$O$14+M9*A_MeasureExpiration!$P$14+L9*A_MeasureExpiration!$Q$14+K9*A_MeasureExpiration!$R$14+J9*A_MeasureExpiration!$S$14+I9*A_MeasureExpiration!$T$14+H9*A_MeasureExpiration!$U$14+G9*A_MeasureExpiration!$V$14+F9*A_MeasureExpiration!$W$14 -> 344611442.6 | Y11: =Y9*A_MeasureExpiration!$E$14+X9*A_MeasureExpiration!$F$14+W9*A_MeasureExpiration!$G$14+V9*A_MeasureExpiration!$H$14+U9*A_MeasureExpiration!$I$14+T9*A_MeasureExpiration!$J$14+S9*A_MeasureExpiration!$K$14+R9*A_MeasureExpiration!$L$14+Q9*A_MeasureExpiration!$M$14+P9*A_MeasureExpiration!$N$14+O9*A_MeasureExpiration!$O$14+N9*A_MeasureExpiration!$P$14+M9*A_MeasureExpiration!$Q$14+L9*A_MeasureExpiration!$R$14+K9*A_MeasureExpiration!$S$14+J9*A_MeasureExpiration!$T$14+I9*A_MeasureExpiration!$U$14+H9*A_MeasureExpiration!$V$14+G9*A_MeasureExpiration!$W$14+F9*A_MeasureExpiration!$X$14 -> 379819229.1 | Z11: =Z9*A_MeasureExpiration!$E$14+Y9*A_MeasureExpiration!$F$14+X9*A_MeasureExpiration!$G$14+W9*A_MeasureExpiration!$H$14+V9*A_MeasureExpiration!$I$14+U9*A_MeasureExpiration!$J$14+T9*A_MeasureExpiration!$K$14+S9*A_MeasureExpiration!$L$14+R9*A_MeasureExpiration!$M$14+Q9*A_MeasureExpiration!$N$14+P9*A_MeasureExpiration!$O$14+O9*A_MeasureExpiration!$P$14+N9*A_MeasureExpiration!$Q$14+M9*A_MeasureExpiration!$R$14+L9*A_MeasureExpiration!$S$14+K9*A_MeasureExpiration!$T$14+J9*A_MeasureExpiration!$U$14+I9*A_MeasureExpiration!$V$14+H9*A_MeasureExpiration!$W$14+G9*A_MeasureExpiration!$X$14+F9*A_MeasureExpiration!$Y$14 -> 379819230.1 | AA11: =AA9*A_MeasureExpiration!$E$14+Z9*A_MeasureExpiration!$F$14+Y9*A_MeasureExpiration!$G$14+X9*A_MeasureExpiration!$H$14+W9*A_MeasureExpiration!$I$14+V9*A_MeasureExpiration!$J$14+U9*A_MeasureExpiration!$K$14+T9*A_MeasureExpiration!$L$14+S9*A_MeasureExpiration!$M$14+R9*A_MeasureExpiration!$N$14+Q9*A_MeasureExpiration!$O$14+P9*A_MeasureExpiration!$P$14+O9*A_MeasureExpiration!$Q$14+N9*A_MeasureExpiration!$R$14+M9*A_MeasureExpiration!$S$14+L9*A_MeasureExpiration!$T$14+K9*A_MeasureExpiration!$U$14+J9*A_MeasureExpiration!$V$14+I9*A_MeasureExpiration!$W$14+H9*A_MeasureExpiration!$X$14+G9*A_MeasureExpiration!$Y$14+F9*A_MeasureExpiration!$Z$14 -> 379819231.1 | AB11: =AB9*A_MeasureExpiration!$E$14+AA9*A_MeasureExpiration!$F$14+Z9*A_MeasureExpiration!$G$14+Y9*A_MeasureExpiration!$H$14+X9*A_MeasureExpiration!$I$14+W9*A_MeasureExpiration!$J$14+V9*A_MeasureExpiration!$K$14+U9*A_MeasureExpiration!$L$14+T9*A_MeasureExpiration!$M$14+S9*A_MeasureExpiration!$N$14+R9*A_MeasureExpiration!$O$14+Q9*A_MeasureExpiration!$P$14+P9*A_MeasureExpiration!$Q$14+O9*A_MeasureExpiration!$R$14+N9*A_MeasureExpiration!$S$14+M9*A_MeasureExpiration!$T$14+L9*A_MeasureExpiration!$U$14+K9*A_MeasureExpiration!$V$14+J9*A_MeasureExpiration!$W$14+I9*A_MeasureExpiration!$X$14+H9*A_MeasureExpiration!$Y$14+G9*A_MeasureExpiration!$Z$14+F9*A_MeasureExpiration!$AA$14 -> 379819232.1 | AC11: =AC9*A_MeasureExpiration!$E$14+AB9*A_MeasureExpiration!$F$14+AA9*A_MeasureExpiration!$G$14+Z9*A_MeasureExpiration!$H$14+Y9*A_MeasureExpiration!$I$14+X9*A_MeasureExpiration!$J$14+W9*A_MeasureExpiration!$K$14+V9*A_MeasureExpiration!$L$14+U9*A_MeasureExpiration!$M$14+T9*A_MeasureExpiration!$N$14+S9*A_MeasureExpiration!$O$14+R9*A_MeasureExpiration!$P$14+Q9*A_MeasureExpiration!$Q$14+P9*A_MeasureExpiration!$R$14+O9*A_MeasureExpiration!$S$14+N9*A_MeasureExpiration!$T$14+M9*A_MeasureExpiration!$U$14+L9*A_MeasureExpiration!$V$14+K9*A_MeasureExpiration!$W$14+J9*A_MeasureExpiration!$X$14+I9*A_MeasureExpiration!$Y$14+H9*A_MeasureExpiration!$Z$14+G9*A_MeasureExpiration!$AA$14+F9*A_MeasureExpiration!$AB$14 -> 376487428.1 | AD11: =AD9*A_MeasureExpiration!$E$14+AC9*A_MeasureExpiration!$F$14+AB9*A_MeasureExpiration!$G$14+AA9*A_MeasureExpiration!$H$14+Z9*A_MeasureExpiration!$I$14+Y9*A_MeasureExpiration!$J$14+X9*A_MeasureExpiration!$K$14+W9*A_MeasureExpiration!$L$14+V9*A_MeasureExpiration!$M$14+U9*A_MeasureExpiration!$N$14+T9*A_MeasureExpiration!$O$14+S9*A_MeasureExpiration!$P$14+R9*A_MeasureExpiration!$Q$14+Q9*A_MeasureExpiration!$R$14+P9*A_MeasureExpiration!$S$14+O9*A_MeasureExpiration!$T$14+N9*A_MeasureExpiration!$U$14+M9*A_MeasureExpiration!$V$14+L9*A_MeasureExpiration!$W$14+K9*A_MeasureExpiration!$X$14+J9*A_MeasureExpiration!$Y$14+I9*A_MeasureExpiration!$Z$14+H9*A_MeasureExpiration!$AA$14+G9*A_MeasureExpiration!$AB$14+F9*A_MeasureExpiration!$AC$14 -> 370916217.1 | AE11: =AE9*A_MeasureExpiration!$E$14+AD9*A_MeasureExpiration!$F$14+AC9*A_MeasureExpiration!$G$14+AB9*A_MeasureExpiration!$H$14+AA9*A_MeasureExpiration!$I$14+Z9*A_MeasureExpiration!$J$14+Y9*A_MeasureExpiration!$K$14+X9*A_MeasureExpiration!$L$14+W9*A_MeasureExpiration!$M$14+V9*A_MeasureExpiration!$N$14+U9*A_MeasureExpiration!$O$14+T9*A_MeasureExpiration!$P$14+S9*A_MeasureExpiration!$Q$14+R9*A_MeasureExpiration!$R$14+Q9*A_MeasureExpiration!$S$14+P9*A_MeasureExpiration!$T$14+O9*A_MeasureExpiration!$U$14+N9*A_MeasureExpiration!$V$14+M9*A_MeasureExpiration!$W$14+L9*A_MeasureExpiration!$X$14+K9*A_MeasureExpiration!$Y$14+J9*A_MeasureExpiration!$Z$14+I9*A_MeasureExpiration!$AA$14+H9*A_MeasureExpiration!$AB$14+G9*A_MeasureExpiration!$AC$14+F9*A_MeasureExpiration!$AD$14 -> 553290718.5 | AF11: =AF9*A_MeasureExpiration!$E$14+AE9*A_MeasureExpiration!$F$14+AD9*A_MeasureExpiration!$G$14+AC9*A_MeasureExpiration!$H$14+AB9*A_MeasureExpiration!$I$14+AA9*A_MeasureExpiration!$J$14+Z9*A_MeasureExpiration!$K$14+Y9*A_MeasureExpiration!$L$14+X9*A_MeasureExpiration!$M$14+W9*A_MeasureExpiration!$N$14+V9*A_MeasureExpiration!$O$14+U9*A_MeasureExpiration!$P$14+T9*A_MeasureExpiration!$Q$14+S9*A_MeasureExpiration!$R$14+R9*A_MeasureExpiration!$S$14+Q9*A_MeasureExpiration!$T$14+P9*A_MeasureExpiration!$U$14+O9*A_MeasureExpiration!$V$14+N9*A_MeasureExpiration!$W$14+M9*A_MeasureExpiration!$X$14+L9*A_MeasureExpiration!$Y$14+K9*A_MeasureExpiration!$Z$14+J9*A_MeasureExpiration!$AA$14+I9*A_MeasureExpiration!$AB$14+H9*A_MeasureExpiration!$AC$14+G9*A_MeasureExpiration!$AD$14+F9*A_MeasureExpiration!$AE$14 -> 743603956.7 | AG11: =AG9*A_MeasureExpiration!$E$14+AF9*A_MeasureExpiration!$F$14+AE9*A_MeasureExpiration!$G$14+AD9*A_MeasureExpiration!$H$14+AC9*A_MeasureExpiration!$I$14+AB9*A_MeasureExpiration!$J$14+AA9*A_MeasureExpiration!$K$14+Z9*A_MeasureExpiration!$L$14+Y9*A_MeasureExpiration!$M$14+X9*A_MeasureExpiration!$N$14+W9*A_MeasureExpiration!$O$14+V9*A_MeasureExpiration!$P$14+U9*A_MeasureExpiration!$Q$14+T9*A_MeasureExpiration!$R$14+S9*A_MeasureExpiration!$S$14+R9*A_MeasureExpiration!$T$14+Q9*A_MeasureExpiration!$U$14+P9*A_MeasureExpiration!$V$14+O9*A_MeasureExpiration!$W$14+N9*A_MeasureExpiration!$X$14+M9*A_MeasureExpiration!$Y$14+L9*A_MeasureExpiration!$Z$14+K9*A_MeasureExpiration!$AA$14+J9*A_MeasureExpiration!$AB$14+I9*A_MeasureExpiration!$AC$14+H9*A_MeasureExpiration!$AD$14+G9*A_MeasureExpiration!$AE$14+F9*A_MeasureExpiration!$AF$14 -> 945551573.8 | AH11: =AH9*A_MeasureExpiration!$E$14+AG9*A_MeasureExpiration!$F$14+AF9*A_MeasureExpiration!$G$14+AE9*A_MeasureExpiration!$H$14+AD9*A_MeasureExpiration!$I$14+AC9*A_MeasureExpiration!$J$14+AB9*A_MeasureExpiration!$K$14+AA9*A_MeasureExpiration!$L$14+Z9*A_MeasureExpiration!$M$14+Y9*A_MeasureExpiration!$N$14+X9*A_MeasureExpiration!$O$14+W9*A_MeasureExpiration!$P$14+V9*A_MeasureExpiration!$Q$14+U9*A_MeasureExpiration!$R$14+T9*A_MeasureExpiration!$S$14+S9*A_MeasureExpiration!$T$14+R9*A_MeasureExpiration!$U$14+Q9*A_MeasureExpiration!$V$14+P9*A_MeasureExpiration!$W$14+O9*A_MeasureExpiration!$X$14+N9*A_MeasureExpiration!$Y$14+M9*A_MeasureExpiration!$Z$14+L9*A_MeasureExpiration!$AA$14+K9*A_MeasureExpiration!$AB$14+J9*A_MeasureExpiration!$AC$14+I9*A_MeasureExpiration!$AD$14+H9*A_MeasureExpiration!$AE$14+G9*A_MeasureExpiration!$AF$14+F9*A_MeasureExpiration!$AG$14 -> 940304819.7 | AI11: =AI9*A_MeasureExpiration!$E$14+AH9*A_MeasureExpiration!$F$14+AG9*A_MeasureExpiration!$G$14+AF9*A_MeasureExpiration!$H$14+AE9*A_MeasureExpiration!$I$14+AD9*A_MeasureExpiration!$J$14+AC9*A_MeasureExpiration!$K$14+AB9*A_MeasureExpiration!$L$14+AA9*A_MeasureExpiration!$M$14+Z9*A_MeasureExpiration!$N$14+Y9*A_MeasureExpiration!$O$14+X9*A_MeasureExpiration!$P$14+W9*A_MeasureExpiration!$Q$14+V9*A_MeasureExpiration!$R$14+U9*A_MeasureExpiration!$S$14+T9*A_MeasureExpiration!$T$14+S9*A_MeasureExpiration!$U$14+R9*A_MeasureExpiration!$V$14+Q9*A_MeasureExpiration!$W$14+P9*A_MeasureExpiration!$X$14+O9*A_MeasureExpiration!$Y$14+N9*A_MeasureExpiration!$Z$14+M9*A_MeasureExpiration!$AA$14+L9*A_MeasureExpiration!$AB$14+K9*A_MeasureExpiration!$AC$14+J9*A_MeasureExpiration!$AD$14+I9*A_MeasureExpiration!$AE$14+H9*A_MeasureExpiration!$AF$14+G9*A_MeasureExpiration!$AG$14+F9*A_MeasureExpiration!$AH$14 -> 935836574.5 | AJ11: =AJ9*A_MeasureExpiration!$E$14+AI9*A_MeasureExpiration!$F$14+AH9*A_MeasureExpiration!$G$14+AG9*A_MeasureExpiration!$H$14+AF9*A_MeasureExpiration!$I$14+AE9*A_MeasureExpiration!$J$14+AD9*A_MeasureExpiration!$K$14+AC9*A_MeasureExpiration!$L$14+AB9*A_MeasureExpiration!$M$14+AA9*A_MeasureExpiration!$N$14+Z9*A_MeasureExpiration!$O$14+Y9*A_MeasureExpiration!$P$14+X9*A_MeasureExpiration!$Q$14+W9*A_MeasureExpiration!$R$14+V9*A_MeasureExpiration!$S$14+U9*A_MeasureExpiration!$T$14+T9*A_MeasureExpiration!$U$14+S9*A_MeasureExpiration!$V$14+R9*A_MeasureExpiration!$W$14+Q9*A_MeasureExpiration!$X$14+P9*A_MeasureExpiration!$Y$14+O9*A_MeasureExpiration!$Z$14+N9*A_MeasureExpiration!$AA$14+M9*A_MeasureExpiration!$AB$14+L9*A_MeasureExpiration!$AC$14+K9*A_MeasureExpiration!$AD$14+J9*A_MeasureExpiration!$AE$14+I9*A_MeasureExpiration!$AF$14+H9*A_MeasureExpiration!$AG$14+G9*A_MeasureExpiration!$AH$14+F9*A_MeasureExpiration!$AI$14 -> 932208782 | AK11: =AK9*A_MeasureExpiration!$E$14+AJ9*A_MeasureExpiration!$F$14+AI9*A_MeasureExpiration!$G$14+AH9*A_MeasureExpiration!$H$14+AG9*A_MeasureExpiration!$I$14+AF9*A_MeasureExpiration!$J$14+AE9*A_MeasureExpiration!$K$14+AD9*A_MeasureExpiration!$L$14+AC9*A_MeasureExpiration!$M$14+AB9*A_MeasureExpiration!$N$14+AA9*A_MeasureExpiration!$O$14+Z9*A_MeasureExpiration!$P$14+Y9*A_MeasureExpiration!$Q$14+X9*A_MeasureExpiration!$R$14+W9*A_MeasureExpiration!$S$14+V9*A_MeasureExpiration!$T$14+U9*A_MeasureExpiration!$U$14+T9*A_MeasureExpiration!$V$14+S9*A_MeasureExpiration!$W$14+R9*A_MeasureExpiration!$X$14+Q9*A_MeasureExpiration!$Y$14+P9*A_MeasureExpiration!$Z$14+O9*A_MeasureExpiration!$AA$14+N9*A_MeasureExpiration!$AB$14+M9*A_MeasureExpiration!$AC$14+L9*A_MeasureExpiration!$AD$14+K9*A_MeasureExpiration!$AE$14+J9*A_MeasureExpiration!$AF$14+I9*A_MeasureExpiration!$AG$14+H9*A_MeasureExpiration!$AH$14+G9*A_MeasureExpiration!$AI$14+F9*A_MeasureExpiration!$AJ$14 -> 928467893.5 | AL11: =AL9*A_MeasureExpiration!$E$14+AK9*A_MeasureExpiration!$F$14+AJ9*A_MeasureExpiration!$G$14+AI9*A_MeasureExpiration!$H$14+AH9*A_MeasureExpiration!$I$14+AG9*A_MeasureExpiration!$J$14+AF9*A_MeasureExpiration!$K$14+AE9*A_MeasureExpiration!$L$14+AD9*A_MeasureExpiration!$M$14+AC9*A_MeasureExpiration!$N$14+AB9*A_MeasureExpiration!$O$14+AA9*A_MeasureExpiration!$P$14+Z9*A_MeasureExpiration!$Q$14+Y9*A_MeasureExpiration!$R$14+X9*A_MeasureExpiration!$S$14+W9*A_MeasureExpiration!$T$14+V9*A_MeasureExpiration!$U$14+U9*A_MeasureExpiration!$V$14+T9*A_MeasureExpiration!$W$14+S9*A_MeasureExpiration!$X$14+R9*A_MeasureExpiration!$Y$14+Q9*A_MeasureExpiration!$Z$14+P9*A_MeasureExpiration!$AA$14+O9*A_MeasureExpiration!$AB$14+N9*A_MeasureExpiration!$AC$14+M9*A_MeasureExpiration!$AD$14+L9*A_MeasureExpiration!$AE$14+K9*A_MeasureExpiration!$AF$14+J9*A_MeasureExpiration!$AG$14+I9*A_MeasureExpiration!$AH$14+H9*A_MeasureExpiration!$AI$14+G9*A_MeasureExpiration!$AJ$14+F9*A_MeasureExpiration!$AK$14 -> 925102107.5 | AM11: =AM9*A_MeasureExpiration!$E$14+AL9*A_MeasureExpiration!$F$14+AK9*A_MeasureExpiration!$G$14+AJ9*A_MeasureExpiration!$H$14+AI9*A_MeasureExpiration!$I$14+AH9*A_MeasureExpiration!$J$14+AG9*A_MeasureExpiration!$K$14+AF9*A_MeasureExpiration!$L$14+AE9*A_MeasureExpiration!$M$14+AD9*A_MeasureExpiration!$N$14+AC9*A_MeasureExpiration!$O$14+AB9*A_MeasureExpiration!$P$14+AA9*A_MeasureExpiration!$Q$14+Z9*A_MeasureExpiration!$R$14+Y9*A_MeasureExpiration!$S$14+X9*A_MeasureExpiration!$T$14+W9*A_MeasureExpiration!$U$14+V9*A_MeasureExpiration!$V$14+U9*A_MeasureExpiration!$W$14+T9*A_MeasureExpiration!$X$14+S9*A_MeasureExpiration!$Y$14+R9*A_MeasureExpiration!$Z$14+Q9*A_MeasureExpiration!$AA$14+P9*A_MeasureExpiration!$AB$14+O9*A_MeasureExpiration!$AC$14+N9*A_MeasureExpiration!$AD$14+M9*A_MeasureExpiration!$AE$14+L9*A_MeasureExpiration!$AF$14+K9*A_MeasureExpiration!$AG$14+J9*A_MeasureExpiration!$AH$14+I9*A_MeasureExpiration!$AI$14+H9*A_MeasureExpiration!$AJ$14+G9*A_MeasureExpiration!$AK$14+F9*A_MeasureExpiration!$AL$14 -> 922128140.9 | AN11: =AN9*A_MeasureExpiration!$E$14+AM9*A_MeasureExpiration!$F$14+AL9*A_MeasureExpiration!$G$14+AK9*A_MeasureExpiration!$H$14+AJ9*A_MeasureExpiration!$I$14+AI9*A_MeasureExpiration!$J$14+AH9*A_MeasureExpiration!$K$14+AG9*A_MeasureExpiration!$L$14+AF9*A_MeasureExpiration!$M$14+AE9*A_MeasureExpiration!$N$14+AD9*A_MeasureExpiration!$O$14+AC9*A_MeasureExpiration!$P$14+AB9*A_MeasureExpiration!$Q$14+AA9*A_MeasureExpiration!$R$14+Z9*A_MeasureExpiration!$S$14+Y9*A_MeasureExpiration!$T$14+X9*A_MeasureExpiration!$U$14+W9*A_MeasureExpiration!$V$14+V9*A_MeasureExpiration!$W$14+U9*A_MeasureExpiration!$X$14+T9*A_MeasureExpiration!$Y$14+S9*A_MeasureExpiration!$Z$14+R9*A_MeasureExpiration!$AA$14+Q9*A_MeasureExpiration!$AB$14+P9*A_MeasureExpiration!$AC$14+O9*A_MeasureExpiration!$AD$14+N9*A_MeasureExpiration!$AE$14+M9*A_MeasureExpiration!$AF$14+L9*A_MeasureExpiration!$AG$14+K9*A_MeasureExpiration!$AH$14+J9*A_MeasureExpiration!$AI$14+I9*A_MeasureExpiration!$AJ$14+H9*A_MeasureExpiration!$AK$14+G9*A_MeasureExpiration!$AL$14+F9*A_MeasureExpiration!$AM$14 -> 919190012.6
C12: Net cumulative savings | D12: therms | F12: =SUM($F9:F$9)-SUM($F11:F$11) -> 2011 | G12: =SUM($F9:G$9)-SUM($F11:G$11) -> 176018900 | H12: =SUM($F9:H$9)-SUM($F11:H$11) -> 424037510 | I12: =SUM($F9:I$9)-SUM($F11:I$11) -> 751029248 | J12: =SUM($F9:J$9)-SUM($F11:J$11) -> 1062478204 | K12: =SUM($F9:K$9)-SUM($F11:K$11) -> 1407089646 | L12: =SUM($F9:L$9)-SUM($F11:L$11) -> 1786908875 | M12: =SUM($F9:M$9)-SUM($F11:M$11) -> 2166728105 | N12: =SUM($F9:N$9)-SUM($F11:N$11) -> 2546547337 | O12: =SUM($F9:O$9)-SUM($F11:O$11) -> 2926366569 | P12: =SUM($F9:P$9)-SUM($F11:P$11) -> 3302853997 | Q12: =SUM($F9:Q$9)-SUM($F11:Q$11) -> 3673770214 | R12: =SUM($F9:R$9)-SUM($F11:R$11) -> 4227060932 | S12: =SUM($F9:S$9)-SUM($F11:S$11) -> 4970662878 | T12: =SUM($F9:T$9)-SUM($F11:T$11) -> 5740197563 | U12: =SUM($F9:U$9)-SUM($F11:U$11) -> 6432483772 | V12: =SUM($F9:V$9)-SUM($F11:V$11) -> 7041328609 | W12: =SUM($F9:W$9)-SUM($F11:W$11) -> 7662088435 | X12: =SUM($F9:X$9)-SUM($F11:X$11) -> 8245944886 | Y12: =SUM($F9:Y$9)-SUM($F11:Y$11) -> 8791227765 | Z12: =SUM($F9:Z$9)-SUM($F11:Z$11) -> 9333536675 | AA12: =SUM($F9:AA$9)-SUM($F11:AA$11) -> 9872907457 | AB12: =SUM($F9:AB$9)-SUM($F11:AB$11) -> 1.04093756e+10 | AC12: =SUM($F9:AC$9)-SUM($F11:AC$11) -> 1.094630808e+10 | AD12: =SUM($F9:AD$9)-SUM($F11:AD$11) -> 1.148594578e+10 | AE12: =SUM($F9:AE$9)-SUM($F11:AE$11) -> 1.184032212e+10 | AF12: =SUM($F9:AF$9)-SUM($F11:AF$11) -> 1.200335713e+10 | AG12: =SUM($F9:AG$9)-SUM($F11:AG$11) -> 1.196533604e+10 | AH12: =SUM($F9:AH$9)-SUM($F11:AH$11) -> 1.193546999e+10 | AI12: =SUM($F9:AI$9)-SUM($F11:AI$11) -> 1.191290514e+10 | AJ12: =SUM($F9:AJ$9)-SUM($F11:AJ$11) -> 1.189673426e+10 | AK12: =SUM($F9:AK$9)-SUM($F11:AK$11) -> 1.188701276e+10 | AL12: =SUM($F9:AL$9)-SUM($F11:AL$11) -> 1.18833073e+10 | AM12: =SUM($F9:AM$9)-SUM($F11:AM$11) -> 1.188517219e+10 | AN12: =SUM($F9:AN$9)-SUM($F11:AN$11) -> 1.189252218e+10
C13: Net cumulative savings | D13: % | F13: =F12/F8 -> 2.46438382e-08 | G13: =G12/G8 -> 0.002403745497 | H13: 0.004966352942 | I13: 0.00839572797 | J13: 0.01294124827 | K13: =K12/K8 -> 0.01787288459 | L13: 0.02223348975 | M13: 0.02395999258 | N13: 0.02797338425 | O13: 0.03475605256 | P13: 0.03826187078 | Q13: =Q12/Q8 -> 0.04013238457 | R13: 0.04503981423 | S13: 0.0499434505 | T13: 0.05753391267 | U13: 0.06431445659 | V13: 0.0702291405 | W13: 0.0762329518 | X13: 0.08184060651 | Y13: 0.08703837593 | Z13: 0.09218076767 | AA13: 0.09726844743 | AB13: 0.1023020726 | AC13: 0.1073149569 | AD13: 0.1123290758 | AE13: 0.1155105833 | AF13: 0.1168137113 | AG13: 0.1161579209 | AH13: 0.1155836196 | AI13: 0.1150819692 | AJ13: =AJ12/AJ8 -> 0.1146437008 | AK13: 0.1142688878 | AL13: 0.1139529139 | AM13: 0.1136910874 | AN13: 0.1134822003
C14: Sales after EE | D14: therms | E14: =E8-E12 -> 8.176751999e+10 | F14: =F8-F12 -> 8.160254643e+10 | G14: 7.305090976e+10 | H14: 84958035602 | I14: 8.870270849e+10 | J14: 8.103765476e+10 | K14: 7.732052923e+10 | L14: 7.858323974e+10 | M14: 8.826435607e+10 | N14: 8.848810595e+10 | O14: =O8-O12 -> 8.127095599e+10 | P14: 8.301948021e+10 | Q14: =Q8-Q12 -> 8.786751878e+10 | R14: 8.96245902e+10 | S14: 9.455515738e+10 | T14: 9.403048197e+10 | U14: 9.358365745e+10 | V14: 9.32208782e+10 | W14: 9.284678935e+10 | X14: 9.251021075e+10 | Y14: 9.221281409e+10 | Z14: 9.191900126e+10 | AA14: 9.162873792e+10 | AB14: 9.134199009e+10 | AC14: 9.10553923e+10 | AD14: 9.076670518e+10 | AE14: 9.066389683e+10 | AF14: 9.075304872e+10 | AG14: 9.104387715e+10 | AH14: 9.132717252e+10 | AI14: 9.16037902e+10 | AJ14: =AJ8-AJ12 -> 9.187463893e+10 | AK14: 9.213966487e+10 | AL14: 9.239930288e+10 | AM14: 9.26540002e+10 | AN14: 9.290384362e+10
C16: Costs | D16: View charts | E16: 2010 | F16: 2011 | G16: 2012 | H16: 2013 | I16: 2014 | J16: 2015 | K16: 2016 | L16: 2017 | M16: 2018 | N16: 2019 | O16: 2020 | P16: 2021 | Q16: 2022 | R16: 2023 | S16: 2024 | T16: 2025 | U16: 2026 | V16: 2027 | W16: 2028 | X16: 2029 | Y16: 2030 | Z16: 2031 | AA16: 2032 | AB16: 2033 | AC16: 2034 | AD16: 2035 | AE16: 2036 | AF16: 2037 | AG16: 2038 | AH16: 2039 | AI16: 2040 | AJ16: 2041 | AK16: 2042 | AL16: 2043 | AM16: 2044 | AN16: 2045
C17: Total annual costs | D17: 2022 $ M | F17: =SUM(F18:F19) -> 0 | G17: =SUM(G18:G19) -> 2015.085674 | H17: =SUM(H18:H19) -> 2713.449479 | I17: =SUM(I18:I19) -> 3217.244904 | J17: 3124.317265 | K17: 3202.499775 | L17: 3384.830671 | M17: 3384.830674 | N17: 3384.830677 | O17: =SUM(O18:O19) -> 3384.83068 | P17: 3276.706737 | Q17: 3200.516359 | R17: 6943.119611 | S17: 9331.31723 | T17: 11865.51203 | U17: 11799.6717 | V17: 11743.60071 | W17: 11698.07636 | X17: 11651.1328 | Y17: 11608.89632 | Z17: 11571.57669 | AA17: 11534.70678 | AB17: 11498.28229 | AC17: 11462.29896 | AD17: 11426.33445 | AE17: 11390.10776 | AF17: 11377.20658 | AG17: 11388.39404 | AH17: 11424.88944 | AI17: 11460.43954 | AJ17: =SUM(AJ18:AJ19) -> 11495.15166 | AK17: 11529.13985 | AL17: 11562.39736 | AM17: 11594.97874 | AN17: 11626.94013
C18: Annual utility costs | D18: 2022 $ M | F18: =S4or5_Costs!F21*S4or5_Costs!$D$16*F9*10^-6 -> 0 | G18: =S4or5_Costs!G21*S4or5_Costs!$D$16*G9*10^-6 -> 806.0342695 | H18: =S4or5_Costs!H21*S4or5_Costs!$D$16*H9*10^-6 -> 1085.379792 | I18: =S4or5_Costs!I21*S4or5_Costs!$D$16*I9*10^-6 -> 1286.897962 | J18: =S4or5_Costs!J21*S4or5_Costs!$D$16*J9*10^-6 -> 1249.726906 | K18: =S4or5_Costs!K21*S4or5_Costs!$D$16*K9*10^-6 -> 1280.99991 | L18: =S4or5_Costs!L21*S4or5_Costs!$D$16*L9*10^-6 -> 1353.932269 | M18: =S4or5_Costs!M21*S4or5_Costs!$D$16*M9*10^-6 -> 1353.93227 | N18: =S4or5_Costs!N21*S4or5_Costs!$D$16*N9*10^-6 -> 1353.932271 | O18: =S4or5_Costs!O21*S4or5_Costs!$D$16*O9*10^-6 -> 1353.932272 | P18: =S4or5_Costs!P21*S4or5_Costs!$D$16*P9*10^-6 -> 1310.682695 | Q18: =S4or5_Costs!Q21*S4or5_Costs!$D$16*Q9*10^-6 -> 1280.206544 | R18: =S4or5_Costs!R21*S4or5_Costs!$D$16*R9*10^-6 -> 2777.247844 | S18: =S4or5_Costs!S21*S4or5_Costs!$D$16*S9*10^-6 -> 3732.526892 | T18: =S4or5_Costs!T21*S4or5_Costs!$D$16*T9*10^-6 -> 4746.204811 | U18: =S4or5_Costs!U21*S4or5_Costs!$D$16*U9*10^-6 -> 4719.868681 | V18: =S4or5_Costs!V21*S4or5_Costs!$D$16*V9*10^-6 -> 4697.440283 | W18: =S4or5_Costs!W21*S4or5_Costs!$D$16*W9*10^-6 -> 4679.230545 | X18: =S4or5_Costs!X21*S4or5_Costs!$D$16*X9*10^-6 -> 4660.453121 | Y18: =S4or5_Costs!Y21*S4or5_Costs!$D$16*Y9*10^-6 -> 4643.558527 | Z18: =S4or5_Costs!Z21*S4or5_Costs!$D$16*Z9*10^-6 -> 4628.630674 | AA18: =S4or5_Costs!AA21*S4or5_Costs!$D$16*AA9*10^-6 -> 4613.882712 | AB18: =S4or5_Costs!AB21*S4or5_Costs!$D$16*AB9*10^-6 -> 4599.312918 | AC18: =S4or5_Costs!AC21*S4or5_Costs!$D$16*AC9*10^-6 -> 4584.919584 | AD18: =S4or5_Costs!AD21*S4or5_Costs!$D$16*AD9*10^-6 -> 4570.533782 | AE18: =S4or5_Costs!AE21*S4or5_Costs!$D$16*AE9*10^-6 -> 4556.043105 | AF18: =S4or5_Costs!AF21*S4or5_Costs!$D$16*AF9*10^-6 -> 4550.88263 | AG18: =S4or5_Costs!AG21*S4or5_Costs!$D$16*AG9*10^-6 -> 4555.357618 | AH18: =S4or5_Costs!AH21*S4or5_Costs!$D$16*AH9*10^-6 -> 4569.955778 | AI18: =S4or5_Costs!AI21*S4or5_Costs!$D$16*AI9*10^-6 -> 4584.175815 | AJ18: =S4or5_Costs!AJ21*S4or5_Costs!$D$16*AJ9*10^-6 -> 4598.060664 | AK18: =S4or5_Costs!AK21*S4or5_Costs!$D$16*AK9*10^-6 -> 4611.655942 | AL18: =S4or5_Costs!AL21*S4or5_Costs!$D$16*AL9*10^-6 -> 4624.958943 | AM18: =S4or5_Costs!AM21*S4or5_Costs!$D$16*AM9*10^-6 -> 4637.991496 | AN18: =S4or5_Costs!AN21*S4or5_Costs!$D$16*AN9*10^-6 -> 4650.776052
C19: Annual participant costs | D19: 2022 $ M | F19: =S4or5_Costs!F21*(1-S4or5_Costs!$D$16)*F9*10^-6 -> 0 | G19: =S4or5_Costs!G21*(1-S4or5_Costs!$D$16)*G9*10^-6 -> 1209.051404 | H19: =S4or5_Costs!H21*(1-S4or5_Costs!$D$16)*H9*10^-6 -> 1628.069688 | I19: =S4or5_Costs!I21*(1-S4or5_Costs!$D$16)*I9*10^-6 -> 1930.346943 | J19: =S4or5_Costs!J21*(1-S4or5_Costs!$D$16)*J9*10^-6 -> 1874.590359 | K19: =S4or5_Costs!K21*(1-S4or5_Costs!$D$16)*K9*10^-6 -> 1921.499865 | L19: =S4or5_Costs!L21*(1-S4or5_Costs!$D$16)*L9*10^-6 -> 2030.898403 | M19: =S4or5_Costs!M21*(1-S4or5_Costs!$D$16)*M9*10^-6 -> 2030.898404 | N19: =S4or5_Costs!N21*(1-S4or5_Costs!$D$16)*N9*10^-6 -> 2030.898406 | O19: =S4or5_Costs!O21*(1-S4or5_Costs!$D$16)*O9*10^-6 -> 2030.898408 | P19: =S4or5_Costs!P21*(1-S4or5_Costs!$D$16)*P9*10^-6 -> 1966.024042 | Q19: =S4or5_Costs!Q21*(1-S4or5_Costs!$D$16)*Q9*10^-6 -> 1920.309815 | R19: =S4or5_Costs!R21*(1-S4or5_Costs!$D$16)*R9*10^-6 -> 4165.871767 | S19: =S4or5_Costs!S21*(1-S4or5_Costs!$D$16)*S9*10^-6 -> 5598.790338 | T19: =S4or5_Costs!T21*(1-S4or5_Costs!$D$16)*T9*10^-6 -> 7119.307217 | U19: =S4or5_Costs!U21*(1-S4or5_Costs!$D$16)*U9*10^-6 -> 7079.803021 | V19: =S4or5_Costs!V21*(1-S4or5_Costs!$D$16)*V9*10^-6 -> 7046.160425 | W19: =S4or5_Costs!W21*(1-S4or5_Costs!$D$16)*W9*10^-6 -> 7018.845818 | X19: =S4or5_Costs!X21*(1-S4or5_Costs!$D$16)*X9*10^-6 -> 6990.679682 | Y19: =S4or5_Costs!Y21*(1-S4or5_Costs!$D$16)*Y9*10^-6 -> 6965.337791 | Z19: =S4or5_Costs!Z21*(1-S4or5_Costs!$D$16)*Z9*10^-6 -> 6942.946012 | AA19: =S4or5_Costs!AA21*(1-S4or5_Costs!$D$16)*AA9*10^-6 -> 6920.824069 | AB19: =S4or5_Costs!AB21*(1-S4or5_Costs!$D$16)*AB9*10^-6 -> 6898.969376 | AC19: =S4or5_Costs!AC21*(1-S4or5_Costs!$D$16)*AC9*10^-6 -> 6877.379376 | AD19: =S4or5_Costs!AD21*(1-S4or5_Costs!$D$16)*AD9*10^-6 -> 6855.800673 | AE19: =S4or5_Costs!AE21*(1-S4or5_Costs!$D$16)*AE9*10^-6 -> 6834.064657 | AF19: =S4or5_Costs!AF21*(1-S4or5_Costs!$D$16)*AF9*10^-6 -> 6826.323945 | AG19: =S4or5_Costs!AG21*(1-S4or5_Costs!$D$16)*AG9*10^-6 -> 6833.036427 | AH19: =S4or5_Costs!AH21*(1-S4or5_Costs!$D$16)*AH9*10^-6 -> 6854.933667 | AI19: =S4or5_Costs!AI21*(1-S4or5_Costs!$D$16)*AI9*10^-6 -> 6876.263722 | AJ19: =S4or5_Costs!AJ21*(1-S4or5_Costs!$D$16)*AJ9*10^-6 -> 6897.090997 | AK19: =S4or5_Costs!AK21*(1-S4or5_Costs!$D$16)*AK9*10^-6 -> 6917.483913 | AL19: =S4or5_Costs!AL21*(1-S4or5_Costs!$D$16)*AL9*10^-6 -> 6937.438414 | AM19: =S4or5_Costs!AM21*(1-S4or5_Costs!$D$16)*AM9*10^-6 -> 6956.987245 | AN19: =S4or5_Costs!AN21*(1-S4or5_Costs!$D$16)*AN9*10^-6 -> 6976.164078
C20: First-year utility cost of saved energy | D20: 2022 $/therms | F20: =S4or5_Costs!F22 -> 0 | G20: =S4or5_Costs!G22 -> 4.579300737 | H20: =S4or5_Costs!H22 -> 4.376203027 | I20: =S4or5_Costs!I22 -> 3.935567209 | J20: =S4or5_Costs!J22 -> 4.012621919 | K20: =S4or5_Costs!K22 -> 3.71722976 | L20: =S4or5_Costs!L22 -> 3.564675416 | M20: =S4or5_Costs!M22 -> 3.56467541 | N20: =S4or5_Costs!N22 -> 3.564675403 | O20: =S4or5_Costs!O22 -> 3.564675397 | P20: =S4or5_Costs!P22 -> 3.481345184 | Q20: =S4or5_Costs!Q22 -> 3.451470938 | R20: =S4or5_Costs!R22 -> 5.019509187 | S20: =S4or5_Costs!S22 -> 5.019509187 | T20: =S4or5_Costs!T22 -> 5.019509187 | U20: =S4or5_Costs!U22 -> 5.019509187 | V20: =S4or5_Costs!V22 -> 5.019509187 | W20: =S4or5_Costs!W22 -> 5.019509187 | X20: =S4or5_Costs!X22 -> 5.019509187 | Y20: =S4or5_Costs!Y22 -> 5.019509187 | Z20: =S4or5_Costs!Z22 -> 5.019509187 | AA20: =S4or5_Costs!AA22 -> 5.019509187 | AB20: =S4or5_Costs!AB22 -> 5.019509187 | AC20: =S4or5_Costs!AC22 -> 5.019509187 | AD20: =S4or5_Costs!AD22 -> 5.019509187 | AE20: =S4or5_Costs!AE22 -> 5.019509187 | AF20: =S4or5_Costs!AF22 -> 5.019509187 | AG20: =S4or5_Costs!AG22 -> 5.019509187 | AH20: =S4or5_Costs!AH22 -> 5.019509187 | AI20: =S4or5_Costs!AI22 -> 5.019509187 | AJ20: =S4or5_Costs!AJ22 -> 5.019509187 | AK20: =S4or5_Costs!AK22 -> 5.019509187 | AL20: =S4or5_Costs!AL22 -> 5.019509187 | AM20: =S4or5_Costs!AM22 -> 5.019509187 | AN20: =S4or5_Costs!AN22 -> 5.019509187
C21: Levelized utility cost of saved energy | D21: 2022 $/therms | F21: =F53 -> 0 | G21: =G53 -> 0.4305895599 | H21: 0.4114923749 | I21: 0.3700595899 | J21: 0.3773050091 | K21: 0.3495294191 | L21: 0.3351848037 | M21: 0.3351848031 | N21: 0.3351848025 | O21: =O53 -> 0.3351848019 | P21: 0.3273493 | Q21: 0.3245402382 | R21: 0.4719821597 | S21: 0.4719821597 | T21: 0.4719821597 | U21: 0.4719821597 | V21: 0.4719821597 | W21: 0.4719821597 | X21: 0.4719821597 | Y21: 0.4719821597 | Z21: 0.4719821597 | AA21: 0.4719821597 | AB21: 0.4719821597 | AC21: 0.4719821597 | AD21: 0.4719821597 | AE21: 0.4719821597 | AF21: 0.4719821597 | AG21: 0.4719821597 | AH21: 0.4719821597 | AI21: 0.4719821597 | AJ21: =AJ53 -> 0.4719821597 | AK21: 0.4719821597 | AL21: 0.4719821597 | AM21: 0.4719821597 | AN21: =AN53 -> 0.4719821597
C23: Emissions Impacts | D23: View charts | E23: 2010 | F23: 2011 | G23: 2012 | H23: 2013 | I23: 2014 | J23: 2015 | K23: 2016 | L23: 2017 | M23: 2018 | N23: 2019 | O23: 2020 | P23: 2021 | Q23: 2022 | R23: 2023 | S23: 2024 | T23: 2025 | U23: 2026 | V23: 2027 | W23: 2028 | X23: 2029 | Y23: 2030 | Z23: 2031 | AA23: 2032 | AB23: 2033 | AC23: 2034 | AD23: 2035 | AE23: 2036 | AF23: 2037 | AG23: 2038 | AH23: 2039 | AI23: 2040 | AJ23: 2041 | AK23: 2042 | AL23: 2043 | AM23: 2044 | AN23: 2045
C24: Avoided carbon dioxide (CO2) | D24: thousand short tons | F24: =B_Emissions!F12 -> 0.01163548698 | G24: =B_Emissions!G12 -> 1018.431437 | H24: =B_Emissions!H12 -> 2453.447502 | I24: =B_Emissions!I12 -> 4345.395842 | J24: =B_Emissions!J12 -> 6147.414872 | K24: =B_Emissions!K12 -> 8141.309429 | L24: =B_Emissions!L12 -> 10338.91345 | M24: =B_Emissions!M12 -> 12536.51749 | N24: =B_Emissions!N12 -> 14734.12152 | O24: =B_Emissions!O12 -> 16931.72557 | P24: =B_Emissions!P12 -> 19110.05205 | Q24: =B_Emissions!Q12 -> 21256.14396 | R24: =B_Emissions!R12 -> 24457.4403 | S24: =B_Emissions!S12 -> 28759.86236 | T24: =B_Emissions!T12 -> 33212.3292 | U24: =B_Emissions!U12 -> 37217.84246 | V24: =B_Emissions!V12 -> 40740.57054 | W24: =B_Emissions!W12 -> 44332.23781 | X24: =B_Emissions!X12 -> 47710.38507 | Y24: =B_Emissions!Y12 -> 50865.34869 | Z24: =B_Emissions!Z12 -> 54003.10516 | AA24: =B_Emissions!AA12 -> 57123.86185 | AB24: =B_Emissions!AB12 -> 60227.82413 | AC24: =B_Emissions!AC12 -> 63334.47296 | AD24: =B_Emissions!AD12 -> 66456.77406 | AE24: =B_Emissions!AE12 -> 68507.1675 | AF24: =B_Emissions!AF12 -> 69450.47518 | AG24: =B_Emissions!AG12 -> 69230.48818 | AH24: =B_Emissions!AH12 -> 69057.68559 | AI24: =B_Emissions!AI12 -> 68927.12716 | AJ24: =B_Emissions!AJ12 -> 68833.56372 | AK24: =B_Emissions!AK12 -> 68777.31587 | AL24: =B_Emissions!AL12 -> 68755.87638 | AM24: =B_Emissions!AM12 -> 68766.66647 | AN24: =B_Emissions!AN12 -> 68809.19293
C25: Avoided fine particulate matter (PM2.5) | D25: short tons | F25: =B_Emissions!F13 -> 0.0004169382835 | G25: =B_Emissions!G13 -> 36.49379315 | H25: =B_Emissions!H13 -> 87.91520217 | I25: =B_Emissions!I13 -> 155.7100177 | J25: =B_Emissions!J13 -> 220.2823662 | K25: =B_Emissions!K13 -> 291.7302545 | L25: =B_Emissions!L13 -> 370.4777321 | M25: =B_Emissions!M13 -> 449.2252099 | N25: =B_Emissions!N13 -> 527.9726879 | O25: =B_Emissions!O13 -> 606.7201661 | P25: =B_Emissions!P13 -> 684.7768653 | Q25: =B_Emissions!Q13 -> 761.6784918 | R25: =B_Emissions!R13 -> 876.3916108 | S25: =B_Emissions!S13 -> 1030.561735 | T25: =B_Emissions!T13 -> 1190.108463 | U25: =B_Emissions!U13 -> 1333.639355 | V25: =B_Emissions!V13 -> 1459.870444 | W25: =B_Emissions!W13 -> 1588.571855 | X25: =B_Emissions!X13 -> 1709.622132 | Y25: =B_Emissions!Y13 -> 1822.674995 | Z25: =B_Emissions!Z13 -> 1935.111268 | AA25: =B_Emissions!AA13 -> 2046.938383 | AB25: =B_Emissions!AB13 -> 2158.163698 | AC25: =B_Emissions!AC13 -> 2269.485281 | AD25: =B_Emissions!AD13 -> 2381.367737 | AE25: =B_Emissions!AE13 -> 2454.840169 | AF25: =B_Emissions!AF13 -> 2488.642027 | AG25: =B_Emissions!AG13 -> 2480.75916 | AH25: =B_Emissions!AH13 -> 2474.567067 | AI25: =B_Emissions!AI13 -> 2469.888723 | AJ25: =B_Emissions!AJ13 -> 2466.536033 | AK25: =B_Emissions!AK13 -> 2464.520485 | AL25: =B_Emissions!AL13 -> 2463.752237 | AM25: =B_Emissions!AM13 -> 2464.138882 | AN25: =B_Emissions!AN13 -> 2465.662747
C26: Avoided sulfur dioxide (SO2) | D26: short tons | F26: =B_Emissions!F14 -> 0.0005817743491 | G26: =B_Emissions!G14 -> 50.92157184 | H26: =B_Emissions!H14 -> 122.6723751 | I26: =B_Emissions!I14 -> 217.2697921 | J26: =B_Emissions!J14 -> 307.3707436 | K26: =B_Emissions!K14 -> 407.0654714 | L26: =B_Emissions!L14 -> 516.9456727 | M26: =B_Emissions!M14 -> 626.8258743 | N26: =B_Emissions!N14 -> 736.7060761 | O26: =B_Emissions!O14 -> 846.5862783 | P26: =B_Emissions!P14 -> 955.5026027 | Q26: =B_Emissions!Q14 -> 1062.807198 | R26: =B_Emissions!R14 -> 1222.872015 | S26: =B_Emissions!S14 -> 1437.993118 | T26: =B_Emissions!T14 -> 1660.61646 | U26: =B_Emissions!U14 -> 1860.892123 | V26: =B_Emissions!V14 -> 2037.028527 | W26: =B_Emissions!W14 -> 2216.611891 | X26: =B_Emissions!X14 -> 2385.519253 | Y26: =B_Emissions!Y14 -> 2543.267434 | Z26: =B_Emissions!Z14 -> 2700.155258 | AA26: =B_Emissions!AA14 -> 2856.193093 | AB26: =B_Emissions!AB14 -> 3011.391207 | AC26: =B_Emissions!AC14 -> 3166.723648 | AD26: =B_Emissions!AD14 -> 3322.838703 | AE26: =B_Emissions!AE14 -> 3425.358375 | AF26: =B_Emissions!AF14 -> 3472.523759 | AG26: =B_Emissions!AG14 -> 3461.524409 | AH26: =B_Emissions!AH14 -> 3452.884279 | AI26: =B_Emissions!AI14 -> 3446.356358 | AJ26: =B_Emissions!AJ14 -> 3441.678186 | AK26: =B_Emissions!AK14 -> 3438.865793 | AL26: =B_Emissions!AL14 -> 3437.793819 | AM26: =B_Emissions!AM14 -> 3438.333324 | AN26: =B_Emissions!AN14 -> 3440.459646
C27: Avoided nitrogen oxides (NOx) | D27: short tons | F27: =B_Emissions!F15 -> 0.09696239151 | G27: =B_Emissions!G15 -> 8486.92864 | H27: =B_Emissions!H15 -> 20445.39585 | I27: =B_Emissions!I15 -> 36211.63202 | J27: =B_Emissions!J15 -> 51228.45726 | K27: =B_Emissions!K15 -> 67844.24524 | L27: =B_Emissions!L15 -> 86157.61212 | M27: =B_Emissions!M15 -> 104470.979 | N27: =B_Emissions!N15 -> 122784.346 | O27: =B_Emissions!O15 -> 141097.713 | P27: =B_Emissions!P15 -> 159250.4338 | Q27: =B_Emissions!Q15 -> 177134.533 | R27: =B_Emissions!R15 -> 203812.0025 | S27: =B_Emissions!S15 -> 239665.5197 | T27: =B_Emissions!T15 -> 276769.41 | U27: =B_Emissions!U15 -> 310148.6872 | V27: =B_Emissions!V15 -> 339504.7545 | W27: =B_Emissions!W15 -> 369435.3151 | X27: =B_Emissions!X15 -> 397586.5422 | Y27: =B_Emissions!Y15 -> 423877.9057 | Z27: =B_Emissions!Z15 -> 450025.8763 | AA27: =B_Emissions!AA15 -> 476032.1821 | AB27: =B_Emissions!AB15 -> 501898.5344 | AC27: =B_Emissions!AC15 -> 527787.2747 | AD27: =B_Emissions!AD15 -> 553806.4505 | AE27: =B_Emissions!AE15 -> 570893.0625 | AF27: =B_Emissions!AF15 -> 578753.9599 | AG27: =B_Emissions!AG15 -> 576920.7349 | AH27: =B_Emissions!AH15 -> 575480.7132 | AI27: =B_Emissions!AI15 -> 574392.7263 | AJ27: =B_Emissions!AJ15 -> 573613.031 | AK27: =B_Emissions!AK15 -> 573144.2989 | AL27: =B_Emissions!AL15 -> 572965.6365 | AM27: =B_Emissions!AM15 -> 573055.5539 | AN27: =B_Emissions!AN15 -> 573409.9411
C29: Energy Burden Impacts | D29: View charts | E29: 2010 | F29: 2011 | G29: 2012 | H29: 2013 | I29: 2014 | J29: 2015 | K29: 2016 | L29: 2017 | M29: 2018 | N29: 2019 | O29: 2020 | P29: 2021 | Q29: 2022 | R29: 2023 | S29: 2024 | T29: 2025 | U29: 2026 | V29: 2027 | W29: 2028 | X29: 2029 | Y29: 2030 | Z29: 2031 | AA29: 2032 | AB29: 2033 | AC29: 2034 | AD29: 2035 | AE29: 2036 | AF29: 2037 | AG29: 2038 | AH29: 2039 | AI29: 2040 | AJ29: 2041 | AK29: 2042 | AL29: 2043 | AM29: 2044 | AN29: 2045
C30: Net cumulative low-income (LI) savings | D30: therms | R30: =E_Equity!R56 -> 0 | S30: =E_Equity!S56 -> 0 | T30: =E_Equity!T56 -> 0 | U30: =E_Equity!U56 -> 0 | V30: =E_Equity!V56 -> 0 | W30: =E_Equity!W56 -> 0 | X30: =E_Equity!X56 -> 0 | Y30: =E_Equity!Y56 -> 0 | Z30: =E_Equity!Z56 -> 0 | AA30: =E_Equity!AA56 -> 0 | AB30: =E_Equity!AB56 -> 0 | AC30: =E_Equity!AC56 -> 0 | AD30: =E_Equity!AD56 -> 0 | AE30: =E_Equity!AE56 -> 0 | AF30: =E_Equity!AF56 -> 0 | AG30: =E_Equity!AG56 -> 0 | AH30: =E_Equity!AH56 -> 0 | AI30: =E_Equity!AI56 -> 0 | AJ30: =E_Equity!AJ56 -> 0 | AK30: =E_Equity!AK56 -> 0 | AL30: =E_Equity!AL56 -> 0 | AM30: =E_Equity!AM56 -> 0 | AN30: =E_Equity!AN56 -> 0
C31: Annual EE program spending | D31: 2022 $ M | F31: =E_Equity!F57 -> 0 | G31: =E_Equity!G57 -> 0 | H31: =E_Equity!H57 -> 0 | I31: =E_Equity!I57 -> 0 | J31: =E_Equity!J57 -> 0 | K31: =E_Equity!K57 -> 0 | L31: =E_Equity!L57 -> 0 | M31: =E_Equity!M57 -> 0 | N31: =E_Equity!N57 -> 0 | O31: =E_Equity!O57 -> 0 | P31: =E_Equity!P57 -> 0 | Q31: =E_Equity!Q57 -> 0 | R31: =E_Equity!R57 -> 0 | S31: =E_Equity!S57 -> 0 | T31: =E_Equity!T57 -> 0 | U31: =E_Equity!U57 -> 0 | V31: =E_Equity!V57 -> 0 | W31: =E_Equity!W57 -> 0 | X31: =E_Equity!X57 -> 0 | Y31: =E_Equity!Y57 -> 0 | Z31: =E_Equity!Z57 -> 0 | AA31: =E_Equity!AA57 -> 0 | AB31: =E_Equity!AB57 -> 0 | AC31: =E_Equity!AC57 -> 0 | AD31: =E_Equity!AD57 -> 0 | AE31: =E_Equity!AE57 -> 0 | AF31: =E_Equity!AF57 -> 0 | AG31: =E_Equity!AG57 -> 0 | AH31: =E_Equity!AH57 -> 0 | AI31: =E_Equity!AI57 -> 0 | AJ31: =E_Equity!AJ57 -> 0 | AK31: =E_Equity!AK57 -> 0 | AL31: =E_Equity!AL57 -> 0 | AM31: =E_Equity!AM57 -> 0 | AN31: =E_Equity!AN57 -> 0
C32: Annual EE and monetary assistance spending | D32: 2022 $ M | F32: =E_Equity!F59 -> 0 | G32: =E_Equity!G59 -> 0 | H32: =E_Equity!H59 -> 0 | I32: =E_Equity!I59 -> 0 | J32: =E_Equity!J59 -> 0 | K32: =E_Equity!K59 -> 0 | L32: =E_Equity!L59 -> 0 | M32: =E_Equity!M59 -> 0 | N32: =E_Equity!N59 -> 0 | O32: =E_Equity!O59 -> 0 | P32: =E_Equity!P59 -> 0 | Q32: =E_Equity!Q59 -> 0 | R32: =E_Equity!R59 -> 0 | S32: =E_Equity!S59 -> 0 | T32: =E_Equity!T59 -> 0 | U32: =E_Equity!U59 -> 0 | V32: =E_Equity!V59 -> 0 | W32: =E_Equity!W59 -> 0 | X32: =E_Equity!X59 -> 0 | Y32: =E_Equity!Y59 -> 0 | Z32: =E_Equity!Z59 -> 0 | AA32: =E_Equity!AA59 -> 0 | AB32: =E_Equity!AB59 -> 0 | AC32: =E_Equity!AC59 -> 0 | AD32: =E_Equity!AD59 -> 0 | AE32: =E_Equity!AE59 -> 0 | AF32: =E_Equity!AF59 -> 0 | AG32: =E_Equity!AG59 -> 0 | AH32: =E_Equity!AH59 -> 0 | AI32: =E_Equity!AI59 -> 0 | AJ32: =E_Equity!AJ59 -> 0 | AK32: =E_Equity!AK59 -> 0 | AL32: =E_Equity!AL59 -> 0 | AM32: =E_Equity!AM59 -> 0 | AN32: =E_Equity!AN59 -> 0
C33: LI EE program spending rel. to residential | D33: % | F33: =E_Equity!F60 -> 0 | G33: =E_Equity!G60 -> 0 | H33: =E_Equity!H60 -> 0 | I33: =E_Equity!I60 -> 0 | J33: =E_Equity!J60 -> 0 | K33: =E_Equity!K60 -> 0 | L33: =E_Equity!L60 -> 0 | M33: =E_Equity!M60 -> 0 | N33: =E_Equity!N60 -> 0 | O33: =E_Equity!O60 -> 0 | P33: =E_Equity!P60 -> 0 | Q33: =E_Equity!Q60 -> 0 | R33: =E_Equity!R60 -> 0 | S33: =E_Equity!S60 -> 0 | T33: =E_Equity!T60 -> 0 | U33: =E_Equity!U60 -> 0 | V33: =E_Equity!V60 -> 0 | W33: =E_Equity!W60 -> 0 | X33: =E_Equity!X60 -> 0 | Y33: =E_Equity!Y60 -> 0 | Z33: =E_Equity!Z60 -> 0 | AA33: =E_Equity!AA60 -> 0 | AB33: =E_Equity!AB60 -> 0 | AC33: =E_Equity!AC60 -> 0 | AD33: =E_Equity!AD60 -> 0 | AE33: =E_Equity!AE60 -> 0 | AF33: =E_Equity!AF60 -> 0 | AG33: =E_Equity!AG60 -> 0 | AH33: =E_Equity!AH60 -> 0 | AI33: =E_Equity!AI60 -> 0 | AJ33: =E_Equity!AJ60 -> 0 | AK33: =E_Equity!AK60 -> 0 | AL33: =E_Equity!AL60 -> 0 | AM33: =E_Equity!AM60 -> 0 | AN33: =E_Equity!AN60 -> 0
C34: % of LI households reached by program | D34: % | F34: =E_Equity!F61 -> 0 | G34: =E_Equity!G61 -> 0 | H34: =E_Equity!H61 -> 0 | I34: =E_Equity!I61 -> 0 | J34: =E_Equity!J61 -> 0 | K34: =E_Equity!K61 -> 0 | L34: =E_Equity!L61 -> 0 | M34: =E_Equity!M61 -> 0 | N34: =E_Equity!N61 -> 0 | O34: =E_Equity!O61 -> 0 | P34: =E_Equity!P61 -> 0 | Q34: =E_Equity!Q61 -> 0 | R34: =E_Equity!R61 -> 0 | S34: =E_Equity!S61 -> 0 | T34: =E_Equity!T61 -> 0 | U34: =E_Equity!U61 -> 0 | V34: =E_Equity!V61 -> 0 | W34: =E_Equity!W61 -> 0 | X34: =E_Equity!X61 -> 0 | Y34: =E_Equity!Y61 -> 0 | Z34: =E_Equity!Z61 -> 0 | AA34: =E_Equity!AA61 -> 0 | AB34: =E_Equity!AB61 -> 0 | AC34: =E_Equity!AC61 -> 0 | AD34: =E_Equity!AD61 -> 0 | AE34: =E_Equity!AE61 -> 0 | AF34: =E_Equity!AF61 -> 0 | AG34: =E_Equity!AG61 -> 0 | AH34: =E_Equity!AH61 -> 0 | AI34: =E_Equity!AI61 -> 0 | AJ34: =E_Equity!AJ61 -> 0 | AK34: =E_Equity!AK61 -> 0 | AL34: =E_Equity!AL61 -> 0 | AM34: =E_Equity!AM61 -> 0 | AN34: =E_Equity!AN61 -> 0
C35: Gas burden | D35: % | R35: =E_Equity!R65 -> 0.01619972001 | S35: =E_Equity!S65 -> 0.01619972001 | T35: =E_Equity!T65 -> 0.01619972001 | U35: =E_Equity!U65 -> 0.01619972001 | V35: =E_Equity!V65 -> 0.01619972001 | W35: =E_Equity!W65 -> 0.01619972001 | X35: =E_Equity!X65 -> 0.01619972001 | Y35: =E_Equity!Y65 -> 0.01619972001 | Z35: =E_Equity!Z65 -> 0.01619972001 | AA35: =E_Equity!AA65 -> 0.01619972001 | AB35: =E_Equity!AB65 -> 0.01619972001 | AC35: =E_Equity!AC65 -> 0.01619972001 | AD35: =E_Equity!AD65 -> 0.01619972001 | AE35: =E_Equity!AE65 -> 0.01619972001 | AF35: =E_Equity!AF65 -> 0.01619972001 | AG35: =E_Equity!AG65 -> 0.01619972001 | AH35: =E_Equity!AH65 -> 0.01619972001 | AI35: =E_Equity!AI65 -> 0.01619972001 | AJ35: =E_Equity!AJ65 -> 0.01619972001 | AK35: =E_Equity!AK65 -> 0.01619972001 | AL35: =E_Equity!AL65 -> 0.01619972001 | AM35: =E_Equity!AM65 -> 0.01619972001 | AN35: =E_Equity!AN65 -> 0.01619972001
C36: Energy burden | D36: % | R36: =E_Equity!R66 -> 0.07554739758 | S36: =E_Equity!S66 -> 0.07554739758 | T36: =E_Equity!T66 -> 0.07554739758 | U36: =E_Equity!U66 -> 0.07554739758 | V36: =E_Equity!V66 -> 0.07554739758 | W36: =E_Equity!W66 -> 0.07554739758 | X36: =E_Equity!X66 -> 0.07554739758 | Y36: =E_Equity!Y66 -> 0.07554739758 | Z36: =E_Equity!Z66 -> 0.07554739758 | AA36: =E_Equity!AA66 -> 0.07554739758 | AB36: =E_Equity!AB66 -> 0.07554739758 | AC36: =E_Equity!AC66 -> 0.07554739758 | AD36: =E_Equity!AD66 -> 0.07554739758 | AE36: =E_Equity!AE66 -> 0.07554739758 | AF36: =E_Equity!AF66 -> 0.07554739758 | AG36: =E_Equity!AG66 -> 0.07554739758 | AH36: =E_Equity!AH66 -> 0.07554739758 | AI36: =E_Equity!AI66 -> 0.07554739758 | AJ36: =E_Equity!AJ66 -> 0.07554739758 | AK36: =E_Equity!AK66 -> 0.07554739758 | AL36: =E_Equity!AL66 -> 0.07554739758 | AM36: =E_Equity!AM66 -> 0.07554739758 | AN36: =E_Equity!AN66 -> 0.07554739758
C44: Appendix A. Levelization Calculation
C45: Calculates the levelized cost of saved energy based on the above options. Based on calculations available in http://epa.gov/airquality/cpp/df-cpp-demand-side-ee-at3.xlsx
E47: 2010 | F47: 2011 | G47: 2012 | H47: 2013 | I47: 2014 | J47: 2015 | K47: 2016 | L47: 2017 | M47: 2018 | N47: 2019 | O47: 2020 | P47: 2021 | Q47: 2022 | R47: 2023 | S47: 2024 | T47: 2025 | U47: 2026 | V47: 2027 | W47: 2028 | X47: 2029 | Y47: 2030 | Z47: 2031 | AA47: 2032 | AB47: 2033 | AC47: 2034 | AD47: 2035 | AE47: 2036 | AF47: 2037 | AG47: 2038 | AH47: 2039 | AI47: 2040 | AJ47: 2041 | AK47: 2042 | AL47: 2043 | AM47: 2044 | AN47: 2045
C48: Program Admin. Split | D48: % | F48: =S4or5_Costs!$D$16 -> 0.4 | G48: =S4or5_Costs!$D$16 -> 0.4 | H48: =S4or5_Costs!$D$16 -> 0.4 | I48: =S4or5_Costs!$D$16 -> 0.4 | J48: =S4or5_Costs!$D$16 -> 0.4 | K48: =S4or5_Costs!$D$16 -> 0.4 | L48: =S4or5_Costs!$D$16 -> 0.4 | M48: =S4or5_Costs!$D$16 -> 0.4 | N48: =S4or5_Costs!$D$16 -> 0.4 | O48: =S4or5_Costs!$D$16 -> 0.4 | P48: =S4or5_Costs!$D$16 -> 0.4 | Q48: =S4or5_Costs!$D$16 -> 0.4 | R48: =S4or5_Costs!$D$16 -> 0.4 | S48: =S4or5_Costs!$D$16 -> 0.4 | T48: =S4or5_Costs!$D$16 -> 0.4 | U48: =S4or5_Costs!$D$16 -> 0.4 | V48: =S4or5_Costs!$D$16 -> 0.4 | W48: =S4or5_Costs!$D$16 -> 0.4 | X48: =S4or5_Costs!$D$16 -> 0.4 | Y48: =S4or5_Costs!$D$16 -> 0.4 | Z48: =S4or5_Costs!$D$16 -> 0.4 | AA48: =S4or5_Costs!$D$16 -> 0.4 | AB48: =S4or5_Costs!$D$16 -> 0.4 | AC48: =S4or5_Costs!$D$16 -> 0.4 | AD48: =S4or5_Costs!$D$16 -> 0.4 | AE48: =S4or5_Costs!$D$16 -> 0.4 | AF48: =S4or5_Costs!$D$16 -> 0.4 | AG48: =S4or5_Costs!$D$16 -> 0.4 | AH48: =S4or5_Costs!$D$16 -> 0.4 | AI48: =S4or5_Costs!$D$16 -> 0.4 | AJ48: =S4or5_Costs!$D$16 -> 0.4 | AK48: =S4or5_Costs!$D$16 -> 0.4 | AL48: =S4or5_Costs!$D$16 -> 0.4 | AM48: =S4or5_Costs!$D$16 -> 0.4 | AN48: =S4or5_Costs!$D$16 -> 0.4
C49: First Year Savings | D49: MMBtu | F49: =F9 -> 2011 | G49: 176016889 | H49: 248018610 | I49: 326991738 | J49: 311448955.7 | K49: 344611442.6 | L49: 379819229.1 | M49: 379819230.1 | N49: 379819231.1 | O49: 379819232.1 | P49: 376487428.1 | Q49: 370916217.1 | R49: 553290718.5 | S49: 743603956.7 | T49: 945551573.8 | U49: 940304819.7 | V49: 935836574.5 | W49: 932208782 | X49: 928467893.5 | Y49: 925102107.5 | Z49: 922128140.9 | AA49: 919190012.6 | AB49: 916287379.2 | AC49: 913419900.9 | AD49: 910553923 | AE49: 907667051.8 | AF49: 906638968.3 | AG49: 907530487.2 | AH49: 910438771.5 | AI49: 913271725.2 | AJ49: =AJ9 -> 916037902 | AK49: 918746389.3 | AL49: 921396648.7 | AM49: 923993028.8 | AN49: 926540002
C50: Program Admin. Cost of First-year Savings | D50: 2022 $/MMBtu | F50: =F48*S4or5_Costs!F21 -> 0 | G50: =G48*S4or5_Costs!G21 -> 4.579300737 | H50: =H48*S4or5_Costs!H21 -> 4.376203027 | I50: =I48*S4or5_Costs!I21 -> 3.935567209 | J50: =J48*S4or5_Costs!J21 -> 4.012621919 | K50: =K48*S4or5_Costs!K21 -> 3.71722976 | L50: =L48*S4or5_Costs!L21 -> 3.564675416 | M50: =M48*S4or5_Costs!M21 -> 3.56467541 | N50: =N48*S4or5_Costs!N21 -> 3.564675403 | O50: =O48*S4or5_Costs!O21 -> 3.564675397 | P50: =P48*S4or5_Costs!P21 -> 3.481345184 | Q50: =Q48*S4or5_Costs!Q21 -> 3.451470938 | R50: =R48*S4or5_Costs!R21 -> 5.019509187 | S50: =S48*S4or5_Costs!S21 -> 5.019509187 | T50: =T48*S4or5_Costs!T21 -> 5.019509187 | U50: =U48*S4or5_Costs!U21 -> 5.019509187 | V50: =V48*S4or5_Costs!V21 -> 5.019509187 | W50: =W48*S4or5_Costs!W21 -> 5.019509187 | X50: =X48*S4or5_Costs!X21 -> 5.019509187 | Y50: =Y48*S4or5_Costs!Y21 -> 5.019509187 | Z50: =Z48*S4or5_Costs!Z21 -> 5.019509187 | AA50: =AA48*S4or5_Costs!AA21 -> 5.019509187 | AB50: =AB48*S4or5_Costs!AB21 -> 5.019509187 | AC50: =AC48*S4or5_Costs!AC21 -> 5.019509187 | AD50: =AD48*S4or5_Costs!AD21 -> 5.019509187 | AE50: =AE48*S4or5_Costs!AE21 -> 5.019509187 | AF50: =AF48*S4or5_Costs!AF21 -> 5.019509187 | AG50: =AG48*S4or5_Costs!AG21 -> 5.019509187 | AH50: =AH48*S4or5_Costs!AH21 -> 5.019509187 | AI50: =AI48*S4or5_Costs!AI21 -> 5.019509187 | AJ50: =AJ48*S4or5_Costs!AJ21 -> 5.019509187 | AK50: =AK48*S4or5_Costs!AK21 -> 5.019509187 | AL50: =AL48*S4or5_Costs!AL21 -> 5.019509187 | AM50: =AM48*S4or5_Costs!AM21 -> 5.019509187 | AN50: =AN48*S4or5_Costs!AN21 -> 5.019509187
C51: Levelized Savings | D51: MMBtu | F51: =NPV(S4or5_Costs!$D$17,F$55:F$94) -> 21386.89518 | G51: =NPV(S4or5_Costs!$D$17,G$55:G$94) -> 1871931752 | H51: =NPV(S4or5_Costs!$D$17,H$55:H$94) -> 2637666839 | I51: =NPV(S4or5_Costs!$D$17,I$55:I$94) -> 3477542528 | J51: =NPV(S4or5_Costs!$D$17,J$55:J$94) -> 3312245732 | K51: =NPV(S4or5_Costs!$D$17,K$55:K$94) -> 3664927299 | L51: =NPV(S4or5_Costs!$D$17,L$55:L$94) -> 4039360536 | M51: =NPV(S4or5_Costs!$D$17,M$55:M$94) -> 4039360547 | N51: =NPV(S4or5_Costs!$D$17,N$55:N$94) -> 4039360558 | O51: =NPV(S4or5_Costs!$D$17,O$55:O$94) -> 4039360568 | P51: =NPV(S4or5_Costs!$D$17,P$55:P$94) -> 4003926981 | Q51: =NPV(S4or5_Costs!$D$17,Q$55:Q$94) -> 3944677401 | R51: =NPV(S4or5_Costs!$D$17,R$55:R$94) -> 5884222078 | S51: =NPV(S4or5_Costs!$D$17,S$55:S$94) -> 7908194865 | T51: =NPV(S4or5_Costs!$D$17,T$55:T$94) -> 1.005589875e+10 | U51: =NPV(S4or5_Costs!$D$17,U$55:U$94) -> 1.000009976e+10 | V51: =NPV(S4or5_Costs!$D$17,V$55:V$94) -> 9952580169 | W51: =NPV(S4or5_Costs!$D$17,W$55:W$94) -> 9913998758 | X51: =NPV(S4or5_Costs!$D$17,X$55:X$94) -> 9874214576 | Y51: =NPV(S4or5_Costs!$D$17,Y$55:Y$94) -> 9838419592 | Z51: =NPV(S4or5_Costs!$D$17,Z$55:Z$94) -> 9806791590 | AA51: =NPV(S4or5_Costs!$D$17,AA$55:AA$94) -> 9775544727 | AB51: =NPV(S4or5_Costs!$D$17,AB$55:AB$94) -> 9744675350 | AC51: =NPV(S4or5_Costs!$D$17,AC$55:AC$94) -> 9714179846 | AD51: =NPV(S4or5_Costs!$D$17,AD$55:AD$94) -> 9683700300 | AE51: =NPV(S4or5_Costs!$D$17,AE$55:AE$94) -> 9652998553 | AF51: =NPV(S4or5_Costs!$D$17,AF$55:AF$94) -> 9642064931 | AG51: =NPV(S4or5_Costs!$D$17,AG$55:AG$94) -> 9651546195 | AH51: =NPV(S4or5_Costs!$D$17,AH$55:AH$94) -> 9682475669 | AI51: =NPV(S4or5_Costs!$D$17,AI$55:AI$94) -> 9712604005 | AJ51: =NPV(S4or5_Costs!$D$17,AJ$55:AJ$94) -> 9742022171 | AK51: =NPV(S4or5_Costs!$D$17,AK$55:AK$94) -> 9770826814 | AL51: =NPV(S4or5_Costs!$D$17,AL$55:AL$94) -> 9799012203 | AM51: =NPV(S4or5_Costs!$D$17,AM$55:AM$94) -> 9826624589 | AN51: =NPV(S4or5_Costs!$D$17,AN$55:AN$94) -> 9853711536
C52: Annual Total Investment | D52: 2022 $ M | F52: =F49*F50*10^-6 -> 0 | G52: =G49*G50*10^-6 -> 806.0342695 | H52: =H49*H50*10^-6 -> 1085.379792 | I52: 1286.897962 | J52: 1249.726906 | K52: 1280.99991 | L52: 1353.932269 | M52: 1353.93227 | N52: 1353.932271 | O52: 1353.932272 | P52: 1310.682695 | Q52: 1280.206544 | R52: 2777.247844 | S52: 3732.526892 | T52: 4746.204811 | U52: 4719.868681 | V52: 4697.440283 | W52: 4679.230545 | X52: 4660.453121 | Y52: 4643.558527 | Z52: 4628.630674 | AA52: 4613.882712 | AB52: 4599.312918 | AC52: 4584.919584 | AD52: 4570.533782 | AE52: 4556.043105 | AF52: 4550.88263 | AG52: 4555.357618 | AH52: 4569.955778 | AI52: 4584.175815 | AJ52: =AJ49*AJ50*10^-6 -> 4598.060664 | AK52: 4611.655942 | AL52: 4624.958943 | AM52: 4637.991496 | AN52: 4650.776052
C53: Levelized Cost of Saved Energy | D53: 2022 $/MMBtu | F53: =IFERROR(F52*10^6/F51,0) -> 0 | G53: =IFERROR(G52*10^6/G51,0) -> 0.4305895599 | H53: =IFERROR(H52*10^6/H51,0) -> 0.4114923749 | I53: 0.3700595899 | J53: 0.3773050091 | K53: 0.3495294191 | L53: 0.3351848037 | M53: 0.3351848031 | N53: 0.3351848025 | O53: 0.3351848019 | P53: 0.3273493 | Q53: 0.3245402382 | R53: 0.4719821597 | S53: 0.4719821597 | T53: 0.4719821597 | U53: 0.4719821597 | V53: 0.4719821597 | W53: 0.4719821597 | X53: 0.4719821597 | Y53: 0.4719821597 | Z53: 0.4719821597 | AA53: 0.4719821597 | AB53: 0.4719821597 | AC53: 0.4719821597 | AD53: 0.4719821597 | AE53: 0.4719821597 | AF53: 0.4719821597 | AG53: 0.4719821597 | AH53: 0.4719821597 | AI53: 0.4719821597 | AJ53: =IFERROR(AJ52*10^6/AJ51,0) -> 0.4719821597 | AK53: 0.4719821597 | AL53: 0.4719821597 | AM53: 0.4719821597 | AN53: 0.4719821597
C54: Remaining Savings
C55: Year 0 | D55: MMBtu | F55: =F$49*(1-INDEX(A_MeasureExpiration!$E$16:$AS$16,MATCH($C55,A_MeasureExpiration!$E$12:$AS$12,0))) -> 2011 | G55: =G$49*(1-INDEX(A_MeasureExpiration!$E$16:$AS$16,MATCH($C55,A_MeasureExpiration!$E$12:$AS$12,0))) -> 176016889 | H55: =H$49*(1-INDEX(A_MeasureExpiration!$E$16:$AS$16,MATCH($C55,A_MeasureExpiration!$E$12:$AS$12,0))) -> 248018610 | I55: =I$49*(1-INDEX(A_MeasureExpiration!$E$16:$AS$16,MATCH($C55,A_MeasureExpiration!$E$12:$AS$12,0))) -> 326991738 | J55: =J$49*(1-INDEX(A_MeasureExpiration!$E$16:$AS$16,MATCH($C55,A_MeasureExpiration!$E$12:$AS$12,0))) -> 311448955.7 | K55: =K$49*(1-INDEX(A_MeasureExpiration!$E$16:$AS$16,MATCH($C55,A_MeasureExpiration!$E$12:$AS$12,0))) -> 344611442.6 | L55: =L$49*(1-INDEX(A_MeasureExpiration!$E$16:$AS$16,MATCH($C55,A_MeasureExpiration!$E$12:$AS$12,0))) -> 379819229.1 | M55: =M$49*(1-INDEX(A_MeasureExpiration!$E$16:$AS$16,MATCH($C55,A_MeasureExpiration!$E$12:$AS$12,0))) -> 379819230.1 | N55: =N$49*(1-INDEX(A_MeasureExpiration!$E$16:$AS$16,MATCH($C55,A_MeasureExpiration!$E$12:$AS$12,0))) -> 379819231.1 | O55: =O$49*(1-INDEX(A_MeasureExpiration!$E$16:$AS$16,MATCH($C55,A_MeasureExpiration!$E$12:$AS$12,0))) -> 379819232.1 | P55: =P$49*(1-INDEX(A_MeasureExpiration!$E$16:$AS$16,MATCH($C55,A_MeasureExpiration!$E$12:$AS$12,0))) -> 376487428.1 | Q55: =Q$49*(1-INDEX(A_MeasureExpiration!$E$16:$AS$16,MATCH($C55,A_MeasureExpiration!$E$12:$AS$12,0))) -> 370916217.1 | R55: =R$49*(1-INDEX(A_MeasureExpiration!$E$16:$AS$16,MATCH($C55,A_MeasureExpiration!$E$12:$AS$12,0))) -> 553290718.5 | S55: =S$49*(1-INDEX(A_MeasureExpiration!$E$16:$AS$16,MATCH($C55,A_MeasureExpiration!$E$12:$AS$12,0))) -> 743603956.7 | T55: =T$49*(1-INDEX(A_MeasureExpiration!$E$16:$AS$16,MATCH($C55,A_MeasureExpiration!$E$12:$AS$12,0))) -> 945551573.8 | U55: =U$49*(1-INDEX(A_MeasureExpiration!$E$16:$AS$16,MATCH($C55,A_MeasureExpiration!$E$12:$AS$12,0))) -> 940304819.7 | V55: =V$49*(1-INDEX(A_MeasureExpiration!$E$16:$AS$16,MATCH($C55,A_MeasureExpiration!$E$12:$AS$12,0))) -> 935836574.5 | W55: =W$49*(1-INDEX(A_MeasureExpiration!$E$16:$AS$16,MATCH($C55,A_MeasureExpiration!$E$12:$AS$12,0))) -> 932208782 | X55: =X$49*(1-INDEX(A_MeasureExpiration!$E$16:$AS$16,MATCH($C55,A_MeasureExpiration!$E$12:$AS$12,0))) -> 928467893.5 | Y55: =Y$49*(1-INDEX(A_MeasureExpiration!$E$16:$AS$16,MATCH($C55,A_MeasureExpiration!$E$12:$AS$12,0))) -> 925102107.5 | Z55: =Z$49*(1-INDEX(A_MeasureExpiration!$E$16:$AS$16,MATCH($C55,A_MeasureExpiration!$E$12:$AS$12,0))) -> 922128140.9 | AA55: =AA$49*(1-INDEX(A_MeasureExpiration!$E$16:$AS$16,MATCH($C55,A_MeasureExpiration!$E$12:$AS$12,0))) -> 919190012.6 | AB55: =AB$49*(1-INDEX(A_MeasureExpiration!$E$16:$AS$16,MATCH($C55,A_MeasureExpiration!$E$12:$AS$12,0))) -> 916287379.2 | AC55: =AC$49*(1-INDEX(A_MeasureExpiration!$E$16:$AS$16,MATCH($C55,A_MeasureExpiration!$E$12:$AS$12,0))) -> 913419900.9 | AD55: =AD$49*(1-INDEX(A_MeasureExpiration!$E$16:$AS$16,MATCH($C55,A_MeasureExpiration!$E$12:$AS$12,0))) -> 910553923 | AE55: =AE$49*(1-INDEX(A_MeasureExpiration!$E$16:$AS$16,MATCH($C55,A_MeasureExpiration!$E$12:$AS$12,0))) -> 907667051.8 | AF55: =AF$49*(1-INDEX(A_MeasureExpiration!$E$16:$AS$16,MATCH($C55,A_MeasureExpiration!$E$12:$AS$12,0))) -> 906638968.3 | AG55: =AG$49*(1-INDEX(A_MeasureExpiration!$E$16:$AS$16,MATCH($C55,A_MeasureExpiration!$E$12:$AS$12,0))) -> 907530487.2 | AH55: =AH$49*(1-INDEX(A_MeasureExpiration!$E$16:$AS$16,MATCH($C55,A_MeasureExpiration!$E$12:$AS$12,0))) -> 910438771.5 | AI55: =AI$49*(1-INDEX(A_MeasureExpiration!$E$16:$AS$16,MATCH($C55,A_MeasureExpiration!$E$12:$AS$12,0))) -> 913271725.2 | AJ55: =AJ$49*(1-INDEX(A_MeasureExpiration!$E$16:$AS$16,MATCH($C55,A_MeasureExpiration!$E$12:$AS$12,0))) -> 916037902 | AK55: =AK$49*(1-INDEX(A_MeasureExpiration!$E$16:$AS$16,MATCH($C55,A_MeasureExpiration!$E$12:$AS$12,0))) -> 918746389.3 | AL55: =AL$49*(1-INDEX(A_MeasureExpiration!$E$16:$AS$16,MATCH($C55,A_MeasureExpiration!$E$12:$AS$12,0))) -> 921396648.7 | AM55: =AM$49*(1-INDEX(A_MeasureExpiration!$E$16:$AS$16,MATCH($C55,A_MeasureExpiration!$E$12:$AS$12,0))) -> 923993028.8 | AN55: =AN$49*(1-INDEX(A_MeasureExpiration!$E$16:$AS$16,MATCH($C55,A_MeasureExpiration!$E$12:$AS$12,0))) -> 926540002
C56: Year 1 | D56: MMBtu | F56: =F$49*(1-INDEX(A_MeasureExpiration!$E$16:$AS$16,MATCH($C56,A_MeasureExpiration!$E$12:$AS$12,0))) -> 2011 | G56: =G$49*(1-INDEX(A_MeasureExpiration!$E$16:$AS$16,MATCH($C56,A_MeasureExpiration!$E$12:$AS$12,0))) -> 176016889 | H56: =H$49*(1-INDEX(A_MeasureExpiration!$E$16:$AS$16,MATCH($C56,A_MeasureExpiration!$E$12:$AS$12,0))) -> 248018610 | I56: =I$49*(1-INDEX(A_MeasureExpiration!$E$16:$AS$16,MATCH($C56,A_MeasureExpiration!$E$12:$AS$12,0))) -> 326991738 | J56: =J$49*(1-INDEX(A_MeasureExpiration!$E$16:$AS$16,MATCH($C56,A_MeasureExpiration!$E$12:$AS$12,0))) -> 311448955.7 | K56: =K$49*(1-INDEX(A_MeasureExpiration!$E$16:$AS$16,MATCH($C56,A_MeasureExpiration!$E$12:$AS$12,0))) -> 344611442.6 | L56: =L$49*(1-INDEX(A_MeasureExpiration!$E$16:$AS$16,MATCH($C56,A_MeasureExpiration!$E$12:$AS$12,0))) -> 379819229.1 | M56: =M$49*(1-INDEX(A_MeasureExpiration!$E$16:$AS$16,MATCH($C56,A_MeasureExpiration!$E$12:$AS$12,0))) -> 379819230.1 | N56: =N$49*(1-INDEX(A_MeasureExpiration!$E$16:$AS$16,MATCH($C56,A_MeasureExpiration!$E$12:$AS$12,0))) -> 379819231.1 | O56: =O$49*(1-INDEX(A_MeasureExpiration!$E$16:$AS$16,MATCH($C56,A_MeasureExpiration!$E$12:$AS$12,0))) -> 379819232.1 | P56: =P$49*(1-INDEX(A_MeasureExpiration!$E$16:$AS$16,MATCH($C56,A_MeasureExpiration!$E$12:$AS$12,0))) -> 376487428.1 | Q56: =Q$49*(1-INDEX(A_MeasureExpiration!$E$16:$AS$16,MATCH($C56,A_MeasureExpiration!$E$12:$AS$12,0))) -> 370916217.1 | R56: =R$49*(1-INDEX(A_MeasureExpiration!$E$16:$AS$16,MATCH($C56,A_MeasureExpiration!$E$12:$AS$12,0))) -> 553290718.5 | S56: =S$49*(1-INDEX(A_MeasureExpiration!$E$16:$AS$16,MATCH($C56,A_MeasureExpiration!$E$12:$AS$12,0))) -> 743603956.7 | T56: =T$49*(1-INDEX(A_MeasureExpiration!$E$16:$AS$16,MATCH($C56,A_MeasureExpiration!$E$12:$AS$12,0))) -> 945551573.8 | U56: =U$49*(1-INDEX(A_MeasureExpiration!$E$16:$AS$16,MATCH($C56,A_MeasureExpiration!$E$12:$AS$12,0))) -> 940304819.7 | V56: =V$49*(1-INDEX(A_MeasureExpiration!$E$16:$AS$16,MATCH($C56,A_MeasureExpiration!$E$12:$AS$12,0))) -> 935836574.5 | W56: =W$49*(1-INDEX(A_MeasureExpiration!$E$16:$AS$16,MATCH($C56,A_MeasureExpiration!$E$12:$AS$12,0))) -> 932208782 | X56: =X$49*(1-INDEX(A_MeasureExpiration!$E$16:$AS$16,MATCH($C56,A_MeasureExpiration!$E$12:$AS$12,0))) -> 928467893.5 | Y56: =Y$49*(1-INDEX(A_MeasureExpiration!$E$16:$AS$16,MATCH($C56,A_MeasureExpiration!$E$12:$AS$12,0))) -> 925102107.5 | Z56: =Z$49*(1-INDEX(A_MeasureExpiration!$E$16:$AS$16,MATCH($C56,A_MeasureExpiration!$E$12:$AS$12,0))) -> 922128140.9 | AA56: =AA$49*(1-INDEX(A_MeasureExpiration!$E$16:$AS$16,MATCH($C56,A_MeasureExpiration!$E$12:$AS$12,0))) -> 919190012.6 | AB56: =AB$49*(1-INDEX(A_MeasureExpiration!$E$16:$AS$16,MATCH($C56,A_MeasureExpiration!$E$12:$AS$12,0))) -> 916287379.2 | AC56: =AC$49*(1-INDEX(A_MeasureExpiration!$E$16:$AS$16,MATCH($C56,A_MeasureExpiration!$E$12:$AS$12,0))) -> 913419900.9 | AD56: =AD$49*(1-INDEX(A_MeasureExpiration!$E$16:$AS$16,MATCH($C56,A_MeasureExpiration!$E$12:$AS$12,0))) -> 910553923 | AE56: =AE$49*(1-INDEX(A_MeasureExpiration!$E$16:$AS$16,MATCH($C56,A_MeasureExpiration!$E$12:$AS$12,0))) -> 907667051.8 | AF56: =AF$49*(1-INDEX(A_MeasureExpiration!$E$16:$AS$16,MATCH($C56,A_MeasureExpiration!$E$12:$AS$12,0))) -> 906638968.3 | AG56: =AG$49*(1-INDEX(A_MeasureExpiration!$E$16:$AS$16,MATCH($C56,A_MeasureExpiration!$E$12:$AS$12,0))) -> 907530487.2 | AH56: =AH$49*(1-INDEX(A_MeasureExpiration!$E$16:$AS$16,MATCH($C56,A_MeasureExpiration!$E$12:$AS$12,0))) -> 910438771.5 | AI56: =AI$49*(1-INDEX(A_MeasureExpiration!$E$16:$AS$16,MATCH($C56,A_MeasureExpiration!$E$12:$AS$12,0))) -> 913271725.2 | AJ56: =AJ$49*(1-INDEX(A_MeasureExpiration!$E$16:$AS$16,MATCH($C56,A_MeasureExpiration!$E$12:$AS$12,0))) -> 916037902 | AK56: =AK$49*(1-INDEX(A_MeasureExpiration!$E$16:$AS$16,MATCH($C56,A_MeasureExpiration!$E$12:$AS$12,0))) -> 918746389.3 | AL56: =AL$49*(1-INDEX(A_MeasureExpiration!$E$16:$AS$16,MATCH($C56,A_MeasureExpiration!$E$12:$AS$12,0))) -> 921396648.7 | AM56: =AM$49*(1-INDEX(A_MeasureExpiration!$E$16:$AS$16,MATCH($C56,A_MeasureExpiration!$E$12:$AS$12,0))) -> 923993028.8 | AN56: =AN$49*(1-INDEX(A_MeasureExpiration!$E$16:$AS$16,MATCH($C56,A_MeasureExpiration!$E$12:$AS$12,0))) -> 926540002
C57: Year 2 | D57: MMBtu | F57: =F$49*(1-INDEX(A_MeasureExpiration!$E$16:$AS$16,MATCH($C57,A_MeasureExpiration!$E$12:$AS$12,0))) -> 2011 | G57: =G$49*(1-INDEX(A_MeasureExpiration!$E$16:$AS$16,MATCH($C57,A_MeasureExpiration!$E$12:$AS$12,0))) -> 176016889 | H57: =H$49*(1-INDEX(A_MeasureExpiration!$E$16:$AS$16,MATCH($C57,A_MeasureExpiration!$E$12:$AS$12,0))) -> 248018610 | I57: =I$49*(1-INDEX(A_MeasureExpiration!$E$16:$AS$16,MATCH($C57,A_MeasureExpiration!$E$12:$AS$12,0))) -> 326991738 | J57: =J$49*(1-INDEX(A_MeasureExpiration!$E$16:$AS$16,MATCH($C57,A_MeasureExpiration!$E$12:$AS$12,0))) -> 311448955.7 | K57: =K$49*(1-INDEX(A_MeasureExpiration!$E$16:$AS$16,MATCH($C57,A_MeasureExpiration!$E$12:$AS$12,0))) -> 344611442.6 | L57: =L$49*(1-INDEX(A_MeasureExpiration!$E$16:$AS$16,MATCH($C57,A_MeasureExpiration!$E$12:$AS$12,0))) -> 379819229.1 | M57: =M$49*(1-INDEX(A_MeasureExpiration!$E$16:$AS$16,MATCH($C57,A_MeasureExpiration!$E$12:$AS$12,0))) -> 379819230.1 | N57: =N$49*(1-INDEX(A_MeasureExpiration!$E$16:$AS$16,MATCH($C57,A_MeasureExpiration!$E$12:$AS$12,0))) -> 379819231.1 | O57: =O$49*(1-INDEX(A_MeasureExpiration!$E$16:$AS$16,MATCH($C57,A_MeasureExpiration!$E$12:$AS$12,0))) -> 379819232.1 | P57: =P$49*(1-INDEX(A_MeasureExpiration!$E$16:$AS$16,MATCH($C57,A_MeasureExpiration!$E$12:$AS$12,0))) -> 376487428.1 | Q57: =Q$49*(1-INDEX(A_MeasureExpiration!$E$16:$AS$16,MATCH($C57,A_MeasureExpiration!$E$12:$AS$12,0))) -> 370916217.1 | R57: =R$49*(1-INDEX(A_MeasureExpiration!$E$16:$AS$16,MATCH($C57,A_MeasureExpiration!$E$12:$AS$12,0))) -> 553290718.5 | S57: =S$49*(1-INDEX(A_MeasureExpiration!$E$16:$AS$16,MATCH($C57,A_MeasureExpiration!$E$12:$AS$12,0))) -> 743603956.7 | T57: =T$49*(1-INDEX(A_MeasureExpiration!$E$16:$AS$16,MATCH($C57,A_MeasureExpiration!$E$12:$AS$12,0))) -> 945551573.8 | U57: =U$49*(1-INDEX(A_MeasureExpiration!$E$16:$AS$16,MATCH($C57,A_MeasureExpiration!$E$12:$AS$12,0))) -> 940304819.7 | V57: =V$49*(1-INDEX(A_MeasureExpiration!$E$16:$AS$16,MATCH($C57,A_MeasureExpiration!$E$12:$AS$12,0))) -> 935836574.5 | W57: =W$49*(1-INDEX(A_MeasureExpiration!$E$16:$AS$16,MATCH($C57,A_MeasureExpiration!$E$12:$AS$12,0))) -> 932208782 | X57: =X$49*(1-INDEX(A_MeasureExpiration!$E$16:$AS$16,MATCH($C57,A_MeasureExpiration!$E$12:$AS$12,0))) -> 928467893.5 | Y57: =Y$49*(1-INDEX(A_MeasureExpiration!$E$16:$AS$16,MATCH($C57,A_MeasureExpiration!$E$12:$AS$12,0))) -> 925102107.5 | Z57: =Z$49*(1-INDEX(A_MeasureExpiration!$E$16:$AS$16,MATCH($C57,A_MeasureExpiration!$E$12:$AS$12,0))) -> 922128140.9 | AA57: =AA$49*(1-INDEX(A_MeasureExpiration!$E$16:$AS$16,MATCH($C57,A_MeasureExpiration!$E$12:$AS$12,0))) -> 919190012.6 | AB57: =AB$49*(1-INDEX(A_MeasureExpiration!$E$16:$AS$16,MATCH($C57,A_MeasureExpiration!$E$12:$AS$12,0))) -> 916287379.2 | AC57: =AC$49*(1-INDEX(A_MeasureExpiration!$E$16:$AS$16,MATCH($C57,A_MeasureExpiration!$E$12:$AS$12,0))) -> 913419900.9 | AD57: =AD$49*(1-INDEX(A_MeasureExpiration!$E$16:$AS$16,MATCH($C57,A_MeasureExpiration!$E$12:$AS$12,0))) -> 910553923 | AE57: =AE$49*(1-INDEX(A_MeasureExpiration!$E$16:$AS$16,MATCH($C57,A_MeasureExpiration!$E$12:$AS$12,0))) -> 907667051.8 | AF57: =AF$49*(1-INDEX(A_MeasureExpiration!$E$16:$AS$16,MATCH($C57,A_MeasureExpiration!$E$12:$AS$12,0))) -> 906638968.3 | AG57: =AG$49*(1-INDEX(A_MeasureExpiration!$E$16:$AS$16,MATCH($C57,A_MeasureExpiration!$E$12:$AS$12,0))) -> 907530487.2 | AH57: =AH$49*(1-INDEX(A_MeasureExpiration!$E$16:$AS$16,MATCH($C57,A_MeasureExpiration!$E$12:$AS$12,0))) -> 910438771.5 | AI57: =AI$49*(1-INDEX(A_MeasureExpiration!$E$16:$AS$16,MATCH($C57,A_MeasureExpiration!$E$12:$AS$12,0))) -> 913271725.2 | AJ57: =AJ$49*(1-INDEX(A_MeasureExpiration!$E$16:$AS$16,MATCH($C57,A_MeasureExpiration!$E$12:$AS$12,0))) -> 916037902 | AK57: =AK$49*(1-INDEX(A_MeasureExpiration!$E$16:$AS$16,MATCH($C57,A_MeasureExpiration!$E$12:$AS$12,0))) -> 918746389.3 | AL57: =AL$49*(1-INDEX(A_MeasureExpiration!$E$16:$AS$16,MATCH($C57,A_MeasureExpiration!$E$12:$AS$12,0))) -> 921396648.7 | AM57: =AM$49*(1-INDEX(A_MeasureExpiration!$E$16:$AS$16,MATCH($C57,A_MeasureExpiration!$E$12:$AS$12,0))) -> 923993028.8 | AN57: =AN$49*(1-INDEX(A_MeasureExpiration!$E$16:$AS$16,MATCH($C57,A_MeasureExpiration!$E$12:$AS$12,0))) -> 926540002
C58: Year 3 | D58: MMBtu | F58: =F$49*(1-INDEX(A_MeasureExpiration!$E$16:$AS$16,MATCH($C58,A_MeasureExpiration!$E$12:$AS$12,0))) -> 2011 | G58: =G$49*(1-INDEX(A_MeasureExpiration!$E$16:$AS$16,MATCH($C58,A_MeasureExpiration!$E$12:$AS$12,0))) -> 176016889 | H58: =H$49*(1-INDEX(A_MeasureExpiration!$E$16:$AS$16,MATCH($C58,A_MeasureExpiration!$E$12:$AS$12,0))) -> 248018610 | I58: =I$49*(1-INDEX(A_MeasureExpiration!$E$16:$AS$16,MATCH($C58,A_MeasureExpiration!$E$12:$AS$12,0))) -> 326991738 | J58: =J$49*(1-INDEX(A_MeasureExpiration!$E$16:$AS$16,MATCH($C58,A_MeasureExpiration!$E$12:$AS$12,0))) -> 311448955.7 | K58: =K$49*(1-INDEX(A_MeasureExpiration!$E$16:$AS$16,MATCH($C58,A_MeasureExpiration!$E$12:$AS$12,0))) -> 344611442.6 | L58: =L$49*(1-INDEX(A_MeasureExpiration!$E$16:$AS$16,MATCH($C58,A_MeasureExpiration!$E$12:$AS$12,0))) -> 379819229.1 | M58: =M$49*(1-INDEX(A_MeasureExpiration!$E$16:$AS$16,MATCH($C58,A_MeasureExpiration!$E$12:$AS$12,0))) -> 379819230.1 | N58: =N$49*(1-INDEX(A_MeasureExpiration!$E$16:$AS$16,MATCH($C58,A_MeasureExpiration!$E$12:$AS$12,0))) -> 379819231.1 | O58: =O$49*(1-INDEX(A_MeasureExpiration!$E$16:$AS$16,MATCH($C58,A_MeasureExpiration!$E$12:$AS$12,0))) -> 379819232.1 | P58: =P$49*(1-INDEX(A_MeasureExpiration!$E$16:$AS$16,MATCH($C58,A_MeasureExpiration!$E$12:$AS$12,0))) -> 376487428.1 | Q58: =Q$49*(1-INDEX(A_MeasureExpiration!$E$16:$AS$16,MATCH($C58,A_MeasureExpiration!$E$12:$AS$12,0))) -> 370916217.1 | R58: =R$49*(1-INDEX(A_MeasureExpiration!$E$16:$AS$16,MATCH($C58,A_MeasureExpiration!$E$12:$AS$12,0))) -> 553290718.5 | S58: =S$49*(1-INDEX(A_MeasureExpiration!$E$16:$AS$16,MATCH($C58,A_MeasureExpiration!$E$12:$AS$12,0))) -> 743603956.7 | T58: =T$49*(1-INDEX(A_MeasureExpiration!$E$16:$AS$16,MATCH($C58,A_MeasureExpiration!$E$12:$AS$12,0))) -> 945551573.8 | U58: =U$49*(1-INDEX(A_MeasureExpiration!$E$16:$AS$16,MATCH($C58,A_MeasureExpiration!$E$12:$AS$12,0))) -> 940304819.7 | V58: =V$49*(1-INDEX(A_MeasureExpiration!$E$16:$AS$16,MATCH($C58,A_MeasureExpiration!$E$12:$AS$12,0))) -> 935836574.5 | W58: =W$49*(1-INDEX(A_MeasureExpiration!$E$16:$AS$16,MATCH($C58,A_MeasureExpiration!$E$12:$AS$12,0))) -> 932208782 | X58: =X$49*(1-INDEX(A_MeasureExpiration!$E$16:$AS$16,MATCH($C58,A_MeasureExpiration!$E$12:$AS$12,0))) -> 928467893.5 | Y58: =Y$49*(1-INDEX(A_MeasureExpiration!$E$16:$AS$16,MATCH($C58,A_MeasureExpiration!$E$12:$AS$12,0))) -> 925102107.5 | Z58: =Z$49*(1-INDEX(A_MeasureExpiration!$E$16:$AS$16,MATCH($C58,A_MeasureExpiration!$E$12:$AS$12,0))) -> 922128140.9 | AA58: =AA$49*(1-INDEX(A_MeasureExpiration!$E$16:$AS$16,MATCH($C58,A_MeasureExpiration!$E$12:$AS$12,0))) -> 919190012.6 | AB58: =AB$49*(1-INDEX(A_MeasureExpiration!$E$16:$AS$16,MATCH($C58,A_MeasureExpiration!$E$12:$AS$12,0))) -> 916287379.2 | AC58: =AC$49*(1-INDEX(A_MeasureExpiration!$E$16:$AS$16,MATCH($C58,A_MeasureExpiration!$E$12:$AS$12,0))) -> 913419900.9 | AD58: =AD$49*(1-INDEX(A_MeasureExpiration!$E$16:$AS$16,MATCH($C58,A_MeasureExpiration!$E$12:$AS$12,0))) -> 910553923 | AE58: =AE$49*(1-INDEX(A_MeasureExpiration!$E$16:$AS$16,MATCH($C58,A_MeasureExpiration!$E$12:$AS$12,0))) -> 907667051.8 | AF58: =AF$49*(1-INDEX(A_MeasureExpiration!$E$16:$AS$16,MATCH($C58,A_MeasureExpiration!$E$12:$AS$12,0))) -> 906638968.3 | AG58: =AG$49*(1-INDEX(A_MeasureExpiration!$E$16:$AS$16,MATCH($C58,A_MeasureExpiration!$E$12:$AS$12,0))) -> 907530487.2 | AH58: =AH$49*(1-INDEX(A_MeasureExpiration!$E$16:$AS$16,MATCH($C58,A_MeasureExpiration!$E$12:$AS$12,0))) -> 910438771.5 | AI58: =AI$49*(1-INDEX(A_MeasureExpiration!$E$16:$AS$16,MATCH($C58,A_MeasureExpiration!$E$12:$AS$12,0))) -> 913271725.2 | AJ58: =AJ$49*(1-INDEX(A_MeasureExpiration!$E$16:$AS$16,MATCH($C58,A_MeasureExpiration!$E$12:$AS$12,0))) -> 916037902 | AK58: =AK$49*(1-INDEX(A_MeasureExpiration!$E$16:$AS$16,MATCH($C58,A_MeasureExpiration!$E$12:$AS$12,0))) -> 918746389.3 | AL58: =AL$49*(1-INDEX(A_MeasureExpiration!$E$16:$AS$16,MATCH($C58,A_MeasureExpiration!$E$12:$AS$12,0))) -> 921396648.7 | AM58: =AM$49*(1-INDEX(A_MeasureExpiration!$E$16:$AS$16,MATCH($C58,A_MeasureExpiration!$E$12:$AS$12,0))) -> 923993028.8 | AN58: =AN$49*(1-INDEX(A_MeasureExpiration!$E$16:$AS$16,MATCH($C58,A_MeasureExpiration!$E$12:$AS$12,0))) -> 926540002
C59: Year 4 | D59: MMBtu | F59: =F$49*(1-INDEX(A_MeasureExpiration!$E$16:$AS$16,MATCH($C59,A_MeasureExpiration!$E$12:$AS$12,0))) -> 2011 | G59: =G$49*(1-INDEX(A_MeasureExpiration!$E$16:$AS$16,MATCH($C59,A_MeasureExpiration!$E$12:$AS$12,0))) -> 176016889 | H59: =H$49*(1-INDEX(A_MeasureExpiration!$E$16:$AS$16,MATCH($C59,A_MeasureExpiration!$E$12:$AS$12,0))) -> 248018610 | I59: =I$49*(1-INDEX(A_MeasureExpiration!$E$16:$AS$16,MATCH($C59,A_MeasureExpiration!$E$12:$AS$12,0))) -> 326991738 | J59: =J$49*(1-INDEX(A_MeasureExpiration!$E$16:$AS$16,MATCH($C59,A_MeasureExpiration!$E$12:$AS$12,0))) -> 311448955.7 | K59: =K$49*(1-INDEX(A_MeasureExpiration!$E$16:$AS$16,MATCH($C59,A_MeasureExpiration!$E$12:$AS$12,0))) -> 344611442.6 | L59: =L$49*(1-INDEX(A_MeasureExpiration!$E$16:$AS$16,MATCH($C59,A_MeasureExpiration!$E$12:$AS$12,0))) -> 379819229.1 | M59: =M$49*(1-INDEX(A_MeasureExpiration!$E$16:$AS$16,MATCH($C59,A_MeasureExpiration!$E$12:$AS$12,0))) -> 379819230.1 | N59: =N$49*(1-INDEX(A_MeasureExpiration!$E$16:$AS$16,MATCH($C59,A_MeasureExpiration!$E$12:$AS$12,0))) -> 379819231.1 | O59: =O$49*(1-INDEX(A_MeasureExpiration!$E$16:$AS$16,MATCH($C59,A_MeasureExpiration!$E$12:$AS$12,0))) -> 379819232.1 | P59: =P$49*(1-INDEX(A_MeasureExpiration!$E$16:$AS$16,MATCH($C59,A_MeasureExpiration!$E$12:$AS$12,0))) -> 376487428.1 | Q59: =Q$49*(1-INDEX(A_MeasureExpiration!$E$16:$AS$16,MATCH($C59,A_MeasureExpiration!$E$12:$AS$12,0))) -> 370916217.1 | R59: =R$49*(1-INDEX(A_MeasureExpiration!$E$16:$AS$16,MATCH($C59,A_MeasureExpiration!$E$12:$AS$12,0))) -> 553290718.5 | S59: =S$49*(1-INDEX(A_MeasureExpiration!$E$16:$AS$16,MATCH($C59,A_MeasureExpiration!$E$12:$AS$12,0))) -> 743603956.7 | T59: =T$49*(1-INDEX(A_MeasureExpiration!$E$16:$AS$16,MATCH($C59,A_MeasureExpiration!$E$12:$AS$12,0))) -> 945551573.8 | U59: =U$49*(1-INDEX(A_MeasureExpiration!$E$16:$AS$16,MATCH($C59,A_MeasureExpiration!$E$12:$AS$12,0))) -> 940304819.7 | V59: =V$49*(1-INDEX(A_MeasureExpiration!$E$16:$AS$16,MATCH($C59,A_MeasureExpiration!$E$12:$AS$12,0))) -> 935836574.5 | W59: =W$49*(1-INDEX(A_MeasureExpiration!$E$16:$AS$16,MATCH($C59,A_MeasureExpiration!$E$12:$AS$12,0))) -> 932208782 | X59: =X$49*(1-INDEX(A_MeasureExpiration!$E$16:$AS$16,MATCH($C59,A_MeasureExpiration!$E$12:$AS$12,0))) -> 928467893.5 | Y59: =Y$49*(1-INDEX(A_MeasureExpiration!$E$16:$AS$16,MATCH($C59,A_MeasureExpiration!$E$12:$AS$12,0))) -> 925102107.5 | Z59: =Z$49*(1-INDEX(A_MeasureExpiration!$E$16:$AS$16,MATCH($C59,A_MeasureExpiration!$E$12:$AS$12,0))) -> 922128140.9 | AA59: =AA$49*(1-INDEX(A_MeasureExpiration!$E$16:$AS$16,MATCH($C59,A_MeasureExpiration!$E$12:$AS$12,0))) -> 919190012.6 | AB59: =AB$49*(1-INDEX(A_MeasureExpiration!$E$16:$AS$16,MATCH($C59,A_MeasureExpiration!$E$12:$AS$12,0))) -> 916287379.2 | AC59: =AC$49*(1-INDEX(A_MeasureExpiration!$E$16:$AS$16,MATCH($C59,A_MeasureExpiration!$E$12:$AS$12,0))) -> 913419900.9 | AD59: =AD$49*(1-INDEX(A_MeasureExpiration!$E$16:$AS$16,MATCH($C59,A_MeasureExpiration!$E$12:$AS$12,0))) -> 910553923 | AE59: =AE$49*(1-INDEX(A_MeasureExpiration!$E$16:$AS$16,MATCH($C59,A_MeasureExpiration!$E$12:$AS$12,0))) -> 907667051.8 | AF59: =AF$49*(1-INDEX(A_MeasureExpiration!$E$16:$AS$16,MATCH($C59,A_MeasureExpiration!$E$12:$AS$12,0))) -> 906638968.3 | AG59: =AG$49*(1-INDEX(A_MeasureExpiration!$E$16:$AS$16,MATCH($C59,A_MeasureExpiration!$E$12:$AS$12,0))) -> 907530487.2 | AH59: =AH$49*(1-INDEX(A_MeasureExpiration!$E$16:$AS$16,MATCH($C59,A_MeasureExpiration!$E$12:$AS$12,0))) -> 910438771.5 | AI59: =AI$49*(1-INDEX(A_MeasureExpiration!$E$16:$AS$16,MATCH($C59,A_MeasureExpiration!$E$12:$AS$12,0))) -> 913271725.2 | AJ59: =AJ$49*(1-INDEX(A_MeasureExpiration!$E$16:$AS$16,MATCH($C59,A_MeasureExpiration!$E$12:$AS$12,0))) -> 916037902 | AK59: =AK$49*(1-INDEX(A_MeasureExpiration!$E$16:$AS$16,MATCH($C59,A_MeasureExpiration!$E$12:$AS$12,0))) -> 918746389.3 | AL59: =AL$49*(1-INDEX(A_MeasureExpiration!$E$16:$AS$16,MATCH($C59,A_MeasureExpiration!$E$12:$AS$12,0))) -> 921396648.7 | AM59: =AM$49*(1-INDEX(A_MeasureExpiration!$E$16:$AS$16,MATCH($C59,A_MeasureExpiration!$E$12:$AS$12,0))) -> 923993028.8 | AN59: =AN$49*(1-INDEX(A_MeasureExpiration!$E$16:$AS$16,MATCH($C59,A_MeasureExpiration!$E$12:$AS$12,0))) -> 926540002
C60: Year 5 | D60: MMBtu | F60: =F$49*(1-INDEX(A_MeasureExpiration!$E$16:$AS$16,MATCH($C60,A_MeasureExpiration!$E$12:$AS$12,0))) -> 2011 | G60: =G$49*(1-INDEX(A_MeasureExpiration!$E$16:$AS$16,MATCH($C60,A_MeasureExpiration!$E$12:$AS$12,0))) -> 176016889 | H60: =H$49*(1-INDEX(A_MeasureExpiration!$E$16:$AS$16,MATCH($C60,A_MeasureExpiration!$E$12:$AS$12,0))) -> 248018610 | I60: =I$49*(1-INDEX(A_MeasureExpiration!$E$16:$AS$16,MATCH($C60,A_MeasureExpiration!$E$12:$AS$12,0))) -> 326991738 | J60: =J$49*(1-INDEX(A_MeasureExpiration!$E$16:$AS$16,MATCH($C60,A_MeasureExpiration!$E$12:$AS$12,0))) -> 311448955.7 | K60: =K$49*(1-INDEX(A_MeasureExpiration!$E$16:$AS$16,MATCH($C60,A_MeasureExpiration!$E$12:$AS$12,0))) -> 344611442.6 | L60: =L$49*(1-INDEX(A_MeasureExpiration!$E$16:$AS$16,MATCH($C60,A_MeasureExpiration!$E$12:$AS$12,0))) -> 379819229.1 | M60: =M$49*(1-INDEX(A_MeasureExpiration!$E$16:$AS$16,MATCH($C60,A_MeasureExpiration!$E$12:$AS$12,0))) -> 379819230.1 | N60: =N$49*(1-INDEX(A_MeasureExpiration!$E$16:$AS$16,MATCH($C60,A_MeasureExpiration!$E$12:$AS$12,0))) -> 379819231.1 | O60: =O$49*(1-INDEX(A_MeasureExpiration!$E$16:$AS$16,MATCH($C60,A_MeasureExpiration!$E$12:$AS$12,0))) -> 379819232.1 | P60: =P$49*(1-INDEX(A_MeasureExpiration!$E$16:$AS$16,MATCH($C60,A_MeasureExpiration!$E$12:$AS$12,0))) -> 376487428.1 | Q60: =Q$49*(1-INDEX(A_MeasureExpiration!$E$16:$AS$16,MATCH($C60,A_MeasureExpiration!$E$12:$AS$12,0))) -> 370916217.1 | R60: =R$49*(1-INDEX(A_MeasureExpiration!$E$16:$AS$16,MATCH($C60,A_MeasureExpiration!$E$12:$AS$12,0))) -> 553290718.5 | S60: =S$49*(1-INDEX(A_MeasureExpiration!$E$16:$AS$16,MATCH($C60,A_MeasureExpiration!$E$12:$AS$12,0))) -> 743603956.7 | T60: =T$49*(1-INDEX(A_MeasureExpiration!$E$16:$AS$16,MATCH($C60,A_MeasureExpiration!$E$12:$AS$12,0))) -> 945551573.8 | U60: =U$49*(1-INDEX(A_MeasureExpiration!$E$16:$AS$16,MATCH($C60,A_MeasureExpiration!$E$12:$AS$12,0))) -> 940304819.7 | V60: =V$49*(1-INDEX(A_MeasureExpiration!$E$16:$AS$16,MATCH($C60,A_MeasureExpiration!$E$12:$AS$12,0))) -> 935836574.5 | W60: =W$49*(1-INDEX(A_MeasureExpiration!$E$16:$AS$16,MATCH($C60,A_MeasureExpiration!$E$12:$AS$12,0))) -> 932208782 | X60: =X$49*(1-INDEX(A_MeasureExpiration!$E$16:$AS$16,MATCH($C60,A_MeasureExpiration!$E$12:$AS$12,0))) -> 928467893.5 | Y60: =Y$49*(1-INDEX(A_MeasureExpiration!$E$16:$AS$16,MATCH($C60,A_MeasureExpiration!$E$12:$AS$12,0))) -> 925102107.5 | Z60: =Z$49*(1-INDEX(A_MeasureExpiration!$E$16:$AS$16,MATCH($C60,A_MeasureExpiration!$E$12:$AS$12,0))) -> 922128140.9 | AA60: =AA$49*(1-INDEX(A_MeasureExpiration!$E$16:$AS$16,MATCH($C60,A_MeasureExpiration!$E$12:$AS$12,0))) -> 919190012.6 | AB60: =AB$49*(1-INDEX(A_MeasureExpiration!$E$16:$AS$16,MATCH($C60,A_MeasureExpiration!$E$12:$AS$12,0))) -> 916287379.2 | AC60: =AC$49*(1-INDEX(A_MeasureExpiration!$E$16:$AS$16,MATCH($C60,A_MeasureExpiration!$E$12:$AS$12,0))) -> 913419900.9 | AD60: =AD$49*(1-INDEX(A_MeasureExpiration!$E$16:$AS$16,MATCH($C60,A_MeasureExpiration!$E$12:$AS$12,0))) -> 910553923 | AE60: =AE$49*(1-INDEX(A_MeasureExpiration!$E$16:$AS$16,MATCH($C60,A_MeasureExpiration!$E$12:$AS$12,0))) -> 907667051.8 | AF60: =AF$49*(1-INDEX(A_MeasureExpiration!$E$16:$AS$16,MATCH($C60,A_MeasureExpiration!$E$12:$AS$12,0))) -> 906638968.3 | AG60: =AG$49*(1-INDEX(A_MeasureExpiration!$E$16:$AS$16,MATCH($C60,A_MeasureExpiration!$E$12:$AS$12,0))) -> 907530487.2 | AH60: =AH$49*(1-INDEX(A_MeasureExpiration!$E$16:$AS$16,MATCH($C60,A_MeasureExpiration!$E$12:$AS$12,0))) -> 910438771.5 | AI60: =AI$49*(1-INDEX(A_MeasureExpiration!$E$16:$AS$16,MATCH($C60,A_MeasureExpiration!$E$12:$AS$12,0))) -> 913271725.2 | AJ60: =AJ$49*(1-INDEX(A_MeasureExpiration!$E$16:$AS$16,MATCH($C60,A_MeasureExpiration!$E$12:$AS$12,0))) -> 916037902 | AK60: =AK$49*(1-INDEX(A_MeasureExpiration!$E$16:$AS$16,MATCH($C60,A_MeasureExpiration!$E$12:$AS$12,0))) -> 918746389.3 | AL60: =AL$49*(1-INDEX(A_MeasureExpiration!$E$16:$AS$16,MATCH($C60,A_MeasureExpiration!$E$12:$AS$12,0))) -> 921396648.7 | AM60: =AM$49*(1-INDEX(A_MeasureExpiration!$E$16:$AS$16,MATCH($C60,A_MeasureExpiration!$E$12:$AS$12,0))) -> 923993028.8 | AN60: =AN$49*(1-INDEX(A_MeasureExpiration!$E$16:$AS$16,MATCH($C60,A_MeasureExpiration!$E$12:$AS$12,0))) -> 926540002
C61: Year 6 | D61: MMBtu | F61: =F$49*(1-INDEX(A_MeasureExpiration!$E$16:$AS$16,MATCH($C61,A_MeasureExpiration!$E$12:$AS$12,0))) -> 2011 | G61: =G$49*(1-INDEX(A_MeasureExpiration!$E$16:$AS$16,MATCH($C61,A_MeasureExpiration!$E$12:$AS$12,0))) -> 176016889 | H61: =H$49*(1-INDEX(A_MeasureExpiration!$E$16:$AS$16,MATCH($C61,A_MeasureExpiration!$E$12:$AS$12,0))) -> 248018610 | I61: =I$49*(1-INDEX(A_MeasureExpiration!$E$16:$AS$16,MATCH($C61,A_MeasureExpiration!$E$12:$AS$12,0))) -> 326991738 | J61: =J$49*(1-INDEX(A_MeasureExpiration!$E$16:$AS$16,MATCH($C61,A_MeasureExpiration!$E$12:$AS$12,0))) -> 311448955.7 | K61: =K$49*(1-INDEX(A_MeasureExpiration!$E$16:$AS$16,MATCH($C61,A_MeasureExpiration!$E$12:$AS$12,0))) -> 344611442.6 | L61: =L$49*(1-INDEX(A_MeasureExpiration!$E$16:$AS$16,MATCH($C61,A_MeasureExpiration!$E$12:$AS$12,0))) -> 379819229.1 | M61: =M$49*(1-INDEX(A_MeasureExpiration!$E$16:$AS$16,MATCH($C61,A_MeasureExpiration!$E$12:$AS$12,0))) -> 379819230.1 | N61: =N$49*(1-INDEX(A_MeasureExpiration!$E$16:$AS$16,MATCH($C61,A_MeasureExpiration!$E$12:$AS$12,0))) -> 379819231.1 | O61: =O$49*(1-INDEX(A_MeasureExpiration!$E$16:$AS$16,MATCH($C61,A_MeasureExpiration!$E$12:$AS$12,0))) -> 379819232.1 | P61: =P$49*(1-INDEX(A_MeasureExpiration!$E$16:$AS$16,MATCH($C61,A_MeasureExpiration!$E$12:$AS$12,0))) -> 376487428.1 | Q61: =Q$49*(1-INDEX(A_MeasureExpiration!$E$16:$AS$16,MATCH($C61,A_MeasureExpiration!$E$12:$AS$12,0))) -> 370916217.1 | R61: =R$49*(1-INDEX(A_MeasureExpiration!$E$16:$AS$16,MATCH($C61,A_MeasureExpiration!$E$12:$AS$12,0))) -> 553290718.5 | S61: =S$49*(1-INDEX(A_MeasureExpiration!$E$16:$AS$16,MATCH($C61,A_MeasureExpiration!$E$12:$AS$12,0))) -> 743603956.7 | T61: =T$49*(1-INDEX(A_MeasureExpiration!$E$16:$AS$16,MATCH($C61,A_MeasureExpiration!$E$12:$AS$12,0))) -> 945551573.8 | U61: =U$49*(1-INDEX(A_MeasureExpiration!$E$16:$AS$16,MATCH($C61,A_MeasureExpiration!$E$12:$AS$12,0))) -> 940304819.7 | V61: =V$49*(1-INDEX(A_MeasureExpiration!$E$16:$AS$16,MATCH($C61,A_MeasureExpiration!$E$12:$AS$12,0))) -> 935836574.5 | W61: =W$49*(1-INDEX(A_MeasureExpiration!$E$16:$AS$16,MATCH($C61,A_MeasureExpiration!$E$12:$AS$12,0))) -> 932208782 | X61: =X$49*(1-INDEX(A_MeasureExpiration!$E$16:$AS$16,MATCH($C61,A_MeasureExpiration!$E$12:$AS$12,0))) -> 928467893.5 | Y61: =Y$49*(1-INDEX(A_MeasureExpiration!$E$16:$AS$16,MATCH($C61,A_MeasureExpiration!$E$12:$AS$12,0))) -> 925102107.5 | Z61: =Z$49*(1-INDEX(A_MeasureExpiration!$E$16:$AS$16,MATCH($C61,A_MeasureExpiration!$E$12:$AS$12,0))) -> 922128140.9 | AA61: =AA$49*(1-INDEX(A_MeasureExpiration!$E$16:$AS$16,MATCH($C61,A_MeasureExpiration!$E$12:$AS$12,0))) -> 919190012.6 | AB61: =AB$49*(1-INDEX(A_MeasureExpiration!$E$16:$AS$16,MATCH($C61,A_MeasureExpiration!$E$12:$AS$12,0))) -> 916287379.2 | AC61: =AC$49*(1-INDEX(A_MeasureExpiration!$E$16:$AS$16,MATCH($C61,A_MeasureExpiration!$E$12:$AS$12,0))) -> 913419900.9 | AD61: =AD$49*(1-INDEX(A_MeasureExpiration!$E$16:$AS$16,MATCH($C61,A_MeasureExpiration!$E$12:$AS$12,0))) -> 910553923 | AE61: =AE$49*(1-INDEX(A_MeasureExpiration!$E$16:$AS$16,MATCH($C61,A_MeasureExpiration!$E$12:$AS$12,0))) -> 907667051.8 | AF61: =AF$49*(1-INDEX(A_MeasureExpiration!$E$16:$AS$16,MATCH($C61,A_MeasureExpiration!$E$12:$AS$12,0))) -> 906638968.3 | AG61: =AG$49*(1-INDEX(A_MeasureExpiration!$E$16:$AS$16,MATCH($C61,A_MeasureExpiration!$E$12:$AS$12,0))) -> 907530487.2 | AH61: =AH$49*(1-INDEX(A_MeasureExpiration!$E$16:$AS$16,MATCH($C61,A_MeasureExpiration!$E$12:$AS$12,0))) -> 910438771.5 | AI61: =AI$49*(1-INDEX(A_MeasureExpiration!$E$16:$AS$16,MATCH($C61,A_MeasureExpiration!$E$12:$AS$12,0))) -> 913271725.2 | AJ61: =AJ$49*(1-INDEX(A_MeasureExpiration!$E$16:$AS$16,MATCH($C61,A_MeasureExpiration!$E$12:$AS$12,0))) -> 916037902 | AK61: =AK$49*(1-INDEX(A_MeasureExpiration!$E$16:$AS$16,MATCH($C61,A_MeasureExpiration!$E$12:$AS$12,0))) -> 918746389.3 | AL61: =AL$49*(1-INDEX(A_MeasureExpiration!$E$16:$AS$16,MATCH($C61,A_MeasureExpiration!$E$12:$AS$12,0))) -> 921396648.7 | AM61: =AM$49*(1-INDEX(A_MeasureExpiration!$E$16:$AS$16,MATCH($C61,A_MeasureExpiration!$E$12:$AS$12,0))) -> 923993028.8 | AN61: =AN$49*(1-INDEX(A_MeasureExpiration!$E$16:$AS$16,MATCH($C61,A_MeasureExpiration!$E$12:$AS$12,0))) -> 926540002
C62: Year 7 | D62: MMBtu | F62: =F$49*(1-INDEX(A_MeasureExpiration!$E$16:$AS$16,MATCH($C62,A_MeasureExpiration!$E$12:$AS$12,0))) -> 2011 | G62: =G$49*(1-INDEX(A_MeasureExpiration!$E$16:$AS$16,MATCH($C62,A_MeasureExpiration!$E$12:$AS$12,0))) -> 176016889 | H62: =H$49*(1-INDEX(A_MeasureExpiration!$E$16:$AS$16,MATCH($C62,A_MeasureExpiration!$E$12:$AS$12,0))) -> 248018610 | I62: =I$49*(1-INDEX(A_MeasureExpiration!$E$16:$AS$16,MATCH($C62,A_MeasureExpiration!$E$12:$AS$12,0))) -> 326991738 | J62: =J$49*(1-INDEX(A_MeasureExpiration!$E$16:$AS$16,MATCH($C62,A_MeasureExpiration!$E$12:$AS$12,0))) -> 311448955.7 | K62: =K$49*(1-INDEX(A_MeasureExpiration!$E$16:$AS$16,MATCH($C62,A_MeasureExpiration!$E$12:$AS$12,0))) -> 344611442.6 | L62: =L$49*(1-INDEX(A_MeasureExpiration!$E$16:$AS$16,MATCH($C62,A_MeasureExpiration!$E$12:$AS$12,0))) -> 379819229.1 | M62: =M$49*(1-INDEX(A_MeasureExpiration!$E$16:$AS$16,MATCH($C62,A_MeasureExpiration!$E$12:$AS$12,0))) -> 379819230.1 | N62: =N$49*(1-INDEX(A_MeasureExpiration!$E$16:$AS$16,MATCH($C62,A_MeasureExpiration!$E$12:$AS$12,0))) -> 379819231.1 | O62: =O$49*(1-INDEX(A_MeasureExpiration!$E$16:$AS$16,MATCH($C62,A_MeasureExpiration!$E$12:$AS$12,0))) -> 379819232.1 | P62: =P$49*(1-INDEX(A_MeasureExpiration!$E$16:$AS$16,MATCH($C62,A_MeasureExpiration!$E$12:$AS$12,0))) -> 376487428.1 | Q62: =Q$49*(1-INDEX(A_MeasureExpiration!$E$16:$AS$16,MATCH($C62,A_MeasureExpiration!$E$12:$AS$12,0))) -> 370916217.1 | R62: =R$49*(1-INDEX(A_MeasureExpiration!$E$16:$AS$16,MATCH($C62,A_MeasureExpiration!$E$12:$AS$12,0))) -> 553290718.5 | S62: =S$49*(1-INDEX(A_MeasureExpiration!$E$16:$AS$16,MATCH($C62,A_MeasureExpiration!$E$12:$AS$12,0))) -> 743603956.7 | T62: =T$49*(1-INDEX(A_MeasureExpiration!$E$16:$AS$16,MATCH($C62,A_MeasureExpiration!$E$12:$AS$12,0))) -> 945551573.8 | U62: =U$49*(1-INDEX(A_MeasureExpiration!$E$16:$AS$16,MATCH($C62,A_MeasureExpiration!$E$12:$AS$12,0))) -> 940304819.7 | V62: =V$49*(1-INDEX(A_MeasureExpiration!$E$16:$AS$16,MATCH($C62,A_MeasureExpiration!$E$12:$AS$12,0))) -> 935836574.5 | W62: =W$49*(1-INDEX(A_MeasureExpiration!$E$16:$AS$16,MATCH($C62,A_MeasureExpiration!$E$12:$AS$12,0))) -> 932208782 | X62: =X$49*(1-INDEX(A_MeasureExpiration!$E$16:$AS$16,MATCH($C62,A_MeasureExpiration!$E$12:$AS$12,0))) -> 928467893.5 | Y62: =Y$49*(1-INDEX(A_MeasureExpiration!$E$16:$AS$16,MATCH($C62,A_MeasureExpiration!$E$12:$AS$12,0))) -> 925102107.5 | Z62: =Z$49*(1-INDEX(A_MeasureExpiration!$E$16:$AS$16,MATCH($C62,A_MeasureExpiration!$E$12:$AS$12,0))) -> 922128140.9 | AA62: =AA$49*(1-INDEX(A_MeasureExpiration!$E$16:$AS$16,MATCH($C62,A_MeasureExpiration!$E$12:$AS$12,0))) -> 919190012.6 | AB62: =AB$49*(1-INDEX(A_MeasureExpiration!$E$16:$AS$16,MATCH($C62,A_MeasureExpiration!$E$12:$AS$12,0))) -> 916287379.2 | AC62: =AC$49*(1-INDEX(A_MeasureExpiration!$E$16:$AS$16,MATCH($C62,A_MeasureExpiration!$E$12:$AS$12,0))) -> 913419900.9 | AD62: =AD$49*(1-INDEX(A_MeasureExpiration!$E$16:$AS$16,MATCH($C62,A_MeasureExpiration!$E$12:$AS$12,0))) -> 910553923 | AE62: =AE$49*(1-INDEX(A_MeasureExpiration!$E$16:$AS$16,MATCH($C62,A_MeasureExpiration!$E$12:$AS$12,0))) -> 907667051.8 | AF62: =AF$49*(1-INDEX(A_MeasureExpiration!$E$16:$AS$16,MATCH($C62,A_MeasureExpiration!$E$12:$AS$12,0))) -> 906638968.3 | AG62: =AG$49*(1-INDEX(A_MeasureExpiration!$E$16:$AS$16,MATCH($C62,A_MeasureExpiration!$E$12:$AS$12,0))) -> 907530487.2 | AH62: =AH$49*(1-INDEX(A_MeasureExpiration!$E$16:$AS$16,MATCH($C62,A_MeasureExpiration!$E$12:$AS$12,0))) -> 910438771.5 | AI62: =AI$49*(1-INDEX(A_MeasureExpiration!$E$16:$AS$16,MATCH($C62,A_MeasureExpiration!$E$12:$AS$12,0))) -> 913271725.2 | AJ62: =AJ$49*(1-INDEX(A_MeasureExpiration!$E$16:$AS$16,MATCH($C62,A_MeasureExpiration!$E$12:$AS$12,0))) -> 916037902 | AK62: =AK$49*(1-INDEX(A_MeasureExpiration!$E$16:$AS$16,MATCH($C62,A_MeasureExpiration!$E$12:$AS$12,0))) -> 918746389.3 | AL62: =AL$49*(1-INDEX(A_MeasureExpiration!$E$16:$AS$16,MATCH($C62,A_MeasureExpiration!$E$12:$AS$12,0))) -> 921396648.7 | AM62: =AM$49*(1-INDEX(A_MeasureExpiration!$E$16:$AS$16,MATCH($C62,A_MeasureExpiration!$E$12:$AS$12,0))) -> 923993028.8 | AN62: =AN$49*(1-INDEX(A_MeasureExpiration!$E$16:$AS$16,MATCH($C62,A_MeasureExpiration!$E$12:$AS$12,0))) -> 926540002
C63: Year 8 | D63: MMBtu | F63: =F$49*(1-INDEX(A_MeasureExpiration!$E$16:$AS$16,MATCH($C63,A_MeasureExpiration!$E$12:$AS$12,0))) -> 2011 | G63: =G$49*(1-INDEX(A_MeasureExpiration!$E$16:$AS$16,MATCH($C63,A_MeasureExpiration!$E$12:$AS$12,0))) -> 176016889 | H63: =H$49*(1-INDEX(A_MeasureExpiration!$E$16:$AS$16,MATCH($C63,A_MeasureExpiration!$E$12:$AS$12,0))) -> 248018610 | I63: =I$49*(1-INDEX(A_MeasureExpiration!$E$16:$AS$16,MATCH($C63,A_MeasureExpiration!$E$12:$AS$12,0))) -> 326991738 | J63: =J$49*(1-INDEX(A_MeasureExpiration!$E$16:$AS$16,MATCH($C63,A_MeasureExpiration!$E$12:$AS$12,0))) -> 311448955.7 | K63: =K$49*(1-INDEX(A_MeasureExpiration!$E$16:$AS$16,MATCH($C63,A_MeasureExpiration!$E$12:$AS$12,0))) -> 344611442.6 | L63: =L$49*(1-INDEX(A_MeasureExpiration!$E$16:$AS$16,MATCH($C63,A_MeasureExpiration!$E$12:$AS$12,0))) -> 379819229.1 | M63: =M$49*(1-INDEX(A_MeasureExpiration!$E$16:$AS$16,MATCH($C63,A_MeasureExpiration!$E$12:$AS$12,0))) -> 379819230.1 | N63: =N$49*(1-INDEX(A_MeasureExpiration!$E$16:$AS$16,MATCH($C63,A_MeasureExpiration!$E$12:$AS$12,0))) -> 379819231.1 | O63: =O$49*(1-INDEX(A_MeasureExpiration!$E$16:$AS$16,MATCH($C63,A_MeasureExpiration!$E$12:$AS$12,0))) -> 379819232.1 | P63: =P$49*(1-INDEX(A_MeasureExpiration!$E$16:$AS$16,MATCH($C63,A_MeasureExpiration!$E$12:$AS$12,0))) -> 376487428.1 | Q63: =Q$49*(1-INDEX(A_MeasureExpiration!$E$16:$AS$16,MATCH($C63,A_MeasureExpiration!$E$12:$AS$12,0))) -> 370916217.1 | R63: =R$49*(1-INDEX(A_MeasureExpiration!$E$16:$AS$16,MATCH($C63,A_MeasureExpiration!$E$12:$AS$12,0))) -> 553290718.5 | S63: =S$49*(1-INDEX(A_MeasureExpiration!$E$16:$AS$16,MATCH($C63,A_MeasureExpiration!$E$12:$AS$12,0))) -> 743603956.7 | T63: =T$49*(1-INDEX(A_MeasureExpiration!$E$16:$AS$16,MATCH($C63,A_MeasureExpiration!$E$12:$AS$12,0))) -> 945551573.8 | U63: =U$49*(1-INDEX(A_MeasureExpiration!$E$16:$AS$16,MATCH($C63,A_MeasureExpiration!$E$12:$AS$12,0))) -> 940304819.7 | V63: =V$49*(1-INDEX(A_MeasureExpiration!$E$16:$AS$16,MATCH($C63,A_MeasureExpiration!$E$12:$AS$12,0))) -> 935836574.5 | W63: =W$49*(1-INDEX(A_MeasureExpiration!$E$16:$AS$16,MATCH($C63,A_MeasureExpiration!$E$12:$AS$12,0))) -> 932208782 | X63: =X$49*(1-INDEX(A_MeasureExpiration!$E$16:$AS$16,MATCH($C63,A_MeasureExpiration!$E$12:$AS$12,0))) -> 928467893.5 | Y63: =Y$49*(1-INDEX(A_MeasureExpiration!$E$16:$AS$16,MATCH($C63,A_MeasureExpiration!$E$12:$AS$12,0))) -> 925102107.5 | Z63: =Z$49*(1-INDEX(A_MeasureExpiration!$E$16:$AS$16,MATCH($C63,A_MeasureExpiration!$E$12:$AS$12,0))) -> 922128140.9 | AA63: =AA$49*(1-INDEX(A_MeasureExpiration!$E$16:$AS$16,MATCH($C63,A_MeasureExpiration!$E$12:$AS$12,0))) -> 919190012.6 | AB63: =AB$49*(1-INDEX(A_MeasureExpiration!$E$16:$AS$16,MATCH($C63,A_MeasureExpiration!$E$12:$AS$12,0))) -> 916287379.2 | AC63: =AC$49*(1-INDEX(A_MeasureExpiration!$E$16:$AS$16,MATCH($C63,A_MeasureExpiration!$E$12:$AS$12,0))) -> 913419900.9 | AD63: =AD$49*(1-INDEX(A_MeasureExpiration!$E$16:$AS$16,MATCH($C63,A_MeasureExpiration!$E$12:$AS$12,0))) -> 910553923 | AE63: =AE$49*(1-INDEX(A_MeasureExpiration!$E$16:$AS$16,MATCH($C63,A_MeasureExpiration!$E$12:$AS$12,0))) -> 907667051.8 | AF63: =AF$49*(1-INDEX(A_MeasureExpiration!$E$16:$AS$16,MATCH($C63,A_MeasureExpiration!$E$12:$AS$12,0))) -> 906638968.3 | AG63: =AG$49*(1-INDEX(A_MeasureExpiration!$E$16:$AS$16,MATCH($C63,A_MeasureExpiration!$E$12:$AS$12,0))) -> 907530487.2 | AH63: =AH$49*(1-INDEX(A_MeasureExpiration!$E$16:$AS$16,MATCH($C63,A_MeasureExpiration!$E$12:$AS$12,0))) -> 910438771.5 | AI63: =AI$49*(1-INDEX(A_MeasureExpiration!$E$16:$AS$16,MATCH($C63,A_MeasureExpiration!$E$12:$AS$12,0))) -> 913271725.2 | AJ63: =AJ$49*(1-INDEX(A_MeasureExpiration!$E$16:$AS$16,MATCH($C63,A_MeasureExpiration!$E$12:$AS$12,0))) -> 916037902 | AK63: =AK$49*(1-INDEX(A_MeasureExpiration!$E$16:$AS$16,MATCH($C63,A_MeasureExpiration!$E$12:$AS$12,0))) -> 918746389.3 | AL63: =AL$49*(1-INDEX(A_MeasureExpiration!$E$16:$AS$16,MATCH($C63,A_MeasureExpiration!$E$12:$AS$12,0))) -> 921396648.7 | AM63: =AM$49*(1-INDEX(A_MeasureExpiration!$E$16:$AS$16,MATCH($C63,A_MeasureExpiration!$E$12:$AS$12,0))) -> 923993028.8 | AN63: =AN$49*(1-INDEX(A_MeasureExpiration!$E$16:$AS$16,MATCH($C63,A_MeasureExpiration!$E$12:$AS$12,0))) -> 926540002
C64: Year 9 | D64: MMBtu | F64: =F$49*(1-INDEX(A_MeasureExpiration!$E$16:$AS$16,MATCH($C64,A_MeasureExpiration!$E$12:$AS$12,0))) -> 2011 | G64: =G$49*(1-INDEX(A_MeasureExpiration!$E$16:$AS$16,MATCH($C64,A_MeasureExpiration!$E$12:$AS$12,0))) -> 176016889 | H64: =H$49*(1-INDEX(A_MeasureExpiration!$E$16:$AS$16,MATCH($C64,A_MeasureExpiration!$E$12:$AS$12,0))) -> 248018610 | I64: =I$49*(1-INDEX(A_MeasureExpiration!$E$16:$AS$16,MATCH($C64,A_MeasureExpiration!$E$12:$AS$12,0))) -> 326991738 | J64: =J$49*(1-INDEX(A_MeasureExpiration!$E$16:$AS$16,MATCH($C64,A_MeasureExpiration!$E$12:$AS$12,0))) -> 311448955.7 | K64: =K$49*(1-INDEX(A_MeasureExpiration!$E$16:$AS$16,MATCH($C64,A_MeasureExpiration!$E$12:$AS$12,0))) -> 344611442.6 | L64: =L$49*(1-INDEX(A_MeasureExpiration!$E$16:$AS$16,MATCH($C64,A_MeasureExpiration!$E$12:$AS$12,0))) -> 379819229.1 | M64: =M$49*(1-INDEX(A_MeasureExpiration!$E$16:$AS$16,MATCH($C64,A_MeasureExpiration!$E$12:$AS$12,0))) -> 379819230.1 | N64: =N$49*(1-INDEX(A_MeasureExpiration!$E$16:$AS$16,MATCH($C64,A_MeasureExpiration!$E$12:$AS$12,0))) -> 379819231.1 | O64: =O$49*(1-INDEX(A_MeasureExpiration!$E$16:$AS$16,MATCH($C64,A_MeasureExpiration!$E$12:$AS$12,0))) -> 379819232.1 | P64: =P$49*(1-INDEX(A_MeasureExpiration!$E$16:$AS$16,MATCH($C64,A_MeasureExpiration!$E$12:$AS$12,0))) -> 376487428.1 | Q64: =Q$49*(1-INDEX(A_MeasureExpiration!$E$16:$AS$16,MATCH($C64,A_MeasureExpiration!$E$12:$AS$12,0))) -> 370916217.1 | R64: =R$49*(1-INDEX(A_MeasureExpiration!$E$16:$AS$16,MATCH($C64,A_MeasureExpiration!$E$12:$AS$12,0))) -> 553290718.5 | S64: =S$49*(1-INDEX(A_MeasureExpiration!$E$16:$AS$16,MATCH($C64,A_MeasureExpiration!$E$12:$AS$12,0))) -> 743603956.7 | T64: =T$49*(1-INDEX(A_MeasureExpiration!$E$16:$AS$16,MATCH($C64,A_MeasureExpiration!$E$12:$AS$12,0))) -> 945551573.8 | U64: =U$49*(1-INDEX(A_MeasureExpiration!$E$16:$AS$16,MATCH($C64,A_MeasureExpiration!$E$12:$AS$12,0))) -> 940304819.7 | V64: =V$49*(1-INDEX(A_MeasureExpiration!$E$16:$AS$16,MATCH($C64,A_MeasureExpiration!$E$12:$AS$12,0))) -> 935836574.5 | W64: =W$49*(1-INDEX(A_MeasureExpiration!$E$16:$AS$16,MATCH($C64,A_MeasureExpiration!$E$12:$AS$12,0))) -> 932208782 | X64: =X$49*(1-INDEX(A_MeasureExpiration!$E$16:$AS$16,MATCH($C64,A_MeasureExpiration!$E$12:$AS$12,0))) -> 928467893.5 | Y64: =Y$49*(1-INDEX(A_MeasureExpiration!$E$16:$AS$16,MATCH($C64,A_MeasureExpiration!$E$12:$AS$12,0))) -> 925102107.5 | Z64: =Z$49*(1-INDEX(A_MeasureExpiration!$E$16:$AS$16,MATCH($C64,A_MeasureExpiration!$E$12:$AS$12,0))) -> 922128140.9 | AA64: =AA$49*(1-INDEX(A_MeasureExpiration!$E$16:$AS$16,MATCH($C64,A_MeasureExpiration!$E$12:$AS$12,0))) -> 919190012.6 | AB64: =AB$49*(1-INDEX(A_MeasureExpiration!$E$16:$AS$16,MATCH($C64,A_MeasureExpiration!$E$12:$AS$12,0))) -> 916287379.2 | AC64: =AC$49*(1-INDEX(A_MeasureExpiration!$E$16:$AS$16,MATCH($C64,A_MeasureExpiration!$E$12:$AS$12,0))) -> 913419900.9 | AD64: =AD$49*(1-INDEX(A_MeasureExpiration!$E$16:$AS$16,MATCH($C64,A_MeasureExpiration!$E$12:$AS$12,0))) -> 910553923 | AE64: =AE$49*(1-INDEX(A_MeasureExpiration!$E$16:$AS$16,MATCH($C64,A_MeasureExpiration!$E$12:$AS$12,0))) -> 907667051.8 | AF64: =AF$49*(1-INDEX(A_MeasureExpiration!$E$16:$AS$16,MATCH($C64,A_MeasureExpiration!$E$12:$AS$12,0))) -> 906638968.3 | AG64: =AG$49*(1-INDEX(A_MeasureExpiration!$E$16:$AS$16,MATCH($C64,A_MeasureExpiration!$E$12:$AS$12,0))) -> 907530487.2 | AH64: =AH$49*(1-INDEX(A_MeasureExpiration!$E$16:$AS$16,MATCH($C64,A_MeasureExpiration!$E$12:$AS$12,0))) -> 910438771.5 | AI64: =AI$49*(1-INDEX(A_MeasureExpiration!$E$16:$AS$16,MATCH($C64,A_MeasureExpiration!$E$12:$AS$12,0))) -> 913271725.2 | AJ64: =AJ$49*(1-INDEX(A_MeasureExpiration!$E$16:$AS$16,MATCH($C64,A_MeasureExpiration!$E$12:$AS$12,0))) -> 916037902 | AK64: =AK$49*(1-INDEX(A_MeasureExpiration!$E$16:$AS$16,MATCH($C64,A_MeasureExpiration!$E$12:$AS$12,0))) -> 918746389.3 | AL64: =AL$49*(1-INDEX(A_MeasureExpiration!$E$16:$AS$16,MATCH($C64,A_MeasureExpiration!$E$12:$AS$12,0))) -> 921396648.7 | AM64: =AM$49*(1-INDEX(A_MeasureExpiration!$E$16:$AS$16,MATCH($C64,A_MeasureExpiration!$E$12:$AS$12,0))) -> 923993028.8 | AN64: =AN$49*(1-INDEX(A_MeasureExpiration!$E$16:$AS$16,MATCH($C64,A_MeasureExpiration!$E$12:$AS$12,0))) -> 926540002
C65: Year 10 | D65: MMBtu | F65: =F$49*(1-INDEX(A_MeasureExpiration!$E$16:$AS$16,MATCH($C65,A_MeasureExpiration!$E$12:$AS$12,0))) -> 2011 | G65: =G$49*(1-INDEX(A_MeasureExpiration!$E$16:$AS$16,MATCH($C65,A_MeasureExpiration!$E$12:$AS$12,0))) -> 176016889 | H65: =H$49*(1-INDEX(A_MeasureExpiration!$E$16:$AS$16,MATCH($C65,A_MeasureExpiration!$E$12:$AS$12,0))) -> 248018610 | I65: =I$49*(1-INDEX(A_MeasureExpiration!$E$16:$AS$16,MATCH($C65,A_MeasureExpiration!$E$12:$AS$12,0))) -> 326991738 | J65: =J$49*(1-INDEX(A_MeasureExpiration!$E$16:$AS$16,MATCH($C65,A_MeasureExpiration!$E$12:$AS$12,0))) -> 311448955.7 | K65: =K$49*(1-INDEX(A_MeasureExpiration!$E$16:$AS$16,MATCH($C65,A_MeasureExpiration!$E$12:$AS$12,0))) -> 344611442.6 | L65: =L$49*(1-INDEX(A_MeasureExpiration!$E$16:$AS$16,MATCH($C65,A_MeasureExpiration!$E$12:$AS$12,0))) -> 379819229.1 | M65: =M$49*(1-INDEX(A_MeasureExpiration!$E$16:$AS$16,MATCH($C65,A_MeasureExpiration!$E$12:$AS$12,0))) -> 379819230.1 | N65: =N$49*(1-INDEX(A_MeasureExpiration!$E$16:$AS$16,MATCH($C65,A_MeasureExpiration!$E$12:$AS$12,0))) -> 379819231.1 | O65: =O$49*(1-INDEX(A_MeasureExpiration!$E$16:$AS$16,MATCH($C65,A_MeasureExpiration!$E$12:$AS$12,0))) -> 379819232.1 | P65: =P$49*(1-INDEX(A_MeasureExpiration!$E$16:$AS$16,MATCH($C65,A_MeasureExpiration!$E$12:$AS$12,0))) -> 376487428.1 | Q65: =Q$49*(1-INDEX(A_MeasureExpiration!$E$16:$AS$16,MATCH($C65,A_MeasureExpiration!$E$12:$AS$12,0))) -> 370916217.1 | R65: =R$49*(1-INDEX(A_MeasureExpiration!$E$16:$AS$16,MATCH($C65,A_MeasureExpiration!$E$12:$AS$12,0))) -> 553290718.5 | S65: =S$49*(1-INDEX(A_MeasureExpiration!$E$16:$AS$16,MATCH($C65,A_MeasureExpiration!$E$12:$AS$12,0))) -> 743603956.7 | T65: =T$49*(1-INDEX(A_MeasureExpiration!$E$16:$AS$16,MATCH($C65,A_MeasureExpiration!$E$12:$AS$12,0))) -> 945551573.8 | U65: =U$49*(1-INDEX(A_MeasureExpiration!$E$16:$AS$16,MATCH($C65,A_MeasureExpiration!$E$12:$AS$12,0))) -> 940304819.7 | V65: =V$49*(1-INDEX(A_MeasureExpiration!$E$16:$AS$16,MATCH($C65,A_MeasureExpiration!$E$12:$AS$12,0))) -> 935836574.5 | W65: =W$49*(1-INDEX(A_MeasureExpiration!$E$16:$AS$16,MATCH($C65,A_MeasureExpiration!$E$12:$AS$12,0))) -> 932208782 | X65: =X$49*(1-INDEX(A_MeasureExpiration!$E$16:$AS$16,MATCH($C65,A_MeasureExpiration!$E$12:$AS$12,0))) -> 928467893.5 | Y65: =Y$49*(1-INDEX(A_MeasureExpiration!$E$16:$AS$16,MATCH($C65,A_MeasureExpiration!$E$12:$AS$12,0))) -> 925102107.5 | Z65: =Z$49*(1-INDEX(A_MeasureExpiration!$E$16:$AS$16,MATCH($C65,A_MeasureExpiration!$E$12:$AS$12,0))) -> 922128140.9 | AA65: =AA$49*(1-INDEX(A_MeasureExpiration!$E$16:$AS$16,MATCH($C65,A_MeasureExpiration!$E$12:$AS$12,0))) -> 919190012.6 | AB65: =AB$49*(1-INDEX(A_MeasureExpiration!$E$16:$AS$16,MATCH($C65,A_MeasureExpiration!$E$12:$AS$12,0))) -> 916287379.2 | AC65: =AC$49*(1-INDEX(A_MeasureExpiration!$E$16:$AS$16,MATCH($C65,A_MeasureExpiration!$E$12:$AS$12,0))) -> 913419900.9 | AD65: =AD$49*(1-INDEX(A_MeasureExpiration!$E$16:$AS$16,MATCH($C65,A_MeasureExpiration!$E$12:$AS$12,0))) -> 910553923 | AE65: =AE$49*(1-INDEX(A_MeasureExpiration!$E$16:$AS$16,MATCH($C65,A_MeasureExpiration!$E$12:$AS$12,0))) -> 907667051.8 | AF65: =AF$49*(1-INDEX(A_MeasureExpiration!$E$16:$AS$16,MATCH($C65,A_MeasureExpiration!$E$12:$AS$12,0))) -> 906638968.3 | AG65: =AG$49*(1-INDEX(A_MeasureExpiration!$E$16:$AS$16,MATCH($C65,A_MeasureExpiration!$E$12:$AS$12,0))) -> 907530487.2 | AH65: =AH$49*(1-INDEX(A_MeasureExpiration!$E$16:$AS$16,MATCH($C65,A_MeasureExpiration!$E$12:$AS$12,0))) -> 910438771.5 | AI65: =AI$49*(1-INDEX(A_MeasureExpiration!$E$16:$AS$16,MATCH($C65,A_MeasureExpiration!$E$12:$AS$12,0))) -> 913271725.2 | AJ65: =AJ$49*(1-INDEX(A_MeasureExpiration!$E$16:$AS$16,MATCH($C65,A_MeasureExpiration!$E$12:$AS$12,0))) -> 916037902 | AK65: =AK$49*(1-INDEX(A_MeasureExpiration!$E$16:$AS$16,MATCH($C65,A_MeasureExpiration!$E$12:$AS$12,0))) -> 918746389.3 | AL65: =AL$49*(1-INDEX(A_MeasureExpiration!$E$16:$AS$16,MATCH($C65,A_MeasureExpiration!$E$12:$AS$12,0))) -> 921396648.7 | AM65: =AM$49*(1-INDEX(A_MeasureExpiration!$E$16:$AS$16,MATCH($C65,A_MeasureExpiration!$E$12:$AS$12,0))) -> 923993028.8 | AN65: =AN$49*(1-INDEX(A_MeasureExpiration!$E$16:$AS$16,MATCH($C65,A_MeasureExpiration!$E$12:$AS$12,0))) -> 926540002
C66: Year 11 | D66: MMBtu | F66: =F$49*(1-INDEX(A_MeasureExpiration!$E$16:$AS$16,MATCH($C66,A_MeasureExpiration!$E$12:$AS$12,0))) -> 2011 | G66: =G$49*(1-INDEX(A_MeasureExpiration!$E$16:$AS$16,MATCH($C66,A_MeasureExpiration!$E$12:$AS$12,0))) -> 176016889 | H66: =H$49*(1-INDEX(A_MeasureExpiration!$E$16:$AS$16,MATCH($C66,A_MeasureExpiration!$E$12:$AS$12,0))) -> 248018610 | I66: =I$49*(1-INDEX(A_MeasureExpiration!$E$16:$AS$16,MATCH($C66,A_MeasureExpiration!$E$12:$AS$12,0))) -> 326991738 | J66: =J$49*(1-INDEX(A_MeasureExpiration!$E$16:$AS$16,MATCH($C66,A_MeasureExpiration!$E$12:$AS$12,0))) -> 311448955.7 | K66: =K$49*(1-INDEX(A_MeasureExpiration!$E$16:$AS$16,MATCH($C66,A_MeasureExpiration!$E$12:$AS$12,0))) -> 344611442.6 | L66: =L$49*(1-INDEX(A_MeasureExpiration!$E$16:$AS$16,MATCH($C66,A_MeasureExpiration!$E$12:$AS$12,0))) -> 379819229.1 | M66: =M$49*(1-INDEX(A_MeasureExpiration!$E$16:$AS$16,MATCH($C66,A_MeasureExpiration!$E$12:$AS$12,0))) -> 379819230.1 | N66: =N$49*(1-INDEX(A_MeasureExpiration!$E$16:$AS$16,MATCH($C66,A_MeasureExpiration!$E$12:$AS$12,0))) -> 379819231.1 | O66: =O$49*(1-INDEX(A_MeasureExpiration!$E$16:$AS$16,MATCH($C66,A_MeasureExpiration!$E$12:$AS$12,0))) -> 379819232.1 | P66: =P$49*(1-INDEX(A_MeasureExpiration!$E$16:$AS$16,MATCH($C66,A_MeasureExpiration!$E$12:$AS$12,0))) -> 376487428.1 | Q66: =Q$49*(1-INDEX(A_MeasureExpiration!$E$16:$AS$16,MATCH($C66,A_MeasureExpiration!$E$12:$AS$12,0))) -> 370916217.1 | R66: =R$49*(1-INDEX(A_MeasureExpiration!$E$16:$AS$16,MATCH($C66,A_MeasureExpiration!$E$12:$AS$12,0))) -> 553290718.5 | S66: =S$49*(1-INDEX(A_MeasureExpiration!$E$16:$AS$16,MATCH($C66,A_MeasureExpiration!$E$12:$AS$12,0))) -> 743603956.7 | T66: =T$49*(1-INDEX(A_MeasureExpiration!$E$16:$AS$16,MATCH($C66,A_MeasureExpiration!$E$12:$AS$12,0))) -> 945551573.8 | U66: =U$49*(1-INDEX(A_MeasureExpiration!$E$16:$AS$16,MATCH($C66,A_MeasureExpiration!$E$12:$AS$12,0))) -> 940304819.7 | V66: =V$49*(1-INDEX(A_MeasureExpiration!$E$16:$AS$16,MATCH($C66,A_MeasureExpiration!$E$12:$AS$12,0))) -> 935836574.5 | W66: =W$49*(1-INDEX(A_MeasureExpiration!$E$16:$AS$16,MATCH($C66,A_MeasureExpiration!$E$12:$AS$12,0))) -> 932208782 | X66: =X$49*(1-INDEX(A_MeasureExpiration!$E$16:$AS$16,MATCH($C66,A_MeasureExpiration!$E$12:$AS$12,0))) -> 928467893.5 | Y66: =Y$49*(1-INDEX(A_MeasureExpiration!$E$16:$AS$16,MATCH($C66,A_MeasureExpiration!$E$12:$AS$12,0))) -> 925102107.5 | Z66: =Z$49*(1-INDEX(A_MeasureExpiration!$E$16:$AS$16,MATCH($C66,A_MeasureExpiration!$E$12:$AS$12,0))) -> 922128140.9 | AA66: =AA$49*(1-INDEX(A_MeasureExpiration!$E$16:$AS$16,MATCH($C66,A_MeasureExpiration!$E$12:$AS$12,0))) -> 919190012.6 | AB66: =AB$49*(1-INDEX(A_MeasureExpiration!$E$16:$AS$16,MATCH($C66,A_MeasureExpiration!$E$12:$AS$12,0))) -> 916287379.2 | AC66: =AC$49*(1-INDEX(A_MeasureExpiration!$E$16:$AS$16,MATCH($C66,A_MeasureExpiration!$E$12:$AS$12,0))) -> 913419900.9 | AD66: =AD$49*(1-INDEX(A_MeasureExpiration!$E$16:$AS$16,MATCH($C66,A_MeasureExpiration!$E$12:$AS$12,0))) -> 910553923 | AE66: =AE$49*(1-INDEX(A_MeasureExpiration!$E$16:$AS$16,MATCH($C66,A_MeasureExpiration!$E$12:$AS$12,0))) -> 907667051.8 | AF66: =AF$49*(1-INDEX(A_MeasureExpiration!$E$16:$AS$16,MATCH($C66,A_MeasureExpiration!$E$12:$AS$12,0))) -> 906638968.3 | AG66: =AG$49*(1-INDEX(A_MeasureExpiration!$E$16:$AS$16,MATCH($C66,A_MeasureExpiration!$E$12:$AS$12,0))) -> 907530487.2 | AH66: =AH$49*(1-INDEX(A_MeasureExpiration!$E$16:$AS$16,MATCH($C66,A_MeasureExpiration!$E$12:$AS$12,0))) -> 910438771.5 | AI66: =AI$49*(1-INDEX(A_MeasureExpiration!$E$16:$AS$16,MATCH($C66,A_MeasureExpiration!$E$12:$AS$12,0))) -> 913271725.2 | AJ66: =AJ$49*(1-INDEX(A_MeasureExpiration!$E$16:$AS$16,MATCH($C66,A_MeasureExpiration!$E$12:$AS$12,0))) -> 916037902 | AK66: =AK$49*(1-INDEX(A_MeasureExpiration!$E$16:$AS$16,MATCH($C66,A_MeasureExpiration!$E$12:$AS$12,0))) -> 918746389.3 | AL66: =AL$49*(1-INDEX(A_MeasureExpiration!$E$16:$AS$16,MATCH($C66,A_MeasureExpiration!$E$12:$AS$12,0))) -> 921396648.7 | AM66: =AM$49*(1-INDEX(A_MeasureExpiration!$E$16:$AS$16,MATCH($C66,A_MeasureExpiration!$E$12:$AS$12,0))) -> 923993028.8 | AN66: =AN$49*(1-INDEX(A_MeasureExpiration!$E$16:$AS$16,MATCH($C66,A_MeasureExpiration!$E$12:$AS$12,0))) -> 926540002
C67: Year 12 | D67: MMBtu | F67: =F$49*(1-INDEX(A_MeasureExpiration!$E$16:$AS$16,MATCH($C67,A_MeasureExpiration!$E$12:$AS$12,0))) -> 2011 | G67: =G$49*(1-INDEX(A_MeasureExpiration!$E$16:$AS$16,MATCH($C67,A_MeasureExpiration!$E$12:$AS$12,0))) -> 176016889 | H67: =H$49*(1-INDEX(A_MeasureExpiration!$E$16:$AS$16,MATCH($C67,A_MeasureExpiration!$E$12:$AS$12,0))) -> 248018610 | I67: =I$49*(1-INDEX(A_MeasureExpiration!$E$16:$AS$16,MATCH($C67,A_MeasureExpiration!$E$12:$AS$12,0))) -> 326991738 | J67: =J$49*(1-INDEX(A_MeasureExpiration!$E$16:$AS$16,MATCH($C67,A_MeasureExpiration!$E$12:$AS$12,0))) -> 311448955.7 | K67: =K$49*(1-INDEX(A_MeasureExpiration!$E$16:$AS$16,MATCH($C67,A_MeasureExpiration!$E$12:$AS$12,0))) -> 344611442.6 | L67: =L$49*(1-INDEX(A_MeasureExpiration!$E$16:$AS$16,MATCH($C67,A_MeasureExpiration!$E$12:$AS$12,0))) -> 379819229.1 | M67: =M$49*(1-INDEX(A_MeasureExpiration!$E$16:$AS$16,MATCH($C67,A_MeasureExpiration!$E$12:$AS$12,0))) -> 379819230.1 | N67: =N$49*(1-INDEX(A_MeasureExpiration!$E$16:$AS$16,MATCH($C67,A_MeasureExpiration!$E$12:$AS$12,0))) -> 379819231.1 | O67: =O$49*(1-INDEX(A_MeasureExpiration!$E$16:$AS$16,MATCH($C67,A_MeasureExpiration!$E$12:$AS$12,0))) -> 379819232.1 | P67: =P$49*(1-INDEX(A_MeasureExpiration!$E$16:$AS$16,MATCH($C67,A_MeasureExpiration!$E$12:$AS$12,0))) -> 376487428.1 | Q67: =Q$49*(1-INDEX(A_MeasureExpiration!$E$16:$AS$16,MATCH($C67,A_MeasureExpiration!$E$12:$AS$12,0))) -> 370916217.1 | R67: =R$49*(1-INDEX(A_MeasureExpiration!$E$16:$AS$16,MATCH($C67,A_MeasureExpiration!$E$12:$AS$12,0))) -> 553290718.5 | S67: =S$49*(1-INDEX(A_MeasureExpiration!$E$16:$AS$16,MATCH($C67,A_MeasureExpiration!$E$12:$AS$12,0))) -> 743603956.7 | T67: =T$49*(1-INDEX(A_MeasureExpiration!$E$16:$AS$16,MATCH($C67,A_MeasureExpiration!$E$12:$AS$12,0))) -> 945551573.8 | U67: =U$49*(1-INDEX(A_MeasureExpiration!$E$16:$AS$16,MATCH($C67,A_MeasureExpiration!$E$12:$AS$12,0))) -> 940304819.7 | V67: =V$49*(1-INDEX(A_MeasureExpiration!$E$16:$AS$16,MATCH($C67,A_MeasureExpiration!$E$12:$AS$12,0))) -> 935836574.5 | W67: =W$49*(1-INDEX(A_MeasureExpiration!$E$16:$AS$16,MATCH($C67,A_MeasureExpiration!$E$12:$AS$12,0))) -> 932208782 | X67: =X$49*(1-INDEX(A_MeasureExpiration!$E$16:$AS$16,MATCH($C67,A_MeasureExpiration!$E$12:$AS$12,0))) -> 928467893.5 | Y67: =Y$49*(1-INDEX(A_MeasureExpiration!$E$16:$AS$16,MATCH($C67,A_MeasureExpiration!$E$12:$AS$12,0))) -> 925102107.5 | Z67: =Z$49*(1-INDEX(A_MeasureExpiration!$E$16:$AS$16,MATCH($C67,A_MeasureExpiration!$E$12:$AS$12,0))) -> 922128140.9 | AA67: =AA$49*(1-INDEX(A_MeasureExpiration!$E$16:$AS$16,MATCH($C67,A_MeasureExpiration!$E$12:$AS$12,0))) -> 919190012.6 | AB67: =AB$49*(1-INDEX(A_MeasureExpiration!$E$16:$AS$16,MATCH($C67,A_MeasureExpiration!$E$12:$AS$12,0))) -> 916287379.2 | AC67: =AC$49*(1-INDEX(A_MeasureExpiration!$E$16:$AS$16,MATCH($C67,A_MeasureExpiration!$E$12:$AS$12,0))) -> 913419900.9 | AD67: =AD$49*(1-INDEX(A_MeasureExpiration!$E$16:$AS$16,MATCH($C67,A_MeasureExpiration!$E$12:$AS$12,0))) -> 910553923 | AE67: =AE$49*(1-INDEX(A_MeasureExpiration!$E$16:$AS$16,MATCH($C67,A_MeasureExpiration!$E$12:$AS$12,0))) -> 907667051.8 | AF67: =AF$49*(1-INDEX(A_MeasureExpiration!$E$16:$AS$16,MATCH($C67,A_MeasureExpiration!$E$12:$AS$12,0))) -> 906638968.3 | AG67: =AG$49*(1-INDEX(A_MeasureExpiration!$E$16:$AS$16,MATCH($C67,A_MeasureExpiration!$E$12:$AS$12,0))) -> 907530487.2 | AH67: =AH$49*(1-INDEX(A_MeasureExpiration!$E$16:$AS$16,MATCH($C67,A_MeasureExpiration!$E$12:$AS$12,0))) -> 910438771.5 | AI67: =AI$49*(1-INDEX(A_MeasureExpiration!$E$16:$AS$16,MATCH($C67,A_MeasureExpiration!$E$12:$AS$12,0))) -> 913271725.2 | AJ67: =AJ$49*(1-INDEX(A_MeasureExpiration!$E$16:$AS$16,MATCH($C67,A_MeasureExpiration!$E$12:$AS$12,0))) -> 916037902 | AK67: =AK$49*(1-INDEX(A_MeasureExpiration!$E$16:$AS$16,MATCH($C67,A_MeasureExpiration!$E$12:$AS$12,0))) -> 918746389.3 | AL67: =AL$49*(1-INDEX(A_MeasureExpiration!$E$16:$AS$16,MATCH($C67,A_MeasureExpiration!$E$12:$AS$12,0))) -> 921396648.7 | AM67: =AM$49*(1-INDEX(A_MeasureExpiration!$E$16:$AS$16,MATCH($C67,A_MeasureExpiration!$E$12:$AS$12,0))) -> 923993028.8 | AN67: =AN$49*(1-INDEX(A_MeasureExpiration!$E$16:$AS$16,MATCH($C67,A_MeasureExpiration!$E$12:$AS$12,0))) -> 926540002
C68: Year 13 | D68: MMBtu | F68: =F$49*(1-INDEX(A_MeasureExpiration!$E$16:$AS$16,MATCH($C68,A_MeasureExpiration!$E$12:$AS$12,0))) -> 0 | G68: =G$49*(1-INDEX(A_MeasureExpiration!$E$16:$AS$16,MATCH($C68,A_MeasureExpiration!$E$12:$AS$12,0))) -> 0 | H68: =H$49*(1-INDEX(A_MeasureExpiration!$E$16:$AS$16,MATCH($C68,A_MeasureExpiration!$E$12:$AS$12,0))) -> 0 | I68: =I$49*(1-INDEX(A_MeasureExpiration!$E$16:$AS$16,MATCH($C68,A_MeasureExpiration!$E$12:$AS$12,0))) -> 0 | J68: =J$49*(1-INDEX(A_MeasureExpiration!$E$16:$AS$16,MATCH($C68,A_MeasureExpiration!$E$12:$AS$12,0))) -> 0 | K68: =K$49*(1-INDEX(A_MeasureExpiration!$E$16:$AS$16,MATCH($C68,A_MeasureExpiration!$E$12:$AS$12,0))) -> 0 | L68: =L$49*(1-INDEX(A_MeasureExpiration!$E$16:$AS$16,MATCH($C68,A_MeasureExpiration!$E$12:$AS$12,0))) -> 0 | M68: =M$49*(1-INDEX(A_MeasureExpiration!$E$16:$AS$16,MATCH($C68,A_MeasureExpiration!$E$12:$AS$12,0))) -> 0 | N68: =N$49*(1-INDEX(A_MeasureExpiration!$E$16:$AS$16,MATCH($C68,A_MeasureExpiration!$E$12:$AS$12,0))) -> 0 | O68: =O$49*(1-INDEX(A_MeasureExpiration!$E$16:$AS$16,MATCH($C68,A_MeasureExpiration!$E$12:$AS$12,0))) -> 0 | P68: =P$49*(1-INDEX(A_MeasureExpiration!$E$16:$AS$16,MATCH($C68,A_MeasureExpiration!$E$12:$AS$12,0))) -> 0 | Q68: =Q$49*(1-INDEX(A_MeasureExpiration!$E$16:$AS$16,MATCH($C68,A_MeasureExpiration!$E$12:$AS$12,0))) -> 0 | R68: =R$49*(1-INDEX(A_MeasureExpiration!$E$16:$AS$16,MATCH($C68,A_MeasureExpiration!$E$12:$AS$12,0))) -> 0 | S68: =S$49*(1-INDEX(A_MeasureExpiration!$E$16:$AS$16,MATCH($C68,A_MeasureExpiration!$E$12:$AS$12,0))) -> 0 | T68: =T$49*(1-INDEX(A_MeasureExpiration!$E$16:$AS$16,MATCH($C68,A_MeasureExpiration!$E$12:$AS$12,0))) -> 0 | U68: =U$49*(1-INDEX(A_MeasureExpiration!$E$16:$AS$16,MATCH($C68,A_MeasureExpiration!$E$12:$AS$12,0))) -> 0 | V68: =V$49*(1-INDEX(A_MeasureExpiration!$E$16:$AS$16,MATCH($C68,A_MeasureExpiration!$E$12:$AS$12,0))) -> 0 | W68: =W$49*(1-INDEX(A_MeasureExpiration!$E$16:$AS$16,MATCH($C68,A_MeasureExpiration!$E$12:$AS$12,0))) -> 0 | X68: =X$49*(1-INDEX(A_MeasureExpiration!$E$16:$AS$16,MATCH($C68,A_MeasureExpiration!$E$12:$AS$12,0))) -> 0 | Y68: =Y$49*(1-INDEX(A_MeasureExpiration!$E$16:$AS$16,MATCH($C68,A_MeasureExpiration!$E$12:$AS$12,0))) -> 0 | Z68: =Z$49*(1-INDEX(A_MeasureExpiration!$E$16:$AS$16,MATCH($C68,A_MeasureExpiration!$E$12:$AS$12,0))) -> 0 | AA68: =AA$49*(1-INDEX(A_MeasureExpiration!$E$16:$AS$16,MATCH($C68,A_MeasureExpiration!$E$12:$AS$12,0))) -> 0 | AB68: =AB$49*(1-INDEX(A_MeasureExpiration!$E$16:$AS$16,MATCH($C68,A_MeasureExpiration!$E$12:$AS$12,0))) -> 0 | AC68: =AC$49*(1-INDEX(A_MeasureExpiration!$E$16:$AS$16,MATCH($C68,A_MeasureExpiration!$E$12:$AS$12,0))) -> 0 | AD68: =AD$49*(1-INDEX(A_MeasureExpiration!$E$16:$AS$16,MATCH($C68,A_MeasureExpiration!$E$12:$AS$12,0))) -> 0 | AE68: =AE$49*(1-INDEX(A_MeasureExpiration!$E$16:$AS$16,MATCH($C68,A_MeasureExpiration!$E$12:$AS$12,0))) -> 0 | AF68: =AF$49*(1-INDEX(A_MeasureExpiration!$E$16:$AS$16,MATCH($C68,A_MeasureExpiration!$E$12:$AS$12,0))) -> 0 | AG68: =AG$49*(1-INDEX(A_MeasureExpiration!$E$16:$AS$16,MATCH($C68,A_MeasureExpiration!$E$12:$AS$12,0))) -> 0 | AH68: =AH$49*(1-INDEX(A_MeasureExpiration!$E$16:$AS$16,MATCH($C68,A_MeasureExpiration!$E$12:$AS$12,0))) -> 0 | AI68: =AI$49*(1-INDEX(A_MeasureExpiration!$E$16:$AS$16,MATCH($C68,A_MeasureExpiration!$E$12:$AS$12,0))) -> 0 | AJ68: =AJ$49*(1-INDEX(A_MeasureExpiration!$E$16:$AS$16,MATCH($C68,A_MeasureExpiration!$E$12:$AS$12,0))) -> 0 | AK68: =AK$49*(1-INDEX(A_MeasureExpiration!$E$16:$AS$16,MATCH($C68,A_MeasureExpiration!$E$12:$AS$12,0))) -> 0 | AL68: =AL$49*(1-INDEX(A_MeasureExpiration!$E$16:$AS$16,MATCH($C68,A_MeasureExpiration!$E$12:$AS$12,0))) -> 0 | AM68: =AM$49*(1-INDEX(A_MeasureExpiration!$E$16:$AS$16,MATCH($C68,A_MeasureExpiration!$E$12:$AS$12,0))) -> 0 | AN68: =AN$49*(1-INDEX(A_MeasureExpiration!$E$16:$AS$16,MATCH($C68,A_MeasureExpiration!$E$12:$AS$12,0))) -> 0
C69: Year 14 | D69: MMBtu | F69: =F$49*(1-INDEX(A_MeasureExpiration!$E$16:$AS$16,MATCH($C69,A_MeasureExpiration!$E$12:$AS$12,0))) -> 0 | G69: =G$49*(1-INDEX(A_MeasureExpiration!$E$16:$AS$16,MATCH($C69,A_MeasureExpiration!$E$12:$AS$12,0))) -> 0 | H69: =H$49*(1-INDEX(A_MeasureExpiration!$E$16:$AS$16,MATCH($C69,A_MeasureExpiration!$E$12:$AS$12,0))) -> 0 | I69: =I$49*(1-INDEX(A_MeasureExpiration!$E$16:$AS$16,MATCH($C69,A_MeasureExpiration!$E$12:$AS$12,0))) -> 0 | J69: =J$49*(1-INDEX(A_MeasureExpiration!$E$16:$AS$16,MATCH($C69,A_MeasureExpiration!$E$12:$AS$12,0))) -> 0 | K69: =K$49*(1-INDEX(A_MeasureExpiration!$E$16:$AS$16,MATCH($C69,A_MeasureExpiration!$E$12:$AS$12,0))) -> 0 | L69: =L$49*(1-INDEX(A_MeasureExpiration!$E$16:$AS$16,MATCH($C69,A_MeasureExpiration!$E$12:$AS$12,0))) -> 0 | M69: =M$49*(1-INDEX(A_MeasureExpiration!$E$16:$AS$16,MATCH($C69,A_MeasureExpiration!$E$12:$AS$12,0))) -> 0 | N69: =N$49*(1-INDEX(A_MeasureExpiration!$E$16:$AS$16,MATCH($C69,A_MeasureExpiration!$E$12:$AS$12,0))) -> 0 | O69: =O$49*(1-INDEX(A_MeasureExpiration!$E$16:$AS$16,MATCH($C69,A_MeasureExpiration!$E$12:$AS$12,0))) -> 0 | P69: =P$49*(1-INDEX(A_MeasureExpiration!$E$16:$AS$16,MATCH($C69,A_MeasureExpiration!$E$12:$AS$12,0))) -> 0 | Q69: =Q$49*(1-INDEX(A_MeasureExpiration!$E$16:$AS$16,MATCH($C69,A_MeasureExpiration!$E$12:$AS$12,0))) -> 0 | R69: =R$49*(1-INDEX(A_MeasureExpiration!$E$16:$AS$16,MATCH($C69,A_MeasureExpiration!$E$12:$AS$12,0))) -> 0 | S69: =S$49*(1-INDEX(A_MeasureExpiration!$E$16:$AS$16,MATCH($C69,A_MeasureExpiration!$E$12:$AS$12,0))) -> 0 | T69: =T$49*(1-INDEX(A_MeasureExpiration!$E$16:$AS$16,MATCH($C69,A_MeasureExpiration!$E$12:$AS$12,0))) -> 0 | U69: =U$49*(1-INDEX(A_MeasureExpiration!$E$16:$AS$16,MATCH($C69,A_MeasureExpiration!$E$12:$AS$12,0))) -> 0 | V69: =V$49*(1-INDEX(A_MeasureExpiration!$E$16:$AS$16,MATCH($C69,A_MeasureExpiration!$E$12:$AS$12,0))) -> 0 | W69: =W$49*(1-INDEX(A_MeasureExpiration!$E$16:$AS$16,MATCH($C69,A_MeasureExpiration!$E$12:$AS$12,0))) -> 0 | X69: =X$49*(1-INDEX(A_MeasureExpiration!$E$16:$AS$16,MATCH($C69,A_MeasureExpiration!$E$12:$AS$12,0))) -> 0 | Y69: =Y$49*(1-INDEX(A_MeasureExpiration!$E$16:$AS$16,MATCH($C69,A_MeasureExpiration!$E$12:$AS$12,0))) -> 0 | Z69: =Z$49*(1-INDEX(A_MeasureExpiration!$E$16:$AS$16,MATCH($C69,A_MeasureExpiration!$E$12:$AS$12,0))) -> 0 | AA69: =AA$49*(1-INDEX(A_MeasureExpiration!$E$16:$AS$16,MATCH($C69,A_MeasureExpiration!$E$12:$AS$12,0))) -> 0 | AB69: =AB$49*(1-INDEX(A_MeasureExpiration!$E$16:$AS$16,MATCH($C69,A_MeasureExpiration!$E$12:$AS$12,0))) -> 0 | AC69: =AC$49*(1-INDEX(A_MeasureExpiration!$E$16:$AS$16,MATCH($C69,A_MeasureExpiration!$E$12:$AS$12,0))) -> 0 | AD69: =AD$49*(1-INDEX(A_MeasureExpiration!$E$16:$AS$16,MATCH($C69,A_MeasureExpiration!$E$12:$AS$12,0))) -> 0 | AE69: =AE$49*(1-INDEX(A_MeasureExpiration!$E$16:$AS$16,MATCH($C69,A_MeasureExpiration!$E$12:$AS$12,0))) -> 0 | AF69: =AF$49*(1-INDEX(A_MeasureExpiration!$E$16:$AS$16,MATCH($C69,A_MeasureExpiration!$E$12:$AS$12,0))) -> 0 | AG69: =AG$49*(1-INDEX(A_MeasureExpiration!$E$16:$AS$16,MATCH($C69,A_MeasureExpiration!$E$12:$AS$12,0))) -> 0 | AH69: =AH$49*(1-INDEX(A_MeasureExpiration!$E$16:$AS$16,MATCH($C69,A_MeasureExpiration!$E$12:$AS$12,0))) -> 0 | AI69: =AI$49*(1-INDEX(A_MeasureExpiration!$E$16:$AS$16,MATCH($C69,A_MeasureExpiration!$E$12:$AS$12,0))) -> 0 | AJ69: =AJ$49*(1-INDEX(A_MeasureExpiration!$E$16:$AS$16,MATCH($C69,A_MeasureExpiration!$E$12:$AS$12,0))) -> 0 | AK69: =AK$49*(1-INDEX(A_MeasureExpiration!$E$16:$AS$16,MATCH($C69,A_MeasureExpiration!$E$12:$AS$12,0))) -> 0 | AL69: =AL$49*(1-INDEX(A_MeasureExpiration!$E$16:$AS$16,MATCH($C69,A_MeasureExpiration!$E$12:$AS$12,0))) -> 0 | AM69: =AM$49*(1-INDEX(A_MeasureExpiration!$E$16:$AS$16,MATCH($C69,A_MeasureExpiration!$E$12:$AS$12,0))) -> 0 | AN69: =AN$49*(1-INDEX(A_MeasureExpiration!$E$16:$AS$16,MATCH($C69,A_MeasureExpiration!$E$12:$AS$12,0))) -> 0
C70: Year 15 | D70: MMBtu | F70: =F$49*(1-INDEX(A_MeasureExpiration!$E$16:$AS$16,MATCH($C70,A_MeasureExpiration!$E$12:$AS$12,0))) -> 0 | G70: =G$49*(1-INDEX(A_MeasureExpiration!$E$16:$AS$16,MATCH($C70,A_MeasureExpiration!$E$12:$AS$12,0))) -> 0 | H70: =H$49*(1-INDEX(A_MeasureExpiration!$E$16:$AS$16,MATCH($C70,A_MeasureExpiration!$E$12:$AS$12,0))) -> 0 | I70: =I$49*(1-INDEX(A_MeasureExpiration!$E$16:$AS$16,MATCH($C70,A_MeasureExpiration!$E$12:$AS$12,0))) -> 0 | J70: =J$49*(1-INDEX(A_MeasureExpiration!$E$16:$AS$16,MATCH($C70,A_MeasureExpiration!$E$12:$AS$12,0))) -> 0 | K70: =K$49*(1-INDEX(A_MeasureExpiration!$E$16:$AS$16,MATCH($C70,A_MeasureExpiration!$E$12:$AS$12,0))) -> 0 | L70: =L$49*(1-INDEX(A_MeasureExpiration!$E$16:$AS$16,MATCH($C70,A_MeasureExpiration!$E$12:$AS$12,0))) -> 0 | M70: =M$49*(1-INDEX(A_MeasureExpiration!$E$16:$AS$16,MATCH($C70,A_MeasureExpiration!$E$12:$AS$12,0))) -> 0 | N70: =N$49*(1-INDEX(A_MeasureExpiration!$E$16:$AS$16,MATCH($C70,A_MeasureExpiration!$E$12:$AS$12,0))) -> 0 | O70: =O$49*(1-INDEX(A_MeasureExpiration!$E$16:$AS$16,MATCH($C70,A_MeasureExpiration!$E$12:$AS$12,0))) -> 0 | P70: =P$49*(1-INDEX(A_MeasureExpiration!$E$16:$AS$16,MATCH($C70,A_MeasureExpiration!$E$12:$AS$12,0))) -> 0 | Q70: =Q$49*(1-INDEX(A_MeasureExpiration!$E$16:$AS$16,MATCH($C70,A_MeasureExpiration!$E$12:$AS$12,0))) -> 0 | R70: =R$49*(1-INDEX(A_MeasureExpiration!$E$16:$AS$16,MATCH($C70,A_MeasureExpiration!$E$12:$AS$12,0))) -> 0 | S70: =S$49*(1-INDEX(A_MeasureExpiration!$E$16:$AS$16,MATCH($C70,A_MeasureExpiration!$E$12:$AS$12,0))) -> 0 | T70: =T$49*(1-INDEX(A_MeasureExpiration!$E$16:$AS$16,MATCH($C70,A_MeasureExpiration!$E$12:$AS$12,0))) -> 0 | U70: =U$49*(1-INDEX(A_MeasureExpiration!$E$16:$AS$16,MATCH($C70,A_MeasureExpiration!$E$12:$AS$12,0))) -> 0 | V70: =V$49*(1-INDEX(A_MeasureExpiration!$E$16:$AS$16,MATCH($C70,A_MeasureExpiration!$E$12:$AS$12,0))) -> 0 | W70: =W$49*(1-INDEX(A_MeasureExpiration!$E$16:$AS$16,MATCH($C70,A_MeasureExpiration!$E$12:$AS$12,0))) -> 0 | X70: =X$49*(1-INDEX(A_MeasureExpiration!$E$16:$AS$16,MATCH($C70,A_MeasureExpiration!$E$12:$AS$12,0))) -> 0 | Y70: =Y$49*(1-INDEX(A_MeasureExpiration!$E$16:$AS$16,MATCH($C70,A_MeasureExpiration!$E$12:$AS$12,0))) -> 0 | Z70: =Z$49*(1-INDEX(A_MeasureExpiration!$E$16:$AS$16,MATCH($C70,A_MeasureExpiration!$E$12:$AS$12,0))) -> 0 | AA70: =AA$49*(1-INDEX(A_MeasureExpiration!$E$16:$AS$16,MATCH($C70,A_MeasureExpiration!$E$12:$AS$12,0))) -> 0 | AB70: =AB$49*(1-INDEX(A_MeasureExpiration!$E$16:$AS$16,MATCH($C70,A_MeasureExpiration!$E$12:$AS$12,0))) -> 0 | AC70: =AC$49*(1-INDEX(A_MeasureExpiration!$E$16:$AS$16,MATCH($C70,A_MeasureExpiration!$E$12:$AS$12,0))) -> 0 | AD70: =AD$49*(1-INDEX(A_MeasureExpiration!$E$16:$AS$16,MATCH($C70,A_MeasureExpiration!$E$12:$AS$12,0))) -> 0 | AE70: =AE$49*(1-INDEX(A_MeasureExpiration!$E$16:$AS$16,MATCH($C70,A_MeasureExpiration!$E$12:$AS$12,0))) -> 0 | AF70: =AF$49*(1-INDEX(A_MeasureExpiration!$E$16:$AS$16,MATCH($C70,A_MeasureExpiration!$E$12:$AS$12,0))) -> 0 | AG70: =AG$49*(1-INDEX(A_MeasureExpiration!$E$16:$AS$16,MATCH($C70,A_MeasureExpiration!$E$12:$AS$12,0))) -> 0 | AH70: =AH$49*(1-INDEX(A_MeasureExpiration!$E$16:$AS$16,MATCH($C70,A_MeasureExpiration!$E$12:$AS$12,0))) -> 0 | AI70: =AI$49*(1-INDEX(A_MeasureExpiration!$E$16:$AS$16,MATCH($C70,A_MeasureExpiration!$E$12:$AS$12,0))) -> 0 | AJ70: =AJ$49*(1-INDEX(A_MeasureExpiration!$E$16:$AS$16,MATCH($C70,A_MeasureExpiration!$E$12:$AS$12,0))) -> 0 | AK70: =AK$49*(1-INDEX(A_MeasureExpiration!$E$16:$AS$16,MATCH($C70,A_MeasureExpiration!$E$12:$AS$12,0))) -> 0 | AL70: =AL$49*(1-INDEX(A_MeasureExpiration!$E$16:$AS$16,MATCH($C70,A_MeasureExpiration!$E$12:$AS$12,0))) -> 0 | AM70: =AM$49*(1-INDEX(A_MeasureExpiration!$E$16:$AS$16,MATCH($C70,A_MeasureExpiration!$E$12:$AS$12,0))) -> 0 | AN70: =AN$49*(1-INDEX(A_MeasureExpiration!$E$16:$AS$16,MATCH($C70,A_MeasureExpiration!$E$12:$AS$12,0))) -> 0
C71: Year 16 | D71: MMBtu | F71: =F$49*(1-INDEX(A_MeasureExpiration!$E$16:$AS$16,MATCH($C71,A_MeasureExpiration!$E$12:$AS$12,0))) -> 0 | G71: =G$49*(1-INDEX(A_MeasureExpiration!$E$16:$AS$16,MATCH($C71,A_MeasureExpiration!$E$12:$AS$12,0))) -> 0 | H71: =H$49*(1-INDEX(A_MeasureExpiration!$E$16:$AS$16,MATCH($C71,A_MeasureExpiration!$E$12:$AS$12,0))) -> 0 | I71: =I$49*(1-INDEX(A_MeasureExpiration!$E$16:$AS$16,MATCH($C71,A_MeasureExpiration!$E$12:$AS$12,0))) -> 0 | J71: =J$49*(1-INDEX(A_MeasureExpiration!$E$16:$AS$16,MATCH($C71,A_MeasureExpiration!$E$12:$AS$12,0))) -> 0 | K71: =K$49*(1-INDEX(A_MeasureExpiration!$E$16:$AS$16,MATCH($C71,A_MeasureExpiration!$E$12:$AS$12,0))) -> 0 | L71: =L$49*(1-INDEX(A_MeasureExpiration!$E$16:$AS$16,MATCH($C71,A_MeasureExpiration!$E$12:$AS$12,0))) -> 0 | M71: =M$49*(1-INDEX(A_MeasureExpiration!$E$16:$AS$16,MATCH($C71,A_MeasureExpiration!$E$12:$AS$12,0))) -> 0 | N71: =N$49*(1-INDEX(A_MeasureExpiration!$E$16:$AS$16,MATCH($C71,A_MeasureExpiration!$E$12:$AS$12,0))) -> 0 | O71: =O$49*(1-INDEX(A_MeasureExpiration!$E$16:$AS$16,MATCH($C71,A_MeasureExpiration!$E$12:$AS$12,0))) -> 0 | P71: =P$49*(1-INDEX(A_MeasureExpiration!$E$16:$AS$16,MATCH($C71,A_MeasureExpiration!$E$12:$AS$12,0))) -> 0 | Q71: =Q$49*(1-INDEX(A_MeasureExpiration!$E$16:$AS$16,MATCH($C71,A_MeasureExpiration!$E$12:$AS$12,0))) -> 0 | R71: =R$49*(1-INDEX(A_MeasureExpiration!$E$16:$AS$16,MATCH($C71,A_MeasureExpiration!$E$12:$AS$12,0))) -> 0 | S71: =S$49*(1-INDEX(A_MeasureExpiration!$E$16:$AS$16,MATCH($C71,A_MeasureExpiration!$E$12:$AS$12,0))) -> 0 | T71: =T$49*(1-INDEX(A_MeasureExpiration!$E$16:$AS$16,MATCH($C71,A_MeasureExpiration!$E$12:$AS$12,0))) -> 0 | U71: =U$49*(1-INDEX(A_MeasureExpiration!$E$16:$AS$16,MATCH($C71,A_MeasureExpiration!$E$12:$AS$12,0))) -> 0 | V71: =V$49*(1-INDEX(A_MeasureExpiration!$E$16:$AS$16,MATCH($C71,A_MeasureExpiration!$E$12:$AS$12,0))) -> 0 | W71: =W$49*(1-INDEX(A_MeasureExpiration!$E$16:$AS$16,MATCH($C71,A_MeasureExpiration!$E$12:$AS$12,0))) -> 0 | X71: =X$49*(1-INDEX(A_MeasureExpiration!$E$16:$AS$16,MATCH($C71,A_MeasureExpiration!$E$12:$AS$12,0))) -> 0 | Y71: =Y$49*(1-INDEX(A_MeasureExpiration!$E$16:$AS$16,MATCH($C71,A_MeasureExpiration!$E$12:$AS$12,0))) -> 0 | Z71: =Z$49*(1-INDEX(A_MeasureExpiration!$E$16:$AS$16,MATCH($C71,A_MeasureExpiration!$E$12:$AS$12,0))) -> 0 | AA71: =AA$49*(1-INDEX(A_MeasureExpiration!$E$16:$AS$16,MATCH($C71,A_MeasureExpiration!$E$12:$AS$12,0))) -> 0 | AB71: =AB$49*(1-INDEX(A_MeasureExpiration!$E$16:$AS$16,MATCH($C71,A_MeasureExpiration!$E$12:$AS$12,0))) -> 0 | AC71: =AC$49*(1-INDEX(A_MeasureExpiration!$E$16:$AS$16,MATCH($C71,A_MeasureExpiration!$E$12:$AS$12,0))) -> 0 | AD71: =AD$49*(1-INDEX(A_MeasureExpiration!$E$16:$AS$16,MATCH($C71,A_MeasureExpiration!$E$12:$AS$12,0))) -> 0 | AE71: =AE$49*(1-INDEX(A_MeasureExpiration!$E$16:$AS$16,MATCH($C71,A_MeasureExpiration!$E$12:$AS$12,0))) -> 0 | AF71: =AF$49*(1-INDEX(A_MeasureExpiration!$E$16:$AS$16,MATCH($C71,A_MeasureExpiration!$E$12:$AS$12,0))) -> 0 | AG71: =AG$49*(1-INDEX(A_MeasureExpiration!$E$16:$AS$16,MATCH($C71,A_MeasureExpiration!$E$12:$AS$12,0))) -> 0 | AH71: =AH$49*(1-INDEX(A_MeasureExpiration!$E$16:$AS$16,MATCH($C71,A_MeasureExpiration!$E$12:$AS$12,0))) -> 0 | AI71: =AI$49*(1-INDEX(A_MeasureExpiration!$E$16:$AS$16,MATCH($C71,A_MeasureExpiration!$E$12:$AS$12,0))) -> 0 | AJ71: =AJ$49*(1-INDEX(A_MeasureExpiration!$E$16:$AS$16,MATCH($C71,A_MeasureExpiration!$E$12:$AS$12,0))) -> 0 | AK71: =AK$49*(1-INDEX(A_MeasureExpiration!$E$16:$AS$16,MATCH($C71,A_MeasureExpiration!$E$12:$AS$12,0))) -> 0 | AL71: =AL$49*(1-INDEX(A_MeasureExpiration!$E$16:$AS$16,MATCH($C71,A_MeasureExpiration!$E$12:$AS$12,0))) -> 0 | AM71: =AM$49*(1-INDEX(A_MeasureExpiration!$E$16:$AS$16,MATCH($C71,A_MeasureExpiration!$E$12:$AS$12,0))) -> 0 | AN71: =AN$49*(1-INDEX(A_MeasureExpiration!$E$16:$AS$16,MATCH($C71,A_MeasureExpiration!$E$12:$AS$12,0))) -> 0
C72: Year 17 | D72: MMBtu | F72: =F$49*(1-INDEX(A_MeasureExpiration!$E$16:$AS$16,MATCH($C72,A_MeasureExpiration!$E$12:$AS$12,0))) -> 0 | G72: =G$49*(1-INDEX(A_MeasureExpiration!$E$16:$AS$16,MATCH($C72,A_MeasureExpiration!$E$12:$AS$12,0))) -> 0 | H72: =H$49*(1-INDEX(A_MeasureExpiration!$E$16:$AS$16,MATCH($C72,A_MeasureExpiration!$E$12:$AS$12,0))) -> 0 | I72: =I$49*(1-INDEX(A_MeasureExpiration!$E$16:$AS$16,MATCH($C72,A_MeasureExpiration!$E$12:$AS$12,0))) -> 0 | J72: =J$49*(1-INDEX(A_MeasureExpiration!$E$16:$AS$16,MATCH($C72,A_MeasureExpiration!$E$12:$AS$12,0))) -> 0 | K72: =K$49*(1-INDEX(A_MeasureExpiration!$E$16:$AS$16,MATCH($C72,A_MeasureExpiration!$E$12:$AS$12,0))) -> 0 | L72: =L$49*(1-INDEX(A_MeasureExpiration!$E$16:$AS$16,MATCH($C72,A_MeasureExpiration!$E$12:$AS$12,0))) -> 0 | M72: =M$49*(1-INDEX(A_MeasureExpiration!$E$16:$AS$16,MATCH($C72,A_MeasureExpiration!$E$12:$AS$12,0))) -> 0 | N72: =N$49*(1-INDEX(A_MeasureExpiration!$E$16:$AS$16,MATCH($C72,A_MeasureExpiration!$E$12:$AS$12,0))) -> 0 | O72: =O$49*(1-INDEX(A_MeasureExpiration!$E$16:$AS$16,MATCH($C72,A_MeasureExpiration!$E$12:$AS$12,0))) -> 0 | P72: =P$49*(1-INDEX(A_MeasureExpiration!$E$16:$AS$16,MATCH($C72,A_MeasureExpiration!$E$12:$AS$12,0))) -> 0 | Q72: =Q$49*(1-INDEX(A_MeasureExpiration!$E$16:$AS$16,MATCH($C72,A_MeasureExpiration!$E$12:$AS$12,0))) -> 0 | R72: =R$49*(1-INDEX(A_MeasureExpiration!$E$16:$AS$16,MATCH($C72,A_MeasureExpiration!$E$12:$AS$12,0))) -> 0 | S72: =S$49*(1-INDEX(A_MeasureExpiration!$E$16:$AS$16,MATCH($C72,A_MeasureExpiration!$E$12:$AS$12,0))) -> 0 | T72: =T$49*(1-INDEX(A_MeasureExpiration!$E$16:$AS$16,MATCH($C72,A_MeasureExpiration!$E$12:$AS$12,0))) -> 0 | U72: =U$49*(1-INDEX(A_MeasureExpiration!$E$16:$AS$16,MATCH($C72,A_MeasureExpiration!$E$12:$AS$12,0))) -> 0 | V72: =V$49*(1-INDEX(A_MeasureExpiration!$E$16:$AS$16,MATCH($C72,A_MeasureExpiration!$E$12:$AS$12,0))) -> 0 | W72: =W$49*(1-INDEX(A_MeasureExpiration!$E$16:$AS$16,MATCH($C72,A_MeasureExpiration!$E$12:$AS$12,0))) -> 0 | X72: =X$49*(1-INDEX(A_MeasureExpiration!$E$16:$AS$16,MATCH($C72,A_MeasureExpiration!$E$12:$AS$12,0))) -> 0 | Y72: =Y$49*(1-INDEX(A_MeasureExpiration!$E$16:$AS$16,MATCH($C72,A_MeasureExpiration!$E$12:$AS$12,0))) -> 0 | Z72: =Z$49*(1-INDEX(A_MeasureExpiration!$E$16:$AS$16,MATCH($C72,A_MeasureExpiration!$E$12:$AS$12,0))) -> 0 | AA72: =AA$49*(1-INDEX(A_MeasureExpiration!$E$16:$AS$16,MATCH($C72,A_MeasureExpiration!$E$12:$AS$12,0))) -> 0 | AB72: =AB$49*(1-INDEX(A_MeasureExpiration!$E$16:$AS$16,MATCH($C72,A_MeasureExpiration!$E$12:$AS$12,0))) -> 0 | AC72: =AC$49*(1-INDEX(A_MeasureExpiration!$E$16:$AS$16,MATCH($C72,A_MeasureExpiration!$E$12:$AS$12,0))) -> 0 | AD72: =AD$49*(1-INDEX(A_MeasureExpiration!$E$16:$AS$16,MATCH($C72,A_MeasureExpiration!$E$12:$AS$12,0))) -> 0 | AE72: =AE$49*(1-INDEX(A_MeasureExpiration!$E$16:$AS$16,MATCH($C72,A_MeasureExpiration!$E$12:$AS$12,0))) -> 0 | AF72: =AF$49*(1-INDEX(A_MeasureExpiration!$E$16:$AS$16,MATCH($C72,A_MeasureExpiration!$E$12:$AS$12,0))) -> 0 | AG72: =AG$49*(1-INDEX(A_MeasureExpiration!$E$16:$AS$16,MATCH($C72,A_MeasureExpiration!$E$12:$AS$12,0))) -> 0 | AH72: =AH$49*(1-INDEX(A_MeasureExpiration!$E$16:$AS$16,MATCH($C72,A_MeasureExpiration!$E$12:$AS$12,0))) -> 0 | AI72: =AI$49*(1-INDEX(A_MeasureExpiration!$E$16:$AS$16,MATCH($C72,A_MeasureExpiration!$E$12:$AS$12,0))) -> 0 | AJ72: =AJ$49*(1-INDEX(A_MeasureExpiration!$E$16:$AS$16,MATCH($C72,A_MeasureExpiration!$E$12:$AS$12,0))) -> 0 | AK72: =AK$49*(1-INDEX(A_MeasureExpiration!$E$16:$AS$16,MATCH($C72,A_MeasureExpiration!$E$12:$AS$12,0))) -> 0 | AL72: =AL$49*(1-INDEX(A_MeasureExpiration!$E$16:$AS$16,MATCH($C72,A_MeasureExpiration!$E$12:$AS$12,0))) -> 0 | AM72: =AM$49*(1-INDEX(A_MeasureExpiration!$E$16:$AS$16,MATCH($C72,A_MeasureExpiration!$E$12:$AS$12,0))) -> 0 | AN72: =AN$49*(1-INDEX(A_MeasureExpiration!$E$16:$AS$16,MATCH($C72,A_MeasureExpiration!$E$12:$AS$12,0))) -> 0
C73: Year 18 | D73: MMBtu | F73: =F$49*(1-INDEX(A_MeasureExpiration!$E$16:$AS$16,MATCH($C73,A_MeasureExpiration!$E$12:$AS$12,0))) -> 0 | G73: =G$49*(1-INDEX(A_MeasureExpiration!$E$16:$AS$16,MATCH($C73,A_MeasureExpiration!$E$12:$AS$12,0))) -> 0 | H73: =H$49*(1-INDEX(A_MeasureExpiration!$E$16:$AS$16,MATCH($C73,A_MeasureExpiration!$E$12:$AS$12,0))) -> 0 | I73: =I$49*(1-INDEX(A_MeasureExpiration!$E$16:$AS$16,MATCH($C73,A_MeasureExpiration!$E$12:$AS$12,0))) -> 0 | J73: =J$49*(1-INDEX(A_MeasureExpiration!$E$16:$AS$16,MATCH($C73,A_MeasureExpiration!$E$12:$AS$12,0))) -> 0 | K73: =K$49*(1-INDEX(A_MeasureExpiration!$E$16:$AS$16,MATCH($C73,A_MeasureExpiration!$E$12:$AS$12,0))) -> 0 | L73: =L$49*(1-INDEX(A_MeasureExpiration!$E$16:$AS$16,MATCH($C73,A_MeasureExpiration!$E$12:$AS$12,0))) -> 0 | M73: =M$49*(1-INDEX(A_MeasureExpiration!$E$16:$AS$16,MATCH($C73,A_MeasureExpiration!$E$12:$AS$12,0))) -> 0 | N73: =N$49*(1-INDEX(A_MeasureExpiration!$E$16:$AS$16,MATCH($C73,A_MeasureExpiration!$E$12:$AS$12,0))) -> 0 | O73: =O$49*(1-INDEX(A_MeasureExpiration!$E$16:$AS$16,MATCH($C73,A_MeasureExpiration!$E$12:$AS$12,0))) -> 0 | P73: =P$49*(1-INDEX(A_MeasureExpiration!$E$16:$AS$16,MATCH($C73,A_MeasureExpiration!$E$12:$AS$12,0))) -> 0 | Q73: =Q$49*(1-INDEX(A_MeasureExpiration!$E$16:$AS$16,MATCH($C73,A_MeasureExpiration!$E$12:$AS$12,0))) -> 0 | R73: =R$49*(1-INDEX(A_MeasureExpiration!$E$16:$AS$16,MATCH($C73,A_MeasureExpiration!$E$12:$AS$12,0))) -> 0 | S73: =S$49*(1-INDEX(A_MeasureExpiration!$E$16:$AS$16,MATCH($C73,A_MeasureExpiration!$E$12:$AS$12,0))) -> 0 | T73: =T$49*(1-INDEX(A_MeasureExpiration!$E$16:$AS$16,MATCH($C73,A_MeasureExpiration!$E$12:$AS$12,0))) -> 0 | U73: =U$49*(1-INDEX(A_MeasureExpiration!$E$16:$AS$16,MATCH($C73,A_MeasureExpiration!$E$12:$AS$12,0))) -> 0 | V73: =V$49*(1-INDEX(A_MeasureExpiration!$E$16:$AS$16,MATCH($C73,A_MeasureExpiration!$E$12:$AS$12,0))) -> 0 | W73: =W$49*(1-INDEX(A_MeasureExpiration!$E$16:$AS$16,MATCH($C73,A_MeasureExpiration!$E$12:$AS$12,0))) -> 0 | X73: =X$49*(1-INDEX(A_MeasureExpiration!$E$16:$AS$16,MATCH($C73,A_MeasureExpiration!$E$12:$AS$12,0))) -> 0 | Y73: =Y$49*(1-INDEX(A_MeasureExpiration!$E$16:$AS$16,MATCH($C73,A_MeasureExpiration!$E$12:$AS$12,0))) -> 0 | Z73: =Z$49*(1-INDEX(A_MeasureExpiration!$E$16:$AS$16,MATCH($C73,A_MeasureExpiration!$E$12:$AS$12,0))) -> 0 | AA73: =AA$49*(1-INDEX(A_MeasureExpiration!$E$16:$AS$16,MATCH($C73,A_MeasureExpiration!$E$12:$AS$12,0))) -> 0 | AB73: =AB$49*(1-INDEX(A_MeasureExpiration!$E$16:$AS$16,MATCH($C73,A_MeasureExpiration!$E$12:$AS$12,0))) -> 0 | AC73: =AC$49*(1-INDEX(A_MeasureExpiration!$E$16:$AS$16,MATCH($C73,A_MeasureExpiration!$E$12:$AS$12,0))) -> 0 | AD73: =AD$49*(1-INDEX(A_MeasureExpiration!$E$16:$AS$16,MATCH($C73,A_MeasureExpiration!$E$12:$AS$12,0))) -> 0 | AE73: =AE$49*(1-INDEX(A_MeasureExpiration!$E$16:$AS$16,MATCH($C73,A_MeasureExpiration!$E$12:$AS$12,0))) -> 0 | AF73: =AF$49*(1-INDEX(A_MeasureExpiration!$E$16:$AS$16,MATCH($C73,A_MeasureExpiration!$E$12:$AS$12,0))) -> 0 | AG73: =AG$49*(1-INDEX(A_MeasureExpiration!$E$16:$AS$16,MATCH($C73,A_MeasureExpiration!$E$12:$AS$12,0))) -> 0 | AH73: =AH$49*(1-INDEX(A_MeasureExpiration!$E$16:$AS$16,MATCH($C73,A_MeasureExpiration!$E$12:$AS$12,0))) -> 0 | AI73: =AI$49*(1-INDEX(A_MeasureExpiration!$E$16:$AS$16,MATCH($C73,A_MeasureExpiration!$E$12:$AS$12,0))) -> 0 | AJ73: =AJ$49*(1-INDEX(A_MeasureExpiration!$E$16:$AS$16,MATCH($C73,A_MeasureExpiration!$E$12:$AS$12,0))) -> 0 | AK73: =AK$49*(1-INDEX(A_MeasureExpiration!$E$16:$AS$16,MATCH($C73,A_MeasureExpiration!$E$12:$AS$12,0))) -> 0 | AL73: =AL$49*(1-INDEX(A_MeasureExpiration!$E$16:$AS$16,MATCH($C73,A_MeasureExpiration!$E$12:$AS$12,0))) -> 0 | AM73: =AM$49*(1-INDEX(A_MeasureExpiration!$E$16:$AS$16,MATCH($C73,A_MeasureExpiration!$E$12:$AS$12,0))) -> 0 | AN73: =AN$49*(1-INDEX(A_MeasureExpiration!$E$16:$AS$16,MATCH($C73,A_MeasureExpiration!$E$12:$AS$12,0))) -> 0
C74: Year 19 | D74: MMBtu | F74: =F$49*(1-INDEX(A_MeasureExpiration!$E$16:$AS$16,MATCH($C74,A_MeasureExpiration!$E$12:$AS$12,0))) -> 0 | G74: =G$49*(1-INDEX(A_MeasureExpiration!$E$16:$AS$16,MATCH($C74,A_MeasureExpiration!$E$12:$AS$12,0))) -> 0 | H74: =H$49*(1-INDEX(A_MeasureExpiration!$E$16:$AS$16,MATCH($C74,A_MeasureExpiration!$E$12:$AS$12,0))) -> 0 | I74: =I$49*(1-INDEX(A_MeasureExpiration!$E$16:$AS$16,MATCH($C74,A_MeasureExpiration!$E$12:$AS$12,0))) -> 0 | J74: =J$49*(1-INDEX(A_MeasureExpiration!$E$16:$AS$16,MATCH($C74,A_MeasureExpiration!$E$12:$AS$12,0))) -> 0 | K74: =K$49*(1-INDEX(A_MeasureExpiration!$E$16:$AS$16,MATCH($C74,A_MeasureExpiration!$E$12:$AS$12,0))) -> 0 | L74: =L$49*(1-INDEX(A_MeasureExpiration!$E$16:$AS$16,MATCH($C74,A_MeasureExpiration!$E$12:$AS$12,0))) -> 0 | M74: =M$49*(1-INDEX(A_MeasureExpiration!$E$16:$AS$16,MATCH($C74,A_MeasureExpiration!$E$12:$AS$12,0))) -> 0 | N74: =N$49*(1-INDEX(A_MeasureExpiration!$E$16:$AS$16,MATCH($C74,A_MeasureExpiration!$E$12:$AS$12,0))) -> 0 | O74: =O$49*(1-INDEX(A_MeasureExpiration!$E$16:$AS$16,MATCH($C74,A_MeasureExpiration!$E$12:$AS$12,0))) -> 0 | P74: =P$49*(1-INDEX(A_MeasureExpiration!$E$16:$AS$16,MATCH($C74,A_MeasureExpiration!$E$12:$AS$12,0))) -> 0 | Q74: =Q$49*(1-INDEX(A_MeasureExpiration!$E$16:$AS$16,MATCH($C74,A_MeasureExpiration!$E$12:$AS$12,0))) -> 0 | R74: =R$49*(1-INDEX(A_MeasureExpiration!$E$16:$AS$16,MATCH($C74,A_MeasureExpiration!$E$12:$AS$12,0))) -> 0 | S74: =S$49*(1-INDEX(A_MeasureExpiration!$E$16:$AS$16,MATCH($C74,A_MeasureExpiration!$E$12:$AS$12,0))) -> 0 | T74: =T$49*(1-INDEX(A_MeasureExpiration!$E$16:$AS$16,MATCH($C74,A_MeasureExpiration!$E$12:$AS$12,0))) -> 0 | U74: =U$49*(1-INDEX(A_MeasureExpiration!$E$16:$AS$16,MATCH($C74,A_MeasureExpiration!$E$12:$AS$12,0))) -> 0 | V74: =V$49*(1-INDEX(A_MeasureExpiration!$E$16:$AS$16,MATCH($C74,A_MeasureExpiration!$E$12:$AS$12,0))) -> 0 | W74: =W$49*(1-INDEX(A_MeasureExpiration!$E$16:$AS$16,MATCH($C74,A_MeasureExpiration!$E$12:$AS$12,0))) -> 0 | X74: =X$49*(1-INDEX(A_MeasureExpiration!$E$16:$AS$16,MATCH($C74,A_MeasureExpiration!$E$12:$AS$12,0))) -> 0 | Y74: =Y$49*(1-INDEX(A_MeasureExpiration!$E$16:$AS$16,MATCH($C74,A_MeasureExpiration!$E$12:$AS$12,0))) -> 0 | Z74: =Z$49*(1-INDEX(A_MeasureExpiration!$E$16:$AS$16,MATCH($C74,A_MeasureExpiration!$E$12:$AS$12,0))) -> 0 | AA74: =AA$49*(1-INDEX(A_MeasureExpiration!$E$16:$AS$16,MATCH($C74,A_MeasureExpiration!$E$12:$AS$12,0))) -> 0 | AB74: =AB$49*(1-INDEX(A_MeasureExpiration!$E$16:$AS$16,MATCH($C74,A_MeasureExpiration!$E$12:$AS$12,0))) -> 0 | AC74: =AC$49*(1-INDEX(A_MeasureExpiration!$E$16:$AS$16,MATCH($C74,A_MeasureExpiration!$E$12:$AS$12,0))) -> 0 | AD74: =AD$49*(1-INDEX(A_MeasureExpiration!$E$16:$AS$16,MATCH($C74,A_MeasureExpiration!$E$12:$AS$12,0))) -> 0 | AE74: =AE$49*(1-INDEX(A_MeasureExpiration!$E$16:$AS$16,MATCH($C74,A_MeasureExpiration!$E$12:$AS$12,0))) -> 0 | AF74: =AF$49*(1-INDEX(A_MeasureExpiration!$E$16:$AS$16,MATCH($C74,A_MeasureExpiration!$E$12:$AS$12,0))) -> 0 | AG74: =AG$49*(1-INDEX(A_MeasureExpiration!$E$16:$AS$16,MATCH($C74,A_MeasureExpiration!$E$12:$AS$12,0))) -> 0 | AH74: =AH$49*(1-INDEX(A_MeasureExpiration!$E$16:$AS$16,MATCH($C74,A_MeasureExpiration!$E$12:$AS$12,0))) -> 0 | AI74: =AI$49*(1-INDEX(A_MeasureExpiration!$E$16:$AS$16,MATCH($C74,A_MeasureExpiration!$E$12:$AS$12,0))) -> 0 | AJ74: =AJ$49*(1-INDEX(A_MeasureExpiration!$E$16:$AS$16,MATCH($C74,A_MeasureExpiration!$E$12:$AS$12,0))) -> 0 | AK74: =AK$49*(1-INDEX(A_MeasureExpiration!$E$16:$AS$16,MATCH($C74,A_MeasureExpiration!$E$12:$AS$12,0))) -> 0 | AL74: =AL$49*(1-INDEX(A_MeasureExpiration!$E$16:$AS$16,MATCH($C74,A_MeasureExpiration!$E$12:$AS$12,0))) -> 0 | AM74: =AM$49*(1-INDEX(A_MeasureExpiration!$E$16:$AS$16,MATCH($C74,A_MeasureExpiration!$E$12:$AS$12,0))) -> 0 | AN74: =AN$49*(1-INDEX(A_MeasureExpiration!$E$16:$AS$16,MATCH($C74,A_MeasureExpiration!$E$12:$AS$12,0))) -> 0
C75: Year 20 | D75: MMBtu | F75: =F$49*(1-INDEX(A_MeasureExpiration!$E$16:$AS$16,MATCH($C75,A_MeasureExpiration!$E$12:$AS$12,0))) -> 0 | G75: =G$49*(1-INDEX(A_MeasureExpiration!$E$16:$AS$16,MATCH($C75,A_MeasureExpiration!$E$12:$AS$12,0))) -> 0 | H75: =H$49*(1-INDEX(A_MeasureExpiration!$E$16:$AS$16,MATCH($C75,A_MeasureExpiration!$E$12:$AS$12,0))) -> 0 | I75: =I$49*(1-INDEX(A_MeasureExpiration!$E$16:$AS$16,MATCH($C75,A_MeasureExpiration!$E$12:$AS$12,0))) -> 0 | J75: =J$49*(1-INDEX(A_MeasureExpiration!$E$16:$AS$16,MATCH($C75,A_MeasureExpiration!$E$12:$AS$12,0))) -> 0 | K75: =K$49*(1-INDEX(A_MeasureExpiration!$E$16:$AS$16,MATCH($C75,A_MeasureExpiration!$E$12:$AS$12,0))) -> 0 | L75: =L$49*(1-INDEX(A_MeasureExpiration!$E$16:$AS$16,MATCH($C75,A_MeasureExpiration!$E$12:$AS$12,0))) -> 0 | M75: =M$49*(1-INDEX(A_MeasureExpiration!$E$16:$AS$16,MATCH($C75,A_MeasureExpiration!$E$12:$AS$12,0))) -> 0 | N75: =N$49*(1-INDEX(A_MeasureExpiration!$E$16:$AS$16,MATCH($C75,A_MeasureExpiration!$E$12:$AS$12,0))) -> 0 | O75: =O$49*(1-INDEX(A_MeasureExpiration!$E$16:$AS$16,MATCH($C75,A_MeasureExpiration!$E$12:$AS$12,0))) -> 0 | P75: =P$49*(1-INDEX(A_MeasureExpiration!$E$16:$AS$16,MATCH($C75,A_MeasureExpiration!$E$12:$AS$12,0))) -> 0 | Q75: =Q$49*(1-INDEX(A_MeasureExpiration!$E$16:$AS$16,MATCH($C75,A_MeasureExpiration!$E$12:$AS$12,0))) -> 0 | R75: =R$49*(1-INDEX(A_MeasureExpiration!$E$16:$AS$16,MATCH($C75,A_MeasureExpiration!$E$12:$AS$12,0))) -> 0 | S75: =S$49*(1-INDEX(A_MeasureExpiration!$E$16:$AS$16,MATCH($C75,A_MeasureExpiration!$E$12:$AS$12,0))) -> 0 | T75: =T$49*(1-INDEX(A_MeasureExpiration!$E$16:$AS$16,MATCH($C75,A_MeasureExpiration!$E$12:$AS$12,0))) -> 0 | U75: =U$49*(1-INDEX(A_MeasureExpiration!$E$16:$AS$16,MATCH($C75,A_MeasureExpiration!$E$12:$AS$12,0))) -> 0 | V75: =V$49*(1-INDEX(A_MeasureExpiration!$E$16:$AS$16,MATCH($C75,A_MeasureExpiration!$E$12:$AS$12,0))) -> 0 | W75: =W$49*(1-INDEX(A_MeasureExpiration!$E$16:$AS$16,MATCH($C75,A_MeasureExpiration!$E$12:$AS$12,0))) -> 0 | X75: =X$49*(1-INDEX(A_MeasureExpiration!$E$16:$AS$16,MATCH($C75,A_MeasureExpiration!$E$12:$AS$12,0))) -> 0 | Y75: =Y$49*(1-INDEX(A_MeasureExpiration!$E$16:$AS$16,MATCH($C75,A_MeasureExpiration!$E$12:$AS$12,0))) -> 0 | Z75: =Z$49*(1-INDEX(A_MeasureExpiration!$E$16:$AS$16,MATCH($C75,A_MeasureExpiration!$E$12:$AS$12,0))) -> 0 | AA75: =AA$49*(1-INDEX(A_MeasureExpiration!$E$16:$AS$16,MATCH($C75,A_MeasureExpiration!$E$12:$AS$12,0))) -> 0 | AB75: =AB$49*(1-INDEX(A_MeasureExpiration!$E$16:$AS$16,MATCH($C75,A_MeasureExpiration!$E$12:$AS$12,0))) -> 0 | AC75: =AC$49*(1-INDEX(A_MeasureExpiration!$E$16:$AS$16,MATCH($C75,A_MeasureExpiration!$E$12:$AS$12,0))) -> 0 | AD75: =AD$49*(1-INDEX(A_MeasureExpiration!$E$16:$AS$16,MATCH($C75,A_MeasureExpiration!$E$12:$AS$12,0))) -> 0 | AE75: =AE$49*(1-INDEX(A_MeasureExpiration!$E$16:$AS$16,MATCH($C75,A_MeasureExpiration!$E$12:$AS$12,0))) -> 0 | AF75: =AF$49*(1-INDEX(A_MeasureExpiration!$E$16:$AS$16,MATCH($C75,A_MeasureExpiration!$E$12:$AS$12,0))) -> 0 | AG75: =AG$49*(1-INDEX(A_MeasureExpiration!$E$16:$AS$16,MATCH($C75,A_MeasureExpiration!$E$12:$AS$12,0))) -> 0 | AH75: =AH$49*(1-INDEX(A_MeasureExpiration!$E$16:$AS$16,MATCH($C75,A_MeasureExpiration!$E$12:$AS$12,0))) -> 0 | AI75: =AI$49*(1-INDEX(A_MeasureExpiration!$E$16:$AS$16,MATCH($C75,A_MeasureExpiration!$E$12:$AS$12,0))) -> 0 | AJ75: =AJ$49*(1-INDEX(A_MeasureExpiration!$E$16:$AS$16,MATCH($C75,A_MeasureExpiration!$E$12:$AS$12,0))) -> 0 | AK75: =AK$49*(1-INDEX(A_MeasureExpiration!$E$16:$AS$16,MATCH($C75,A_MeasureExpiration!$E$12:$AS$12,0))) -> 0 | AL75: =AL$49*(1-INDEX(A_MeasureExpiration!$E$16:$AS$16,MATCH($C75,A_MeasureExpiration!$E$12:$AS$12,0))) -> 0 | AM75: =AM$49*(1-INDEX(A_MeasureExpiration!$E$16:$AS$16,MATCH($C75,A_MeasureExpiration!$E$12:$AS$12,0))) -> 0 | AN75: =AN$49*(1-INDEX(A_MeasureExpiration!$E$16:$AS$16,MATCH($C75,A_MeasureExpiration!$E$12:$AS$12,0))) -> 0
C76: Year 21 | D76: MMBtu | F76: =F$49*(1-INDEX(A_MeasureExpiration!$E$16:$AS$16,MATCH($C76,A_MeasureExpiration!$E$12:$AS$12,0))) -> 0 | G76: =G$49*(1-INDEX(A_MeasureExpiration!$E$16:$AS$16,MATCH($C76,A_MeasureExpiration!$E$12:$AS$12,0))) -> 0 | H76: =H$49*(1-INDEX(A_MeasureExpiration!$E$16:$AS$16,MATCH($C76,A_MeasureExpiration!$E$12:$AS$12,0))) -> 0 | I76: =I$49*(1-INDEX(A_MeasureExpiration!$E$16:$AS$16,MATCH($C76,A_MeasureExpiration!$E$12:$AS$12,0))) -> 0 | J76: =J$49*(1-INDEX(A_MeasureExpiration!$E$16:$AS$16,MATCH($C76,A_MeasureExpiration!$E$12:$AS$12,0))) -> 0 | K76: =K$49*(1-INDEX(A_MeasureExpiration!$E$16:$AS$16,MATCH($C76,A_MeasureExpiration!$E$12:$AS$12,0))) -> 0 | L76: =L$49*(1-INDEX(A_MeasureExpiration!$E$16:$AS$16,MATCH($C76,A_MeasureExpiration!$E$12:$AS$12,0))) -> 0 | M76: =M$49*(1-INDEX(A_MeasureExpiration!$E$16:$AS$16,MATCH($C76,A_MeasureExpiration!$E$12:$AS$12,0))) -> 0 | N76: =N$49*(1-INDEX(A_MeasureExpiration!$E$16:$AS$16,MATCH($C76,A_MeasureExpiration!$E$12:$AS$12,0))) -> 0 | O76: =O$49*(1-INDEX(A_MeasureExpiration!$E$16:$AS$16,MATCH($C76,A_MeasureExpiration!$E$12:$AS$12,0))) -> 0 | P76: =P$49*(1-INDEX(A_MeasureExpiration!$E$16:$AS$16,MATCH($C76,A_MeasureExpiration!$E$12:$AS$12,0))) -> 0 | Q76: =Q$49*(1-INDEX(A_MeasureExpiration!$E$16:$AS$16,MATCH($C76,A_MeasureExpiration!$E$12:$AS$12,0))) -> 0 | R76: =R$49*(1-INDEX(A_MeasureExpiration!$E$16:$AS$16,MATCH($C76,A_MeasureExpiration!$E$12:$AS$12,0))) -> 0 | S76: =S$49*(1-INDEX(A_MeasureExpiration!$E$16:$AS$16,MATCH($C76,A_MeasureExpiration!$E$12:$AS$12,0))) -> 0 | T76: =T$49*(1-INDEX(A_MeasureExpiration!$E$16:$AS$16,MATCH($C76,A_MeasureExpiration!$E$12:$AS$12,0))) -> 0 | U76: =U$49*(1-INDEX(A_MeasureExpiration!$E$16:$AS$16,MATCH($C76,A_MeasureExpiration!$E$12:$AS$12,0))) -> 0 | V76: =V$49*(1-INDEX(A_MeasureExpiration!$E$16:$AS$16,MATCH($C76,A_MeasureExpiration!$E$12:$AS$12,0))) -> 0 | W76: =W$49*(1-INDEX(A_MeasureExpiration!$E$16:$AS$16,MATCH($C76,A_MeasureExpiration!$E$12:$AS$12,0))) -> 0 | X76: =X$49*(1-INDEX(A_MeasureExpiration!$E$16:$AS$16,MATCH($C76,A_MeasureExpiration!$E$12:$AS$12,0))) -> 0 | Y76: =Y$49*(1-INDEX(A_MeasureExpiration!$E$16:$AS$16,MATCH($C76,A_MeasureExpiration!$E$12:$AS$12,0))) -> 0 | Z76: =Z$49*(1-INDEX(A_MeasureExpiration!$E$16:$AS$16,MATCH($C76,A_MeasureExpiration!$E$12:$AS$12,0))) -> 0 | AA76: =AA$49*(1-INDEX(A_MeasureExpiration!$E$16:$AS$16,MATCH($C76,A_MeasureExpiration!$E$12:$AS$12,0))) -> 0 | AB76: =AB$49*(1-INDEX(A_MeasureExpiration!$E$16:$AS$16,MATCH($C76,A_MeasureExpiration!$E$12:$AS$12,0))) -> 0 | AC76: =AC$49*(1-INDEX(A_MeasureExpiration!$E$16:$AS$16,MATCH($C76,A_MeasureExpiration!$E$12:$AS$12,0))) -> 0 | AD76: =AD$49*(1-INDEX(A_MeasureExpiration!$E$16:$AS$16,MATCH($C76,A_MeasureExpiration!$E$12:$AS$12,0))) -> 0 | AE76: =AE$49*(1-INDEX(A_MeasureExpiration!$E$16:$AS$16,MATCH($C76,A_MeasureExpiration!$E$12:$AS$12,0))) -> 0 | AF76: =AF$49*(1-INDEX(A_MeasureExpiration!$E$16:$AS$16,MATCH($C76,A_MeasureExpiration!$E$12:$AS$12,0))) -> 0 | AG76: =AG$49*(1-INDEX(A_MeasureExpiration!$E$16:$AS$16,MATCH($C76,A_MeasureExpiration!$E$12:$AS$12,0))) -> 0 | AH76: =AH$49*(1-INDEX(A_MeasureExpiration!$E$16:$AS$16,MATCH($C76,A_MeasureExpiration!$E$12:$AS$12,0))) -> 0 | AI76: =AI$49*(1-INDEX(A_MeasureExpiration!$E$16:$AS$16,MATCH($C76,A_MeasureExpiration!$E$12:$AS$12,0))) -> 0 | AJ76: =AJ$49*(1-INDEX(A_MeasureExpiration!$E$16:$AS$16,MATCH($C76,A_MeasureExpiration!$E$12:$AS$12,0))) -> 0 | AK76: =AK$49*(1-INDEX(A_MeasureExpiration!$E$16:$AS$16,MATCH($C76,A_MeasureExpiration!$E$12:$AS$12,0))) -> 0 | AL76: =AL$49*(1-INDEX(A_MeasureExpiration!$E$16:$AS$16,MATCH($C76,A_MeasureExpiration!$E$12:$AS$12,0))) -> 0 | AM76: =AM$49*(1-INDEX(A_MeasureExpiration!$E$16:$AS$16,MATCH($C76,A_MeasureExpiration!$E$12:$AS$12,0))) -> 0 | AN76: =AN$49*(1-INDEX(A_MeasureExpiration!$E$16:$AS$16,MATCH($C76,A_MeasureExpiration!$E$12:$AS$12,0))) -> 0
C77: Year 22 | D77: MMBtu | F77: =F$49*(1-INDEX(A_MeasureExpiration!$E$16:$AS$16,MATCH($C77,A_MeasureExpiration!$E$12:$AS$12,0))) -> 0 | G77: =G$49*(1-INDEX(A_MeasureExpiration!$E$16:$AS$16,MATCH($C77,A_MeasureExpiration!$E$12:$AS$12,0))) -> 0 | H77: =H$49*(1-INDEX(A_MeasureExpiration!$E$16:$AS$16,MATCH($C77,A_MeasureExpiration!$E$12:$AS$12,0))) -> 0 | I77: =I$49*(1-INDEX(A_MeasureExpiration!$E$16:$AS$16,MATCH($C77,A_MeasureExpiration!$E$12:$AS$12,0))) -> 0 | J77: =J$49*(1-INDEX(A_MeasureExpiration!$E$16:$AS$16,MATCH($C77,A_MeasureExpiration!$E$12:$AS$12,0))) -> 0 | K77: =K$49*(1-INDEX(A_MeasureExpiration!$E$16:$AS$16,MATCH($C77,A_MeasureExpiration!$E$12:$AS$12,0))) -> 0 | L77: =L$49*(1-INDEX(A_MeasureExpiration!$E$16:$AS$16,MATCH($C77,A_MeasureExpiration!$E$12:$AS$12,0))) -> 0 | M77: =M$49*(1-INDEX(A_MeasureExpiration!$E$16:$AS$16,MATCH($C77,A_MeasureExpiration!$E$12:$AS$12,0))) -> 0 | N77: =N$49*(1-INDEX(A_MeasureExpiration!$E$16:$AS$16,MATCH($C77,A_MeasureExpiration!$E$12:$AS$12,0))) -> 0 | O77: =O$49*(1-INDEX(A_MeasureExpiration!$E$16:$AS$16,MATCH($C77,A_MeasureExpiration!$E$12:$AS$12,0))) -> 0 | P77: =P$49*(1-INDEX(A_MeasureExpiration!$E$16:$AS$16,MATCH($C77,A_MeasureExpiration!$E$12:$AS$12,0))) -> 0 | Q77: =Q$49*(1-INDEX(A_MeasureExpiration!$E$16:$AS$16,MATCH($C77,A_MeasureExpiration!$E$12:$AS$12,0))) -> 0 | R77: =R$49*(1-INDEX(A_MeasureExpiration!$E$16:$AS$16,MATCH($C77,A_MeasureExpiration!$E$12:$AS$12,0))) -> 0 | S77: =S$49*(1-INDEX(A_MeasureExpiration!$E$16:$AS$16,MATCH($C77,A_MeasureExpiration!$E$12:$AS$12,0))) -> 0 | T77: =T$49*(1-INDEX(A_MeasureExpiration!$E$16:$AS$16,MATCH($C77,A_MeasureExpiration!$E$12:$AS$12,0))) -> 0 | U77: =U$49*(1-INDEX(A_MeasureExpiration!$E$16:$AS$16,MATCH($C77,A_MeasureExpiration!$E$12:$AS$12,0))) -> 0 | V77: =V$49*(1-INDEX(A_MeasureExpiration!$E$16:$AS$16,MATCH($C77,A_MeasureExpiration!$E$12:$AS$12,0))) -> 0 | W77: =W$49*(1-INDEX(A_MeasureExpiration!$E$16:$AS$16,MATCH($C77,A_MeasureExpiration!$E$12:$AS$12,0))) -> 0 | X77: =X$49*(1-INDEX(A_MeasureExpiration!$E$16:$AS$16,MATCH($C77,A_MeasureExpiration!$E$12:$AS$12,0))) -> 0 | Y77: =Y$49*(1-INDEX(A_MeasureExpiration!$E$16:$AS$16,MATCH($C77,A_MeasureExpiration!$E$12:$AS$12,0))) -> 0 | Z77: =Z$49*(1-INDEX(A_MeasureExpiration!$E$16:$AS$16,MATCH($C77,A_MeasureExpiration!$E$12:$AS$12,0))) -> 0 | AA77: =AA$49*(1-INDEX(A_MeasureExpiration!$E$16:$AS$16,MATCH($C77,A_MeasureExpiration!$E$12:$AS$12,0))) -> 0 | AB77: =AB$49*(1-INDEX(A_MeasureExpiration!$E$16:$AS$16,MATCH($C77,A_MeasureExpiration!$E$12:$AS$12,0))) -> 0 | AC77: =AC$49*(1-INDEX(A_MeasureExpiration!$E$16:$AS$16,MATCH($C77,A_MeasureExpiration!$E$12:$AS$12,0))) -> 0 | AD77: =AD$49*(1-INDEX(A_MeasureExpiration!$E$16:$AS$16,MATCH($C77,A_MeasureExpiration!$E$12:$AS$12,0))) -> 0 | AE77: =AE$49*(1-INDEX(A_MeasureExpiration!$E$16:$AS$16,MATCH($C77,A_MeasureExpiration!$E$12:$AS$12,0))) -> 0 | AF77: =AF$49*(1-INDEX(A_MeasureExpiration!$E$16:$AS$16,MATCH($C77,A_MeasureExpiration!$E$12:$AS$12,0))) -> 0 | AG77: =AG$49*(1-INDEX(A_MeasureExpiration!$E$16:$AS$16,MATCH($C77,A_MeasureExpiration!$E$12:$AS$12,0))) -> 0 | AH77: =AH$49*(1-INDEX(A_MeasureExpiration!$E$16:$AS$16,MATCH($C77,A_MeasureExpiration!$E$12:$AS$12,0))) -> 0 | AI77: =AI$49*(1-INDEX(A_MeasureExpiration!$E$16:$AS$16,MATCH($C77,A_MeasureExpiration!$E$12:$AS$12,0))) -> 0 | AJ77: =AJ$49*(1-INDEX(A_MeasureExpiration!$E$16:$AS$16,MATCH($C77,A_MeasureExpiration!$E$12:$AS$12,0))) -> 0 | AK77: =AK$49*(1-INDEX(A_MeasureExpiration!$E$16:$AS$16,MATCH($C77,A_MeasureExpiration!$E$12:$AS$12,0))) -> 0 | AL77: =AL$49*(1-INDEX(A_MeasureExpiration!$E$16:$AS$16,MATCH($C77,A_MeasureExpiration!$E$12:$AS$12,0))) -> 0 | AM77: =AM$49*(1-INDEX(A_MeasureExpiration!$E$16:$AS$16,MATCH($C77,A_MeasureExpiration!$E$12:$AS$12,0))) -> 0 | AN77: =AN$49*(1-INDEX(A_MeasureExpiration!$E$16:$AS$16,MATCH($C77,A_MeasureExpiration!$E$12:$AS$12,0))) -> 0
C78: Year 23 | D78: MMBtu | F78: =F$49*(1-INDEX(A_MeasureExpiration!$E$16:$AS$16,MATCH($C78,A_MeasureExpiration!$E$12:$AS$12,0))) -> 0 | G78: =G$49*(1-INDEX(A_MeasureExpiration!$E$16:$AS$16,MATCH($C78,A_MeasureExpiration!$E$12:$AS$12,0))) -> 0 | H78: =H$49*(1-INDEX(A_MeasureExpiration!$E$16:$AS$16,MATCH($C78,A_MeasureExpiration!$E$12:$AS$12,0))) -> 0 | I78: =I$49*(1-INDEX(A_MeasureExpiration!$E$16:$AS$16,MATCH($C78,A_MeasureExpiration!$E$12:$AS$12,0))) -> 0 | J78: =J$49*(1-INDEX(A_MeasureExpiration!$E$16:$AS$16,MATCH($C78,A_MeasureExpiration!$E$12:$AS$12,0))) -> 0 | K78: =K$49*(1-INDEX(A_MeasureExpiration!$E$16:$AS$16,MATCH($C78,A_MeasureExpiration!$E$12:$AS$12,0))) -> 0 | L78: =L$49*(1-INDEX(A_MeasureExpiration!$E$16:$AS$16,MATCH($C78,A_MeasureExpiration!$E$12:$AS$12,0))) -> 0 | M78: =M$49*(1-INDEX(A_MeasureExpiration!$E$16:$AS$16,MATCH($C78,A_MeasureExpiration!$E$12:$AS$12,0))) -> 0 | N78: =N$49*(1-INDEX(A_MeasureExpiration!$E$16:$AS$16,MATCH($C78,A_MeasureExpiration!$E$12:$AS$12,0))) -> 0 | O78: =O$49*(1-INDEX(A_MeasureExpiration!$E$16:$AS$16,MATCH($C78,A_MeasureExpiration!$E$12:$AS$12,0))) -> 0 | P78: =P$49*(1-INDEX(A_MeasureExpiration!$E$16:$AS$16,MATCH($C78,A_MeasureExpiration!$E$12:$AS$12,0))) -> 0 | Q78: =Q$49*(1-INDEX(A_MeasureExpiration!$E$16:$AS$16,MATCH($C78,A_MeasureExpiration!$E$12:$AS$12,0))) -> 0 | R78: =R$49*(1-INDEX(A_MeasureExpiration!$E$16:$AS$16,MATCH($C78,A_MeasureExpiration!$E$12:$AS$12,0))) -> 0 | S78: =S$49*(1-INDEX(A_MeasureExpiration!$E$16:$AS$16,MATCH($C78,A_MeasureExpiration!$E$12:$AS$12,0))) -> 0 | T78: =T$49*(1-INDEX(A_MeasureExpiration!$E$16:$AS$16,MATCH($C78,A_MeasureExpiration!$E$12:$AS$12,0))) -> 0 | U78: =U$49*(1-INDEX(A_MeasureExpiration!$E$16:$AS$16,MATCH($C78,A_MeasureExpiration!$E$12:$AS$12,0))) -> 0 | V78: =V$49*(1-INDEX(A_MeasureExpiration!$E$16:$AS$16,MATCH($C78,A_MeasureExpiration!$E$12:$AS$12,0))) -> 0 | W78: =W$49*(1-INDEX(A_MeasureExpiration!$E$16:$AS$16,MATCH($C78,A_MeasureExpiration!$E$12:$AS$12,0))) -> 0 | X78: =X$49*(1-INDEX(A_MeasureExpiration!$E$16:$AS$16,MATCH($C78,A_MeasureExpiration!$E$12:$AS$12,0))) -> 0 | Y78: =Y$49*(1-INDEX(A_MeasureExpiration!$E$16:$AS$16,MATCH($C78,A_MeasureExpiration!$E$12:$AS$12,0))) -> 0 | Z78: =Z$49*(1-INDEX(A_MeasureExpiration!$E$16:$AS$16,MATCH($C78,A_MeasureExpiration!$E$12:$AS$12,0))) -> 0 | AA78: =AA$49*(1-INDEX(A_MeasureExpiration!$E$16:$AS$16,MATCH($C78,A_MeasureExpiration!$E$12:$AS$12,0))) -> 0 | AB78: =AB$49*(1-INDEX(A_MeasureExpiration!$E$16:$AS$16,MATCH($C78,A_MeasureExpiration!$E$12:$AS$12,0))) -> 0 | AC78: =AC$49*(1-INDEX(A_MeasureExpiration!$E$16:$AS$16,MATCH($C78,A_MeasureExpiration!$E$12:$AS$12,0))) -> 0 | AD78: =AD$49*(1-INDEX(A_MeasureExpiration!$E$16:$AS$16,MATCH($C78,A_MeasureExpiration!$E$12:$AS$12,0))) -> 0 | AE78: =AE$49*(1-INDEX(A_MeasureExpiration!$E$16:$AS$16,MATCH($C78,A_MeasureExpiration!$E$12:$AS$12,0))) -> 0 | AF78: =AF$49*(1-INDEX(A_MeasureExpiration!$E$16:$AS$16,MATCH($C78,A_MeasureExpiration!$E$12:$AS$12,0))) -> 0 | AG78: =AG$49*(1-INDEX(A_MeasureExpiration!$E$16:$AS$16,MATCH($C78,A_MeasureExpiration!$E$12:$AS$12,0))) -> 0 | AH78: =AH$49*(1-INDEX(A_MeasureExpiration!$E$16:$AS$16,MATCH($C78,A_MeasureExpiration!$E$12:$AS$12,0))) -> 0 | AI78: =AI$49*(1-INDEX(A_MeasureExpiration!$E$16:$AS$16,MATCH($C78,A_MeasureExpiration!$E$12:$AS$12,0))) -> 0 | AJ78: =AJ$49*(1-INDEX(A_MeasureExpiration!$E$16:$AS$16,MATCH($C78,A_MeasureExpiration!$E$12:$AS$12,0))) -> 0 | AK78: =AK$49*(1-INDEX(A_MeasureExpiration!$E$16:$AS$16,MATCH($C78,A_MeasureExpiration!$E$12:$AS$12,0))) -> 0 | AL78: =AL$49*(1-INDEX(A_MeasureExpiration!$E$16:$AS$16,MATCH($C78,A_MeasureExpiration!$E$12:$AS$12,0))) -> 0 | AM78: =AM$49*(1-INDEX(A_MeasureExpiration!$E$16:$AS$16,MATCH($C78,A_MeasureExpiration!$E$12:$AS$12,0))) -> 0 | AN78: =AN$49*(1-INDEX(A_MeasureExpiration!$E$16:$AS$16,MATCH($C78,A_MeasureExpiration!$E$12:$AS$12,0))) -> 0
C79: Year 24 | D79: MMBtu | F79: =F$49*(1-INDEX(A_MeasureExpiration!$E$16:$AS$16,MATCH($C79,A_MeasureExpiration!$E$12:$AS$12,0))) -> 0 | G79: =G$49*(1-INDEX(A_MeasureExpiration!$E$16:$AS$16,MATCH($C79,A_MeasureExpiration!$E$12:$AS$12,0))) -> 0 | H79: =H$49*(1-INDEX(A_MeasureExpiration!$E$16:$AS$16,MATCH($C79,A_MeasureExpiration!$E$12:$AS$12,0))) -> 0 | I79: =I$49*(1-INDEX(A_MeasureExpiration!$E$16:$AS$16,MATCH($C79,A_MeasureExpiration!$E$12:$AS$12,0))) -> 0 | J79: =J$49*(1-INDEX(A_MeasureExpiration!$E$16:$AS$16,MATCH($C79,A_MeasureExpiration!$E$12:$AS$12,0))) -> 0 | K79: =K$49*(1-INDEX(A_MeasureExpiration!$E$16:$AS$16,MATCH($C79,A_MeasureExpiration!$E$12:$AS$12,0))) -> 0 | L79: =L$49*(1-INDEX(A_MeasureExpiration!$E$16:$AS$16,MATCH($C79,A_MeasureExpiration!$E$12:$AS$12,0))) -> 0 | M79: =M$49*(1-INDEX(A_MeasureExpiration!$E$16:$AS$16,MATCH($C79,A_MeasureExpiration!$E$12:$AS$12,0))) -> 0 | N79: =N$49*(1-INDEX(A_MeasureExpiration!$E$16:$AS$16,MATCH($C79,A_MeasureExpiration!$E$12:$AS$12,0))) -> 0 | O79: =O$49*(1-INDEX(A_MeasureExpiration!$E$16:$AS$16,MATCH($C79,A_MeasureExpiration!$E$12:$AS$12,0))) -> 0 | P79: =P$49*(1-INDEX(A_MeasureExpiration!$E$16:$AS$16,MATCH($C79,A_MeasureExpiration!$E$12:$AS$12,0))) -> 0 | Q79: =Q$49*(1-INDEX(A_MeasureExpiration!$E$16:$AS$16,MATCH($C79,A_MeasureExpiration!$E$12:$AS$12,0))) -> 0 | R79: =R$49*(1-INDEX(A_MeasureExpiration!$E$16:$AS$16,MATCH($C79,A_MeasureExpiration!$E$12:$AS$12,0))) -> 0 | S79: =S$49*(1-INDEX(A_MeasureExpiration!$E$16:$AS$16,MATCH($C79,A_MeasureExpiration!$E$12:$AS$12,0))) -> 0 | T79: =T$49*(1-INDEX(A_MeasureExpiration!$E$16:$AS$16,MATCH($C79,A_MeasureExpiration!$E$12:$AS$12,0))) -> 0 | U79: =U$49*(1-INDEX(A_MeasureExpiration!$E$16:$AS$16,MATCH($C79,A_MeasureExpiration!$E$12:$AS$12,0))) -> 0 | V79: =V$49*(1-INDEX(A_MeasureExpiration!$E$16:$AS$16,MATCH($C79,A_MeasureExpiration!$E$12:$AS$12,0))) -> 0 | W79: =W$49*(1-INDEX(A_MeasureExpiration!$E$16:$AS$16,MATCH($C79,A_MeasureExpiration!$E$12:$AS$12,0))) -> 0 | X79: =X$49*(1-INDEX(A_MeasureExpiration!$E$16:$AS$16,MATCH($C79,A_MeasureExpiration!$E$12:$AS$12,0))) -> 0 | Y79: =Y$49*(1-INDEX(A_MeasureExpiration!$E$16:$AS$16,MATCH($C79,A_MeasureExpiration!$E$12:$AS$12,0))) -> 0 | Z79: =Z$49*(1-INDEX(A_MeasureExpiration!$E$16:$AS$16,MATCH($C79,A_MeasureExpiration!$E$12:$AS$12,0))) -> 0 | AA79: =AA$49*(1-INDEX(A_MeasureExpiration!$E$16:$AS$16,MATCH($C79,A_MeasureExpiration!$E$12:$AS$12,0))) -> 0 | AB79: =AB$49*(1-INDEX(A_MeasureExpiration!$E$16:$AS$16,MATCH($C79,A_MeasureExpiration!$E$12:$AS$12,0))) -> 0 | AC79: =AC$49*(1-INDEX(A_MeasureExpiration!$E$16:$AS$16,MATCH($C79,A_MeasureExpiration!$E$12:$AS$12,0))) -> 0 | AD79: =AD$49*(1-INDEX(A_MeasureExpiration!$E$16:$AS$16,MATCH($C79,A_MeasureExpiration!$E$12:$AS$12,0))) -> 0 | AE79: =AE$49*(1-INDEX(A_MeasureExpiration!$E$16:$AS$16,MATCH($C79,A_MeasureExpiration!$E$12:$AS$12,0))) -> 0 | AF79: =AF$49*(1-INDEX(A_MeasureExpiration!$E$16:$AS$16,MATCH($C79,A_MeasureExpiration!$E$12:$AS$12,0))) -> 0 | AG79: =AG$49*(1-INDEX(A_MeasureExpiration!$E$16:$AS$16,MATCH($C79,A_MeasureExpiration!$E$12:$AS$12,0))) -> 0 | AH79: =AH$49*(1-INDEX(A_MeasureExpiration!$E$16:$AS$16,MATCH($C79,A_MeasureExpiration!$E$12:$AS$12,0))) -> 0 | AI79: =AI$49*(1-INDEX(A_MeasureExpiration!$E$16:$AS$16,MATCH($C79,A_MeasureExpiration!$E$12:$AS$12,0))) -> 0 | AJ79: =AJ$49*(1-INDEX(A_MeasureExpiration!$E$16:$AS$16,MATCH($C79,A_MeasureExpiration!$E$12:$AS$12,0))) -> 0 | AK79: =AK$49*(1-INDEX(A_MeasureExpiration!$E$16:$AS$16,MATCH($C79,A_MeasureExpiration!$E$12:$AS$12,0))) -> 0 | AL79: =AL$49*(1-INDEX(A_MeasureExpiration!$E$16:$AS$16,MATCH($C79,A_MeasureExpiration!$E$12:$AS$12,0))) -> 0 | AM79: =AM$49*(1-INDEX(A_MeasureExpiration!$E$16:$AS$16,MATCH($C79,A_MeasureExpiration!$E$12:$AS$12,0))) -> 0 | AN79: =AN$49*(1-INDEX(A_MeasureExpiration!$E$16:$AS$16,MATCH($C79,A_MeasureExpiration!$E$12:$AS$12,0))) -> 0
C80: Year 25 | D80: MMBtu | F80: =F$49*(1-INDEX(A_MeasureExpiration!$E$16:$AS$16,MATCH($C80,A_MeasureExpiration!$E$12:$AS$12,0))) -> 0 | G80: =G$49*(1-INDEX(A_MeasureExpiration!$E$16:$AS$16,MATCH($C80,A_MeasureExpiration!$E$12:$AS$12,0))) -> 0 | H80: =H$49*(1-INDEX(A_MeasureExpiration!$E$16:$AS$16,MATCH($C80,A_MeasureExpiration!$E$12:$AS$12,0))) -> 0 | I80: =I$49*(1-INDEX(A_MeasureExpiration!$E$16:$AS$16,MATCH($C80,A_MeasureExpiration!$E$12:$AS$12,0))) -> 0 | J80: =J$49*(1-INDEX(A_MeasureExpiration!$E$16:$AS$16,MATCH($C80,A_MeasureExpiration!$E$12:$AS$12,0))) -> 0 | K80: =K$49*(1-INDEX(A_MeasureExpiration!$E$16:$AS$16,MATCH($C80,A_MeasureExpiration!$E$12:$AS$12,0))) -> 0 | L80: =L$49*(1-INDEX(A_MeasureExpiration!$E$16:$AS$16,MATCH($C80,A_MeasureExpiration!$E$12:$AS$12,0))) -> 0 | M80: =M$49*(1-INDEX(A_MeasureExpiration!$E$16:$AS$16,MATCH($C80,A_MeasureExpiration!$E$12:$AS$12,0))) -> 0 | N80: =N$49*(1-INDEX(A_MeasureExpiration!$E$16:$AS$16,MATCH($C80,A_MeasureExpiration!$E$12:$AS$12,0))) -> 0 | O80: =O$49*(1-INDEX(A_MeasureExpiration!$E$16:$AS$16,MATCH($C80,A_MeasureExpiration!$E$12:$AS$12,0))) -> 0 | P80: =P$49*(1-INDEX(A_MeasureExpiration!$E$16:$AS$16,MATCH($C80,A_MeasureExpiration!$E$12:$AS$12,0))) -> 0 | Q80: =Q$49*(1-INDEX(A_MeasureExpiration!$E$16:$AS$16,MATCH($C80,A_MeasureExpiration!$E$12:$AS$12,0))) -> 0 | R80: =R$49*(1-INDEX(A_MeasureExpiration!$E$16:$AS$16,MATCH($C80,A_MeasureExpiration!$E$12:$AS$12,0))) -> 0 | S80: =S$49*(1-INDEX(A_MeasureExpiration!$E$16:$AS$16,MATCH($C80,A_MeasureExpiration!$E$12:$AS$12,0))) -> 0 | T80: =T$49*(1-INDEX(A_MeasureExpiration!$E$16:$AS$16,MATCH($C80,A_MeasureExpiration!$E$12:$AS$12,0))) -> 0 | U80: =U$49*(1-INDEX(A_MeasureExpiration!$E$16:$AS$16,MATCH($C80,A_MeasureExpiration!$E$12:$AS$12,0))) -> 0 | V80: =V$49*(1-INDEX(A_MeasureExpiration!$E$16:$AS$16,MATCH($C80,A_MeasureExpiration!$E$12:$AS$12,0))) -> 0 | W80: =W$49*(1-INDEX(A_MeasureExpiration!$E$16:$AS$16,MATCH($C80,A_MeasureExpiration!$E$12:$AS$12,0))) -> 0 | X80: =X$49*(1-INDEX(A_MeasureExpiration!$E$16:$AS$16,MATCH($C80,A_MeasureExpiration!$E$12:$AS$12,0))) -> 0 | Y80: =Y$49*(1-INDEX(A_MeasureExpiration!$E$16:$AS$16,MATCH($C80,A_MeasureExpiration!$E$12:$AS$12,0))) -> 0 | Z80: =Z$49*(1-INDEX(A_MeasureExpiration!$E$16:$AS$16,MATCH($C80,A_MeasureExpiration!$E$12:$AS$12,0))) -> 0 | AA80: =AA$49*(1-INDEX(A_MeasureExpiration!$E$16:$AS$16,MATCH($C80,A_MeasureExpiration!$E$12:$AS$12,0))) -> 0 | AB80: =AB$49*(1-INDEX(A_MeasureExpiration!$E$16:$AS$16,MATCH($C80,A_MeasureExpiration!$E$12:$AS$12,0))) -> 0 | AC80: =AC$49*(1-INDEX(A_MeasureExpiration!$E$16:$AS$16,MATCH($C80,A_MeasureExpiration!$E$12:$AS$12,0))) -> 0 | AD80: =AD$49*(1-INDEX(A_MeasureExpiration!$E$16:$AS$16,MATCH($C80,A_MeasureExpiration!$E$12:$AS$12,0))) -> 0 | AE80: =AE$49*(1-INDEX(A_MeasureExpiration!$E$16:$AS$16,MATCH($C80,A_MeasureExpiration!$E$12:$AS$12,0))) -> 0 | AF80: =AF$49*(1-INDEX(A_MeasureExpiration!$E$16:$AS$16,MATCH($C80,A_MeasureExpiration!$E$12:$AS$12,0))) -> 0 | AG80: =AG$49*(1-INDEX(A_MeasureExpiration!$E$16:$AS$16,MATCH($C80,A_MeasureExpiration!$E$12:$AS$12,0))) -> 0 | AH80: =AH$49*(1-INDEX(A_MeasureExpiration!$E$16:$AS$16,MATCH($C80,A_MeasureExpiration!$E$12:$AS$12,0))) -> 0 | AI80: =AI$49*(1-INDEX(A_MeasureExpiration!$E$16:$AS$16,MATCH($C80,A_MeasureExpiration!$E$12:$AS$12,0))) -> 0 | AJ80: =AJ$49*(1-INDEX(A_MeasureExpiration!$E$16:$AS$16,MATCH($C80,A_MeasureExpiration!$E$12:$AS$12,0))) -> 0 | AK80: =AK$49*(1-INDEX(A_MeasureExpiration!$E$16:$AS$16,MATCH($C80,A_MeasureExpiration!$E$12:$AS$12,0))) -> 0 | AL80: =AL$49*(1-INDEX(A_MeasureExpiration!$E$16:$AS$16,MATCH($C80,A_MeasureExpiration!$E$12:$AS$12,0))) -> 0 | AM80: =AM$49*(1-INDEX(A_MeasureExpiration!$E$16:$AS$16,MATCH($C80,A_MeasureExpiration!$E$12:$AS$12,0))) -> 0 | AN80: =AN$49*(1-INDEX(A_MeasureExpiration!$E$16:$AS$16,MATCH($C80,A_MeasureExpiration!$E$12:$AS$12,0))) -> 0
C81: Year 26 | D81: MMBtu | F81: =F$49*(1-INDEX(A_MeasureExpiration!$E$16:$AS$16,MATCH($C81,A_MeasureExpiration!$E$12:$AS$12,0))) -> 0 | G81: =G$49*(1-INDEX(A_MeasureExpiration!$E$16:$AS$16,MATCH($C81,A_MeasureExpiration!$E$12:$AS$12,0))) -> 0 | H81: =H$49*(1-INDEX(A_MeasureExpiration!$E$16:$AS$16,MATCH($C81,A_MeasureExpiration!$E$12:$AS$12,0))) -> 0 | I81: =I$49*(1-INDEX(A_MeasureExpiration!$E$16:$AS$16,MATCH($C81,A_MeasureExpiration!$E$12:$AS$12,0))) -> 0 | J81: =J$49*(1-INDEX(A_MeasureExpiration!$E$16:$AS$16,MATCH($C81,A_MeasureExpiration!$E$12:$AS$12,0))) -> 0 | K81: =K$49*(1-INDEX(A_MeasureExpiration!$E$16:$AS$16,MATCH($C81,A_MeasureExpiration!$E$12:$AS$12,0))) -> 0 | L81: =L$49*(1-INDEX(A_MeasureExpiration!$E$16:$AS$16,MATCH($C81,A_MeasureExpiration!$E$12:$AS$12,0))) -> 0 | M81: =M$49*(1-INDEX(A_MeasureExpiration!$E$16:$AS$16,MATCH($C81,A_MeasureExpiration!$E$12:$AS$12,0))) -> 0 | N81: =N$49*(1-INDEX(A_MeasureExpiration!$E$16:$AS$16,MATCH($C81,A_MeasureExpiration!$E$12:$AS$12,0))) -> 0 | O81: =O$49*(1-INDEX(A_MeasureExpiration!$E$16:$AS$16,MATCH($C81,A_MeasureExpiration!$E$12:$AS$12,0))) -> 0 | P81: =P$49*(1-INDEX(A_MeasureExpiration!$E$16:$AS$16,MATCH($C81,A_MeasureExpiration!$E$12:$AS$12,0))) -> 0 | Q81: =Q$49*(1-INDEX(A_MeasureExpiration!$E$16:$AS$16,MATCH($C81,A_MeasureExpiration!$E$12:$AS$12,0))) -> 0 | R81: =R$49*(1-INDEX(A_MeasureExpiration!$E$16:$AS$16,MATCH($C81,A_MeasureExpiration!$E$12:$AS$12,0))) -> 0 | S81: =S$49*(1-INDEX(A_MeasureExpiration!$E$16:$AS$16,MATCH($C81,A_MeasureExpiration!$E$12:$AS$12,0))) -> 0 | T81: =T$49*(1-INDEX(A_MeasureExpiration!$E$16:$AS$16,MATCH($C81,A_MeasureExpiration!$E$12:$AS$12,0))) -> 0 | U81: =U$49*(1-INDEX(A_MeasureExpiration!$E$16:$AS$16,MATCH($C81,A_MeasureExpiration!$E$12:$AS$12,0))) -> 0 | V81: =V$49*(1-INDEX(A_MeasureExpiration!$E$16:$AS$16,MATCH($C81,A_MeasureExpiration!$E$12:$AS$12,0))) -> 0 | W81: =W$49*(1-INDEX(A_MeasureExpiration!$E$16:$AS$16,MATCH($C81,A_MeasureExpiration!$E$12:$AS$12,0))) -> 0 | X81: =X$49*(1-INDEX(A_MeasureExpiration!$E$16:$AS$16,MATCH($C81,A_MeasureExpiration!$E$12:$AS$12,0))) -> 0 | Y81: =Y$49*(1-INDEX(A_MeasureExpiration!$E$16:$AS$16,MATCH($C81,A_MeasureExpiration!$E$12:$AS$12,0))) -> 0 | Z81: =Z$49*(1-INDEX(A_MeasureExpiration!$E$16:$AS$16,MATCH($C81,A_MeasureExpiration!$E$12:$AS$12,0))) -> 0 | AA81: =AA$49*(1-INDEX(A_MeasureExpiration!$E$16:$AS$16,MATCH($C81,A_MeasureExpiration!$E$12:$AS$12,0))) -> 0 | AB81: =AB$49*(1-INDEX(A_MeasureExpiration!$E$16:$AS$16,MATCH($C81,A_MeasureExpiration!$E$12:$AS$12,0))) -> 0 | AC81: =AC$49*(1-INDEX(A_MeasureExpiration!$E$16:$AS$16,MATCH($C81,A_MeasureExpiration!$E$12:$AS$12,0))) -> 0 | AD81: =AD$49*(1-INDEX(A_MeasureExpiration!$E$16:$AS$16,MATCH($C81,A_MeasureExpiration!$E$12:$AS$12,0))) -> 0 | AE81: =AE$49*(1-INDEX(A_MeasureExpiration!$E$16:$AS$16,MATCH($C81,A_MeasureExpiration!$E$12:$AS$12,0))) -> 0 | AF81: =AF$49*(1-INDEX(A_MeasureExpiration!$E$16:$AS$16,MATCH($C81,A_MeasureExpiration!$E$12:$AS$12,0))) -> 0 | AG81: =AG$49*(1-INDEX(A_MeasureExpiration!$E$16:$AS$16,MATCH($C81,A_MeasureExpiration!$E$12:$AS$12,0))) -> 0 | AH81: =AH$49*(1-INDEX(A_MeasureExpiration!$E$16:$AS$16,MATCH($C81,A_MeasureExpiration!$E$12:$AS$12,0))) -> 0 | AI81: =AI$49*(1-INDEX(A_MeasureExpiration!$E$16:$AS$16,MATCH($C81,A_MeasureExpiration!$E$12:$AS$12,0))) -> 0 | AJ81: =AJ$49*(1-INDEX(A_MeasureExpiration!$E$16:$AS$16,MATCH($C81,A_MeasureExpiration!$E$12:$AS$12,0))) -> 0 | AK81: =AK$49*(1-INDEX(A_MeasureExpiration!$E$16:$AS$16,MATCH($C81,A_MeasureExpiration!$E$12:$AS$12,0))) -> 0 | AL81: =AL$49*(1-INDEX(A_MeasureExpiration!$E$16:$AS$16,MATCH($C81,A_MeasureExpiration!$E$12:$AS$12,0))) -> 0 | AM81: =AM$49*(1-INDEX(A_MeasureExpiration!$E$16:$AS$16,MATCH($C81,A_MeasureExpiration!$E$12:$AS$12,0))) -> 0 | AN81: =AN$49*(1-INDEX(A_MeasureExpiration!$E$16:$AS$16,MATCH($C81,A_MeasureExpiration!$E$12:$AS$12,0))) -> 0
C82: Year 27 | D82: MMBtu | F82: =F$49*(1-INDEX(A_MeasureExpiration!$E$16:$AS$16,MATCH($C82,A_MeasureExpiration!$E$12:$AS$12,0))) -> 0 | G82: =G$49*(1-INDEX(A_MeasureExpiration!$E$16:$AS$16,MATCH($C82,A_MeasureExpiration!$E$12:$AS$12,0))) -> 0 | H82: =H$49*(1-INDEX(A_MeasureExpiration!$E$16:$AS$16,MATCH($C82,A_MeasureExpiration!$E$12:$AS$12,0))) -> 0 | I82: =I$49*(1-INDEX(A_MeasureExpiration!$E$16:$AS$16,MATCH($C82,A_MeasureExpiration!$E$12:$AS$12,0))) -> 0 | J82: =J$49*(1-INDEX(A_MeasureExpiration!$E$16:$AS$16,MATCH($C82,A_MeasureExpiration!$E$12:$AS$12,0))) -> 0 | K82: =K$49*(1-INDEX(A_MeasureExpiration!$E$16:$AS$16,MATCH($C82,A_MeasureExpiration!$E$12:$AS$12,0))) -> 0 | L82: =L$49*(1-INDEX(A_MeasureExpiration!$E$16:$AS$16,MATCH($C82,A_MeasureExpiration!$E$12:$AS$12,0))) -> 0 | M82: =M$49*(1-INDEX(A_MeasureExpiration!$E$16:$AS$16,MATCH($C82,A_MeasureExpiration!$E$12:$AS$12,0))) -> 0 | N82: =N$49*(1-INDEX(A_MeasureExpiration!$E$16:$AS$16,MATCH($C82,A_MeasureExpiration!$E$12:$AS$12,0))) -> 0 | O82: =O$49*(1-INDEX(A_MeasureExpiration!$E$16:$AS$16,MATCH($C82,A_MeasureExpiration!$E$12:$AS$12,0))) -> 0 | P82: =P$49*(1-INDEX(A_MeasureExpiration!$E$16:$AS$16,MATCH($C82,A_MeasureExpiration!$E$12:$AS$12,0))) -> 0 | Q82: =Q$49*(1-INDEX(A_MeasureExpiration!$E$16:$AS$16,MATCH($C82,A_MeasureExpiration!$E$12:$AS$12,0))) -> 0 | R82: =R$49*(1-INDEX(A_MeasureExpiration!$E$16:$AS$16,MATCH($C82,A_MeasureExpiration!$E$12:$AS$12,0))) -> 0 | S82: =S$49*(1-INDEX(A_MeasureExpiration!$E$16:$AS$16,MATCH($C82,A_MeasureExpiration!$E$12:$AS$12,0))) -> 0 | T82: =T$49*(1-INDEX(A_MeasureExpiration!$E$16:$AS$16,MATCH($C82,A_MeasureExpiration!$E$12:$AS$12,0))) -> 0 | U82: =U$49*(1-INDEX(A_MeasureExpiration!$E$16:$AS$16,MATCH($C82,A_MeasureExpiration!$E$12:$AS$12,0))) -> 0 | V82: =V$49*(1-INDEX(A_MeasureExpiration!$E$16:$AS$16,MATCH($C82,A_MeasureExpiration!$E$12:$AS$12,0))) -> 0 | W82: =W$49*(1-INDEX(A_MeasureExpiration!$E$16:$AS$16,MATCH($C82,A_MeasureExpiration!$E$12:$AS$12,0))) -> 0 | X82: =X$49*(1-INDEX(A_MeasureExpiration!$E$16:$AS$16,MATCH($C82,A_MeasureExpiration!$E$12:$AS$12,0))) -> 0 | Y82: =Y$49*(1-INDEX(A_MeasureExpiration!$E$16:$AS$16,MATCH($C82,A_MeasureExpiration!$E$12:$AS$12,0))) -> 0 | Z82: =Z$49*(1-INDEX(A_MeasureExpiration!$E$16:$AS$16,MATCH($C82,A_MeasureExpiration!$E$12:$AS$12,0))) -> 0 | AA82: =AA$49*(1-INDEX(A_MeasureExpiration!$E$16:$AS$16,MATCH($C82,A_MeasureExpiration!$E$12:$AS$12,0))) -> 0 | AB82: =AB$49*(1-INDEX(A_MeasureExpiration!$E$16:$AS$16,MATCH($C82,A_MeasureExpiration!$E$12:$AS$12,0))) -> 0 | AC82: =AC$49*(1-INDEX(A_MeasureExpiration!$E$16:$AS$16,MATCH($C82,A_MeasureExpiration!$E$12:$AS$12,0))) -> 0 | AD82: =AD$49*(1-INDEX(A_MeasureExpiration!$E$16:$AS$16,MATCH($C82,A_MeasureExpiration!$E$12:$AS$12,0))) -> 0 | AE82: =AE$49*(1-INDEX(A_MeasureExpiration!$E$16:$AS$16,MATCH($C82,A_MeasureExpiration!$E$12:$AS$12,0))) -> 0 | AF82: =AF$49*(1-INDEX(A_MeasureExpiration!$E$16:$AS$16,MATCH($C82,A_MeasureExpiration!$E$12:$AS$12,0))) -> 0 | AG82: =AG$49*(1-INDEX(A_MeasureExpiration!$E$16:$AS$16,MATCH($C82,A_MeasureExpiration!$E$12:$AS$12,0))) -> 0 | AH82: =AH$49*(1-INDEX(A_MeasureExpiration!$E$16:$AS$16,MATCH($C82,A_MeasureExpiration!$E$12:$AS$12,0))) -> 0 | AI82: =AI$49*(1-INDEX(A_MeasureExpiration!$E$16:$AS$16,MATCH($C82,A_MeasureExpiration!$E$12:$AS$12,0))) -> 0 | AJ82: =AJ$49*(1-INDEX(A_MeasureExpiration!$E$16:$AS$16,MATCH($C82,A_MeasureExpiration!$E$12:$AS$12,0))) -> 0 | AK82: =AK$49*(1-INDEX(A_MeasureExpiration!$E$16:$AS$16,MATCH($C82,A_MeasureExpiration!$E$12:$AS$12,0))) -> 0 | AL82: =AL$49*(1-INDEX(A_MeasureExpiration!$E$16:$AS$16,MATCH($C82,A_MeasureExpiration!$E$12:$AS$12,0))) -> 0 | AM82: =AM$49*(1-INDEX(A_MeasureExpiration!$E$16:$AS$16,MATCH($C82,A_MeasureExpiration!$E$12:$AS$12,0))) -> 0 | AN82: =AN$49*(1-INDEX(A_MeasureExpiration!$E$16:$AS$16,MATCH($C82,A_MeasureExpiration!$E$12:$AS$12,0))) -> 0
C83: Year 28 | D83: MMBtu | F83: =F$49*(1-INDEX(A_MeasureExpiration!$E$16:$AS$16,MATCH($C83,A_MeasureExpiration!$E$12:$AS$12,0))) -> 0 | G83: =G$49*(1-INDEX(A_MeasureExpiration!$E$16:$AS$16,MATCH($C83,A_MeasureExpiration!$E$12:$AS$12,0))) -> 0 | H83: =H$49*(1-INDEX(A_MeasureExpiration!$E$16:$AS$16,MATCH($C83,A_MeasureExpiration!$E$12:$AS$12,0))) -> 0 | I83: =I$49*(1-INDEX(A_MeasureExpiration!$E$16:$AS$16,MATCH($C83,A_MeasureExpiration!$E$12:$AS$12,0))) -> 0 | J83: =J$49*(1-INDEX(A_MeasureExpiration!$E$16:$AS$16,MATCH($C83,A_MeasureExpiration!$E$12:$AS$12,0))) -> 0 | K83: =K$49*(1-INDEX(A_MeasureExpiration!$E$16:$AS$16,MATCH($C83,A_MeasureExpiration!$E$12:$AS$12,0))) -> 0 | L83: =L$49*(1-INDEX(A_MeasureExpiration!$E$16:$AS$16,MATCH($C83,A_MeasureExpiration!$E$12:$AS$12,0))) -> 0 | M83: =M$49*(1-INDEX(A_MeasureExpiration!$E$16:$AS$16,MATCH($C83,A_MeasureExpiration!$E$12:$AS$12,0))) -> 0 | N83: =N$49*(1-INDEX(A_MeasureExpiration!$E$16:$AS$16,MATCH($C83,A_MeasureExpiration!$E$12:$AS$12,0))) -> 0 | O83: =O$49*(1-INDEX(A_MeasureExpiration!$E$16:$AS$16,MATCH($C83,A_MeasureExpiration!$E$12:$AS$12,0))) -> 0 | P83: =P$49*(1-INDEX(A_MeasureExpiration!$E$16:$AS$16,MATCH($C83,A_MeasureExpiration!$E$12:$AS$12,0))) -> 0 | Q83: =Q$49*(1-INDEX(A_MeasureExpiration!$E$16:$AS$16,MATCH($C83,A_MeasureExpiration!$E$12:$AS$12,0))) -> 0 | R83: =R$49*(1-INDEX(A_MeasureExpiration!$E$16:$AS$16,MATCH($C83,A_MeasureExpiration!$E$12:$AS$12,0))) -> 0 | S83: =S$49*(1-INDEX(A_MeasureExpiration!$E$16:$AS$16,MATCH($C83,A_MeasureExpiration!$E$12:$AS$12,0))) -> 0 | T83: =T$49*(1-INDEX(A_MeasureExpiration!$E$16:$AS$16,MATCH($C83,A_MeasureExpiration!$E$12:$AS$12,0))) -> 0 | U83: =U$49*(1-INDEX(A_MeasureExpiration!$E$16:$AS$16,MATCH($C83,A_MeasureExpiration!$E$12:$AS$12,0))) -> 0 | V83: =V$49*(1-INDEX(A_MeasureExpiration!$E$16:$AS$16,MATCH($C83,A_MeasureExpiration!$E$12:$AS$12,0))) -> 0 | W83: =W$49*(1-INDEX(A_MeasureExpiration!$E$16:$AS$16,MATCH($C83,A_MeasureExpiration!$E$12:$AS$12,0))) -> 0 | X83: =X$49*(1-INDEX(A_MeasureExpiration!$E$16:$AS$16,MATCH($C83,A_MeasureExpiration!$E$12:$AS$12,0))) -> 0 | Y83: =Y$49*(1-INDEX(A_MeasureExpiration!$E$16:$AS$16,MATCH($C83,A_MeasureExpiration!$E$12:$AS$12,0))) -> 0 | Z83: =Z$49*(1-INDEX(A_MeasureExpiration!$E$16:$AS$16,MATCH($C83,A_MeasureExpiration!$E$12:$AS$12,0))) -> 0 | AA83: =AA$49*(1-INDEX(A_MeasureExpiration!$E$16:$AS$16,MATCH($C83,A_MeasureExpiration!$E$12:$AS$12,0))) -> 0 | AB83: =AB$49*(1-INDEX(A_MeasureExpiration!$E$16:$AS$16,MATCH($C83,A_MeasureExpiration!$E$12:$AS$12,0))) -> 0 | AC83: =AC$49*(1-INDEX(A_MeasureExpiration!$E$16:$AS$16,MATCH($C83,A_MeasureExpiration!$E$12:$AS$12,0))) -> 0 | AD83: =AD$49*(1-INDEX(A_MeasureExpiration!$E$16:$AS$16,MATCH($C83,A_MeasureExpiration!$E$12:$AS$12,0))) -> 0 | AE83: =AE$49*(1-INDEX(A_MeasureExpiration!$E$16:$AS$16,MATCH($C83,A_MeasureExpiration!$E$12:$AS$12,0))) -> 0 | AF83: =AF$49*(1-INDEX(A_MeasureExpiration!$E$16:$AS$16,MATCH($C83,A_MeasureExpiration!$E$12:$AS$12,0))) -> 0 | AG83: =AG$49*(1-INDEX(A_MeasureExpiration!$E$16:$AS$16,MATCH($C83,A_MeasureExpiration!$E$12:$AS$12,0))) -> 0 | AH83: =AH$49*(1-INDEX(A_MeasureExpiration!$E$16:$AS$16,MATCH($C83,A_MeasureExpiration!$E$12:$AS$12,0))) -> 0 | AI83: =AI$49*(1-INDEX(A_MeasureExpiration!$E$16:$AS$16,MATCH($C83,A_MeasureExpiration!$E$12:$AS$12,0))) -> 0 | AJ83: =AJ$49*(1-INDEX(A_MeasureExpiration!$E$16:$AS$16,MATCH($C83,A_MeasureExpiration!$E$12:$AS$12,0))) -> 0 | AK83: =AK$49*(1-INDEX(A_MeasureExpiration!$E$16:$AS$16,MATCH($C83,A_MeasureExpiration!$E$12:$AS$12,0))) -> 0 | AL83: =AL$49*(1-INDEX(A_MeasureExpiration!$E$16:$AS$16,MATCH($C83,A_MeasureExpiration!$E$12:$AS$12,0))) -> 0 | AM83: =AM$49*(1-INDEX(A_MeasureExpiration!$E$16:$AS$16,MATCH($C83,A_MeasureExpiration!$E$12:$AS$12,0))) -> 0 | AN83: =AN$49*(1-INDEX(A_MeasureExpiration!$E$16:$AS$16,MATCH($C83,A_MeasureExpiration!$E$12:$AS$12,0))) -> 0
C84: Year 29 | D84: MMBtu | F84: =F$49*(1-INDEX(A_MeasureExpiration!$E$16:$AS$16,MATCH($C84,A_MeasureExpiration!$E$12:$AS$12,0))) -> 0 | G84: =G$49*(1-INDEX(A_MeasureExpiration!$E$16:$AS$16,MATCH($C84,A_MeasureExpiration!$E$12:$AS$12,0))) -> 0 | H84: =H$49*(1-INDEX(A_MeasureExpiration!$E$16:$AS$16,MATCH($C84,A_MeasureExpiration!$E$12:$AS$12,0))) -> 0 | I84: =I$49*(1-INDEX(A_MeasureExpiration!$E$16:$AS$16,MATCH($C84,A_MeasureExpiration!$E$12:$AS$12,0))) -> 0 | J84: =J$49*(1-INDEX(A_MeasureExpiration!$E$16:$AS$16,MATCH($C84,A_MeasureExpiration!$E$12:$AS$12,0))) -> 0 | K84: =K$49*(1-INDEX(A_MeasureExpiration!$E$16:$AS$16,MATCH($C84,A_MeasureExpiration!$E$12:$AS$12,0))) -> 0 | L84: =L$49*(1-INDEX(A_MeasureExpiration!$E$16:$AS$16,MATCH($C84,A_MeasureExpiration!$E$12:$AS$12,0))) -> 0 | M84: =M$49*(1-INDEX(A_MeasureExpiration!$E$16:$AS$16,MATCH($C84,A_MeasureExpiration!$E$12:$AS$12,0))) -> 0 | N84: =N$49*(1-INDEX(A_MeasureExpiration!$E$16:$AS$16,MATCH($C84,A_MeasureExpiration!$E$12:$AS$12,0))) -> 0 | O84: =O$49*(1-INDEX(A_MeasureExpiration!$E$16:$AS$16,MATCH($C84,A_MeasureExpiration!$E$12:$AS$12,0))) -> 0 | P84: =P$49*(1-INDEX(A_MeasureExpiration!$E$16:$AS$16,MATCH($C84,A_MeasureExpiration!$E$12:$AS$12,0))) -> 0 | Q84: =Q$49*(1-INDEX(A_MeasureExpiration!$E$16:$AS$16,MATCH($C84,A_MeasureExpiration!$E$12:$AS$12,0))) -> 0 | R84: =R$49*(1-INDEX(A_MeasureExpiration!$E$16:$AS$16,MATCH($C84,A_MeasureExpiration!$E$12:$AS$12,0))) -> 0 | S84: =S$49*(1-INDEX(A_MeasureExpiration!$E$16:$AS$16,MATCH($C84,A_MeasureExpiration!$E$12:$AS$12,0))) -> 0 | T84: =T$49*(1-INDEX(A_MeasureExpiration!$E$16:$AS$16,MATCH($C84,A_MeasureExpiration!$E$12:$AS$12,0))) -> 0 | U84: =U$49*(1-INDEX(A_MeasureExpiration!$E$16:$AS$16,MATCH($C84,A_MeasureExpiration!$E$12:$AS$12,0))) -> 0 | V84: =V$49*(1-INDEX(A_MeasureExpiration!$E$16:$AS$16,MATCH($C84,A_MeasureExpiration!$E$12:$AS$12,0))) -> 0 | W84: =W$49*(1-INDEX(A_MeasureExpiration!$E$16:$AS$16,MATCH($C84,A_MeasureExpiration!$E$12:$AS$12,0))) -> 0 | X84: =X$49*(1-INDEX(A_MeasureExpiration!$E$16:$AS$16,MATCH($C84,A_MeasureExpiration!$E$12:$AS$12,0))) -> 0 | Y84: =Y$49*(1-INDEX(A_MeasureExpiration!$E$16:$AS$16,MATCH($C84,A_MeasureExpiration!$E$12:$AS$12,0))) -> 0 | Z84: =Z$49*(1-INDEX(A_MeasureExpiration!$E$16:$AS$16,MATCH($C84,A_MeasureExpiration!$E$12:$AS$12,0))) -> 0 | AA84: =AA$49*(1-INDEX(A_MeasureExpiration!$E$16:$AS$16,MATCH($C84,A_MeasureExpiration!$E$12:$AS$12,0))) -> 0 | AB84: =AB$49*(1-INDEX(A_MeasureExpiration!$E$16:$AS$16,MATCH($C84,A_MeasureExpiration!$E$12:$AS$12,0))) -> 0 | AC84: =AC$49*(1-INDEX(A_MeasureExpiration!$E$16:$AS$16,MATCH($C84,A_MeasureExpiration!$E$12:$AS$12,0))) -> 0 | AD84: =AD$49*(1-INDEX(A_MeasureExpiration!$E$16:$AS$16,MATCH($C84,A_MeasureExpiration!$E$12:$AS$12,0))) -> 0 | AE84: =AE$49*(1-INDEX(A_MeasureExpiration!$E$16:$AS$16,MATCH($C84,A_MeasureExpiration!$E$12:$AS$12,0))) -> 0 | AF84: =AF$49*(1-INDEX(A_MeasureExpiration!$E$16:$AS$16,MATCH($C84,A_MeasureExpiration!$E$12:$AS$12,0))) -> 0 | AG84: =AG$49*(1-INDEX(A_MeasureExpiration!$E$16:$AS$16,MATCH($C84,A_MeasureExpiration!$E$12:$AS$12,0))) -> 0 | AH84: =AH$49*(1-INDEX(A_MeasureExpiration!$E$16:$AS$16,MATCH($C84,A_MeasureExpiration!$E$12:$AS$12,0))) -> 0 | AI84: =AI$49*(1-INDEX(A_MeasureExpiration!$E$16:$AS$16,MATCH($C84,A_MeasureExpiration!$E$12:$AS$12,0))) -> 0 | AJ84: =AJ$49*(1-INDEX(A_MeasureExpiration!$E$16:$AS$16,MATCH($C84,A_MeasureExpiration!$E$12:$AS$12,0))) -> 0 | AK84: =AK$49*(1-INDEX(A_MeasureExpiration!$E$16:$AS$16,MATCH($C84,A_MeasureExpiration!$E$12:$AS$12,0))) -> 0 | AL84: =AL$49*(1-INDEX(A_MeasureExpiration!$E$16:$AS$16,MATCH($C84,A_MeasureExpiration!$E$12:$AS$12,0))) -> 0 | AM84: =AM$49*(1-INDEX(A_MeasureExpiration!$E$16:$AS$16,MATCH($C84,A_MeasureExpiration!$E$12:$AS$12,0))) -> 0 | AN84: =AN$49*(1-INDEX(A_MeasureExpiration!$E$16:$AS$16,MATCH($C84,A_MeasureExpiration!$E$12:$AS$12,0))) -> 0
C85: Year 30 | D85: MMBtu | F85: =F$49*(1-INDEX(A_MeasureExpiration!$E$16:$AS$16,MATCH($C85,A_MeasureExpiration!$E$12:$AS$12,0))) -> 0 | G85: =G$49*(1-INDEX(A_MeasureExpiration!$E$16:$AS$16,MATCH($C85,A_MeasureExpiration!$E$12:$AS$12,0))) -> 0 | H85: =H$49*(1-INDEX(A_MeasureExpiration!$E$16:$AS$16,MATCH($C85,A_MeasureExpiration!$E$12:$AS$12,0))) -> 0 | I85: =I$49*(1-INDEX(A_MeasureExpiration!$E$16:$AS$16,MATCH($C85,A_MeasureExpiration!$E$12:$AS$12,0))) -> 0 | J85: =J$49*(1-INDEX(A_MeasureExpiration!$E$16:$AS$16,MATCH($C85,A_MeasureExpiration!$E$12:$AS$12,0))) -> 0 | K85: =K$49*(1-INDEX(A_MeasureExpiration!$E$16:$AS$16,MATCH($C85,A_MeasureExpiration!$E$12:$AS$12,0))) -> 0 | L85: =L$49*(1-INDEX(A_MeasureExpiration!$E$16:$AS$16,MATCH($C85,A_MeasureExpiration!$E$12:$AS$12,0))) -> 0 | M85: =M$49*(1-INDEX(A_MeasureExpiration!$E$16:$AS$16,MATCH($C85,A_MeasureExpiration!$E$12:$AS$12,0))) -> 0 | N85: =N$49*(1-INDEX(A_MeasureExpiration!$E$16:$AS$16,MATCH($C85,A_MeasureExpiration!$E$12:$AS$12,0))) -> 0 | O85: =O$49*(1-INDEX(A_MeasureExpiration!$E$16:$AS$16,MATCH($C85,A_MeasureExpiration!$E$12:$AS$12,0))) -> 0 | P85: =P$49*(1-INDEX(A_MeasureExpiration!$E$16:$AS$16,MATCH($C85,A_MeasureExpiration!$E$12:$AS$12,0))) -> 0 | Q85: =Q$49*(1-INDEX(A_MeasureExpiration!$E$16:$AS$16,MATCH($C85,A_MeasureExpiration!$E$12:$AS$12,0))) -> 0 | R85: =R$49*(1-INDEX(A_MeasureExpiration!$E$16:$AS$16,MATCH($C85,A_MeasureExpiration!$E$12:$AS$12,0))) -> 0 | S85: =S$49*(1-INDEX(A_MeasureExpiration!$E$16:$AS$16,MATCH($C85,A_MeasureExpiration!$E$12:$AS$12,0))) -> 0 | T85: =T$49*(1-INDEX(A_MeasureExpiration!$E$16:$AS$16,MATCH($C85,A_MeasureExpiration!$E$12:$AS$12,0))) -> 0 | U85: =U$49*(1-INDEX(A_MeasureExpiration!$E$16:$AS$16,MATCH($C85,A_MeasureExpiration!$E$12:$AS$12,0))) -> 0 | V85: =V$49*(1-INDEX(A_MeasureExpiration!$E$16:$AS$16,MATCH($C85,A_MeasureExpiration!$E$12:$AS$12,0))) -> 0 | W85: =W$49*(1-INDEX(A_MeasureExpiration!$E$16:$AS$16,MATCH($C85,A_MeasureExpiration!$E$12:$AS$12,0))) -> 0 | X85: =X$49*(1-INDEX(A_MeasureExpiration!$E$16:$AS$16,MATCH($C85,A_MeasureExpiration!$E$12:$AS$12,0))) -> 0 | Y85: =Y$49*(1-INDEX(A_MeasureExpiration!$E$16:$AS$16,MATCH($C85,A_MeasureExpiration!$E$12:$AS$12,0))) -> 0 | Z85: =Z$49*(1-INDEX(A_MeasureExpiration!$E$16:$AS$16,MATCH($C85,A_MeasureExpiration!$E$12:$AS$12,0))) -> 0 | AA85: =AA$49*(1-INDEX(A_MeasureExpiration!$E$16:$AS$16,MATCH($C85,A_MeasureExpiration!$E$12:$AS$12,0))) -> 0 | AB85: =AB$49*(1-INDEX(A_MeasureExpiration!$E$16:$AS$16,MATCH($C85,A_MeasureExpiration!$E$12:$AS$12,0))) -> 0 | AC85: =AC$49*(1-INDEX(A_MeasureExpiration!$E$16:$AS$16,MATCH($C85,A_MeasureExpiration!$E$12:$AS$12,0))) -> 0 | AD85: =AD$49*(1-INDEX(A_MeasureExpiration!$E$16:$AS$16,MATCH($C85,A_MeasureExpiration!$E$12:$AS$12,0))) -> 0 | AE85: =AE$49*(1-INDEX(A_MeasureExpiration!$E$16:$AS$16,MATCH($C85,A_MeasureExpiration!$E$12:$AS$12,0))) -> 0 | AF85: =AF$49*(1-INDEX(A_MeasureExpiration!$E$16:$AS$16,MATCH($C85,A_MeasureExpiration!$E$12:$AS$12,0))) -> 0 | AG85: =AG$49*(1-INDEX(A_MeasureExpiration!$E$16:$AS$16,MATCH($C85,A_MeasureExpiration!$E$12:$AS$12,0))) -> 0 | AH85: =AH$49*(1-INDEX(A_MeasureExpiration!$E$16:$AS$16,MATCH($C85,A_MeasureExpiration!$E$12:$AS$12,0))) -> 0 | AI85: =AI$49*(1-INDEX(A_MeasureExpiration!$E$16:$AS$16,MATCH($C85,A_MeasureExpiration!$E$12:$AS$12,0))) -> 0 | AJ85: =AJ$49*(1-INDEX(A_MeasureExpiration!$E$16:$AS$16,MATCH($C85,A_MeasureExpiration!$E$12:$AS$12,0))) -> 0 | AK85: =AK$49*(1-INDEX(A_MeasureExpiration!$E$16:$AS$16,MATCH($C85,A_MeasureExpiration!$E$12:$AS$12,0))) -> 0 | AL85: =AL$49*(1-INDEX(A_MeasureExpiration!$E$16:$AS$16,MATCH($C85,A_MeasureExpiration!$E$12:$AS$12,0))) -> 0 | AM85: =AM$49*(1-INDEX(A_MeasureExpiration!$E$16:$AS$16,MATCH($C85,A_MeasureExpiration!$E$12:$AS$12,0))) -> 0 | AN85: =AN$49*(1-INDEX(A_MeasureExpiration!$E$16:$AS$16,MATCH($C85,A_MeasureExpiration!$E$12:$AS$12,0))) -> 0
C86: Year 31 | D86: MMBtu | F86: =F$49*(1-INDEX(A_MeasureExpiration!$E$16:$AS$16,MATCH($C86,A_MeasureExpiration!$E$12:$AS$12,0))) -> 0 | G86: =G$49*(1-INDEX(A_MeasureExpiration!$E$16:$AS$16,MATCH($C86,A_MeasureExpiration!$E$12:$AS$12,0))) -> 0 | H86: =H$49*(1-INDEX(A_MeasureExpiration!$E$16:$AS$16,MATCH($C86,A_MeasureExpiration!$E$12:$AS$12,0))) -> 0 | I86: =I$49*(1-INDEX(A_MeasureExpiration!$E$16:$AS$16,MATCH($C86,A_MeasureExpiration!$E$12:$AS$12,0))) -> 0 | J86: =J$49*(1-INDEX(A_MeasureExpiration!$E$16:$AS$16,MATCH($C86,A_MeasureExpiration!$E$12:$AS$12,0))) -> 0 | K86: =K$49*(1-INDEX(A_MeasureExpiration!$E$16:$AS$16,MATCH($C86,A_MeasureExpiration!$E$12:$AS$12,0))) -> 0 | L86: =L$49*(1-INDEX(A_MeasureExpiration!$E$16:$AS$16,MATCH($C86,A_MeasureExpiration!$E$12:$AS$12,0))) -> 0 | M86: =M$49*(1-INDEX(A_MeasureExpiration!$E$16:$AS$16,MATCH($C86,A_MeasureExpiration!$E$12:$AS$12,0))) -> 0 | N86: =N$49*(1-INDEX(A_MeasureExpiration!$E$16:$AS$16,MATCH($C86,A_MeasureExpiration!$E$12:$AS$12,0))) -> 0 | O86: =O$49*(1-INDEX(A_MeasureExpiration!$E$16:$AS$16,MATCH($C86,A_MeasureExpiration!$E$12:$AS$12,0))) -> 0 | P86: =P$49*(1-INDEX(A_MeasureExpiration!$E$16:$AS$16,MATCH($C86,A_MeasureExpiration!$E$12:$AS$12,0))) -> 0 | Q86: =Q$49*(1-INDEX(A_MeasureExpiration!$E$16:$AS$16,MATCH($C86,A_MeasureExpiration!$E$12:$AS$12,0))) -> 0 | R86: =R$49*(1-INDEX(A_MeasureExpiration!$E$16:$AS$16,MATCH($C86,A_MeasureExpiration!$E$12:$AS$12,0))) -> 0 | S86: =S$49*(1-INDEX(A_MeasureExpiration!$E$16:$AS$16,MATCH($C86,A_MeasureExpiration!$E$12:$AS$12,0))) -> 0 | T86: =T$49*(1-INDEX(A_MeasureExpiration!$E$16:$AS$16,MATCH($C86,A_MeasureExpiration!$E$12:$AS$12,0))) -> 0 | U86: =U$49*(1-INDEX(A_MeasureExpiration!$E$16:$AS$16,MATCH($C86,A_MeasureExpiration!$E$12:$AS$12,0))) -> 0 | V86: =V$49*(1-INDEX(A_MeasureExpiration!$E$16:$AS$16,MATCH($C86,A_MeasureExpiration!$E$12:$AS$12,0))) -> 0 | W86: =W$49*(1-INDEX(A_MeasureExpiration!$E$16:$AS$16,MATCH($C86,A_MeasureExpiration!$E$12:$AS$12,0))) -> 0 | X86: =X$49*(1-INDEX(A_MeasureExpiration!$E$16:$AS$16,MATCH($C86,A_MeasureExpiration!$E$12:$AS$12,0))) -> 0 | Y86: =Y$49*(1-INDEX(A_MeasureExpiration!$E$16:$AS$16,MATCH($C86,A_MeasureExpiration!$E$12:$AS$12,0))) -> 0 | Z86: =Z$49*(1-INDEX(A_MeasureExpiration!$E$16:$AS$16,MATCH($C86,A_MeasureExpiration!$E$12:$AS$12,0))) -> 0 | AA86: =AA$49*(1-INDEX(A_MeasureExpiration!$E$16:$AS$16,MATCH($C86,A_MeasureExpiration!$E$12:$AS$12,0))) -> 0 | AB86: =AB$49*(1-INDEX(A_MeasureExpiration!$E$16:$AS$16,MATCH($C86,A_MeasureExpiration!$E$12:$AS$12,0))) -> 0 | AC86: =AC$49*(1-INDEX(A_MeasureExpiration!$E$16:$AS$16,MATCH($C86,A_MeasureExpiration!$E$12:$AS$12,0))) -> 0 | AD86: =AD$49*(1-INDEX(A_MeasureExpiration!$E$16:$AS$16,MATCH($C86,A_MeasureExpiration!$E$12:$AS$12,0))) -> 0 | AE86: =AE$49*(1-INDEX(A_MeasureExpiration!$E$16:$AS$16,MATCH($C86,A_MeasureExpiration!$E$12:$AS$12,0))) -> 0 | AF86: =AF$49*(1-INDEX(A_MeasureExpiration!$E$16:$AS$16,MATCH($C86,A_MeasureExpiration!$E$12:$AS$12,0))) -> 0 | AG86: =AG$49*(1-INDEX(A_MeasureExpiration!$E$16:$AS$16,MATCH($C86,A_MeasureExpiration!$E$12:$AS$12,0))) -> 0 | AH86: =AH$49*(1-INDEX(A_MeasureExpiration!$E$16:$AS$16,MATCH($C86,A_MeasureExpiration!$E$12:$AS$12,0))) -> 0 | AI86: =AI$49*(1-INDEX(A_MeasureExpiration!$E$16:$AS$16,MATCH($C86,A_MeasureExpiration!$E$12:$AS$12,0))) -> 0 | AJ86: =AJ$49*(1-INDEX(A_MeasureExpiration!$E$16:$AS$16,MATCH($C86,A_MeasureExpiration!$E$12:$AS$12,0))) -> 0 | AK86: =AK$49*(1-INDEX(A_MeasureExpiration!$E$16:$AS$16,MATCH($C86,A_MeasureExpiration!$E$12:$AS$12,0))) -> 0 | AL86: =AL$49*(1-INDEX(A_MeasureExpiration!$E$16:$AS$16,MATCH($C86,A_MeasureExpiration!$E$12:$AS$12,0))) -> 0 | AM86: =AM$49*(1-INDEX(A_MeasureExpiration!$E$16:$AS$16,MATCH($C86,A_MeasureExpiration!$E$12:$AS$12,0))) -> 0 | AN86: =AN$49*(1-INDEX(A_MeasureExpiration!$E$16:$AS$16,MATCH($C86,A_MeasureExpiration!$E$12:$AS$12,0))) -> 0
C87: Year 32 | D87: MMBtu | F87: =F$49*(1-INDEX(A_MeasureExpiration!$E$16:$AS$16,MATCH($C87,A_MeasureExpiration!$E$12:$AS$12,0))) -> 0 | G87: =G$49*(1-INDEX(A_MeasureExpiration!$E$16:$AS$16,MATCH($C87,A_MeasureExpiration!$E$12:$AS$12,0))) -> 0 | H87: =H$49*(1-INDEX(A_MeasureExpiration!$E$16:$AS$16,MATCH($C87,A_MeasureExpiration!$E$12:$AS$12,0))) -> 0 | I87: =I$49*(1-INDEX(A_MeasureExpiration!$E$16:$AS$16,MATCH($C87,A_MeasureExpiration!$E$12:$AS$12,0))) -> 0 | J87: =J$49*(1-INDEX(A_MeasureExpiration!$E$16:$AS$16,MATCH($C87,A_MeasureExpiration!$E$12:$AS$12,0))) -> 0 | K87: =K$49*(1-INDEX(A_MeasureExpiration!$E$16:$AS$16,MATCH($C87,A_MeasureExpiration!$E$12:$AS$12,0))) -> 0 | L87: =L$49*(1-INDEX(A_MeasureExpiration!$E$16:$AS$16,MATCH($C87,A_MeasureExpiration!$E$12:$AS$12,0))) -> 0 | M87: =M$49*(1-INDEX(A_MeasureExpiration!$E$16:$AS$16,MATCH($C87,A_MeasureExpiration!$E$12:$AS$12,0))) -> 0 | N87: =N$49*(1-INDEX(A_MeasureExpiration!$E$16:$AS$16,MATCH($C87,A_MeasureExpiration!$E$12:$AS$12,0))) -> 0 | O87: =O$49*(1-INDEX(A_MeasureExpiration!$E$16:$AS$16,MATCH($C87,A_MeasureExpiration!$E$12:$AS$12,0))) -> 0 | P87: =P$49*(1-INDEX(A_MeasureExpiration!$E$16:$AS$16,MATCH($C87,A_MeasureExpiration!$E$12:$AS$12,0))) -> 0 | Q87: =Q$49*(1-INDEX(A_MeasureExpiration!$E$16:$AS$16,MATCH($C87,A_MeasureExpiration!$E$12:$AS$12,0))) -> 0 | R87: =R$49*(1-INDEX(A_MeasureExpiration!$E$16:$AS$16,MATCH($C87,A_MeasureExpiration!$E$12:$AS$12,0))) -> 0 | S87: =S$49*(1-INDEX(A_MeasureExpiration!$E$16:$AS$16,MATCH($C87,A_MeasureExpiration!$E$12:$AS$12,0))) -> 0 | T87: =T$49*(1-INDEX(A_MeasureExpiration!$E$16:$AS$16,MATCH($C87,A_MeasureExpiration!$E$12:$AS$12,0))) -> 0 | U87: =U$49*(1-INDEX(A_MeasureExpiration!$E$16:$AS$16,MATCH($C87,A_MeasureExpiration!$E$12:$AS$12,0))) -> 0 | V87: =V$49*(1-INDEX(A_MeasureExpiration!$E$16:$AS$16,MATCH($C87,A_MeasureExpiration!$E$12:$AS$12,0))) -> 0 | W87: =W$49*(1-INDEX(A_MeasureExpiration!$E$16:$AS$16,MATCH($C87,A_MeasureExpiration!$E$12:$AS$12,0))) -> 0 | X87: =X$49*(1-INDEX(A_MeasureExpiration!$E$16:$AS$16,MATCH($C87,A_MeasureExpiration!$E$12:$AS$12,0))) -> 0 | Y87: =Y$49*(1-INDEX(A_MeasureExpiration!$E$16:$AS$16,MATCH($C87,A_MeasureExpiration!$E$12:$AS$12,0))) -> 0 | Z87: =Z$49*(1-INDEX(A_MeasureExpiration!$E$16:$AS$16,MATCH($C87,A_MeasureExpiration!$E$12:$AS$12,0))) -> 0 | AA87: =AA$49*(1-INDEX(A_MeasureExpiration!$E$16:$AS$16,MATCH($C87,A_MeasureExpiration!$E$12:$AS$12,0))) -> 0 | AB87: =AB$49*(1-INDEX(A_MeasureExpiration!$E$16:$AS$16,MATCH($C87,A_MeasureExpiration!$E$12:$AS$12,0))) -> 0 | AC87: =AC$49*(1-INDEX(A_MeasureExpiration!$E$16:$AS$16,MATCH($C87,A_MeasureExpiration!$E$12:$AS$12,0))) -> 0 | AD87: =AD$49*(1-INDEX(A_MeasureExpiration!$E$16:$AS$16,MATCH($C87,A_MeasureExpiration!$E$12:$AS$12,0))) -> 0 | AE87: =AE$49*(1-INDEX(A_MeasureExpiration!$E$16:$AS$16,MATCH($C87,A_MeasureExpiration!$E$12:$AS$12,0))) -> 0 | AF87: =AF$49*(1-INDEX(A_MeasureExpiration!$E$16:$AS$16,MATCH($C87,A_MeasureExpiration!$E$12:$AS$12,0))) -> 0 | AG87: =AG$49*(1-INDEX(A_MeasureExpiration!$E$16:$AS$16,MATCH($C87,A_MeasureExpiration!$E$12:$AS$12,0))) -> 0 | AH87: =AH$49*(1-INDEX(A_MeasureExpiration!$E$16:$AS$16,MATCH($C87,A_MeasureExpiration!$E$12:$AS$12,0))) -> 0 | AI87: =AI$49*(1-INDEX(A_MeasureExpiration!$E$16:$AS$16,MATCH($C87,A_MeasureExpiration!$E$12:$AS$12,0))) -> 0 | AJ87: =AJ$49*(1-INDEX(A_MeasureExpiration!$E$16:$AS$16,MATCH($C87,A_MeasureExpiration!$E$12:$AS$12,0))) -> 0 | AK87: =AK$49*(1-INDEX(A_MeasureExpiration!$E$16:$AS$16,MATCH($C87,A_MeasureExpiration!$E$12:$AS$12,0))) -> 0 | AL87: =AL$49*(1-INDEX(A_MeasureExpiration!$E$16:$AS$16,MATCH($C87,A_MeasureExpiration!$E$12:$AS$12,0))) -> 0 | AM87: =AM$49*(1-INDEX(A_MeasureExpiration!$E$16:$AS$16,MATCH($C87,A_MeasureExpiration!$E$12:$AS$12,0))) -> 0 | AN87: =AN$49*(1-INDEX(A_MeasureExpiration!$E$16:$AS$16,MATCH($C87,A_MeasureExpiration!$E$12:$AS$12,0))) -> 0
C88: Year 33 | D88: MMBtu | F88: =F$49*(1-INDEX(A_MeasureExpiration!$E$16:$AS$16,MATCH($C88,A_MeasureExpiration!$E$12:$AS$12,0))) -> 0 | G88: =G$49*(1-INDEX(A_MeasureExpiration!$E$16:$AS$16,MATCH($C88,A_MeasureExpiration!$E$12:$AS$12,0))) -> 0 | H88: =H$49*(1-INDEX(A_MeasureExpiration!$E$16:$AS$16,MATCH($C88,A_MeasureExpiration!$E$12:$AS$12,0))) -> 0 | I88: =I$49*(1-INDEX(A_MeasureExpiration!$E$16:$AS$16,MATCH($C88,A_MeasureExpiration!$E$12:$AS$12,0))) -> 0 | J88: =J$49*(1-INDEX(A_MeasureExpiration!$E$16:$AS$16,MATCH($C88,A_MeasureExpiration!$E$12:$AS$12,0))) -> 0 | K88: =K$49*(1-INDEX(A_MeasureExpiration!$E$16:$AS$16,MATCH($C88,A_MeasureExpiration!$E$12:$AS$12,0))) -> 0 | L88: =L$49*(1-INDEX(A_MeasureExpiration!$E$16:$AS$16,MATCH($C88,A_MeasureExpiration!$E$12:$AS$12,0))) -> 0 | M88: =M$49*(1-INDEX(A_MeasureExpiration!$E$16:$AS$16,MATCH($C88,A_MeasureExpiration!$E$12:$AS$12,0))) -> 0 | N88: =N$49*(1-INDEX(A_MeasureExpiration!$E$16:$AS$16,MATCH($C88,A_MeasureExpiration!$E$12:$AS$12,0))) -> 0 | O88: =O$49*(1-INDEX(A_MeasureExpiration!$E$16:$AS$16,MATCH($C88,A_MeasureExpiration!$E$12:$AS$12,0))) -> 0 | P88: =P$49*(1-INDEX(A_MeasureExpiration!$E$16:$AS$16,MATCH($C88,A_MeasureExpiration!$E$12:$AS$12,0))) -> 0 | Q88: =Q$49*(1-INDEX(A_MeasureExpiration!$E$16:$AS$16,MATCH($C88,A_MeasureExpiration!$E$12:$AS$12,0))) -> 0 | R88: =R$49*(1-INDEX(A_MeasureExpiration!$E$16:$AS$16,MATCH($C88,A_MeasureExpiration!$E$12:$AS$12,0))) -> 0 | S88: =S$49*(1-INDEX(A_MeasureExpiration!$E$16:$AS$16,MATCH($C88,A_MeasureExpiration!$E$12:$AS$12,0))) -> 0 | T88: =T$49*(1-INDEX(A_MeasureExpiration!$E$16:$AS$16,MATCH($C88,A_MeasureExpiration!$E$12:$AS$12,0))) -> 0 | U88: =U$49*(1-INDEX(A_MeasureExpiration!$E$16:$AS$16,MATCH($C88,A_MeasureExpiration!$E$12:$AS$12,0))) -> 0 | V88: =V$49*(1-INDEX(A_MeasureExpiration!$E$16:$AS$16,MATCH($C88,A_MeasureExpiration!$E$12:$AS$12,0))) -> 0 | W88: =W$49*(1-INDEX(A_MeasureExpiration!$E$16:$AS$16,MATCH($C88,A_MeasureExpiration!$E$12:$AS$12,0))) -> 0 | X88: =X$49*(1-INDEX(A_MeasureExpiration!$E$16:$AS$16,MATCH($C88,A_MeasureExpiration!$E$12:$AS$12,0))) -> 0 | Y88: =Y$49*(1-INDEX(A_MeasureExpiration!$E$16:$AS$16,MATCH($C88,A_MeasureExpiration!$E$12:$AS$12,0))) -> 0 | Z88: =Z$49*(1-INDEX(A_MeasureExpiration!$E$16:$AS$16,MATCH($C88,A_MeasureExpiration!$E$12:$AS$12,0))) -> 0 | AA88: =AA$49*(1-INDEX(A_MeasureExpiration!$E$16:$AS$16,MATCH($C88,A_MeasureExpiration!$E$12:$AS$12,0))) -> 0 | AB88: =AB$49*(1-INDEX(A_MeasureExpiration!$E$16:$AS$16,MATCH($C88,A_MeasureExpiration!$E$12:$AS$12,0))) -> 0 | AC88: =AC$49*(1-INDEX(A_MeasureExpiration!$E$16:$AS$16,MATCH($C88,A_MeasureExpiration!$E$12:$AS$12,0))) -> 0 | AD88: =AD$49*(1-INDEX(A_MeasureExpiration!$E$16:$AS$16,MATCH($C88,A_MeasureExpiration!$E$12:$AS$12,0))) -> 0 | AE88: =AE$49*(1-INDEX(A_MeasureExpiration!$E$16:$AS$16,MATCH($C88,A_MeasureExpiration!$E$12:$AS$12,0))) -> 0 | AF88: =AF$49*(1-INDEX(A_MeasureExpiration!$E$16:$AS$16,MATCH($C88,A_MeasureExpiration!$E$12:$AS$12,0))) -> 0 | AG88: =AG$49*(1-INDEX(A_MeasureExpiration!$E$16:$AS$16,MATCH($C88,A_MeasureExpiration!$E$12:$AS$12,0))) -> 0 | AH88: =AH$49*(1-INDEX(A_MeasureExpiration!$E$16:$AS$16,MATCH($C88,A_MeasureExpiration!$E$12:$AS$12,0))) -> 0 | AI88: =AI$49*(1-INDEX(A_MeasureExpiration!$E$16:$AS$16,MATCH($C88,A_MeasureExpiration!$E$12:$AS$12,0))) -> 0 | AJ88: =AJ$49*(1-INDEX(A_MeasureExpiration!$E$16:$AS$16,MATCH($C88,A_MeasureExpiration!$E$12:$AS$12,0))) -> 0 | AK88: =AK$49*(1-INDEX(A_MeasureExpiration!$E$16:$AS$16,MATCH($C88,A_MeasureExpiration!$E$12:$AS$12,0))) -> 0 | AL88: =AL$49*(1-INDEX(A_MeasureExpiration!$E$16:$AS$16,MATCH($C88,A_MeasureExpiration!$E$12:$AS$12,0))) -> 0 | AM88: =AM$49*(1-INDEX(A_MeasureExpiration!$E$16:$AS$16,MATCH($C88,A_MeasureExpiration!$E$12:$AS$12,0))) -> 0 | AN88: =AN$49*(1-INDEX(A_MeasureExpiration!$E$16:$AS$16,MATCH($C88,A_MeasureExpiration!$E$12:$AS$12,0))) -> 0
C89: Year 34 | D89: MMBtu | F89: =F$49*(1-INDEX(A_MeasureExpiration!$E$16:$AS$16,MATCH($C89,A_MeasureExpiration!$E$12:$AS$12,0))) -> 0 | G89: =G$49*(1-INDEX(A_MeasureExpiration!$E$16:$AS$16,MATCH($C89,A_MeasureExpiration!$E$12:$AS$12,0))) -> 0 | H89: =H$49*(1-INDEX(A_MeasureExpiration!$E$16:$AS$16,MATCH($C89,A_MeasureExpiration!$E$12:$AS$12,0))) -> 0 | I89: =I$49*(1-INDEX(A_MeasureExpiration!$E$16:$AS$16,MATCH($C89,A_MeasureExpiration!$E$12:$AS$12,0))) -> 0 | J89: =J$49*(1-INDEX(A_MeasureExpiration!$E$16:$AS$16,MATCH($C89,A_MeasureExpiration!$E$12:$AS$12,0))) -> 0 | K89: =K$49*(1-INDEX(A_MeasureExpiration!$E$16:$AS$16,MATCH($C89,A_MeasureExpiration!$E$12:$AS$12,0))) -> 0 | L89: =L$49*(1-INDEX(A_MeasureExpiration!$E$16:$AS$16,MATCH($C89,A_MeasureExpiration!$E$12:$AS$12,0))) -> 0 | M89: =M$49*(1-INDEX(A_MeasureExpiration!$E$16:$AS$16,MATCH($C89,A_MeasureExpiration!$E$12:$AS$12,0))) -> 0 | N89: =N$49*(1-INDEX(A_MeasureExpiration!$E$16:$AS$16,MATCH($C89,A_MeasureExpiration!$E$12:$AS$12,0))) -> 0 | O89: =O$49*(1-INDEX(A_MeasureExpiration!$E$16:$AS$16,MATCH($C89,A_MeasureExpiration!$E$12:$AS$12,0))) -> 0 | P89: =P$49*(1-INDEX(A_MeasureExpiration!$E$16:$AS$16,MATCH($C89,A_MeasureExpiration!$E$12:$AS$12,0))) -> 0 | Q89: =Q$49*(1-INDEX(A_MeasureExpiration!$E$16:$AS$16,MATCH($C89,A_MeasureExpiration!$E$12:$AS$12,0))) -> 0 | R89: =R$49*(1-INDEX(A_MeasureExpiration!$E$16:$AS$16,MATCH($C89,A_MeasureExpiration!$E$12:$AS$12,0))) -> 0 | S89: =S$49*(1-INDEX(A_MeasureExpiration!$E$16:$AS$16,MATCH($C89,A_MeasureExpiration!$E$12:$AS$12,0))) -> 0 | T89: =T$49*(1-INDEX(A_MeasureExpiration!$E$16:$AS$16,MATCH($C89,A_MeasureExpiration!$E$12:$AS$12,0))) -> 0 | U89: =U$49*(1-INDEX(A_MeasureExpiration!$E$16:$AS$16,MATCH($C89,A_MeasureExpiration!$E$12:$AS$12,0))) -> 0 | V89: =V$49*(1-INDEX(A_MeasureExpiration!$E$16:$AS$16,MATCH($C89,A_MeasureExpiration!$E$12:$AS$12,0))) -> 0 | W89: =W$49*(1-INDEX(A_MeasureExpiration!$E$16:$AS$16,MATCH($C89,A_MeasureExpiration!$E$12:$AS$12,0))) -> 0 | X89: =X$49*(1-INDEX(A_MeasureExpiration!$E$16:$AS$16,MATCH($C89,A_MeasureExpiration!$E$12:$AS$12,0))) -> 0 | Y89: =Y$49*(1-INDEX(A_MeasureExpiration!$E$16:$AS$16,MATCH($C89,A_MeasureExpiration!$E$12:$AS$12,0))) -> 0 | Z89: =Z$49*(1-INDEX(A_MeasureExpiration!$E$16:$AS$16,MATCH($C89,A_MeasureExpiration!$E$12:$AS$12,0))) -> 0 | AA89: =AA$49*(1-INDEX(A_MeasureExpiration!$E$16:$AS$16,MATCH($C89,A_MeasureExpiration!$E$12:$AS$12,0))) -> 0 | AB89: =AB$49*(1-INDEX(A_MeasureExpiration!$E$16:$AS$16,MATCH($C89,A_MeasureExpiration!$E$12:$AS$12,0))) -> 0 | AC89: =AC$49*(1-INDEX(A_MeasureExpiration!$E$16:$AS$16,MATCH($C89,A_MeasureExpiration!$E$12:$AS$12,0))) -> 0 | AD89: =AD$49*(1-INDEX(A_MeasureExpiration!$E$16:$AS$16,MATCH($C89,A_MeasureExpiration!$E$12:$AS$12,0))) -> 0 | AE89: =AE$49*(1-INDEX(A_MeasureExpiration!$E$16:$AS$16,MATCH($C89,A_MeasureExpiration!$E$12:$AS$12,0))) -> 0 | AF89: =AF$49*(1-INDEX(A_MeasureExpiration!$E$16:$AS$16,MATCH($C89,A_MeasureExpiration!$E$12:$AS$12,0))) -> 0 | AG89: =AG$49*(1-INDEX(A_MeasureExpiration!$E$16:$AS$16,MATCH($C89,A_MeasureExpiration!$E$12:$AS$12,0))) -> 0 | AH89: =AH$49*(1-INDEX(A_MeasureExpiration!$E$16:$AS$16,MATCH($C89,A_MeasureExpiration!$E$12:$AS$12,0))) -> 0 | AI89: =AI$49*(1-INDEX(A_MeasureExpiration!$E$16:$AS$16,MATCH($C89,A_MeasureExpiration!$E$12:$AS$12,0))) -> 0 | AJ89: =AJ$49*(1-INDEX(A_MeasureExpiration!$E$16:$AS$16,MATCH($C89,A_MeasureExpiration!$E$12:$AS$12,0))) -> 0 | AK89: =AK$49*(1-INDEX(A_MeasureExpiration!$E$16:$AS$16,MATCH($C89,A_MeasureExpiration!$E$12:$AS$12,0))) -> 0 | AL89: =AL$49*(1-INDEX(A_MeasureExpiration!$E$16:$AS$16,MATCH($C89,A_MeasureExpiration!$E$12:$AS$12,0))) -> 0 | AM89: =AM$49*(1-INDEX(A_MeasureExpiration!$E$16:$AS$16,MATCH($C89,A_MeasureExpiration!$E$12:$AS$12,0))) -> 0 | AN89: =AN$49*(1-INDEX(A_MeasureExpiration!$E$16:$AS$16,MATCH($C89,A_MeasureExpiration!$E$12:$AS$12,0))) -> 0
C90: Year 35 | D90: MMBtu | F90: =F$49*(1-INDEX(A_MeasureExpiration!$E$16:$AS$16,MATCH($C90,A_MeasureExpiration!$E$12:$AS$12,0))) -> 0 | G90: =G$49*(1-INDEX(A_MeasureExpiration!$E$16:$AS$16,MATCH($C90,A_MeasureExpiration!$E$12:$AS$12,0))) -> 0 | H90: =H$49*(1-INDEX(A_MeasureExpiration!$E$16:$AS$16,MATCH($C90,A_MeasureExpiration!$E$12:$AS$12,0))) -> 0 | I90: =I$49*(1-INDEX(A_MeasureExpiration!$E$16:$AS$16,MATCH($C90,A_MeasureExpiration!$E$12:$AS$12,0))) -> 0 | J90: =J$49*(1-INDEX(A_MeasureExpiration!$E$16:$AS$16,MATCH($C90,A_MeasureExpiration!$E$12:$AS$12,0))) -> 0 | K90: =K$49*(1-INDEX(A_MeasureExpiration!$E$16:$AS$16,MATCH($C90,A_MeasureExpiration!$E$12:$AS$12,0))) -> 0 | L90: =L$49*(1-INDEX(A_MeasureExpiration!$E$16:$AS$16,MATCH($C90,A_MeasureExpiration!$E$12:$AS$12,0))) -> 0 | M90: =M$49*(1-INDEX(A_MeasureExpiration!$E$16:$AS$16,MATCH($C90,A_MeasureExpiration!$E$12:$AS$12,0))) -> 0 | N90: =N$49*(1-INDEX(A_MeasureExpiration!$E$16:$AS$16,MATCH($C90,A_MeasureExpiration!$E$12:$AS$12,0))) -> 0 | O90: =O$49*(1-INDEX(A_MeasureExpiration!$E$16:$AS$16,MATCH($C90,A_MeasureExpiration!$E$12:$AS$12,0))) -> 0 | P90: =P$49*(1-INDEX(A_MeasureExpiration!$E$16:$AS$16,MATCH($C90,A_MeasureExpiration!$E$12:$AS$12,0))) -> 0 | Q90: =Q$49*(1-INDEX(A_MeasureExpiration!$E$16:$AS$16,MATCH($C90,A_MeasureExpiration!$E$12:$AS$12,0))) -> 0 | R90: =R$49*(1-INDEX(A_MeasureExpiration!$E$16:$AS$16,MATCH($C90,A_MeasureExpiration!$E$12:$AS$12,0))) -> 0 | S90: =S$49*(1-INDEX(A_MeasureExpiration!$E$16:$AS$16,MATCH($C90,A_MeasureExpiration!$E$12:$AS$12,0))) -> 0 | T90: =T$49*(1-INDEX(A_MeasureExpiration!$E$16:$AS$16,MATCH($C90,A_MeasureExpiration!$E$12:$AS$12,0))) -> 0 | U90: =U$49*(1-INDEX(A_MeasureExpiration!$E$16:$AS$16,MATCH($C90,A_MeasureExpiration!$E$12:$AS$12,0))) -> 0 | V90: =V$49*(1-INDEX(A_MeasureExpiration!$E$16:$AS$16,MATCH($C90,A_MeasureExpiration!$E$12:$AS$12,0))) -> 0 | W90: =W$49*(1-INDEX(A_MeasureExpiration!$E$16:$AS$16,MATCH($C90,A_MeasureExpiration!$E$12:$AS$12,0))) -> 0 | X90: =X$49*(1-INDEX(A_MeasureExpiration!$E$16:$AS$16,MATCH($C90,A_MeasureExpiration!$E$12:$AS$12,0))) -> 0 | Y90: =Y$49*(1-INDEX(A_MeasureExpiration!$E$16:$AS$16,MATCH($C90,A_MeasureExpiration!$E$12:$AS$12,0))) -> 0 | Z90: =Z$49*(1-INDEX(A_MeasureExpiration!$E$16:$AS$16,MATCH($C90,A_MeasureExpiration!$E$12:$AS$12,0))) -> 0 | AA90: =AA$49*(1-INDEX(A_MeasureExpiration!$E$16:$AS$16,MATCH($C90,A_MeasureExpiration!$E$12:$AS$12,0))) -> 0 | AB90: =AB$49*(1-INDEX(A_MeasureExpiration!$E$16:$AS$16,MATCH($C90,A_MeasureExpiration!$E$12:$AS$12,0))) -> 0 | AC90: =AC$49*(1-INDEX(A_MeasureExpiration!$E$16:$AS$16,MATCH($C90,A_MeasureExpiration!$E$12:$AS$12,0))) -> 0 | AD90: =AD$49*(1-INDEX(A_MeasureExpiration!$E$16:$AS$16,MATCH($C90,A_MeasureExpiration!$E$12:$AS$12,0))) -> 0 | AE90: =AE$49*(1-INDEX(A_MeasureExpiration!$E$16:$AS$16,MATCH($C90,A_MeasureExpiration!$E$12:$AS$12,0))) -> 0 | AF90: =AF$49*(1-INDEX(A_MeasureExpiration!$E$16:$AS$16,MATCH($C90,A_MeasureExpiration!$E$12:$AS$12,0))) -> 0 | AG90: =AG$49*(1-INDEX(A_MeasureExpiration!$E$16:$AS$16,MATCH($C90,A_MeasureExpiration!$E$12:$AS$12,0))) -> 0 | AH90: =AH$49*(1-INDEX(A_MeasureExpiration!$E$16:$AS$16,MATCH($C90,A_MeasureExpiration!$E$12:$AS$12,0))) -> 0 | AI90: =AI$49*(1-INDEX(A_MeasureExpiration!$E$16:$AS$16,MATCH($C90,A_MeasureExpiration!$E$12:$AS$12,0))) -> 0 | AJ90: =AJ$49*(1-INDEX(A_MeasureExpiration!$E$16:$AS$16,MATCH($C90,A_MeasureExpiration!$E$12:$AS$12,0))) -> 0 | AK90: =AK$49*(1-INDEX(A_MeasureExpiration!$E$16:$AS$16,MATCH($C90,A_MeasureExpiration!$E$12:$AS$12,0))) -> 0 | AL90: =AL$49*(1-INDEX(A_MeasureExpiration!$E$16:$AS$16,MATCH($C90,A_MeasureExpiration!$E$12:$AS$12,0))) -> 0 | AM90: =AM$49*(1-INDEX(A_MeasureExpiration!$E$16:$AS$16,MATCH($C90,A_MeasureExpiration!$E$12:$AS$12,0))) -> 0 | AN90: =AN$49*(1-INDEX(A_MeasureExpiration!$E$16:$AS$16,MATCH($C90,A_MeasureExpiration!$E$12:$AS$12,0))) -> 0
C91: Year 36 | D91: MMBtu | F91: =F$49*(1-INDEX(A_MeasureExpiration!$E$16:$AS$16,MATCH($C91,A_MeasureExpiration!$E$12:$AS$12,0))) -> 0 | G91: =G$49*(1-INDEX(A_MeasureExpiration!$E$16:$AS$16,MATCH($C91,A_MeasureExpiration!$E$12:$AS$12,0))) -> 0 | H91: =H$49*(1-INDEX(A_MeasureExpiration!$E$16:$AS$16,MATCH($C91,A_MeasureExpiration!$E$12:$AS$12,0))) -> 0 | I91: =I$49*(1-INDEX(A_MeasureExpiration!$E$16:$AS$16,MATCH($C91,A_MeasureExpiration!$E$12:$AS$12,0))) -> 0 | J91: =J$49*(1-INDEX(A_MeasureExpiration!$E$16:$AS$16,MATCH($C91,A_MeasureExpiration!$E$12:$AS$12,0))) -> 0 | K91: =K$49*(1-INDEX(A_MeasureExpiration!$E$16:$AS$16,MATCH($C91,A_MeasureExpiration!$E$12:$AS$12,0))) -> 0 | L91: =L$49*(1-INDEX(A_MeasureExpiration!$E$16:$AS$16,MATCH($C91,A_MeasureExpiration!$E$12:$AS$12,0))) -> 0 | M91: =M$49*(1-INDEX(A_MeasureExpiration!$E$16:$AS$16,MATCH($C91,A_MeasureExpiration!$E$12:$AS$12,0))) -> 0 | N91: =N$49*(1-INDEX(A_MeasureExpiration!$E$16:$AS$16,MATCH($C91,A_MeasureExpiration!$E$12:$AS$12,0))) -> 0 | O91: =O$49*(1-INDEX(A_MeasureExpiration!$E$16:$AS$16,MATCH($C91,A_MeasureExpiration!$E$12:$AS$12,0))) -> 0 | P91: =P$49*(1-INDEX(A_MeasureExpiration!$E$16:$AS$16,MATCH($C91,A_MeasureExpiration!$E$12:$AS$12,0))) -> 0 | Q91: =Q$49*(1-INDEX(A_MeasureExpiration!$E$16:$AS$16,MATCH($C91,A_MeasureExpiration!$E$12:$AS$12,0))) -> 0 | R91: =R$49*(1-INDEX(A_MeasureExpiration!$E$16:$AS$16,MATCH($C91,A_MeasureExpiration!$E$12:$AS$12,0))) -> 0 | S91: =S$49*(1-INDEX(A_MeasureExpiration!$E$16:$AS$16,MATCH($C91,A_MeasureExpiration!$E$12:$AS$12,0))) -> 0 | T91: =T$49*(1-INDEX(A_MeasureExpiration!$E$16:$AS$16,MATCH($C91,A_MeasureExpiration!$E$12:$AS$12,0))) -> 0 | U91: =U$49*(1-INDEX(A_MeasureExpiration!$E$16:$AS$16,MATCH($C91,A_MeasureExpiration!$E$12:$AS$12,0))) -> 0 | V91: =V$49*(1-INDEX(A_MeasureExpiration!$E$16:$AS$16,MATCH($C91,A_MeasureExpiration!$E$12:$AS$12,0))) -> 0 | W91: =W$49*(1-INDEX(A_MeasureExpiration!$E$16:$AS$16,MATCH($C91,A_MeasureExpiration!$E$12:$AS$12,0))) -> 0 | X91: =X$49*(1-INDEX(A_MeasureExpiration!$E$16:$AS$16,MATCH($C91,A_MeasureExpiration!$E$12:$AS$12,0))) -> 0 | Y91: =Y$49*(1-INDEX(A_MeasureExpiration!$E$16:$AS$16,MATCH($C91,A_MeasureExpiration!$E$12:$AS$12,0))) -> 0 | Z91: =Z$49*(1-INDEX(A_MeasureExpiration!$E$16:$AS$16,MATCH($C91,A_MeasureExpiration!$E$12:$AS$12,0))) -> 0 | AA91: =AA$49*(1-INDEX(A_MeasureExpiration!$E$16:$AS$16,MATCH($C91,A_MeasureExpiration!$E$12:$AS$12,0))) -> 0 | AB91: =AB$49*(1-INDEX(A_MeasureExpiration!$E$16:$AS$16,MATCH($C91,A_MeasureExpiration!$E$12:$AS$12,0))) -> 0 | AC91: =AC$49*(1-INDEX(A_MeasureExpiration!$E$16:$AS$16,MATCH($C91,A_MeasureExpiration!$E$12:$AS$12,0))) -> 0 | AD91: =AD$49*(1-INDEX(A_MeasureExpiration!$E$16:$AS$16,MATCH($C91,A_MeasureExpiration!$E$12:$AS$12,0))) -> 0 | AE91: =AE$49*(1-INDEX(A_MeasureExpiration!$E$16:$AS$16,MATCH($C91,A_MeasureExpiration!$E$12:$AS$12,0))) -> 0 | AF91: =AF$49*(1-INDEX(A_MeasureExpiration!$E$16:$AS$16,MATCH($C91,A_MeasureExpiration!$E$12:$AS$12,0))) -> 0 | AG91: =AG$49*(1-INDEX(A_MeasureExpiration!$E$16:$AS$16,MATCH($C91,A_MeasureExpiration!$E$12:$AS$12,0))) -> 0 | AH91: =AH$49*(1-INDEX(A_MeasureExpiration!$E$16:$AS$16,MATCH($C91,A_MeasureExpiration!$E$12:$AS$12,0))) -> 0 | AI91: =AI$49*(1-INDEX(A_MeasureExpiration!$E$16:$AS$16,MATCH($C91,A_MeasureExpiration!$E$12:$AS$12,0))) -> 0 | AJ91: =AJ$49*(1-INDEX(A_MeasureExpiration!$E$16:$AS$16,MATCH($C91,A_MeasureExpiration!$E$12:$AS$12,0))) -> 0 | AK91: =AK$49*(1-INDEX(A_MeasureExpiration!$E$16:$AS$16,MATCH($C91,A_MeasureExpiration!$E$12:$AS$12,0))) -> 0 | AL91: =AL$49*(1-INDEX(A_MeasureExpiration!$E$16:$AS$16,MATCH($C91,A_MeasureExpiration!$E$12:$AS$12,0))) -> 0 | AM91: =AM$49*(1-INDEX(A_MeasureExpiration!$E$16:$AS$16,MATCH($C91,A_MeasureExpiration!$E$12:$AS$12,0))) -> 0 | AN91: =AN$49*(1-INDEX(A_MeasureExpiration!$E$16:$AS$16,MATCH($C91,A_MeasureExpiration!$E$12:$AS$12,0))) -> 0
